Workbook

Sheet ICF Calcs_Grid EmFac
B1: Via GREET 2022 Electric Tab Rows 210-222, developed by modifying the User Defined Grid Mix in Inputs tab Rows 742-747. | I1: Midwest Energy Plan | Xcel Energy | N1: 2022 NREL technical report
B2: Conversion | I2: Xcel 2020-2034 IRP: Upper Midwest Energy Plan - Reply Comments.pdf (xcelenergy.com) | N2: NREL Standard Scenarios
B3: MMBtu to Kwh: | C3: =1/293.07107 -> 0.003412141635
B5: Xcel | C5: 2025 | H5: 2030 | M5: 2035 | R5: 2040 | W5: 2045 | AB5: 2050
B6: EF Type | C6: Feedstock | D6: Fuel | E6: Feedstock | F6: Fuel | G6: Final | H6: Feedstock | I6: Fuel | J6: Feedstock | K6: Fuel | L6: Final | M6: Feedstock | N6: Fuel | O6: Feedstock | P6: Fuel | Q6: Final | R6: Feedstock | S6: Fuel | T6: Feedstock | U6: Fuel | V6: Final | W6: Feedstock | X6: Fuel | Y6: Feedstock | Z6: Fuel | AA6: Final | AB6: Feedstock | AC6: Fuel | AD6: Feedstock | AE6: Fuel | AF6: Final
B7: Units | C7: grams / MMBtu | D7: grams / MMBtu | E7: grams / kwh | F7: grams / kwh | G7: grams / kwh | H7: grams / MMBtu | I7: grams / MMBtu | J7: grams / kwh | K7: grams / kwh | L7: grams / kwh | M7: grams / MMBtu | N7: grams / MMBtu | O7: grams / kwh | P7: grams / kwh | Q7: grams / kwh | R7: grams / MMBtu | S7: grams / MMBtu | T7: grams / kwh | U7: grams / kwh | V7: grams / kwh | W7: grams / MMBtu | X7: grams / MMBtu | Y7: grams / kwh | Z7: grams / kwh | AA7: grams / kwh | AB7: grams / MMBtu | AC7: grams / MMBtu | AD7: grams / kwh | AE7: grams / kwh | AF7: grams / kwh
B8: VOC | C8: 6.939450158 | D8: 0.944418917 | E8: =C8*$C$3 -> 0.02367838681 | F8: 0.003222491108 | G8: =SUM(E8:F8) -> 0.02690087792 | H8: 4.356260334 | I8: 0.4867748558 | J8: =H8*$C$3 -> 0.01486417726 | K8: 0.001660944753 | L8: =SUM(J8:K8) -> 0.01652512201 | M8: 4.226764478 | N8: 0.4867748558 | O8: =M8*$C$3 -> 0.01442231906 | P8: 0.001660944753 | Q8: =SUM(O8:P8) -> 0.01608326381 | R8: 2.438530679 | S8: 0.2798955421 | T8: =R8*$C$3 -> 0.008320612058 | U8: 0.0009550432327 | V8: =SUM(T8:U8) -> 0.009275655291 | W8: 1.554182052 | X8: 0.1825405709 | Y8: =W8*$C$3 -> 0.00530308929 | Z8: 0.0006228542822 | AA8: =SUM(Y8:Z8) -> 0.005925943572 | AB8: N/A (no data) | AC8: N/A (no data) | AD8: N/A (no data) | AE8: N/A (no data) | AF8: N/A (no data)
B9: CO | C9: 17.40563199 | D9: 13.08587082 | E9: 0.05939048162 | F9: 0.04465084467 | G9: =SUM(E9:F9) -> 0.1040413263 | H9: 12.35228199 | I9: 4.132348743 | J9: 0.04214773568 | K9: 0.0141001592 | L9: =SUM(J9:K9) -> 0.05624789488 | M9: 11.84957393 | N9: 4.132348743 | O9: 0.04043242455 | P9: 0.0141001592 | Q9: =SUM(O9:P9) -> 0.05453258375 | R9: 6.846069829 | S9: 2.376100527 | T9: 0.0233597599 | U9: 0.008107591538 | V9: =SUM(T9:U9) -> 0.03146735144 | W9: 4.324101013 | X9: 1.549630779 | Y9: 0.0147544451 | Z9: 0.005287559699 | AA9: =SUM(Y9:Z9) -> 0.0200420048 | AB9: N/A (no data) | AC9: N/A (no data) | AD9: N/A (no data) | AE9: N/A (no data) | AF9: N/A (no data)
B10: NOx | C10: 20.63601556 | D10: 20.54917527 | E10: 0.07041300789 | F10: 0.07011669651 | G10: 0.1405297044 | H10: 14.27217641 | I10: 6.949016872 | J10: 0.04869868735 | K10: 0.02371102979 | L10: 0.07240971714 | M10: 13.82585699 | N10: 6.949016872 | O10: 0.04717578226 | P10: 0.02371102979 | Q10: 0.07088681205 | R10: 7.976048189 | S10: 3.995684701 | T10: 0.02721540611 | U10: 0.01363384213 | V10: 0.04084924824 | W10: 5.077786596 | X10: 2.605881327 | Y10: 0.01732612706 | Z10: 0.008891636172 | AA10: 0.02621776323 | AB10: N/A (no data) | AC10: N/A (no data) | AD10: N/A (no data) | AE10: N/A (no data) | AF10: N/A (no data)
B11: PM10 | C11: 1.319184404 | D11: 2.970760003 | E11: 0.004501244031 | F11: 0.0101366539 | G11: 0.01463789793 | H11: 0.1943826964 | I11: 1.287134241 | J11: 0.0006632612917 | K11: 0.004391884334 | L11: 0.005055145626 | M11: 0.1760182431 | N11: 1.287134241 | O11: 0.0006005991759 | P11: 0.004391884334 | Q11: 0.00499248351 | R11: 0.1020353916 | S11: 0.7401021886 | T11: 0.000348159208 | U11: 0.002525333492 | V11: 0.0028734927 | W11: 0.06153180229 | X11: 0.4826753404 | Y11: 0.0002099552245 | Z11: 0.001646956625 | AA11: 0.00185691185 | AB11: N/A (no data) | AC11: N/A (no data) | AD11: N/A (no data) | AE11: N/A (no data) | AF11: N/A (no data)
B12: PM2.5 | C12: 0.4095209573 | D12: 2.701446709 | E12: 0.001397343509 | F12: 0.009217718792 | G12: 0.0106150623 | H12: 0.1845066608 | I12: 1.25423931 | J12: 0.0006295628592 | K12: 0.004279642171 | L12: 0.00490920503 | M12: 0.1685179541 | N12: 1.25423931 | O12: 0.0005750071274 | P12: 0.004279642171 | Q12: 0.004854649298 | R12: 0.09755425456 | S12: 0.7211876034 | T12: 0.0003328689337 | U12: 0.002460794248 | V12: 0.002793663182 | W12: 0.05927949356 | X12: 0.4703397413 | Y12: 0.0002022700281 | Z12: 0.001604865814 | AA12: 0.001807135842 | AB12: N/A (no data) | AC12: N/A (no data) | AD12: N/A (no data) | AE12: N/A (no data) | AF12: N/A (no data)
B13: SOx | C13: 7.722432255 | D13: 14.26972361 | E13: 0.02635003262 | F13: 0.04869031806 | G13: 0.07504035068 | H13: 4.894549939 | I13: 0.4462453776 | J13: 0.01670089763 | K13: 0.001522652432 | L13: 0.01822355006 | M13: 4.875732127 | N13: 0.4462453776 | O13: 0.01663668859 | P13: 0.001522652432 | Q13: 0.01815934102 | R13: 2.802805646 | S13: 0.2565910921 | T13: 0.00956356984 | U13: 0.0008755251486 | V13: 0.01043909499 | W13: 1.823335943 | X13: 0.1673420166 | Y13: 0.006221480487 | Z13: 0.0005709946621 | AA13: 0.006792475149 | AB13: N/A (no data) | AC13: N/A (no data) | AD13: N/A (no data) | AE13: N/A (no data) | AF13: N/A (no data)
B14: BC | C14: 0.06542782613 | D14: 0.1493503579 | E14: 0.0002232490096 | F14: 0.0005096045744 | G14: 0.000732853584 | H14: 0.03902644747 | I14: 0.06323894 | J14: 0.0001331637663 | K14: 0.0002157802201 | L14: 0.0003489439864 | M14: 0.03539362605 | N14: 0.06323894 | O14: 0.0001207680651 | P14: 0.0002157802201 | Q14: 0.0003365482852 | R14: 0.02059365835 | S14: 0.0363623905 | T14: 7.026847908e-05 | U14: 0.0001240736266 | V14: 0.0001943421057 | W14: 0.01241122935 | X14: 0.0237146025 | Y14: 4.234887241e-05 | Z14: 8.091758255e-05 | AA14: 0.000123266455 | AB14: N/A (no data) | AC14: N/A (no data) | AD14: N/A (no data) | AE14: N/A (no data) | AF14: N/A (no data)
B15: OC | C15: 0.1170853776 | D15: 1.256003242 | E15: 0.0003995118919 | F15: 0.004285660955 | G15: 0.004685172847 | H15: 0.0767633514 | I15: 0.8053058636 | J15: 0.0002619274274 | K15: 0.002747817666 | L15: 0.003009745094 | M15: 0.07099563417 | N15: 0.8053058636 | O15: 0.0002422471593 | P15: 0.002747817666 | Q15: 0.002990064826 | R15: 0.04090869731 | S15: 0.4630508716 | T15: 0.0001395862693 | U15: 0.001579995158 | V15: 0.001719581427 | W15: 0.02516576517 | X15: 0.3019896989 | Y15: 8.586915513e-05 | Z15: 0.001030431625 | AA15: 0.00111630078 | AB15: N/A (no data) | AC15: N/A (no data) | AD15: N/A (no data) | AE15: N/A (no data) | AF15: N/A (no data)
B16: CH4 | C16: 133.1748035 | D16: 3.235984004 | E16: 0.4544112918 | F16: 0.01104163575 | G16: 0.4654529275 | H16: 82.34411737 | I16: 0.6748385339 | J16: 0.2809697913 | K16: 0.002302644658 | L16: 0.2832724359 | M16: 81.85111145 | N16: 0.6748385339 | O16: 0.2792875853 | P16: 0.002302644658 | Q16: 0.2815902299 | R16: 47.06859615 | S16: 0.388032157 | T16: 0.1606047166 | U16: 0.001324020679 | V16: 0.1619287373 | W16: 30.56862272 | X16: 0.2530644502 | Y16: 0.1043044703 | Z16: 0.0008634917469 | AA16: 0.105167962 | AB16: N/A (no data) | AC16: N/A (no data) | AD16: N/A (no data) | AE16: N/A (no data) | AF16: N/A (no data)
B17: N2O | C17: 0.5030229326 | D17: 0.5958464902 | E17: 0.001716385492 | F17: 0.002033112617 | G17: 0.003749498109 | H17: 0.3556362858 | I17: 0.09140287999 | J17: 0.001213481378 | K17: 0.0003118795724 | L17: 0.00152536095 | M17: 0.3533250623 | N17: 0.09140287999 | O17: 0.001205595156 | P17: 0.0003118795724 | Q17: 0.001517474728 | R17: 0.2031576408 | S17: 0.05255665599 | T17: 0.0006932026446 | U17: 0.0001793307541 | V17: 0.0008725333988 | W17: 0.1319011103 | X17: 0.03427607999 | Y17: 0.0004500652703 | Z17: 0.0001169548396 | AA17: 0.00056702011 | AB17: N/A (no data) | AC17: N/A (no data) | AD17: N/A (no data) | AE17: N/A (no data) | AF17: N/A (no data)
B18: CO2 | C18: 4092.082201 | D18: 49320.31637 | E18: 13.96276405 | F18: 168.2879049 | G18: 182.250669 | H18: 2741.003788 | I18: 26682.68647 | J18: 9.352693147 | K18: 91.04510545 | L18: 100.3977986 | M18: 2609.62881 | N18: 26774.26351 | O18: 8.904423115 | P18: 91.35757927 | Q18: 100.2620024 | R18: 1498.843353 | S18: 15631.29857 | T18: 5.114265808 | U18: 53.33620466 | V18: 58.45047046 | W18: 944.2427121 | X18: 10419.53499 | Y18: 3.221889872 | Z18: 35.55292915 | AA18: 38.77481902 | AB18: N/A (no data) | AC18: N/A (no data) | AD18: N/A (no data) | AE18: N/A (no data) | AF18: N/A (no data)
B19: CO2 (w/ C in VOC & CO) | C19: 4141.061861 | D19: 49343.82332 | E19: 14.12988959 | F19: 168.368114 | G19: 182.4980036 | H19: 2773.991528 | I19: 26690.69728 | J19: 9.465251989 | K19: 91.07243945 | L19: 100.5376914 | M19: 2641.422985 | N19: 26782.27432 | O19: 9.012909343 | P19: 91.38491328 | Q19: 100.3978226 | R19: 1517.20155 | S19: 15635.90478 | T19: 5.176906577 | U19: 53.35192171 | V19: 58.52882828 | W19: 955.8815953 | X19: 10422.53904 | Y19: 3.26160339 | Z19: 35.5631794 | AA19: 38.82478279 | AB19: N/A (no data) | AC19: N/A (no data) | AD19: N/A (no data) | AE19: N/A (no data) | AF19: N/A (no data)
B20: GHGs | C20: 8246.996266 | D20: 49602.92174 | E20: 28.13991932 | F20: 169.2521945 | G20: 197.3921138 | H20: 5324.934932 | I20: 26735.76045 | J20: 18.16943219 | K20: 91.22620139 | L20: 109.3956336 | M20: 5177.043848 | N20: 26827.33749 | O20: 17.66480686 | P20: 91.53867521 | Q20: 109.2034821 | R20: 2975.307751 | S20: 15661.81611 | T20: 10.15217145 | U20: 53.44033482 | V20: 63.59250627 | W20: 1902.835555 | X20: 10439.43773 | Y20: 6.492744423 | Z20: 35.62084013 | AA20: 42.11358455 | AB20: N/A (no data) | AC20: N/A (no data) | AD20: N/A (no data) | AE20: N/A (no data) | AF20: N/A (no data)
B22: NREL | C22: 2025 | H22: 2030 | M22: 2035 | R22: 2040 | W22: 2045 | AB22: 2050
B23: EF Type | C23: Feedstock | D23: Fuel | E23: Feedstock | F23: Fuel | G23: Final | H23: Feedstock | I23: Fuel | J23: Feedstock | K23: Fuel | L23: Final | M23: Feedstock | N23: Fuel | O23: Feedstock | P23: Fuel | Q23: Final | R23: Feedstock | S23: Fuel | T23: Feedstock | U23: Fuel | V23: Final | W23: Feedstock | X23: Fuel | Y23: Feedstock | Z23: Fuel | AA23: Final | AB23: Feedstock | AC23: Fuel | AD23: Feedstock | AE23: Fuel | AF23: Final
B24: Units | C24: grams / MMBtu | D24: grams / MMBtu | E24: grams / kwh | F24: grams / kwh | G24: grams / kwh | H24: grams / MMBtu | I24: grams / MMBtu | J24: grams / kwh | K24: grams / kwh | L24: grams / kwh | M24: grams / MMBtu | N24: grams / MMBtu | O24: grams / kwh | P24: grams / kwh | Q24: grams / kwh | R24: grams / MMBtu | S24: grams / MMBtu | T24: grams / kwh | U24: grams / kwh | V24: grams / kwh | W24: grams / MMBtu | X24: grams / MMBtu | Y24: grams / kwh | Z24: grams / kwh | AA24: grams / kwh | AB24: grams / MMBtu | AC24: grams / MMBtu | AD24: grams / kwh | AE24: grams / kwh | AF24: grams / kwh
B25: VOC | C25: 6.068041561 | D25: 1.037123154 | E25: =C25*$C$3 -> 0.02070501726 | F25: 0.003538811093 | G25: =SUM(E25:F25) -> 0.02424382835 | H25: 0.5016439449 | I25: 0.09805921437 | J25: =H25*$C$3 -> 0.00171168019 | K25: 0.0003345919281 | L25: =SUM(J25:K25) -> 0.002046272118 | M25: 0.3616274977 | N25: 0.07477908502 | O25: =M25*$C$3 -> 0.001233924241 | P25: 0.0002551568294 | Q25: =SUM(O25:P25) -> 0.001489081071 | R25: 0.1226845459 | S25: 0.02895026447 | T25: =R25*$C$3 -> 0.000418617047 | U25: 9.878240275e-05 | V25: =SUM(T25:U25) -> 0.0005173994497 | W25: 0.6163417399 | X25: 0.1176909664 | Y25: =W25*$C$3 -> 0.002103045312 | Z25: 0.0004015782466 | AA25: =SUM(Y25:Z25) -> 0.002504623559 | AB25: 1.076861806 | AC25: 0.1889952718 | AD25: =AB25*$C$3 -> 0.003674405004 | AE25: 0.0006448786359 | AF25: =SUM(AD25:AE25) -> 0.00431928364
B26: CO | C26: 7.162629457 | D26: 19.84647171 | E26: 0.02443990619 | F26: 0.06771897242 | G26: =SUM(E26:F26) -> 0.09215887861 | H26: 0.5684300572 | I26: 2.30981453 | J26: 0.001939563865 | K26: 0.007881414327 | L26: =SUM(J26:K26) -> 0.009820978192 | M26: 0.4711443286 | N26: 1.829371717 | O26: 0.00160761118 | P26: 0.006242075401 | Q26: =SUM(O26:P26) -> 0.007849686581 | R26: 0.3497977882 | S26: 0.7605931815 | T26: 0.001193559597 | U26: 0.002595251662 | V26: =SUM(T26:U26) -> 0.003788811259 | W26: 0.6581550545 | X26: 2.734187109 | Y26: 0.002245718264 | Z26: 0.009329433673 | AA26: =SUM(Y26:Z26) -> 0.01157515194 | AB26: 1.069221728 | AC26: 4.292251308 | AD26: 0.003648335976 | AE26: 0.0146457694 | AF26: =SUM(AD26:AE26) -> 0.01829410537
B27: NOx | C27: 10.08466304 | D27: 43.96746436 | E27: 0.03441029865 | F27: 0.1500232157 | G27: 0.1844335144 | H27: 0.7305990991 | I27: 4.397939814 | J27: 0.002492907605 | K27: 0.01500639355 | L27: 0.01749930115 | M27: 0.5678490866 | N27: 3.246420422 | O27: 0.001937581511 | P27: 0.01107724629 | Q27: 0.0130148278 | R27: 0.3423016784 | S27: 0.9613706209 | T27: 0.001167981809 | U27: 0.003280332723 | V27: 0.004448314531 | W27: 0.8701472072 | X27: 5.351350305 | Y27: 0.002969065514 | Z27: 0.01825956518 | AA27: 0.02122863069 | AB27: 1.495740429 | AC27: 8.670306094 | AD27: 0.005103678194 | AE27: 0.02958431241 | AF27: 0.03468799061
B28: PM10 | C28: 4.637375139 | D28: 4.934647759 | E28: 0.01582338079 | F28: 0.01683771707 | G28: 0.03266109786 | H28: 0.4518116692 | I28: 0.4651860926 | J28: 0.001541645408 | K28: 0.001587280835 | L28: 0.003128926242 | M28: 0.3164569799 | N28: 0.3378529087 | O28: 0.001079796037 | P28: 0.001152801976 | Q28: 0.002232598013 | R28: 0.05670955579 | S28: 0.09237319233 | T28: 0.0001935010364 | U28: 0.0003151904155 | V28: 0.0005086914519 | W28: 0.561820173 | X28: 0.5698301569 | Y28: 0.001917010004 | Z28: 0.001944341203 | AA28: 0.003861351207 | AB28: 0.9696814046 | AC28: 0.9548610717 | AD28: 0.003308690294 | AE28: 0.003258121219 | AF28: 0.006566811512
B29: PM2.5 | C29: 0.7412347054 | D29: 3.989683316 | E29: 0.0025291978 | F29: 0.01361336455 | G29: 0.01614256235 | H29: 0.07575687563 | I29: 0.3725264163 | J29: 0.0002584931895 | K29: 0.001271112895 | L29: 0.001529606085 | M29: 0.05590270504 | N29: 0.2723541421 | O29: 0.0001907479474 | P29: 0.0009293109077 | Q29: 0.001120058855 | R29: 0.01763323349 | S29: 0.07957695012 | T29: 6.016709016e-05 | U29: 0.0002715278247 | V29: 0.0003316949149 | W29: 0.09237076335 | X29: 0.4550736385 | Y29: 0.0003151821275 | Z29: 0.001552775709 | AA29: 0.001867957836 | AB29: 0.1531258157 | AC29: 0.759718255 | AD29: 0.0005224869713 | AE29: 0.002592266289 | AF29: 0.00311475326
B30: SOx | C30: 6.079376856 | D30: 52.73179853 | E30: 0.02074369489 | F30: 0.1799283653 | G30: 0.2006720601 | H30: 0.3916922393 | I30: 5.447869755 | J30: 0.001336509398 | K30: 0.01858890321 | L30: 0.01992541261 | M30: 0.2577994239 | N30: 3.95409795 | O30: 0.0008796481479 | P30: 0.01349194225 | Q30: 0.01437159039 | R30: 0.04711439813 | S30: 0.9690329051 | T30: 0.0001607609995 | U30: 0.003306477521 | V30: 0.003467238521 | W30: 0.4970244055 | X30: 6.679350465 | Y30: 0.001695917668 | Z30: 0.02279088982 | AA30: 0.02448680748 | AB30: 0.9488623823 | AC30: 11.05901297 | AD30: 0.003237652841 | AE30: 0.03773491859 | AF30: 0.04097257143
B31: BC | C31: 0.04367841777 | D31: 0.1905773773 | E31: 0.0001490369478 | F31: 0.0006502770038 | G31: 0.0007993139516 | H31: 0.006535790284 | I31: 0.0209357617 | J31: 2.230104215e-05 | K31: 7.143578415e-05 | L31: 9.37368263e-05 | M31: 0.005759728802 | N31: 0.01667492424 | O31: 1.965301045e-05 | P31: 5.689720325e-05 | Q31: 7.65502137e-05 | R31: 0.003876005138 | S31: 0.007422073803 | T31: 1.322547851e-05 | U31: 2.532516704e-05 | V31: 3.855064555e-05 | W31: 0.00736340783 | X31: 0.02467747536 | Y31: 2.512499043e-05 | Z31: 8.420304114e-05 | AA31: 0.0001093280316 | AB31: 0.01012877625 | AC31: 0.03748118631 | AD31: 3.456081914e-05 | AE31: 0.0001278911164 | AF31: 0.0001624519355
B32: OC | C32: 0.08176823167 | D32: 0.693528505 | E32: 0.0002790047877 | F32: 0.002366417487 | G32: 0.002645422275 | H32: 0.00848284619 | I32: 0.04557776687 | J32: 2.894467267e-05 | K32: 0.000155517796 | L32: 0.0001844624686 | M32: 0.006846556347 | N32: 0.03411457765 | O32: 2.336141997e-05 | P32: 0.0001164037708 | Q32: 0.0001397651907 | R32: 0.003865200405 | S32: 0.01608929155 | T32: 1.318861123e-05 | U32: 5.489894159e-05 | V32: 6.808755282e-05 | W32: 0.009954322687 | X32: 0.05500763677 | Y32: 3.396555889e-05 | Z32: 0.0001876938477 | AA32: 0.0002216594066 | AB32: 0.01536864528 | AC32: 0.09747869069 | AD32: 5.243999444e-05 | AE32: 0.000332611099 | AF32: 0.0003850510935
B33: CH4 | C33: 118.3566695 | D33: 8.96311299 | E33: 0.4038497198 | F33: 0.03058341101 | G33: 0.4344331308 | H33: 8.325881542 | I33: 0.8887134471 | J33: 0.02840908706 | K33: 0.003032416155 | L33: 0.03144150321 | M33: 5.579516627 | N33: 0.6350183866 | O33: 0.01903810099 | P33: 0.002166772676 | Q33: 0.02120487366 | R33: 1.069499652 | S33: 0.137807398 | T33: 0.003649284291 | U33: 0.0004702183603 | V33: 0.004119502651 | W33: 10.49605055 | X33: 1.09673076 | Y33: 0.03581401107 | Z33: 0.003742200688 | AA33: 0.03955621176 | AB33: 19.56135217 | AC33: 1.873697672 | AD33: 0.06674610418 | AE33: 0.006393321837 | AF33: 0.07313942602
B34: N2O | C34: 0.1905999252 | D34: 1.366980722 | E34: 0.0006503539403 | F34: 0.004664331835 | G34: 0.005314685775 | H34: 0.005007245859 | I34: 0.1562724278 | J34: 1.708543207e-05 | K34: 0.0005332236573 | L34: 0.0005503090894 | M34: 0.002687946928 | N34: 0.1199181051 | O34: 9.171655627e-06 | P34: 0.0004091775591 | Q34: 0.0004183492147 | R34: 0.001480646829 | S34: 0.04172532523 | T34: 5.052176694e-06 | U34: 0.0001423727195 | V34: 0.0001474248962 | W34: 0.006693651142 | X34: 0.1875446331 | Y34: 2.283968575e-05 | Z34: 0.0006399288511 | AA34: 0.0006627685368 | AB34: 0.01746720699 | AC34: 0.3022734986 | AD34: 5.960058421e-05 | AE34: 0.00103139999 | AF34: 0.001091000574
B35: CO2 | C35: 2304.910082 | D35: 66309.99231 | E35: 7.864679655 | F35: 226.2590856 | G35: 234.1237652 | H35: 182.7987969 | I35: 5791.10436 | J35: 0.6237353858 | K35: 19.7600683 | L35: 20.38380369 | M35: 144.2753159 | N35: 4089.25231 | O35: 0.4922878122 | P35: 13.95310806 | Q35: 14.44539587 | R35: 83.61374915 | S35: 1082.552395 | T35: 0.2853019548 | U35: 3.6938221 | V35: 3.979124055 | W35: 216.8195649 | X35: 7142.307481 | Y35: 0.7398190646 | Z35: 24.37056473 | AA35: 25.11038379 | AB35: 357.0952184 | AC35: 12474.19578 | AD35: 1.218459463 | AE35: 42.56372279 | AF35: 43.78218225
B36: CO2 (w/ C in VOC & CO) | C36: 2335.077705 | D36: 66344.41199 | E36: 7.967615859 | F36: 226.3765304 | G36: 234.3441463 | H36: 185.2555011 | I36: 5795.039686 | J36: 0.6321180085 | K36: 19.77349619 | L36: 20.4056142 | M36: 146.1427579 | N36: 4092.360098 | O36: 0.4986597889 | P36: 13.96371228 | Q36: 14.46237207 | R36: 84.54579823 | S36: 1083.837842 | T36: 0.2884822382 | U36: 3.698208225 | V36: 3.986690463 | W36: 219.7747403 | X36: 7146.970864 | Y36: 0.7499025417 | Z36: 24.38647685 | AA36: 25.13637939 | AB36: 362.1316433 | AC36: 12481.52978 | AD36: 1.235644458 | AE36: 42.58874744 | AF36: 43.8243919
B37: GHGs | C37: 5914.140236 | D37: 66984.69849 | E37: 20.17988414 | F37: 228.5612786 | G37: 248.7411628 | H37: 434.7337492 | I37: 5864.18572 | J37: 1.483373126 | K37: 20.00943225 | L37: 21.49280538 | M37: 313.1461629 | N37: 4144.021289 | O37: 1.06849906 | P37: 14.13998758 | Q37: 15.20848664 | R37: 116.8211044 | S37: 1099.335516 | T37: 0.3986101543 | U37: 3.751088484 | V37: 4.149698639 | W37: 534.3844133 | X37: 7230.853126 | Y37: =W37*$C$3 -> 1.823395306 | Z37: 24.67269501 | AA37: 26.49609031 | AB37: 949.8284855 | AC37: 12619.88664 | AD37: 3.240949322 | AE37: 43.06084063 | AF37: 46.30178995
B39: 50 NREL/ 50 Wind | C39: 2025 | H39: 2030 | M39: 2035 | R39: 2040 | W39: 2045 | AB39: 2050
B40: EF Type | C40: Feedstock | D40: Fuel | E40: Feedstock | F40: Fuel | G40: Final | H40: Feedstock | I40: Fuel | J40: Feedstock | K40: Fuel | L40: Final | M40: Feedstock | N40: Fuel | O40: Feedstock | P40: Fuel | Q40: Final | R40: Feedstock | S40: Fuel | T40: Feedstock | U40: Fuel | V40: Final | W40: Feedstock | X40: Fuel | Y40: Feedstock | Z40: Fuel | AA40: Final | AB40: Feedstock | AC40: Fuel | AD40: Feedstock | AE40: Fuel | AF40: Final
B41: Units | C41: grams / MMBtu | D41: grams / MMBtu | E41: grams / kwh | F41: grams / kwh | G41: grams / kwh | H41: grams / MMBtu | I41: grams / MMBtu | J41: grams / kwh | K41: grams / kwh | L41: grams / kwh | M41: grams / MMBtu | N41: grams / MMBtu | O41: grams / kwh | P41: grams / kwh | Q41: grams / kwh | R41: grams / MMBtu | S41: grams / MMBtu | T41: grams / kwh | U41: grams / kwh | V41: grams / kwh | W41: grams / MMBtu | X41: grams / MMBtu | Y41: grams / kwh | Z41: grams / kwh | AA41: grams / kwh | AB41: grams / MMBtu | AC41: grams / MMBtu | AD41: grams / kwh | AE41: grams / kwh | AF41: grams / kwh
B42: VOC | C42: 3.03052226 | D42: 0.5185615768 | E42: =C42*$C$3 -> 0.01034057118 | F42: 0.001769405547 | G42: =SUM(E42:F42) -> 0.01210997673 | H42: 0.2506417944 | I42: 0.04902960719 | J42: =H42*$C$3 -> 0.0008552253022 | K42: 0.000167295964 | L42: =SUM(J42:K42) -> 0.001022521266 | M42: 0.1806870291 | N42: 0.03738954251 | O42: =M42*$C$3 -> 0.0006165297348 | P42: 0.0001275784147 | Q42: =SUM(O42:P42) -> 0.0007441081495 | R42: 0.06130538843 | S42: 0.01447513223 | T42: =R42*$C$3 -> 0.0002091826683 | U42: 4.939120137e-05 | V42: =SUM(T42:U42) -> 0.0002585738697 | W42: 0.3079340327 | X42: 0.0588454832 | Y42: =W42*$C$3 -> 0.001050714534 | Z42: 0.0002007891233 | AA42: =SUM(Y42:Z42) -> 0.001251503657 | AB42: 0.5379917777 | AC42: 0.09449763592 | AD42: =AB42*$C$3 -> 0.001835704144 | AE42: 0.000322439318 | AF42: =SUM(AD42:AE42) -> 0.002158143462
B43: CO | C43: 3.561713362 | D43: 9.923235854 | E43: 0.01215307045 | F43: 0.03385948621 | G43: =SUM(E43:F43) -> 0.04601255667 | H43: 0.2832857304 | I43: 1.154907265 | J43: 0.0009666110354 | K43: 0.003940707164 | L43: =SUM(J43:K43) -> 0.004907318199 | M43: 0.2348685208 | N43: 0.9146858584 | O43: 0.0008014046587 | P43: 0.0031210377 | Q43: =SUM(O43:P43) -> 0.003922442359 | R43: 0.1746263336 | S43: 0.3802965907 | T43: 0.0005958497834 | U43: 0.001297625831 | V43: =SUM(T43:U43) -> 0.001893475614 | W43: 0.3278879216 | X43: 1.367093555 | Y43: 0.001118800029 | Z43: 0.004664716837 | AA43: =SUM(Y43:Z43) -> 0.005783516866 | AB43: 0.5324890754 | AC43: 2.146125654 | AD43: 0.001816928144 | AE43: 0.007322884698 | AF43: =SUM(AD43:AE43) -> 0.009139812842
B44: NOx | C44: 5.003104168 | D44: 21.98373218 | E44: 0.01707130004 | F44: 0.07501160786 | G44: 0.0920829079 | H44: 0.3636436993 | I44: 2.198969907 | J44: 0.001240803807 | K44: 0.007503196774 | L44: 0.008744000581 | M44: 0.2827578982 | N44: 1.623210211 | O44: 0.000964809997 | P44: 0.005538623143 | Q44: 0.00650343314 | R44: 0.1708308351 | S44: 0.4806853105 | T44: 0.0005828990051 | U44: 0.001640166361 | V44: 0.002223065366 | W44: 0.4328918873 | X44: 2.675675152 | Y44: 0.001477088432 | Z44: 0.00912978259 | AA44: 0.01060687102 | AB44: 0.7438470286 | AC44: 4.335153047 | AD44: 0.002538111416 | AE44: 0.01479215621 | AF44: 0.01733026762
B45: PM10 | C45: 2.311740847 | D45: 2.46732388 | E45: 0.007887987194 | F45: 0.008418858537 | G45: 0.01630684573 | H45: 0.2256097637 | I45: 0.2325930463 | J45: 0.0007698124681 | K45: 0.0007936404173 | L45: 0.001563452885 | M45: 0.1580283606 | N45: 0.1689264543 | O45: 0.0005392151486 | P45: 0.0005764009881 | Q45: 0.001115616137 | R45: 0.02831818351 | S45: 0.04618659616 | T45: 9.662565299e-05 | U45: 0.0001575952078 | V45: 0.0002542208607 | W45: 0.2805132464 | X45: 0.2849150784 | Y45: 0.0009571509271 | Z45: 0.0009721706016 | AA45: 0.001929321529 | AB45: 0.4840790697 | AC45: 0.4774305359 | AD45: 0.001651746348 | AE45: 0.001629060609 | AF45: 0.003280806958
B46: PM2.5 | C46: 0.3671839745 | D46: 1.994841658 | E46: 0.001252883727 | F46: 0.006806682277 | G46: 0.008059566004 | H46: 0.03773370069 | I46: 0.1862632082 | J46: 0.0001287527312 | K46: 0.0006355564476 | L46: 0.0007643091788 | M46: 0.02785095079 | N46: 0.136177071 | O46: 9.503138877e-05 | P46: 0.0004646554539 | Q46: 0.0005596868426 | R46: 0.008792755186 | S46: 0.03978847506 | T46: 3.000212606e-05 | U46: 0.0001357639123 | V46: 0.0001657660384 | W46: 0.04599340726 | X46: 0.2275368192 | Y46: 0.0001569360198 | Z46: 0.0007763878545 | AA46: 0.0009333238743 | AB46: 0.07620165224 | AC46: 0.3798591275 | AD46: 0.0002600108303 | AE46: 0.001296133144 | AF46: 0.001556143975
B47: SOx | C47: 3.010730322 | D47: 26.36589926 | E47: 0.01027303828 | F47: 0.08996418263 | G47: 0.1002372209 | H47: 0.1940916504 | I47: 2.723934877 | J47: 0.0006622682014 | K47: 0.009294451606 | L47: 0.009956719808 | M47: 0.1276766992 | N47: 1.977048975 | O47: 0.0004356509811 | P47: 0.006745971123 | Q47: 0.007181622104 | R47: 0.02331002569 | S47: 0.4845164526 | T47: 7.953710917e-05 | U47: 0.001653238761 | V47: 0.00173277587 | W47: 0.2461967297 | X47: 3.339675232 | Y47: 0.0008400581118 | Z47: 0.01139544491 | AA47: 0.01223550302 | AB47: 0.4702656643 | AC47: 5.529506484 | AD47: 0.001604613053 | AE47: 0.0188674593 | AF47: 0.02047207235
B48: BC | C48: 0.02166920198 | D48: 0.09528868865 | E48: 7.393838627e-05 | F48: 0.0003251385019 | G48: 0.0003990768882 | H48: 0.003259025408 | I48: 0.01046788085 | J48: 1.112025629e-05 | K48: 3.571789208e-05 | L48: 4.683814836e-05 | M48: 0.002873002463 | N48: 0.008337462119 | O48: 9.803091323e-06 | P48: 2.844860163e-05 | Q48: 3.825169295e-05 | R48: 0.001935229302 | S48: 0.003711036902 | T48: 6.603276476e-06 | U48: 1.266258352e-05 | V48: 1.926586e-05 | W48: 0.003670468016 | X48: 0.01233873768 | Y48: 1.252415674e-05 | Z48: 4.210152057e-05 | AA48: 5.46256773e-05 | AB48: 0.005045546606 | AC48: 0.01874059316 | AD48: 1.721611965e-05 | AE48: 6.394555818e-05 | AF48: 8.116167782e-05
B49: OC | C49: 0.04032145825 | D49: 0.3467642525 | E49: 0.0001375825265 | F49: 0.001183208743 | G49: 0.00132079127 | H49: 0.004223968557 | I49: 0.02278888344 | J49: 1.441277898e-05 | K49: 7.775889799e-05 | L49: 9.217167697e-05 | M49: 0.003410749665 | N49: 0.01705728882 | O49: 1.163796094e-05 | P49: 5.820188538e-05 | Q49: 6.983984631e-05 | R49: 0.001927702102 | S49: 0.008044645776 | T49: 6.577592601e-06 | U49: 2.744947079e-05 | V49: 3.402706339e-05 | W49: 0.004954380885 | X49: 0.02750381839 | Y49: 1.690504929e-05 | Z49: 9.384692384e-05 | AA49: 0.0001107519731 | AB49: 0.007639663606 | AC49: 0.04873934535 | AD49: 2.606761427e-05 | AE49: 0.0001663055495 | AF49: 0.0001923731638
B50: CH4 | C50: 59.08593473 | D50: 4.481556495 | E50: 0.2016095779 | F50: 0.01529170551 | G50: 0.2169012834 | H50: 4.159965657 | I50: 0.4443567236 | J50: 0.01419439202 | K50: 0.001516208077 | L50: 0.0157106001 | M50: 2.787857515 | N50: 0.3175091933 | O50: 0.009512564701 | P50: 0.001083386338 | Q50: 0.01059595104 | R50: 0.534453476 | S50: 0.06890369899 | T50: 0.001823630957 | U50: 0.0002351091802 | V50: 0.002058740138 | W50: 5.243959988 | X50: 0.54836538 | Y50: 0.01789313421 | Z50: 0.001871100344 | AA50: 0.01976423455 | AB50: 9.772193221 | AC50: 0.9368488358 | AD50: 0.03334410735 | AE50: 0.003196660918 | AF50: 0.03654076827
B51: N2O | C51: 0.09416957661 | D51: 0.6834903608 | E51: 0.0003213199331 | F51: 0.002332165917 | G51: 0.00265348585 | H51: 0.002451550598 | I51: 0.0781362139 | J51: 8.365037865e-06 | K51: 0.0002666118287 | L51: 0.0002749768665 | M51: 0.00130647277 | N51: 0.05995905253 | O51: 4.457870133e-06 | P51: 0.0002045887796 | Q51: 0.0002090466497 | R51: 0.0007297179221 | S51: 0.02086266262 | T51: 2.489900904e-06 | U51: 7.118635973e-05 | V51: 7.367626064e-05 | W51: 0.00327871129 | X51: 0.09377231656 | Y51: 1.11874273e-05 | Z51: 0.0003199644255 | AA51: 0.0003311518528 | AB51: 0.008607066955 | AC51: 0.1511367493 | AD51: 2.936853151e-05 | AE51: 0.0005156999949 | AF51: 0.0005450685265
B52: CO2 | C52: 1103.074394 | D52: 33441.1744 | E52: 3.763846067 | F52: 114.1060235 | G52: 117.8698696 | H52: 89.65540231 | I52: 3181.730422 | J52: 0.305916931 | K52: 10.85651485 | L52: 11.16243178 | M52: 71.01783997 | N52: 2330.804397 | O52: 0.2423229286 | P52: 7.953034727 | Q52: 8.195357655 | R52: 41.66111593 | S52: 827.45444 | T52: 0.1421536282 | U52: 2.823391746 | V52: 2.965545374 | W52: 106.0298397 | X52: 3857.331983 | Y52: 0.3617888305 | Z52: 13.16176306 | AA52: 13.52355189 | AB52: 173.6961683 | AC52: 6523.276133 | AD52: 0.5926759277 | AE52: 22.25834209 | AF52: 22.85101802
B53: CO2 (w/ C in VOC & CO) | C53: 1118.1165 | D53: 33458.38424 | E53: 3.815171862 | F53: 114.1647459 | G53: 117.9799178 | H53: 90.88173253 | I53: 3183.698085 | J53: 0.3101013434 | K53: 10.86322879 | L53: 11.17333013 | M53: 71.95006031 | N53: 2332.358291 | O53: 0.2455037964 | P53: 7.958336834 | Q53: 8.20384063 | R53: 42.1265972 | S53: 828.097163 | T53: 0.1437419163 | U53: 2.825584808 | V53: 2.969326724 | W53: 107.5048199 | X53: 3859.663674 | Y53: 0.3668216718 | Z53: 13.16971912 | AA53: 13.53654079 | AB53: 176.2096779 | AC53: 6526.943134 | AD53: 0.6012523784 | AE53: 22.27085442 | AF53: 22.87210679
B54: GHGs | C54: 2904.585649 | D54: 33778.52749 | E54: 9.910857626 | F54: 115.25712 | G54: 125.1679776 | H54: 215.5179824 | I54: 3218.271102 | J54: 0.7353778809 | K54: 10.98119682 | L54: 11.7165747 | M54: 155.3848813 | N54: 2358.188887 | O54: 0.5301952231 | P54: 8.046474484 | Q54: 8.576669707 | R54: 58.25252378 | S54: 835.8460002 | T54: 0.1987658617 | U54: 2.852024938 | V54: 3.050790799 | W54: 264.6699157 | X54: 3901.604805 | Y54: 0.9030912388 | Z54: 13.3128282 | AA54: 14.21591944 | AB54: 469.7707651 | AC54: 6596.121561 | AD54: 1.602924387 | AE54: 22.50690101 | AF54: 24.1098254
B60: g GHG/ kWh | C60: 2025 | D60: 2030 | E60: 2035 | F60: 2040 | G60: 2045 | H60: 2050
B61: Xcel | C61: =G20 -> 197.3921138 | D61: =L20 -> 109.3956336 | E61: =Q20 -> 109.2034821 | F61: =V20 -> 63.59250627 | G61: =AA20 -> 42.11358455
B62: NREL | C62: =G37 -> 248.7411628 | D62: =L37 -> 21.49280538 | E62: =Q37 -> 15.20848664 | F62: =V37 -> 4.149698639 | G62: =AA37 -> 26.49609031 | H62: =AF37 -> 46.30178995
B63: 50 NREL/ 50 Wind | C63: =G54 -> 125.1679776 | D63: =L54 -> 11.7165747 | E63: =Q54 -> 8.576669707 | F63: =V54 -> 3.050790799 | G63: =AA54 -> 14.21591944 | H63: =AF54 -> 24.1098254

Sheet Overview
C1: ************************************************************************************************************************************************************
C2: COPYRIGHT NOTIFICATION
C4: GREET® SOFTWARE
C6: GREET 1 Model
C8: Email contact: greet@anl.gov
C9: ************************************************************************************************************************************************************
C10: © COPYRIGHT 2017 UChicago Argonne, LLC ALL RIGHTS RESERVED
C12: THIS SOFTWARE DISCLOSES MATERIAL PROTECTED UNDER COPYRIGHT LAW, AND FURTHER DISSEMINATION IS PROHIBITED WITHOUT PRIOR WRITTEN CONSENT OF THE PATENT COUNSEL OF ARGONNE NATIONAL LABORATORY, EXCEPT AS NOTED IN THE “LICENSING TERMS AND CONDITIONS” NOTED BELOW.
C13: ************************************************************************************************************************************************************
C14: ARGONNE NATIONAL LABORATORY, WITH A FACILITY IN THE STATE OF ILLINOIS, IS OWNED BY THE UNITED STATES GOVERNMENT, AND OPERATED BY UCHICAGO ARGONNE, LLC UNDER PROVISION OF A CONTRACT WITH THE DEPARTMENT OF ENERGY.
C15: ************************************************************************************************************************************************************
C16: GOVERNMENT LICENSE
C17: ************************************************************************************************************************************************************
C18: NOTICE: This data was produced by UChicago Argonne, LLC under Contract No. DE-AC02-06CH11357 with the Department of Energy. During the period of commercialization or such other time period specified by DOE, the Government is granted for itself and others acting on its behalf a paid-up, nonexclusive, irrevocable worldwide license in such copyrighted data to reproduce, prepare derivative works and perform publicly and display publicly, by or on behalf of the Government. Subsequent to that period the Government is granted for itself and others acting on its behalf a paid-up, nonexclusive, irrevocable worldwide license in such copyrighted data to reproduce, distribute copies to the public, prepare derivative works, perform publicly and display publicly, and to permit others to do so. The specific term of the license can be identified by inquiry made to UChicago Argonne, LLC or DOE.
C19: ************************************************************************************************************************************************************
C20: END-USER LICENSING TERMS AND CONDITIONS
C21: ************************************************************************************************************************************************************
C22: Commercial use:
C23: For commercial use, please contact www.anl.gov/partners.
C25: Non-commercial use:
C26: This license is based on the Creative Commons Attribution-NonCommercial 4.0 International Public License, with the following modified definition.
C28: Non-Commercial means internal use (including use for internal business or operational purposes by for-profit entities), use by non-profit entities, or use for United States federal, state, or local government purposes. Government purposes include work performed pursuant to a United States federal, state, or local government funding agreement, and work performed by or on behalf of the United States federal, state, or local government. For purposes of this Public License, the exchange of the Licensed Material for other material subject to Copyright and Similar Rights by digital file-sharing or similar means is Non-Commercial provided there is no payment of monetary compensation in connection with the exchange.
C30: Redistribution and use of the GREET software are permitted for non-commercial uses and provided that the following conditions are met:
C32: 1. Redistributions of the GREET software must retain the above copyright notice, this list of conditions, and the following disclaimer. Modification or reverse compilation of the source code is not permitted.
C34: 2. Neither the names of UChicago Argonne, LLC or the Department of Energy nor the names of its contributors may be used to endorse or promote products derived from this software without prior written permission.
C36: 3. The software redistribution, if any, must include the following acknowledgment: "This product includes software produced by UChicago Argonne, LLC under Contract No. DE-AC02-06CH11357 with the Department of Energy.”
C37: 4. Any published results should indicate that the GREET software was developed by Argonne National Laboratory. If you publish results generated using GREET you should identify the GREET software version number. If you publish results generated using input data other than the input data supplied with the GREET software you must indicate that these results relied upon changed input data.
C38: ************************************************************************************************************************************************************
C39: DISCLAIMER
C40: ************************************************************************************************************************************************************
C41: THIS SOFTWARE AND MANUAL ARE SUPPLIED "AS IS" WITHOUT WARRANTY OF ANY KIND.
C42: Neither the United States Government, nor the United States Department of Energy, nor Uchicago Argonne, LLC, nor any of their employees, makes any warranty, express or implied, or assumes any legal liability or responsibility for the accuracy, completeness, or usefulness of any information, data, apparatus, product, or process disclosed, or represents that its use would not infringe privately owned rights
C46: Color Scheme for Cells in the GREET Model
C47: Clear cells are primarily for calculations and secondary assumptions
C50: Yellow cells are key input assumptions that users can change for their own simulations
C53: Peach cells are key options that users can select for their own simulations from drop-down menu
C56: Green cells are key input assumptions with probability distribution functions built in
C59: Blue cells are GREET forecast cells for running stochastic simulations
C62: Gray cells are placeholder pathways. Even though simulations of these pathways are completed in GREET, no thorough research was conducted to examine key input assumptions for the pathways.
... 63 more rows

Sheet Inputs
Z5: Simulation years
A6: Scenario Control Variables and Input Assumptions
A7: 1. Key Options for Simulation | Z7: 1990
B8: 1.1) Target Year for Simulation | Z8: 1991
E9: 2021 | Z9: 1992
Z10: 1993
B11: 1.2) Point-Estimation or Probability-Estimation Option | Z11: 1994
F12: Load Stochastic Toolkit | G12: … To load the stochastic toolkit | Z12: 1995
F13: Unload Stochastic Toolkit | G13: … To unload the stochastic toolkit | Z13: 1996
Z14: 1997
A15: 2. Vehicle Types for Simulation | Z15: 1998
E16: 1 | F16: 1 -- Passenger Cars; 2 -- Light-Duty Trucks 1 (LDT1) (Sports utility vehicles [SUV]); 3 -- Light-Duty Trucks 2 (LDT2) (Pickup Truck [PUT]) | Z16: 1999
Z17: 2000
A18: 3. Petroleum-Based Fuels | Z18: 2001
B19: 3.1) Petroleum Recovery Options | Z19: 2002
C20: 3.1.a) Share of crude oil sources | Z20: 2003
E21: 1 | F21: Basis of share of crude oil sources: 1 -- EIA projection, 2 -- User defined | Z21: 2004
F22: U.S. Domestic | G22: Canada (Oil Sands) | H22: Canada (Conv. Crude) | I22: Mexico | J22: Middle East | K22: Latin America | L22: Africa | M22: Others | Z22: 2005
E23: EIA projection | F23: =Fuel_Prod_TS!$AV$9 -> 0.7747059368 | G23: =Fuel_Prod_TS!$AW$9 -> 0.07885476666 | H23: =Fuel_Prod_TS!$AX$9 -> 0.05931886861 | I23: =Fuel_Prod_TS!$AY$9 -> 0.02142046283 | J23: =Fuel_Prod_TS!$AZ$9 -> 0.02004793974 | K23: =Fuel_Prod_TS!$BA$9 -> 0.01893006493 | L23: =Fuel_Prod_TS!$BB$9 -> 0.01122899299 | M23: =1-SUM(F23:L23) -> 0.01549296744 | Z23: 2006
E24: User defined | F24: 0.7747059368 | G24: 0.07885476666 | H24: 0.05931886861 | I24: 0.02142046283 | J24: 0.02004793974 | K24: 0.01893006493 | L24: 0.01122899299 | M24: =1-SUM(F24:L24) -> 0.01549296744 | Z24: 2007
E25: Used in calculation | F25: =IF($E21=1,F23,F24) -> 0.7747059368 | G25: 0.07885476666 | H25: 0.05931886861 | I25: 0.02142046283 | J25: 0.02004793974 | K25: 0.01893006493 | L25: 0.01122899299 | M25: 0.01549296744 | Z25: 2008
E26: API gravity | F26: =AvgAPI(F31:H31,F32:H32) -> 34.22544737 | G26: =1/((G45+I45)/(32+131.5)+(F45+H45)/(8+131.5)+(F45+H45)*G40*(1-F42)/(80+131.5))*((G45+I45)+(F45+H45)*(1+G40*(1-F42)))-131.5 -> 18.07557347 | H26: 26.5 | I26: 26.5 | J26: 31.8 | K26: 24.8 | L26: 38.3 | M26: 32 | Z26: 2009
E27: S Content (wt %) | F27: 1.39 | G27: =(Fuel_Specs!H8*(G46+I46)+Fuel_Specs!H9*(F46+H46)+Fuel_Specs!H12*(F46+H46)*Petroleum!C23/Petroleum!B23)/((G46+I46)+(F46+H46)*(1+Petroleum!C23/Petroleum!B23))*100 -> 2.863911759 | H27: 1.94 | I27: 2.2 | J27: 2.26 | K27: 2.8 | L27: 0.289 | M27: 0.764 | Z27: 2010
E28: Average transportation distances (mi) | F28: See T&D_Flowcharts tab | G28: 1708 | H28: 1708 | I28: 797 | J28: 14596 | K28: 4620 | L28: 7280 | M28: 6128 | Z28: 2011
Z29: 2012
E30: U.S. Domestic crude | F30: Shale Oil (Bakken) | G30: Shale Oil (Eagle Ford) | H30: Rest of U.S. domestic crude | Z30: 2013
E31: API gravity | F31: 42 | G31: 48 | H31: 32 | Z31: 2014
E32: Vol. Share (%) | F32: =Fuel_Prod_TS!L30 -> 0.09980803923 | G32: =Fuel_Prod_TS!M30 -> 0.08611394233 | H32: =1-SUM(F32:G32) -> 0.8140780184 | Z32: 2015
Z33: 2016
C34: 3.1.b) Efficiency for Petroleum Recovery | Z34: 2017
E35: Conventional Crude Recovery | Z35: 2018
E36: =Fuel_Prod_TS!$C$9 -> 0.98 | Z36: 2019
Z37: 2020
C38: 3.1.c) Key parameters of Oil Sands Recovery Methods and Products | Z38: 2021
E39: Dilbit Composition | F39: Bitumen | G39: Diluent | Z39: 2022
E40: Volumetric Shares | F40: 0.7 | G40: =1-F40 -> 0.3 | Z40: 2023
Z41: 2024
E42: Recovered Diluent in Refineries | F42: 1 | G42: by volume | Z42: 2025
Z43: 2026
E44: Share of oil sands recovery methods and products | F44: Surface Mining + Bitumen | G44: Surface Mining + SCO | H44: In-Situ + Bitumen | I44: In-Situ + SCO | Z44: 2027
E45: Volumetric Shares | F45: =Fuel_Prod_TS!D30 -> 0.05037986411 | G45: =Fuel_Prod_TS!E30 -> 0.3963849686 | H45: =Fuel_Prod_TS!F30 -> 0.490722719 | I45: =Fuel_Prod_TS!G30 -> 0.06251244828 | Z45: 2028
E46: Mass Shares | F46: =F$45*Fuel_Specs!$E$10/(($F$45+$H$45)*Fuel_Specs!$E$10+($G$45+$I$45)*Fuel_Specs!$E$8) -> 0.05408833865 | G46: =G$45*Fuel_Specs!$E$8/(($F$45+$H$45)*Fuel_Specs!$E$10+($G$45+$I$45)*Fuel_Specs!$E$8) -> 0.3619801334 | H46: =H$45*Fuel_Specs!$E$10/(($F$45+$H$45)*Fuel_Specs!$E$10+($G$45+$I$45)*Fuel_Specs!$E$8) -> 0.5268449425 | I46: =1-SUM(F46:H46) -> 0.05708658543 | Z46: 2029
E47: Energy Shares | F47: =F$45*Fuel_Specs!$B$10/(($F$45+$H$45)*Fuel_Specs!$B$10+($G$45+$I$45)*Fuel_Specs!$B$8) -> 0.05314670469 | G47: =G$45*Fuel_Specs!$B$8/(($F$45+$H$45)*Fuel_Specs!$B$10+($G$45+$I$45)*Fuel_Specs!$B$8) -> 0.3707160061 | H47: =H$45*Fuel_Specs!$B$10/(($F$45+$H$45)*Fuel_Specs!$B$10+($G$45+$I$45)*Fuel_Specs!$B$8) -> 0.5176730007 | I47: =1-SUM(F47:H47) -> 0.0584642885 | Z47: 2030
Z48: 2031
B49: 3.2) Conventional Crude Transport Options | Z49: 2032
F50: Domestic: Alaska | G50: Domestic: U.S. 48 States | H50: Imported: Offshore Countries | I50: Imported Canada and Mexico | Z50: 2033
E51: Domestic Share of Crude Input to Refineries | G51: =1-SUM(F53,H53,I54,I55) -> 0.7809168482 | Z51: 2034
E52: Mode Shares | Z52: 2035
E53: Ocean Tanker | F53: =MIN(Fuel_Prod_TS!$BD$9,F24) -> 0.0306423561 | H53: =IFERROR(SUM(J25:M25)/(1-G25-F25*(F32+G32)),0) -> 0.08454393043 | Z53: 2036
E54: Pipeline | G54: See T&D_Flowcharts tab | I54: =IFERROR(H25/(1-G25-F25*(F32+G32)),0) -> 0.07633261743 | Z54: 2037
E55: Rail | G55: See T&D_Flowcharts tab | I55: =IFERROR(I25/(1-G25-F25*(F32+G32)),0) -> 0.02756424782 | Z55: 2038
E56: Average transportation distances (mi) | Z56: 2039
E57: Ocean Tanker | F57: 2100 | H57: =Fuel_Prod_TS!Q30 -> 8707.044912 | Z57: 2040
E58: Pipeline | G58: See T&D_Flowcharts tab | I58: =Fuel_Prod_TS!R30 -> 1671.898704 | Z58: 2041
E59: Rail | G59: See T&D_Flowcharts tab | I59: =I28 -> 797 | Z59: 2042
Z60: 2043
B61: 3.3) Petroleum Refining Efficiency | Z61: 2044
C62: 3.3.a) Simulation scenarios | Z62: 2045
... 70 more rows

Sheet Results
B1: WTW Results Menu | D1: Select a vehicle type from a pink drop down menu, then press "Go"
B2: SI ICE Vehicles | F2: SI Hybrid Vehicles (HEV) | J2: SI Plug-in Hybrids (PHEV) | N2: Performance-enhancing Fuels | R2: Per Vehicle Distnace Travelled | Y2: Per Energy in Fuels
B3: Select Fuels | F3: Select Fuels | J3: Select Fuels | N3: Selct Fuels | R3: Energy Unit | S3: Btu | T3: mBtu | U3: J | V3: kJ | W3: MJ | Y3: Energy Unit | Z3: Btu | AA3: mBtu | AB3: J | AC3: kJ | AD3: MJ
B4: SIDI ICE Vehicles | F4: CIDI Hybrid Vehicles (HEV) | J4: CIDI Plug-in Hybrids (PHEV) | S4: 1 | T4: 0.001 | U4: =BTU2J -> 1055.05585 | V4: =BTU2kJ -> 1.05505585 | W4: =BTU2MJ -> 0.00105505585 | Z4: 1 | AA4: 0.001 | AB4: =BTU2J -> 1055.05585 | AC4: =BTU2kJ -> 1.05505585 | AD4: =BTU2MJ -> 0.00105505585
B5: Select Fuels | F5: Select Fuels | J5: N/A | R5: Emission Unit | S5: g | T5: mg | U5: kg | V5: lb | W5: oz | Y5: Emission Unit | Z5: g | AA5: mg | AB5: kg | AC5: lb | AD5: oz
B6: CIDI ICE Vehicles | F6: BEV and FCV | J6: GCI ICE Vehicles | S6: 1 | T6: 1000 | U6: =g2kg -> 0.001 | V6: =g2lb -> 0.002204622622 | W6: =g2lb*16 -> 0.03527396195 | Z6: 1 | AA6: 1000 | AB6: =g2kg -> 0.001 | AC6: =g2lb -> 0.002204622622 | AD6: =g2lb*16 -> 0.03527396195
B7: Select Fuels | F7: Select Fuels | J7: Select Fuels | R7: Functional Unit | S7: mile | T7: km | Y7: Functional Unit | Z7: mBtu | AA7: mmBtu | AB7: J | AC7: kJ | AD7: MJ
B8: Unit Selection | D8: Select units from a pink drop down menu for the Results | S8: 1 | T8: 1.60934 | Z8: 0.001 | AA8: 1e-06 | AB8: =BTU2J -> 1055.05585 | AC8: =BTU2kJ -> 1.05505585 | AD8: =BTU2MJ -> 0.00105505585
B9: Per Vehicle Distance Travelled | G9: Per Energy in Fuels
B10: Energy Unit: | C10: Btu | D10: Emission Unit: | E10: g | G10: Energy Unit: | H10: Btu | I10: Emission Unit: | J10: g
D11: Service Functional Unit: | E11: mile | I11: Energy Functional Unit: | J11: mmBtu
A12: ="1. Well-to-Pump Energy Consumption, Water Consmption and Emissions: "&Results_EnergyUnit_Energy&" or Gallon or "&Results_EnergyUnit_Emission&" per "&Results_EnergyFunctionalUnit&" of Fuel Available at Fuel Station Pumps" -> 1. Well-to-Pump Energy Consumption, Water Consmption and Emissions: Btu or Gallon or g per mmBtu of Fuel Available at Fuel Station Pumps
B13: Baseline Gasoline | C13: CA Gasoline | D13: ="Low-Level EtOH Blend with Gasoline (E"&Inputs!F843*100&", "&IF(EtOH!C7=1,"Corn"&IF(EtOH!C136=1,", dry",IF(EtOH!C136=0,", wet","")),IF(EtOH!D7=1,"Willow",IF(EtOH!E7=1,"Poplar",IF(EtOH!F7=1,"Switchgrass",IF(EtOH!G7=1,"Miscanthus",IF(EtOH!H7=1,"Corn Stover",IF(EtOH!I7=1,"Forest Residue",IF(EtOH!M7=1,"Sugarcane",IF(EtOH!J7=1,IF(EtOH!D233=1,"Grain",IF(EtOH!D233=3,"Forage","Sweet"))&" Sorghum",IF(EtOH!L7=1,"Solid Waste","Mixed Source"))))))))))&")" -> Low-Level EtOH Blend with Gasoline (E10, Corn) | E13: Baseline Conventional and LS Diesel | F13: ="Compressed Natural Gas, "& IF(Inputs!F114=1,"NA NG",IF(Inputs!F114=2,"Non-NA NG",IF(Inputs!F114=3,"FG",IF(RNG!G6=1,"LFG",IF(RNG!G7=1,"AD Gas","RNG"))))) -> Compressed Natural Gas, NA NG | G13: ="Liquefied Natural Gas, "&IF(Inputs!$G$114=1,"NA NG",IF(Inputs!$G$114=2,"Non-NA NG",IF(Inputs!$G$114=3,"FG",IF(RNG!$H$6=1,"LFG",IF(RNG!$H$6=0,"AD Gas","RNG"))))) -> Liquefied Natural Gas, NA NG | H13: ="Liquefied Petroleum Gas, " &IF(NG!C5=1, "Crude", IF(NG!C5=0, IF(Inputs!$G$114=1, "NA NG", IF(Inputs!$G$114=2, "Non-NA NG", IF(Inputs!$G$114=3, "FG", IF(RNG!$H$6=1, "LFG", IF(RNG!$H$6=0, "AD Gas", "RNG"))))), "Crude and NG Mix")) -> Liquefied Petroleum Gas, Crude and NG Mix | I13: ="Naphtha, "&IF(MeOH_FTD!E9=1,"Crude",IF(MeOH_FTD!E9=0,IF(Inputs!F155=1,"NA NG",IF(Inputs!F155=2,"Non-NA NG",IF(Inputs!F155=3,"FG",IF(RNG!E6=1,"LFG",IF(RNG!E7=1,"AD Gas","RNG"))))),"Mixed Sources")) -> Naphtha, NA NG | J13: ="M"&Vehicles!C5*100&" for MeOH FFV, "&IF(Inputs!F152=1,"NA NG",IF(Inputs!F152=2,"Non-NA NG",IF(Inputs!F152=3,"FG",IF(Inputs!F152=4,IF(RNG!E6=1,"LFG",IF(RNG!E7=1,"AD Gas","RNG")),IF(Inputs!F152=5,"Biomass",IF(Inputs!F152=9,"Black Liquor","Coal")))))) -> M85 for MeOH FFV, NA NG | K13: ="M"&Vehicles!C6*100&" for Dedi. MeOH Vehicles, "&IF(Inputs!F152=1,"NA NG",IF(Inputs!F152=2,"Non-NA NG",IF(Inputs!F152=3,"FG",IF(Inputs!F152=4,IF(RNG!E6=1,"LFG",IF(RNG!E7=1,"AD Gas","RNG")),IF(Inputs!F152=5,"Biomass",IF(Inputs!F152=9,"Black Liquor","Coal")))))) -> M90 for Dedi. MeOH Vehicles, NA NG | L13: ="MeOH for FCV: "&IF(Inputs!F152=1,"NA NG",IF(Inputs!F152=2,"Non-NA NG",IF(Inputs!F152=3,"FG",IF(Inputs!F152=4,IF(RNG!E6=1,"LFG",IF(RNG!E7=1,"AD Gas","RNG")),IF(Inputs!F152=5,"Biomass",IF(Inputs!F152=9,"Black Liquor","Coal")))))) -> MeOH for FCV: NA NG | M13: ="E"&Inputs!F844*100&" for FFV, "&IF(EtOH!C7=1,"Corn"&IF(EtOH!C136=1,", dry",IF(EtOH!C136=0,", wet","")),IF(EtOH!D7=1,"Willow",IF(EtOH!E7=1,"Poplar",IF(EtOH!F7=1,"Switchgrass",IF(EtOH!G7=1,"Miscanthus",IF(EtOH!H7=1,"Corn Stover",IF(EtOH!I7=1,"Forest Residue",IF(EtOH!M7=1,"Sugarcane",IF(EtOH!J7=1,IF(EtOH!D233=1,"Grain",IF(EtOH!D233=3,"Forage","Sweet"))&" Sorghum",IF(EtOH!L7=1,"Solid Waste","Mixed Source")))))))))) -> E85 for FFV, Corn | N13: ="BtOH for FFV: BtOH"&Vehicles!C12*100&", Corn" -> BtOH for FFV: BtOH100, Corn | O13: ="E"&Inputs!F845*100&" for Dedi. EtOH Vehicle, "&IF(EtOH!C7=1,"Corn"&IF(EtOH!C136=1,", dry",IF(EtOH!C136=0,", wet","")),IF(EtOH!D7=1,"Willow",IF(EtOH!E7=1,"Poplar",IF(EtOH!F7=1,"Switchgrass",IF(EtOH!G7=1,"Miscanthus",IF(EtOH!H7=1,"Corn Stover",IF(EtOH!I7=1,"Forest Residue",IF(EtOH!M7=1,"Sugarcane",IF(EtOH!J7=1,IF(EtOH!D233=1,"Grain",IF(EtOH!D233=3,"Forage","Sweet"))&" Sorghum",IF(EtOH!L7=1,"Solid Waste","Mixed Source")))))))))) -> E85 for Dedi. EtOH Vehicle, Corn | P13: ="EtOH for FCV, "&IF(EtOH!C6=1,"Corn"&IF(EtOH!C136=1,", dry",IF(EtOH!C136=0,", wet","")),IF(EtOH!D6=1,"Willow",IF(EtOH!E6=1,"Poplar",IF(EtOH!F6=1,"Switchgrass",IF(EtOH!G6=1,"Miscanthus",IF(EtOH!H6=1,"Corn Stover",IF(EtOH!I6=1,"Forest Residue",IF(EtOH!M6=1,"Sugarcane",IF(EtOH!J6=1,IF(EtOH!D233=1,"Grain",IF(EtOH!D233=3,"Forage","Sweet"))&" Sorghum",IF(EtOH!L6=1,"Solid Waste","Mixed Source")))))))))) -> EtOH for FCV, Corn | Q13: =IF(Inputs!$J$630=2,"Palm FFB",IF(Inputs!$J$630=3,"Canola",IF(Inputs!$J$630=4,"Jatropha",IF(Inputs!$J$630=5,"Camelina",IF(Inputs!$J$630=6,"Algae",IF(Inputs!$J$630=7,"Tallow",IF(Inputs!$J$630=8,"Corn Oil","Soybean")))))))&"-based RG"&Vehicles!C16*100 -> Soybean-based RG100 | R13: =IF(Pyrolysis_IDL!B26=1,"Corn Stover","Forest Residue")&"-based Pyrolysis RG"&Vehicles!C16*100 -> Forest Residue-based Pyrolysis RG100 | S13: ="Grid-Connected SI PHEV: Gasoline and Electricity ("&VLOOKUP(Inputs!$F$720,Inputs!$G$720:$H$738,2,FALSE)&")" -> Grid-Connected SI PHEV: Gasoline and Electricity (User Defined Mix) | T13: ="Grid-Connected SI PHEV: CA gasoline and Electricity ("&VLOOKUP(Inputs!$F$720,Inputs!$G$720:$H$738,2,FALSE)&")" -> Grid-Connected SI PHEV: CA gasoline and Electricity (User Defined Mix) | U13: ="Grid-Connected SI PHEV: Low-Level EtOH Blend with Gasoline (E"&Inputs!F843*100&", "&IF(EtOH!C6=1,"Corn"&IF(EtOH!C136=1,", dry",IF(EtOH!C136=0,", wet","")),IF(EtOH!D6=1,"Willow",IF(EtOH!E6=1,"Poplar",IF(EtOH!F6=1,"Switchgrass",IF(EtOH!G6=1,"Miscanthus",IF(EtOH!H6=1,"Corn Stover",IF(EtOH!I6=1,"Forest Residue",IF(EtOH!M6=1,"Sugarcane",IF(EtOH!J6=1,IF(EtOH!D233=1,"Grain",IF(EtOH!D233=3,"Forage","Sweet"))&" Sorghum",IF(EtOH!L6=1,"Solid Waste","Mixed Source"))))))))))&") and Electricity ("&VLOOKUP(Inputs!$F$720,Inputs!$G$720:$H$738,2,FALSE)&")" -> Grid-Connected SI PHEV: Low-Level EtOH Blend with Gasoline (E10, Corn) and Electricity (User Defined Mix) | V13: ="Grid-Connected SI PHEV: CNG ("&IF(Inputs!F114=1,"NA NG",IF(Inputs!F114=2,"Non-NA NG",IF(Inputs!F114=3,"FG",IF(RNG!G6=1,"LFG",IF(RNG!G7=1,"AD Gas","RNG")))))&") and Electricity ("&VLOOKUP(Inputs!$F$720,Inputs!$G$720:$H$738,2,FALSE)&")" -> Grid-Connected SI PHEV: CNG (NA NG) and Electricity (User Defined Mix) | W13: ="Grid-Connected SI PHEV: LNG ("&IF(Inputs!$H$114=1,"NA NG",IF(Inputs!$H$114=2,"Non-NA NG",IF(Inputs!$H$114=3,"FG",IF(RNG!$H$6=1,"LFG",IF(RNG!$H$6=0,"AD Gas","RNG")))))&") and Electricity ("&VLOOKUP(Inputs!$F$720,Inputs!$G$720:$H$738,2,FALSE)&")" -> Grid-Connected SI PHEV: LNG (NA NG) and Electricity (User Defined Mix) | X13: ="Grid-Connected SI PHEV: LPG ("&IF(NG!C5=1,"Crude",IF(NG!C5=0,IF(Inputs!$G$114=1,"NA NG",IF(Inputs!$G$114=2,"Non-NA NG",IF(Inputs!$G$114=3,"FG",IF(RNG!$H$6=1,"LFG",IF(RNG!$H$6=0,"AD Gas","RNG"))))),"Crude and NG Mix"))&") and Electricity ("&VLOOKUP(Inputs!$F$720,Inputs!$G$720:$H$738,2,FALSE)&")" -> Grid-Connected SI PHEV: LPG (Crude and NG Mix) and Electricity (User Defined Mix) | Y13: ="Grid-Connected SI PHEV: M"&Vehicles!C6*100&" ("&IF(Inputs!F152=1,"NA NG",IF(Inputs!F152=2,"Non-NA NG",IF(Inputs!F152=3,"FG",IF(Inputs!F152=4,IF(RNG!E6=1,"LFG",IF(RNG!E7=1,"AD Gas","RNG")),IF(Inputs!F152=5,"Biomass",IF(Inputs!F152=9,"Black Liquor","Coal"))))))&") and Electricity ("&VLOOKUP(Inputs!$F$720,Inputs!$G$720:$H$738,2,FALSE)&")" -> Grid-Connected SI PHEV: M90 (NA NG) and Electricity (User Defined Mix) | Z13: ="Grid-Connected SI PHEV: LPG ("&IF(NG!E5=1,"Crude",IF(NG!E5=0,IF(Inputs!$G$114=1,"NA NG",IF(Inputs!$G$114=2,"Non-NA NG",IF(Inputs!$G$114=3,"FG",IF(RNG!$H$6=1,"LFG",IF(RNG!$H$6=0,"AD Gas","RNG"))))),"Crude and NG Mix"))&") and Electricity ("&VLOOKUP(Inputs!$F$720,Inputs!$G$720:$H$738,2,FALSE)&")" -> Grid-Connected SI PHEV: LPG (NA NG) and Electricity (User Defined Mix) | AA13: ="Grid-Connected SI PHEV: G.H2 ("&IF(Inputs!F211=1,"Central Plants, "&IF(Inputs!F216=1,IF(Inputs!F239=1,"NA NG",IF(Inputs!F239=2,"Non-NA NG",IF(Inputs!F239=3,"FG",IF(RNG!G6=1,"LFG",IF(RNG!G7=1,"Manure-based AD Gas",IF(RNG!G8=1,"WWTP-based AD Gas","RNG")))))),"")&IF(Inputs!F217=1,"Solar","")&IF(Inputs!F219=1,"Nuclear","")&IF(Inputs!F220=1,"Electrolysis (Nuclear HTGR)","")&IF(Inputs!F221=1,"Coal","")&IF(Inputs!F222=1,"Biomass","")&IF(Inputs!F224=1,"Coke Oven Gas","")&IF(Inputs!F227=1,"Pet Coke","")&IF(MAX(Inputs!F216:F227)<1,"Mixed Sources",""),"Refueling Station, "&IF(Inputs!F231=1,IF(Inputs!F240=1,"NA NG",IF(Inputs!F240=2,"Non-NA NG",IF(Inputs!F240=3,"FG",IF(RNG!G6=1,"LFG",IF(RNG!G7=1,"Manure-based AD Gas",IF(RNG!G8=1,"WWTP-based AD Gas","RNG")))))),"")&IF(Inputs!F232=1,"Electrolysis","")&IF(Inputs!F233=1,"EtOH","")&IF(Inputs!F235=1,"MeOH","")&IF(MAX(Inputs!F231:F235)<1,"Mixed Sources",""))&") and Electricity ("&VLOOKUP(Inputs!$F$720,Inputs!$G$720:$H$738,2,FALSE)&")" -> Grid-Connected SI PHEV: G.H2 (Central Plants, NA NG) and Electricity (User Defined Mix) | AB13: ="Grid-Connected SI PHEV: L.H2 ("&IF(Inputs!G211=1,"Central Plants, "&IF(Inputs!G216=1,IF(Inputs!G239=1,"NA NG",IF(Inputs!G239=2,"Non-NA NG",IF(Inputs!G239=3,"FG",IF(RNG!H6=1,"LFG",IF(RNG!H7=1,"Manure-based AD Gas",IF(RNG!H8=1,"WWTP-based AD Gas","RNG")))))),"")&IF(Inputs!G217=1,"Solar","")&IF(Inputs!G219=1,"Nuclear","")&IF(Inputs!G220=1,"Electrolysis (Nuclear HTGR)","")&IF(Inputs!G221=1,"Coal","")&IF(Inputs!G222=1,"Biomass","")&IF(Inputs!G224=1,"Coke Oven Gas","")&IF(Inputs!G227=1,"Pet Coke","")&IF(MAX(Inputs!G216:G227)<1,"Mixed Sources",""),"Refueling Station, "&IF(Inputs!G231=1,IF(Inputs!G240=1,"NA NG",IF(Inputs!G240=2,"Non-NA NG",IF(Inputs!G240=3,"FG",IF(RNG!H6=1,"LFG",IF(RNG!H7=1,"Manure-based AD Gas",IF(RNG!H8=1,"WWTP-based AD Gas","RNG")))))),"")&IF(Inputs!G232=1,"Electrolysis","")&IF(Inputs!G233=1,"EtOH","")&IF(Inputs!G235=1,"MeOH","")&IF(MAX(Inputs!G231:G235)<1,"Mixed Sources",""))&") and Electricity ("&VLOOKUP(Inputs!$F$720,Inputs!$G$720:$H$738,2,FALSE)&")" -> Grid-Connected SI PHEV: L.H2 (Central Plants, NA NG) and Electricity (User Defined Mix) | AC13: ="DME: "&IF(Inputs!F153=1,"NA NG",IF(Inputs!F153=2,"Non-NA NG",IF(Inputs!F153=3,"FG",IF(Inputs!F153=4,IF(RNG!E6=1,"LFG",IF(RNG!E7=1,"AD Gas","RNG")),IF(Inputs!F153=5,"Biomass",IF(Inputs!F153=9,"Black Liquor",IF(Inputs!F153=10,"NG via Methanol","Coal"))))))) -> DME: NA NG | AD13: ="FTD"&TEXT(Vehicles!C13*100,"0")&": "&IF(Inputs!F154=1,"NA NG",IF(Inputs!F154=2,"Non-NA NG",IF(Inputs!F154=3,"FG",IF(Inputs!F154=4,IF(RNG!E6=1,"LFG",IF(RNG!E7=1,"AD Gas","RNG")),IF(Inputs!F154=5,"Biomass",IF(Inputs!F154=6,"Coal",IF(Inputs!F154=8,"NG/Biomass("&TEXT(Inputs!J187*100,"0")&"/"&TEXT(Inputs!J188*100,"0")&")","Coal/Biomass("&TEXT(Inputs!F187*100,"0")&"/"&TEXT(Inputs!F188*100,"0")&")"))))))) -> FTD100: NA NG | AE13: =IF(Inputs!$F$630=11, "UCO", IF(Inputs!$F$630=2,"Palm FFB",IF(Inputs!$F$630=3,"Canola",IF(Inputs!$F$630=4,"Jatropha",IF(Inputs!$F$630=5,"Camelina",IF(Inputs!$F$630=6,"Algae",IF(Inputs!$F$630=7,"Tallow",IF(Inputs!$F$630=8,"Corn Oil","Soybean"))))))))&"-based BD"&Vehicles!C14*100 -> Soybean-based BD20 | AF13: =IF(Inputs!E670=1,IF(Inputs!$G$630=2,"Palm FFB",IF(Inputs!$G$630=3,"Canola",IF(Inputs!$G$630=4,"Jatropha",IF(Inputs!$G$630=5,"Camelina",IF(Inputs!$G$630=6,"Algae",IF(Inputs!$G$630=7,"Tallow",IF(Inputs!$G$630=8,"Corn Oil","Soybean"))))))),IF(Inputs!E670=3,IF(Inputs!$I$630=2,"Palm FFB",IF(Inputs!$I$630=3,"Canola",IF(Inputs!$I$630=4,"Jatropha",IF(Inputs!$I$630=5,"Camelina",IF(Inputs!$I$630=6,"Algae",IF(Inputs!$I$630=7,"Tallow",IF(Inputs!$I$630=8,"Corn Oil","Soybean"))))))),IF(Inputs!$H$630=11,"UCO", IF(Inputs!$H$630=2,"Palm FFB",IF(Inputs!$H$630=3,"Canola",IF(Inputs!$H$630=4,"Jatropha",IF(Inputs!$H$630=5,"Camelina",IF(Inputs!$H$630=6,"Algae",IF(Inputs!$H$630=7,"Tallow",IF(Inputs!$H$630=8,"Corn Oil","Soybean"))))))))))&"-based RD"&IF(Inputs!$E$670=3,"III","II")&" "&Vehicles!C15*100 -> Soybean-based RDII 100 | AG13: =IF(Pyrolysis_IDL!$B$26=1,"Corn Stover","Forest Residue")&"-based RD"&IF(Inputs!E670=1,"I ","II ")&Vehicles!C15*100 -> Forest Residue-based RDII 100 | AH13: ="EtOH-Diesel, "&IF(EtOH!C6=1,"Corn"&IF(EtOH!C136=1,", dry",IF(EtOH!C136=0,", wet","")),IF(EtOH!D6=1,"Willow",IF(EtOH!E6=1,"Poplar",IF(EtOH!F6=1,"Switchgrass",IF(EtOH!G6=1,"Miscanthus",IF(EtOH!H6=1,"Corn Stover",IF(EtOH!I6=1,"Forest Residue",IF(EtOH!M6=1,"Sugarcane",IF(EtOH!J6=1,IF(EtOH!D233=1,"Grain",IF(EtOH!D233=3,"Forage","Sweet"))&" Sorghum",IF(EtOH!L6=1,"Solid Waste","Mixed Source")))))))))) -> EtOH-Diesel, Corn | AI13: ="Grid-Connected CIDI PHEV: Diesel and Electricity ("&VLOOKUP(Inputs!$F$720,Inputs!$G$720:$H$738,2,FALSE)&")" -> Grid-Connected CIDI PHEV: Diesel and Electricity (User Defined Mix) | AJ13: ="Grid-Connected CIDI PHEV: DME ("&IF(Inputs!F153=1,"NA NG",IF(Inputs!F153=2,"Non-NA NG",IF(Inputs!F153=3,"FG",IF(Inputs!F153=4,IF(RNG!E6=1,"LFG",IF(RNG!E7=1,"AD Gas","RNG")),IF(Inputs!F153=5,"Biomass",IF(Inputs!F153=9,"Black Liquor",IF(Inputs!F153=10,"NG via Methanol","Coal")))))))&") and Electricity ("&VLOOKUP(Inputs!$F$720,Inputs!$G$720:$H$738,2,FALSE)&")" -> Grid-Connected CIDI PHEV: DME (NA NG) and Electricity (User Defined Mix) | AK13: ="Grid-Connected CIDI PHEV: FTD"&Vehicles!C13*100&" ("&IF(Inputs!F154=1,"NA NG",IF(Inputs!F154=2,"Non-NA NG",IF(Inputs!F154=3,"FG",IF(Inputs!F154=4,IF(RNG!E6=1,"LFG",IF(RNG!E7=1,"AD Gas","RNG")),IF(Inputs!F154=5,"Biomass",IF(Inputs!F154=6,"Coal","Coal/Biomass("&Inputs!F187*100&"/"&Inputs!F188*100&")"))))))&") and Electricity ("&VLOOKUP(Inputs!$F$720,Inputs!$G$720:$H$738,2,FALSE)&")" -> Grid-Connected CIDI PHEV: FTD100 (NA NG) and Electricity (User Defined Mix) | AL13: ="Grid-Connected CIDI PHEV: BD"&Vehicles!C14*100&" ("&IF(Inputs!$F$630=11,"UCO", IF(Inputs!$F$630=2,"Palm FFB",IF(Inputs!$F$630=3,"Canola",IF(Inputs!$F$630=4,"Jatropha",IF(Inputs!$F$630=5,"Camelina",IF(Inputs!$F$630=6,"Algae",IF(Inputs!$F$630=7,"Tallow",IF(Inputs!$F$630=8,"Corn Oil","Soybean"))))))))&") and Electricity ("&VLOOKUP(Inputs!$F$720,Inputs!$G$720:$H$738,2,FALSE)&")" -> Grid-Connected CIDI PHEV: BD20 (Soybean) and Electricity (User Defined Mix) | AM13: ="Grid-Connected CIDI PHEV: EtOH-Diesel ("&IF(EtOH!C6=1,"Corn"&IF(EtOH!C136=1,", dry",IF(EtOH!C136=0,", wet","")),IF(EtOH!D6=1,"Willow",IF(EtOH!E6=1,"Poplar",IF(EtOH!F6=1,"Switchgrass",IF(EtOH!G6=1,"Miscanthus",IF(EtOH!H6=1,"Corn Stover",IF(EtOH!I6=1,"Forest Residue",IF(EtOH!M6=1,"Sugarcane",IF(EtOH!J6=1,IF(EtOH!D233=1,"Grain",IF(EtOH!D233=3,"Forage","Sweet"))&" Sorghum",IF(EtOH!L6=1,"Solid Waste","Mixed Source"))))))))))&") and Electricity ("&VLOOKUP(Inputs!$F$720,Inputs!$G$720:$H$738,2,FALSE)&")" -> Grid-Connected CIDI PHEV: EtOH-Diesel (Corn) and Electricity (User Defined Mix) | AN13: ="Electricity ("&VLOOKUP(Inputs!$F$720,Inputs!$G$720:$H$738,2,FALSE)&")" -> Electricity (User Defined Mix) | AO13: ="FCV: G.H2"&IF(Inputs!F211=1,", Central Plants, "&IF(Inputs!F216=1,IF(Inputs!F239=1,"NA NG",IF(Inputs!F239=2,"Non-NA NG",IF(Inputs!F239=3,"FG",IF(RNG!G6=1,"LFG",IF(RNG!G7=1,"Manure-based AD Gas",IF(RNG!G8=1,"WWTP-based AD Gas","RNG")))))),"")&IF(Inputs!F217=1,"Solar","")&IF(Inputs!F219=1,"Nuclear","")&IF(Inputs!F220=1,"Electrolysis (Nuclear HTGR)","")&IF(Inputs!F221=1,"Coal","")&IF(Inputs!F222=1,"Biomass","")&IF(Inputs!F224=1,"Coke Oven Gas","")&IF(Inputs!F227=1,"Pet Coke","")&IF(MAX(Inputs!F216:F227)<1,"Mixed Sources",""),", Refueling Station, "&IF(Inputs!F231=1,IF(Inputs!F240=1,"NA NG",IF(Inputs!F240=2,"Non-NA NG",IF(Inputs!F240=3,"FG",IF(RNG!G6=1,"LFG",IF(RNG!G7=1,"Manure-based AD Gas",IF(RNG!G8=1,"WWTP-based AD Gas","RNG")))))),"")&IF(Inputs!F232=1,"Electrolysis","")&IF(Inputs!F233=1,"EtOH","")&IF(Inputs!F235=1,"MeOH","")&IF(MAX(Inputs!F231:F235)<1,"Mixed Sources","")) -> FCV: G.H2, Central Plants, NA NG | AP13: ="FCV: L.H2"&IF(Inputs!G211=1,", Central Plants, "&IF(Inputs!G216=1,IF(Inputs!G239=1,"NA NG",IF(Inputs!G239=2,"Non-NA NG",IF(Inputs!G239=3,"FG",IF(RNG!H6=1,"LFG",IF(RNG!H7=1,"Manure-based AD Gas",IF(RNG!H8=1,"WWTP-based AD Gas","RNG")))))),"")&IF(Inputs!G217=1,"Solar","")&IF(Inputs!G219=1,"Nuclear","")&IF(Inputs!G220=1,"Electrolysis (Nuclear HTGR)","")&IF(Inputs!G221=1,"Coal","")&IF(Inputs!G222=1,"Biomass","")&IF(Inputs!G224=1,"Coke Oven Gas","")&IF(Inputs!G227=1,"Pet Coke","")&IF(MAX(Inputs!G216:G227)<1,"Mixed Sources",""),", Refueling Station, "&IF(Inputs!G231=1,IF(Inputs!G240=1,"NA NG",IF(Inputs!G240=2,"Non-NA NG",IF(Inputs!G240=3,"FG",IF(RNG!H6=1,"LFG",IF(RNG!H7=1,"Manure-based AD Gas",IF(RNG!H8=1,"WWTP-based AD Gas","RNG")))))),"")&IF(Inputs!G232=1,"Electrolysis","")&IF(Inputs!G233=1,"EtOH","")&IF(Inputs!G235=1,"MeOH","")&IF(MAX(Inputs!G231:G235)<1,"Mixed Sources","")) -> FCV: L.H2, Central Plants, NA NG | AQ13: ="Grid-Connected FC PHEV: G.H2 ("&IF(Inputs!F211=1,"Central Plants, "&IF(Inputs!F216=1,IF(Inputs!F239=1,"NA NG",IF(Inputs!F239=2,"Non-NA NG",IF(Inputs!F239=3,"FG",IF(RNG!G6=1,"LFG",IF(RNG!G7=1,"Manure-based AD Gas",IF(RNG!G8=1,"WWTP-based AD Gas","RNG")))))),"")&IF(Inputs!F217=1,"Solar","")&IF(Inputs!F219=1,"Nuclear","")&IF(Inputs!F220=1,"Electrolysis (Nuclear HTGR)","")&IF(Inputs!F221=1,"Coal","")&IF(Inputs!F222=1,"Biomass","")&IF(Inputs!F224=1,"Coke Oven Gas","")&IF(Inputs!F227=1,"Pet Coke","")&IF(MAX(Inputs!F216:F227)<1,"Mixed Sources",""),"Refueling Station, "&IF(Inputs!F231=1,IF(Inputs!F240=1,"NA NG",IF(Inputs!F240=2,"Non-NA NG",IF(Inputs!F240=3,"FG",IF(RNG!G6=1,"LFG",IF(RNG!G7=1,"Manure-based AD Gas",IF(RNG!G8=1,"WWTP-based AD Gas","RNG")))))),"")&IF(Inputs!F232=1,"Electrolysis","")&IF(Inputs!F233=1,"EtOH","")&IF(Inputs!F235=1,"MeOH","")&IF(MAX(Inputs!F231:F235)<1,"Mixed Sources",""))&") and Electricity ("&VLOOKUP(Inputs!$F$720,Inputs!$G$720:$H$738,2,FALSE)&")" -> Grid-Connected FC PHEV: G.H2 (Central Plants, NA NG) and Electricity (User Defined Mix) | AR13: ="Grid-Connected FC PHEV: L.H2 ("&IF(Inputs!G211=1,"Central Plants, "&IF(Inputs!G216=1,IF(Inputs!G239=1,"NA NG",IF(Inputs!G239=2,"Non-NA NG",IF(Inputs!G239=3,"FG",IF(RNG!H6=1,"LFG",IF(RNG!H7=1,"Manure-based AD Gas",IF(RNG!H8=1,"WWTP-based AD Gas","RNG")))))),"")&IF(Inputs!G217=1,"Solar","")&IF(Inputs!G219=1,"Nuclear","")&IF(Inputs!G220=1,"Electrolysis (Nuclear HTGR)","")&IF(Inputs!G221=1,"Coal","")&IF(Inputs!G222=1,"Biomass","")&IF(Inputs!G224=1,"Coke Oven Gas","")&IF(Inputs!G227=1,"Pet Coke","")&IF(MAX(Inputs!G216:G227)<1,"Mixed Sources",""),"Refueling Station, "&IF(Inputs!G231=1,IF(Inputs!G240=1,"NA NG",IF(Inputs!G240=2,"Non-NA NG",IF(Inputs!G240=3,"FG",IF(RNG!H6=1,"LFG",IF(RNG!H7=1,"Manure-based AD Gas",IF(RNG!H8=1,"WWTP-based AD Gas","RNG")))))),"")&IF(Inputs!G232=1,"Electrolysis","")&IF(Inputs!G233=1,"EtOH","")&IF(Inputs!G235=1,"MeOH","")&IF(MAX(Inputs!G231:G235)<1,"Mixed Sources",""))&") and Electricity ("&VLOOKUP(Inputs!$F$720,Inputs!$G$720:$H$738,2,FALSE)&")" -> Grid-Connected FC PHEV: L.H2 (Central Plants, NA NG) and Electricity (User Defined Mix) | AS13: ="Blended feedstock-based RG"&Vehicles!C16*100&" via Indirect Liquefaction (IDL)" -> Blended feedstock-based RG100 via Indirect Liquefaction (IDL) | AT13: Low Octane Gasoline-Like Fuel | AU13: Boosted Spark Ignition (BSI) Isobutanol-gasoline blend | AV13: Boosted Spark Ignition (BSI) ARHC-gasoline blend
A14: Total Energy | B14: =(Inputs!$E$1500*(Petroleum!$B263*Petroleum!$F$262+Petroleum!$F263)+(1-Inputs!$E$1500)*(Petroleum!$B263*Petroleum!$D$262+Petroleum!$D263))/1000000*HLOOKUP($H$10,$Z$3:$AD$4,2,FALSE)/HLOOKUP($J$11,$Z$7:$AD$8,2,FALSE) -> 268015.3251 | C14: =(Petroleum!$C263*Petroleum!$G$262+Petroleum!$G263)/1000000*HLOOKUP($H$10,$Z$3:$AD$4,2,FALSE)/HLOOKUP($J$11,$Z$7:$AD$8,2,FALSE) -> 254320.2169 | D14: =((1-Vehicles!$C$35)*(1-Vehicles!$C$7)*Fuel_Specs!$B$15/((1-Vehicles!$C$35)*(1-Vehicles!$C$7)*Fuel_Specs!$B$15+Vehicles!$C$35*(1-Vehicles!$C$7)*Fuel_Specs!$B$16+Vehicles!$C$7*Fuel_Specs!$B$32)*(Petroleum!$B263*Petroleum!$D$262+(Petroleum!$D263-'T&D'!G215))+Vehicles!$C$35*(1-Vehicles!$C$7)*Fuel_Specs!$B$16/((1-Vehicles!$C$35)*(1-Vehicles!$C$7)*Fuel_Specs!$B$15+Vehicles!$C$35*(1-Vehicles!$C$7)*Fuel_Specs!$B$16+Vehicles!$C$7*Fuel_Specs!$B$32)*(Petroleum!B263*Petroleum!$F$262+Petroleum!$F263)+Vehicles!$C$7*Fuel_Specs!$B$32/((1-Vehicles!$C$35)*(1-Vehicles!$C$7)*Fuel_Specs!$B$15+Vehicles!$C$35*(1-Vehicles!$C$7)*Fuel_Specs!$B$16+Vehicles!$C$7*Fuel_Specs!$B$32)*(EtOH!BV547*EtOH!$BW$546+EtOH!$BW547)+Petroleum!AS124+Petroleum!AT124)/1000000*HLOOKUP($H$10,$Z$3:$AD$4,2,FALSE)/HLOOKUP($J$11,$Z$7:$AD$8,2,FALSE) -> 268015.3251 | E14: =(Inputs!$E$97*(IF(Inputs!F$102=1,Petroleum!$B263,Petroleum!$C263)*IF(Inputs!F$102=1,Petroleum!$K$262,Petroleum!$L$262)+IF(Inputs!F$102=1,Petroleum!$K263,Petroleum!$L263))+(1-Inputs!$E$97)*(IF(Inputs!F$101=1,Petroleum!$B263,Petroleum!$C263)*Petroleum!$J$262+Petroleum!$J263))/1000000*HLOOKUP($H$10,$Z$3:$AD$4,2,FALSE)/HLOOKUP($J$11,$Z$7:$AD$8,2,FALSE) -> 179060.8387 | F14: =(NG!$J85*NG!$K$84+NG!$K85)/1000000*HLOOKUP($H$10,$Z$3:$AD$4,2,FALSE)/HLOOKUP($J$11,$Z$7:$AD$8,2,FALSE) -> 151820.3106 | G14: =(NG!$R85*NG!$S$84+NG!$S85)/1000000*HLOOKUP($H$10,$Z$3:$AD$4,2,FALSE)/HLOOKUP($J$11,$Z$7:$AD$8,2,FALSE) -> 198379.4757 | H14: =(NG!$X85*NG!$Y$84+NG!$Y85)/1000000*HLOOKUP($H$10,$Z$3:$AD$4,2,FALSE)/HLOOKUP($J$11,$Z$7:$AD$8,2,FALSE) -> 137135.5819 | I14: =(MeOH_FTD!BJ163*MeOH_FTD!BK$162+MeOH_FTD!BK163)/1000000*HLOOKUP($H$10,$Z$3:$AD$4,2,FALSE)/HLOOKUP($J$11,$Z$7:$AD$8,2,FALSE) -> 778088.2249 | J14: =((1-Vehicles!$C$34)*(1-Vehicles!$C$5)*Fuel_Specs!$B$15/((1-Vehicles!$C$34)*(1-Vehicles!$C$5)*Fuel_Specs!$B$15+Vehicles!$C$34*(1-Vehicles!$C$5)*Fuel_Specs!$B$16+Vehicles!$C$5*Fuel_Specs!$B$31)*(Petroleum!$B263*Petroleum!$D$262+Petroleum!$D263)+Vehicles!$C$34*(1-Vehicles!$C$5)*Fuel_Specs!$B$16/((1-Vehicles!$C$34)*(1-Vehicles!$C$5)*Fuel_Specs!$B$15+Vehicles!$C$34*(1-Vehicles!$C$5)*Fuel_Specs!$B$16+Vehicles!$C$5*Fuel_Specs!$B$31)*(Petroleum!B263*Petroleum!$F$262+Petroleum!$F263)+Vehicles!$C$5*Fuel_Specs!$B$31/((1-Vehicles!$C$34)*(1-Vehicles!$C$5)*Fuel_Specs!$B$15+Vehicles!$C$34*(1-Vehicles!$C$5)*Fuel_Specs!$B$16+Vehicles!$C$5*Fuel_Specs!$B$31)*(MeOH_FTD!$N163*MeOH_FTD!$O$162+MeOH_FTD!$O163))/1000000*HLOOKUP($H$10,$Z$3:$AD$4,2,FALSE)/HLOOKUP($J$11,$Z$7:$AD$8,2,FALSE) -> 439580.5198 | K14: =((1-Vehicles!$C$34)*(1-Vehicles!$C$6)*Fuel_Specs!$B$15/((1-Vehicles!$C$34)*(1-Vehicles!$C$6)*Fuel_Specs!$B$15+Vehicles!$C$34*(1-Vehicles!$C$6)*Fuel_Specs!$B$16+Vehicles!$C$6*Fuel_Specs!$B$31)*(Petroleum!$B263*Petroleum!$D$262+Petroleum!$D263)+Vehicles!$C$34*(1-Vehicles!$C$6)*Fuel_Specs!$B$16/((1-Vehicles!$C$34)*(1-Vehicles!$C$6)*Fuel_Specs!$B$15+Vehicles!$C$34*(1-Vehicles!$C$6)*Fuel_Specs!$B$16+Vehicles!$C$6*Fuel_Specs!$B$31)*(Petroleum!B263*Petroleum!$F$262+Petroleum!$F263)+Vehicles!$C$6*Fuel_Specs!$B$31/((1-Vehicles!$C$34)*(1-Vehicles!$C$6)*Fuel_Specs!$B$15+Vehicles!$C$34*(1-Vehicles!$C$6)*Fuel_Specs!$B$16+Vehicles!$C$6*Fuel_Specs!$B$31)*(MeOH_FTD!$N163*MeOH_FTD!$O$162+MeOH_FTD!$O163))/1000000*HLOOKUP($H$10,$Z$3:$AD$4,2,FALSE)/HLOOKUP($J$11,$Z$7:$AD$8,2,FALSE) -> 462780.2292 | L14: =(MeOH_FTD!$N163*MeOH_FTD!$O$162+MeOH_FTD!$O163)/1000000*HLOOKUP($H$10,$Z$3:$AD$4,2,FALSE)/HLOOKUP($J$11,$Z$7:$AD$8,2,FALSE) -> 516332.8581 | M14: =((1-Vehicles!$C$36)*(1-Vehicles!$C$8)*Fuel_Specs!$B$15/((1-Vehicles!$C$36)*(1-Vehicles!$C$8)*Fuel_Specs!$B$15+Vehicles!$C$36*(1-Vehicles!$C$8)*Fuel_Specs!$B$16+Vehicles!$C$8*Fuel_Specs!$B$32)*(Petroleum!$B263*Petroleum!$D$262+(Petroleum!$D263-'T&D'!G215))+Vehicles!$C$36*(1-Vehicles!$C$8)*Fuel_Specs!$B$16/((1-Vehicles!$C$36)*(1-Vehicles!$C$8)*Fuel_Specs!$B$15+Vehicles!$C$36*(1-Vehicles!$C$8)*Fuel_Specs!$B$16+Vehicles!$C$8*Fuel_Specs!$B$32)*(Petroleum!B263*Petroleum!$F$262+Petroleum!$F263)+Vehicles!$C$8*Fuel_Specs!$B$32/((1-Vehicles!$C$36)*(1-Vehicles!$C$8)*Fuel_Specs!$B$15+Vehicles!$C$36*(1-Vehicles!$C$8)*Fuel_Specs!$B$16+Vehicles!$C$8*Fuel_Specs!$B$32)*(EtOH!BV547*EtOH!$BW$546+EtOH!$BW547)+Petroleum!AS124+Petroleum!AT124)/1000000*HLOOKUP($H$10,$Z$3:$AD$4,2,FALSE)/HLOOKUP($J$11,$Z$7:$AD$8,2,FALSE) -> 717904.341 | N14: =((1-Vehicles!$C$37)*(1-Vehicles!$C$12)*Fuel_Specs!$B$15/((1-Vehicles!$C$37)*(1-Vehicles!$C$12)*Fuel_Specs!$B$15+Vehicles!$C$37*(1-Vehicles!$C$12)*Fuel_Specs!$B$16+Vehicles!$C$12*Fuel_Specs!$B$33)*(Petroleum!$B263*Petroleum!$D$262+Petroleum!$D263)+Vehicles!$C$37*(1-Vehicles!$C$12)*Fuel_Specs!$B$16/((1-Vehicles!$C$37)*(1-Vehicles!$C$12)*Fuel_Specs!$B$15+Vehicles!$C$37*(1-Vehicles!$C$12)*Fuel_Specs!$B$16+Vehicles!$C$12*Fuel_Specs!$B$33)*(Petroleum!B263*Petroleum!$F$262+Petroleum!$F263)+Vehicles!$C$12*Fuel_Specs!$B$33/((1-Vehicles!$C$37)*(1-Vehicles!$C$12)*Fuel_Specs!$B$15+Vehicles!$C$37*(1-Vehicles!$C$12)*Fuel_Specs!$B$16+Vehicles!$C$12*Fuel_Specs!$B$33)*(EtOH!$BX547*EtOH!$BY$546+EtOH!$BY547))/1000000*HLOOKUP($H$10,$Z$3:$AD$4,2,FALSE)/HLOOKUP($J$11,$Z$7:$AD$8,2,FALSE) -> 699660.8571 | O14: =((1-Vehicles!$C$36)*(1-Vehicles!$C$9)*Fuel_Specs!$B$15/((1-Vehicles!$C$36)*(1-Vehicles!$C$9)*Fuel_Specs!$B$15+Vehicles!$C$36*(1-Vehicles!$C$9)*Fuel_Specs!$B$16+Vehicles!$C$9*Fuel_Specs!$B$32)*(Petroleum!$B263*Petroleum!$D$262+(Petroleum!$D263-'T&D'!G215))+Vehicles!$C$36*(1-Vehicles!$C$9)*Fuel_Specs!$B$16/((1-Vehicles!$C$36)*(1-Vehicles!$C$9)*Fuel_Specs!$B$15+Vehicles!$C$36*(1-Vehicles!$C$9)*Fuel_Specs!$B$16+Vehicles!$C$9*Fuel_Specs!$B$32)*(Petroleum!B263*Petroleum!$F$262+Petroleum!$F263)+Vehicles!$C$9*Fuel_Specs!$B$32/((1-Vehicles!$C$36)*(1-Vehicles!$C$9)*Fuel_Specs!$B$15+Vehicles!$C$36*(1-Vehicles!$C$9)*Fuel_Specs!$B$16+Vehicles!$C$9*Fuel_Specs!$B$32)*(EtOH!BV547*EtOH!$BW$546+EtOH!$BW547)+Petroleum!AS124+Petroleum!AT124)/1000000*HLOOKUP($H$10,$Z$3:$AD$4,2,FALSE)/HLOOKUP($J$11,$Z$7:$AD$8,2,FALSE) -> 717904.341 | P14: =(EtOH!$BT547*EtOH!$BU$546+EtOH!$BU547)/1000000*HLOOKUP($H$10,$Z$3:$AD$4,2,FALSE)/HLOOKUP($J$11,$Z$7:$AD$8,2,FALSE) -> 868847.151 | Q14: =((1-Vehicles!$C$40)*(1-Vehicles!$C$16)*Fuel_Specs!$B$15/((1-Vehicles!$C$40)*(1-Vehicles!$C$16)*Fuel_Specs!$B$15+Vehicles!$C$40*(1-Vehicles!$C$16)*Fuel_Specs!$B$16+Vehicles!$C$16*Fuel_Specs!$B$46)*(Petroleum!$B263*Petroleum!$D$262+Petroleum!$D263)+Vehicles!$C$40*(1-Vehicles!$C$16)*Fuel_Specs!$B$16/((1-Vehicles!$C$40)*(1-Vehicles!$C$16)*Fuel_Specs!$B$15+Vehicles!$C$40*(1-Vehicles!$C$16)*Fuel_Specs!$B$16+Vehicles!$C$16*Fuel_Specs!$B$46)*(Petroleum!B263*Petroleum!$F$262+Petroleum!$F263)+Vehicles!$C$16*Fuel_Specs!$B$46/((1-Vehicles!$C$40)*(1-Vehicles!$C$16)*Fuel_Specs!$B$15+Vehicles!$C$40*(1-Vehicles!$C$16)*Fuel_Specs!$B$16+Vehicles!$C$16*Fuel_Specs!$B$46)*(BioOil!$CE433*BioOil!$CF$431+BioOil!$CF433))/1000000*HLOOKUP($H$10,$Z$3:$AD$4,2,FALSE)/HLOOKUP($J$11,$Z$7:$AD$8,2,FALSE) -> 418320.2888 | R14: =((1-Vehicles!$C$40)*(1-Vehicles!$C$16)*Fuel_Specs!$B$15/((1-Vehicles!$C$40)*(1-Vehicles!$C$16)*Fuel_Specs!$B$15+Vehicles!$C$40*(1-Vehicles!$C$16)*Fuel_Specs!$B$16+Vehicles!$C$16*Fuel_Specs!$B$46)*(Petroleum!$B263*Petroleum!$D$262+Petroleum!$D263)+Vehicles!$C$40*(1-Vehicles!$C$16)*Fuel_Specs!$B$16/((1-Vehicles!$C$40)*(1-Vehicles!$C$16)*Fuel_Specs!$B$15+Vehicles!$C$40*(1-Vehicles!$C$16)*Fuel_Specs!$B$16+Vehicles!$C$16*Fuel_Specs!$B$46)*(Petroleum!B263*Petroleum!$F$262+Petroleum!$F263)+Vehicles!$C$16*Fuel_Specs!$B$46/((1-Vehicles!$C$40)*(1-Vehicles!$C$16)*Fuel_Specs!$B$15+Vehicles!$C$40*(1-Vehicles!$C$16)*Fuel_Specs!$B$16+Vehicles!$C$16*Fuel_Specs!$B$46)*(Pyrolysis_IDL!$AD298*Pyrolysis_IDL!$AE$297+Pyrolysis_IDL!$AE298))/1000000*HLOOKUP($H$10,$Z$3:$AD$4,2,FALSE)/HLOOKUP($J$11,$Z$7:$AD$8,2,FALSE) -> 921265.1345 | S14: =AN14*(Vehicles!$C$30/Vehicles!$AT$72)/(Vehicles!$C$30*(1/Vehicles!$AT$72+1/Vehicles!$AU$72)+Vehicles!$C$31/Vehicles!$AV$72)+B14*(Vehicles!$C$30/Vehicles!$AU$72+Vehicles!$C$31/Vehicles!$AV$72)/(Vehicles!$C$30*(1/Vehicles!$AT$72+1/Vehicles!$AU$72)+Vehicles!$C$31/Vehicles!$AV$72) -> 380649.9941 | T14: =AN14*(Vehicles!$D$30/Vehicles!$AX$72)/(Vehicles!$D$30*(1/Vehicles!$AX$72+1/Vehicles!$AY$72)+Vehicles!$D$31/Vehicles!$AZ$72)+C14*(Vehicles!$D$30/Vehicles!$AY$72+Vehicles!$D$31/Vehicles!$AZ$72)/(Vehicles!$D$30*(1/Vehicles!$AX$72+1/Vehicles!$AY$72)+Vehicles!$D$31/Vehicles!$AZ$72) -> 372129.7427 | U14: =AN14*(Vehicles!$F$30/Vehicles!$BF$72)/(Vehicles!$F$30*(1/Vehicles!$BF$72+1/Vehicles!$BG$72)+Vehicles!$F$31/Vehicles!$BH$72)+D14*(Vehicles!$F$30/Vehicles!$BG$72+Vehicles!$F$31/Vehicles!$BH$72)/(Vehicles!$F$30*(1/Vehicles!$BF$72+1/Vehicles!$BG$72)+Vehicles!$F$31/Vehicles!$BH$72) -> 380649.9941 | V14: =AN14*(Vehicles!$G$30/Vehicles!$BJ$72)/(Vehicles!$G$30*(1/Vehicles!$BJ$72+1/Vehicles!$BK$72)+Vehicles!$G$31/Vehicles!$BL$72)+F14*(Vehicles!$G$30/Vehicles!$BK$72+Vehicles!$G$31/Vehicles!$BL$72)/(Vehicles!$G$30*(1/Vehicles!$BJ$72+1/Vehicles!$BK$72)+Vehicles!$G$31/Vehicles!$BL$72) -> 308360.6248 | W14: =AN14*(Vehicles!$H$30/Vehicles!$BN$72)/(Vehicles!$H$30*(1/Vehicles!$BN$72+1/Vehicles!$BO$72)+Vehicles!$H$31/Vehicles!$BP$72)+G14*(Vehicles!$H$30/Vehicles!$BO$72+Vehicles!$H$31/Vehicles!$BP$72)/(Vehicles!$H$30*(1/Vehicles!$BN$72+1/Vehicles!$BO$72)+Vehicles!$H$31/Vehicles!$BP$72) -> 337326.8648 | X14: =AN14*(Vehicles!$I$30/Vehicles!$BR$72)/(Vehicles!$I$30*(1/Vehicles!$BR$72+1/Vehicles!$BS$72)+Vehicles!$I$31/Vehicles!$BT$72)+H14*(Vehicles!$I$30/Vehicles!$BS$72+Vehicles!$I$31/Vehicles!$BT$72)/(Vehicles!$I$30*(1/Vehicles!$BR$72+1/Vehicles!$BS$72)+Vehicles!$I$31/Vehicles!$BT$72) -> 299224.6926 | Y14: =AN14*(Vehicles!$J$30/Vehicles!$BV$72)/(Vehicles!$J$30*(1/Vehicles!$BV$72+1/Vehicles!$BW$72)+Vehicles!$J$31/Vehicles!$BX$72)+K14*(Vehicles!$J$30/Vehicles!$BW$72+Vehicles!$J$31/Vehicles!$BX$72)/(Vehicles!$J$30*(1/Vehicles!$BV$72+1/Vehicles!$BW$72)+Vehicles!$J$31/Vehicles!$BX$72) -> 501820.7013 | Z14: =AN14*(Vehicles!$K$30/Vehicles!$BZ$72)/(Vehicles!$K$30*(1/Vehicles!$BZ$72+1/Vehicles!$CA$72)+Vehicles!$K$31/Vehicles!$CB$72)+O14*(Vehicles!$K$30/Vehicles!$CA$72+Vehicles!$K$31/Vehicles!$CB$72)/(Vehicles!$K$30*(1/Vehicles!$BZ$72+1/Vehicles!$CA$72)+Vehicles!$K$31/Vehicles!$CB$72) -> 660543.1836 | AA14: =AN14*(Vehicles!$L$30/Vehicles!$CD$72)/(Vehicles!$L$30*(1/Vehicles!$CD$72+1/Vehicles!$CE$72)+Vehicles!$L$31/Vehicles!$CF$72)+AO14*(Vehicles!$L$30/Vehicles!$CE$72+Vehicles!$L$31/Vehicles!$CF$72)/(Vehicles!$L$30*(1/Vehicles!$CD$72+1/Vehicles!$CE$72)+Vehicles!$L$31/Vehicles!$CF$72) -> 486582.6764 | AB14: =AN14*(Vehicles!$L$30/Vehicles!$CD$72)/(Vehicles!$L$30*(1/Vehicles!$CD$72+1/Vehicles!$CE$72)+Vehicles!$L$31/Vehicles!$CG$72)+AP14*(Vehicles!$L$30/Vehicles!$CE$72+Vehicles!$L$31/Vehicles!$CG$72)/(Vehicles!$L$30*(1/Vehicles!$CD$72+1/Vehicles!$CE$72)+Vehicles!$L$31/Vehicles!$CG$72) -> 808568.2482 | AC14: =(MeOH_FTD!$AJ163*MeOH_FTD!$AK$162+MeOH_FTD!$AK163)/1000000*HLOOKUP($H$10,$Z$3:$AD$4,2,FALSE)/HLOOKUP($J$11,$Z$7:$AD$8,2,FALSE) -> 610509.8744 | AD14: =((1-Vehicles!$C$41)*(1-Vehicles!$C$13)*Fuel_Specs!$B$20/((1-Vehicles!$C$41)*(1-Vehicles!$C$13)*Fuel_Specs!$B$20+Vehicles!$C$41*(1-Vehicles!$C$13)*Fuel_Specs!$B$23+Vehicles!$C$13*Fuel_Specs!$B$41)*(Petroleum!B263*Petroleum!$J$262+Petroleum!$J263)+Vehicles!$C$41*(1-Vehicles!$C$13)*Fuel_Specs!$B$23/((1-Vehicles!$C$41)*(1-Vehicles!$C$13)*Fuel_Specs!$B$20+Vehicles!$C$41*(1-Vehicles!$C$13)*Fuel_Specs!$B$23+Vehicles!$C$13*Fuel_Specs!$B$41)*(Petroleum!B263*IF(Inputs!F$102=1,Petroleum!$K$262,Petroleum!$L$262)+IF(Inputs!F$102=1,Petroleum!$K263,Petroleum!$L263))+Vehicles!$C$13*Fuel_Specs!$B$41/((1-Vehicles!$C$41)*(1-Vehicles!$C$13)*Fuel_Specs!$B$20+Vehicles!$C$41*(1-Vehicles!$C$13)*Fuel_Specs!$B$23+Vehicles!$C$13*Fuel_Specs!$B$41)*(MeOH_FTD!$AZ163*MeOH_FTD!$BA$162+MeOH_FTD!$BA163))/1000000*HLOOKUP($H$10,$Z$3:$AD$4,2,FALSE)/HLOOKUP($J$11,$Z$7:$AD$8,2,FALSE) -> 666262.4859 | AE14: =((1-Vehicles!$C$42)*(1-Vehicles!$C$14)*Fuel_Specs!$B$20/((1-Vehicles!$C$42)*(1-Vehicles!$C$14)*Fuel_Specs!$B$20+Vehicles!$C$42*(1-Vehicles!$C$14)*Fuel_Specs!$B$23+Vehicles!$C$14*Fuel_Specs!$B$40)*(Petroleum!B263*Petroleum!$J$262+Petroleum!$J263)+Vehicles!$C$42*(1-Vehicles!$C$14)*Fuel_Specs!$B$23/((1-Vehicles!$C$42)*(1-Vehicles!$C$14)*Fuel_Specs!$B$20+Vehicles!$C$42*(1-Vehicles!$C$14)*Fuel_Specs!$B$23+Vehicles!$C$14*Fuel_Specs!$B$40)*(Petroleum!B263*IF(Inputs!F$102=1,Petroleum!$K$262,Petroleum!$L$262)+IF(Inputs!F$102=1,Petroleum!$K263,Petroleum!$L263))+Vehicles!$C$14*Fuel_Specs!$B$40/((1-Vehicles!$C$42)*(1-Vehicles!$C$14)*Fuel_Specs!$B$20+Vehicles!$C$42*(1-Vehicles!$C$14)*Fuel_Specs!$B$23+Vehicles!$C$14*Fuel_Specs!$B$40)*(BioOil!$Y433*BioOil!$Z$431+BioOil!$Z433))/1000000*HLOOKUP($H$10,$Z$3:$AD$4,2,FALSE)/HLOOKUP($J$11,$Z$7:$AD$8,2,FALSE) -> 235959.3684 | AF14: =((1-Vehicles!$C$43)*(1-Vehicles!$C$15)*Fuel_Specs!$B$20/((1-Vehicles!$C$43)*(1-Vehicles!$C$15)*Fuel_Specs!$B$20+Vehicles!$C$43*(1-Vehicles!$C$15)*Fuel_Specs!$B$23+Vehicles!$C$15*IF(Inputs!$E$670=1,IF(Inputs!$E$670=1,Fuel_Specs!$B$42,IF(Inputs!$E$670=3,Fuel_Specs!$B$44,Fuel_Specs!$B$43)),Fuel_Specs!$B$43))*(Petroleum!B263*Petroleum!$J$262+Petroleum!$J263)+Vehicles!$C$43*(1-Vehicles!$C$15)*Fuel_Specs!$B$23/((1-Vehicles!$C$43)*(1-Vehicles!$C$15)*Fuel_Specs!$B$20+Vehicles!$C$43*(1-Vehicles!$C$15)*Fuel_Specs!$B$23+Vehicles!$C$15*IF(Inputs!$E$670=1,IF(Inputs!$E$670=1,Fuel_Specs!$B$42,IF(Inputs!$E$670=3,Fuel_Specs!$B$44,Fuel_Specs!$B$43)),Fuel_Specs!$B$43))*(Petroleum!B263*IF(Inputs!F$102=1,Petroleum!$K$262,Petroleum!$L$262)+IF(Inputs!F$102=1,Petroleum!$K263,Petroleum!$L263))+Vehicles!$C$15*IF(Inputs!$E$670=1,IF(Inputs!$E$670=1,Fuel_Specs!$B$42,IF(Inputs!$E$670=3,Fuel_Specs!$B$44,Fuel_Specs!$B$43)),Fuel_Specs!$B$43)/((1-Vehicles!$C$43)*(1-Vehicles!$C$15)*Fuel_Specs!$B$20+Vehicles!$C$43*(1-Vehicles!$C$15)*Fuel_Specs!$B$23+Vehicles!$C$15*IF(Inputs!$E$670=1,IF(Inputs!$E$670=1,Fuel_Specs!$B$42,IF(Inputs!$E$670=3,Fuel_Specs!$B$44,Fuel_Specs!$B$43)),Fuel_Specs!$B$43))*(BioOil!$BQ433*BioOil!$BR$431+BioOil!$BR433))/1000000*HLOOKUP($H$10,$Z$3:$AD$4,2,FALSE)/HLOOKUP($J$11,$Z$7:$AD$8,2,FALSE) -> 508634.2404 | AG14: =((1-Vehicles!$C$43)*(1-Vehicles!$C$15)*Fuel_Specs!$B$20/((1-Vehicles!$C$43)*(1-Vehicles!$C$15)*Fuel_Specs!$B$20+Vehicles!$C$43*(1-Vehicles!$C$15)*Fuel_Specs!$B$23+Vehicles!$C$15*IF(Inputs!$E$670=1,Fuel_Specs!$B$42,Fuel_Specs!$B$43))*(Petroleum!B263*Petroleum!$J$262+Petroleum!$J263)+Vehicles!$C$43*(1-Vehicles!$C$15)*Fuel_Specs!$B$23/((1-Vehicles!$C$43)*(1-Vehicles!$C$15)*Fuel_Specs!$B$20+Vehicles!$C$43*(1-Vehicles!$C$15)*Fuel_Specs!$B$23+Vehicles!$C$15*IF(Inputs!$E$670=1,Fuel_Specs!$B$42,Fuel_Specs!$B$43))*(Petroleum!B263*IF(Inputs!F$102=1,Petroleum!$K$262,Petroleum!$L$262)+IF(Inputs!F$102=1,Petroleum!$K263,Petroleum!$L263))+Vehicles!$C$15*IF(Inputs!$E$670=1,Fuel_Specs!$B$42,Fuel_Specs!$B$43)/((1-Vehicles!$C$43)*(1-Vehicles!$C$15)*Fuel_Specs!$B$20+Vehicles!$C$43*(1-Vehicles!$C$15)*Fuel_Specs!$B$23+Vehicles!$C$15*IF(Inputs!$E$670=1,Fuel_Specs!$B$42,Fuel_Specs!$B$43))*(Pyrolysis_IDL!$AF298*Pyrolysis_IDL!$AG$297+Pyrolysis_IDL!$AG298))/1000000*HLOOKUP($H$10,$Z$3:$AD$4,2,FALSE)/HLOOKUP($J$11,$Z$7:$AD$8,2,FALSE) -> 914320.1256 | AH14: =(((1-Vehicles!$C$44)*(1-Vehicles!$C$17-Vehicles!$C$18)*Fuel_Specs!$B$20*(Petroleum!B263*Petroleum!$J$262+Petroleum!$J263)+Vehicles!$C$44*(1-Vehicles!$C$17-Vehicles!$C$18)*Fuel_Specs!$B$23*(Petroleum!B263*IF(Inputs!F$102=1,Petroleum!$K$262,Petroleum!$L$262)+IF(Inputs!F$102=1,Petroleum!$K263,Petroleum!$L263))+Vehicles!$C$17*Fuel_Specs!$B$32*(EtOH!BT547*EtOH!$BU$546+EtOH!$BU547)+Vehicles!$C$18*Fuel_Specs!$B$35*('EtOH-Diesel Additives'!$B54*'EtOH-Diesel Additives'!$B$53))/((1-Vehicles!$C$44)*(1-Vehicles!$C$17-Vehicles!$C$18)*Fuel_Specs!$B$20+Vehicles!$C$44*(1-Vehicles!$C$17-Vehicles!$C$18)*Fuel_Specs!$B$23+Vehicles!$C$17*Fuel_Specs!$B$32+Vehicles!$C$18*Fuel_Specs!$B$35))/1000000*HLOOKUP($H$10,$Z$3:$AD$4,2,FALSE)/HLOOKUP($J$11,$Z$7:$AD$8,2,FALSE) -> 223434.0094 | AI14: =AN14*(Vehicles!$M$30/Vehicles!$CO$72)/(Vehicles!$M$30*(1/Vehicles!$CO$72+1/Vehicles!$CP$72)+Vehicles!$M$31/Vehicles!$CQ$72)+E14*(Vehicles!$M$30/Vehicles!$CP$72+Vehicles!$M$31/Vehicles!$CQ$72)/(Vehicles!$M$30*(1/Vehicles!$CO$72+1/Vehicles!$CP$72)+Vehicles!$M$31/Vehicles!$CQ$72) -> 294050.0312 | AJ14: =AN14*(Vehicles!$N$30/Vehicles!$CS$72)/(Vehicles!$N$30*(1/Vehicles!$CS$72+1/Vehicles!$CT$72)+Vehicles!$N$31/Vehicles!$CU$72)+AC14*(Vehicles!$N$30/Vehicles!$CT$72+Vehicles!$N$31/Vehicles!$CU$72)/(Vehicles!$N$30*(1/Vehicles!$CS$72+1/Vehicles!$CT$72)+Vehicles!$N$31/Vehicles!$CU$72) -> 597315.6191 | AK14: =AN14*(Vehicles!$O$30/Vehicles!$CW$72)/(Vehicles!$O$30*(1/Vehicles!$CW$72+1/Vehicles!$CX$72)+Vehicles!$O$31/Vehicles!$CY$72)+AD14*(Vehicles!$O$30/Vehicles!$CX$72+Vehicles!$O$31/Vehicles!$CY$72)/(Vehicles!$O$30*(1/Vehicles!$CW$72+1/Vehicles!$CX$72)+Vehicles!$O$31/Vehicles!$CY$72) -> 636504.1376 | AL14: =AN14*(Vehicles!$P$30/Vehicles!$DA$72)/(Vehicles!$P$30*(1/Vehicles!$DA$72+1/Vehicles!$DB$72)+Vehicles!$P$31/Vehicles!$DC$72)+AE14*(Vehicles!$P$30/Vehicles!$DB$72+Vehicles!$P$31/Vehicles!$DC$72)/(Vehicles!$P$30*(1/Vehicles!$DA$72+1/Vehicles!$DB$72)+Vehicles!$P$31/Vehicles!$DC$72) -> 334044.0157 | AM14: =AN14*(Vehicles!$R$30/Vehicles!$DI$72)/(Vehicles!$R$30*(1/Vehicles!$DI$72+1/Vehicles!$DJ$72)+Vehicles!$R$31/Vehicles!$DK$72)+AH14*(Vehicles!$R$30/Vehicles!$DJ$72+Vehicles!$R$31/Vehicles!$DK$72)/(Vehicles!$R$30*(1/Vehicles!$DI$72+1/Vehicles!$DJ$72)+Vehicles!$R$31/Vehicles!$DK$72) -> 325239.9391 | AN14: =(Electric!$G204+Electric!$F204-1000000)/1000000*HLOOKUP($H$10,$Z$3:$AD$4,2,FALSE)/HLOOKUP($J$11,$Z$7:$AD$8,2,FALSE) -> 566099.7044 | AO14: =((Hydrogen!$AJ306*Hydrogen!$AK$305+Hydrogen!$AK306)-1000000*(Hydrogen!$O$7+Hydrogen!$C$7+Hydrogen!$D$7+Hydrogen!$E$7))/1000000*HLOOKUP($H$10,$Z$3:$AD$4,2,FALSE)/HLOOKUP($J$11,$Z$7:$AD$8,2,FALSE) -> 438287.243 | AP14: =((Hydrogen!$BT306*Hydrogen!$BU$305+Hydrogen!$BU306)-1000000*(Hydrogen!$O$8+Hydrogen!$C$8+Hydrogen!$D$8+Hydrogen!$E$8))/1000000*HLOOKUP($H$10,$Z$3:$AD$4,2,FALSE)/HLOOKUP($J$11,$Z$7:$AD$8,2,FALSE) -> 955833.8552 | AQ14: =AN14*(Vehicles!$S$30/Vehicles!$DY$72)/(Vehicles!$S$30*(1/Vehicles!$DY$72+1/Vehicles!$DZ$72)+Vehicles!$S$31/Vehicles!$EA$72)+AO14*(Vehicles!$S$30/Vehicles!$DZ$72+Vehicles!$S$31/Vehicles!$EA$72)/(Vehicles!$S$30*(1/Vehicles!$DY$72+1/Vehicles!$DZ$72)+Vehicles!$S$31/Vehicles!$EA$72) -> 489987.4461 | AR14: =AN14*(Vehicles!$S$30/Vehicles!$DY$72)/(Vehicles!$S$30*(1/Vehicles!$DY$72+1/Vehicles!$DZ$72)+Vehicles!$S$31/Vehicles!$EA$72)+AP14*(Vehicles!$S$30/Vehicles!$DZ$72+Vehicles!$S$31/Vehicles!$EA$72)/(Vehicles!$S$30*(1/Vehicles!$DY$72+1/Vehicles!$DZ$72)+Vehicles!$S$31/Vehicles!$EA$72) -> 798186.2007 | AS14: =((1-Vehicles!$C$40)*(1-Vehicles!$C$16)*Fuel_Specs!$B$15/((1-Vehicles!$C$40)*(1-Vehicles!$C$16)*Fuel_Specs!$B$15+Vehicles!$C$40*(1-Vehicles!$C$16)*Fuel_Specs!$B$16+Vehicles!$C$16*Fuel_Specs!$B$47)*(Petroleum!$B263*Petroleum!$D$262+Petroleum!$D263)+Vehicles!$C$40*(1-Vehicles!$C$16)*Fuel_Specs!$B$16/((1-Vehicles!$C$40)*(1-Vehicles!$C$16)*Fuel_Specs!$B$15+Vehicles!$C$40*(1-Vehicles!$C$16)*Fuel_Specs!$B$16+Vehicles!$C$16*Fuel_Specs!$B$47)*(Petroleum!B263*Petroleum!$F$262+Petroleum!$F263)+Vehicles!$C$16*Fuel_Specs!$B$47/((1-Vehicles!$C$40)*(1-Vehicles!$C$16)*Fuel_Specs!$B$15+Vehicles!$C$40*(1-Vehicles!$C$16)*Fuel_Specs!$B$16+Vehicles!$C$16*Fuel_Specs!$B$47)*(Pyrolysis_IDL!$AP298*Pyrolysis_IDL!$AQ$297+Pyrolysis_IDL!$AQ298))/1000000*HLOOKUP($H$10,$Z$3:$AD$4,2,FALSE)/HLOOKUP($J$11,$Z$7:$AD$8,2,FALSE) -> 1699733.734 | AT14: =(Petroleum!$B263*Petroleum!$S$262+Petroleum!$S263)/1000000*HLOOKUP($H$10,$Z$3:$AD$4,2,FALSE)/HLOOKUP($J$11,$Z$7:$AD$8,2,FALSE) -> 188481.601 | AU14: =F2537+G2537 -> 274696.5742 | AV14: =F2568+G2568 -> 222619.4805 | BB14: Select Fuels | BE14: Select Fuels | BH14: Select Fuels | BK14: Select Fuels | BN14: Select Fuels | BQ14: Select Fuels | BT14: Select Fuels | BW14: Select Fuels | BZ14: Select Fuels | CB14: Selct Fuels
A15: WTP Efficiency | B15: =HLOOKUP($H$10,$Z$3:$AD$4,2,FALSE)/HLOOKUP($J$11,$Z$7:$AD$8,2,FALSE)/(HLOOKUP($H$10,$Z$3:$AD$4,2,FALSE)/HLOOKUP($J$11,$Z$7:$AD$8,2,FALSE)+B14) -> 0.7886340017 | C15: 0.7972445844 | D15: 0.7886340017 | E15: 0.8481326554 | F15: 0.8681909763 | G15: 0.8344602192 | H15: 0.8794026112 | I15: 0.5624017897 | J15: 0.694646799 | K15: 0.6836296937 | L15: 0.6594858079 | M15: 0.5821045888 | N15: 0.588352668 | O15: 0.5821045888 | P15: 0.5350892391 | Q15: 0.7050593634 | R15: 0.5204903696 | S15: 0.7242965301 | T15: 0.7287940556 | U15: 0.7242965301 | V15: 0.7643152668 | W15: 0.7477603466 | X15: 0.7696898048 | Y15: 0.6658584471 | Z15: 0.6022125831 | AA15: 0.6726837436 | AB15: 0.5529235632 | AC15: 0.6209213715 | AD15: 0.6001455404 | AE15: 0.8090880862 | AF15: 0.662851189 | AG15: 0.5223786694 | AH15: 0.8173714253 | AI15: 0.7727676488 | AJ15: 0.6260503485 | AK15: 0.6110586445 | AL15: 0.7496004541 | AM15: 0.7545803371 | AN15: 0.6385289501 | AO15: 0.6952714104 | AP15: 0.5112908734 | AQ15: 0.6711465943 | AR15: 0.5561159348 | AS15: 0.3704068988 | AT15: 0.8414097443 | AU15: =HLOOKUP($H$10,$Z$3:$AD$4,2,FALSE)/HLOOKUP($J$11,$Z$7:$AD$8,2,FALSE)/(HLOOKUP($H$10,$Z$3:$AD$4,2,FALSE)/HLOOKUP($J$11,$Z$7:$AD$8,2,FALSE)+AU14) -> 0.7845004217 | AV15: =HLOOKUP($H$10,$Z$3:$AD$4,2,FALSE)/HLOOKUP($J$11,$Z$7:$AD$8,2,FALSE)/(HLOOKUP($H$10,$Z$3:$AD$4,2,FALSE)/HLOOKUP($J$11,$Z$7:$AD$8,2,FALSE)+AV14) -> 0.8179159714 | BB15: SI - Gasoline | BC15: RNAVGASCRFG | BE15: SIDI - Gasoline | BF15: RNAVGASCRFGSIDI | BH15: CIDI - Diesel | BI15: RNAVDIESELCIDI | BK15: SI HEV - Gasoline | BL15: RNAVHEV | BN15: SI PHEV - Gasoline and Electricity | BO15: RNAVPHEV | BQ15: CIDI HEV - Diesel | BR15: RNAVHEVDIESEL | BT15: CIDI PHEV - Diesel and Electricity | BU15: RNAVPHEVDIESEL | BW15: BEV - Electricity | BX15: RNAVPHEVELECTRIC | BZ15: GCI - Low Octane Fuel (LOF) | CA15: RNAVGCILOF | CB15: BSI - Isobutanol | CC15: RNAVCOOPISOBUOH
A16: Fossil Fuels | B16: =(Inputs!$E$1500*(Petroleum!$B264*Petroleum!$F$262+Petroleum!$F264)+(1-Inputs!$E$1500)*(Petroleum!$B264*Petroleum!$D$262+Petroleum!$D264))/1000000*HLOOKUP($H$10,$Z$3:$AD$4,2,FALSE)/HLOOKUP($J$11,$Z$7:$AD$8,2,FALSE) -> 234152.1788 | C16: =(Petroleum!$C264*Petroleum!$G$262+Petroleum!$G264)/1000000*HLOOKUP($H$10,$Z$3:$AD$4,2,FALSE)/HLOOKUP($J$11,$Z$7:$AD$8,2,FALSE) -> 222595.7643 | D16: =((1-Vehicles!$C$35)*(1-Vehicles!$C$7)*Fuel_Specs!$B$15/((1-Vehicles!$C$35)*(1-Vehicles!$C$7)*Fuel_Specs!$B$15+Vehicles!$C$35*(1-Vehicles!$C$7)*Fuel_Specs!$B$16+Vehicles!$C$7*Fuel_Specs!$B$32)*(Petroleum!$B264*Petroleum!$D$262+(Petroleum!$D264-'T&D'!G216))+Vehicles!$C$35*(1-Vehicles!$C$7)*Fuel_Specs!$B$16/((1-Vehicles!$C$35)*(1-Vehicles!$C$7)*Fuel_Specs!$B$15+Vehicles!$C$35*(1-Vehicles!$C$7)*Fuel_Specs!$B$16+Vehicles!$C$7*Fuel_Specs!$B$32)*(Petroleum!B264*Petroleum!$F$262+Petroleum!$F264)+Vehicles!$C$7*Fuel_Specs!$B$32/((1-Vehicles!$C$35)*(1-Vehicles!$C$7)*Fuel_Specs!$B$15+Vehicles!$C$35*(1-Vehicles!$C$7)*Fuel_Specs!$B$16+Vehicles!$C$7*Fuel_Specs!$B$32)*(EtOH!BV548*EtOH!$BW$546+EtOH!$BW548)+Petroleum!AS125+Petroleum!AT125)/1000000*HLOOKUP($H$10,$Z$3:$AD$4,2,FALSE)/HLOOKUP($J$11,$Z$7:$AD$8,2,FALSE) -> 234152.1788 | E16: =(Inputs!$E$97*(IF(Inputs!F$102=1,Petroleum!$B264,Petroleum!$C264)*IF(Inputs!F$102=1,Petroleum!$K$262,Petroleum!$L$262)+IF(Inputs!F$102=1,Petroleum!$K264,Petroleum!$L264))+(1-Inputs!$E$97)*(IF(Inputs!F$101=1,Petroleum!$B264,Petroleum!$C264)*Petroleum!$J$262+Petroleum!$J264))/1000000*HLOOKUP($H$10,$Z$3:$AD$4,2,FALSE)/HLOOKUP($J$11,$Z$7:$AD$8,2,FALSE) -> 168567.6854 | F16: =(NG!$J86*NG!$K$84+NG!$K86)/1000000*HLOOKUP($H$10,$Z$3:$AD$4,2,FALSE)/HLOOKUP($J$11,$Z$7:$AD$8,2,FALSE) -> 133667.1786 | G16: =(NG!$R86*NG!$S$84+NG!$S86)/1000000*HLOOKUP($H$10,$Z$3:$AD$4,2,FALSE)/HLOOKUP($J$11,$Z$7:$AD$8,2,FALSE) -> 196130.4275 | H16: =(NG!$X86*NG!$Y$84+NG!$Y86)/1000000*HLOOKUP($H$10,$Z$3:$AD$4,2,FALSE)/HLOOKUP($J$11,$Z$7:$AD$8,2,FALSE) -> 132572.353 | I16: =(MeOH_FTD!BJ164*MeOH_FTD!BK$162+MeOH_FTD!BK164)/1000000*HLOOKUP($H$10,$Z$3:$AD$4,2,FALSE)/HLOOKUP($J$11,$Z$7:$AD$8,2,FALSE) -> 820041.6836 | J16: =((1-Vehicles!$C$34)*(1-Vehicles!$C$5)*Fuel_Specs!$B$15/((1-Vehicles!$C$34)*(1-Vehicles!$C$5)*Fuel_Specs!$B$15+Vehicles!$C$34*(1-Vehicles!$C$5)*Fuel_Specs!$B$16+Vehicles!$C$5*Fuel_Specs!$B$31)*(Petroleum!$B264*Petroleum!$D$262+Petroleum!$D264)+Vehicles!$C$34*(1-Vehicles!$C$5)*Fuel_Specs!$B$16/((1-Vehicles!$C$34)*(1-Vehicles!$C$5)*Fuel_Specs!$B$15+Vehicles!$C$34*(1-Vehicles!$C$5)*Fuel_Specs!$B$16+Vehicles!$C$5*Fuel_Specs!$B$31)*(Petroleum!B264*Petroleum!$F$262+Petroleum!$F264)+Vehicles!$C$5*Fuel_Specs!$B$31/((1-Vehicles!$C$34)*(1-Vehicles!$C$5)*Fuel_Specs!$B$15+Vehicles!$C$34*(1-Vehicles!$C$5)*Fuel_Specs!$B$16+Vehicles!$C$5*Fuel_Specs!$B$31)*(MeOH_FTD!$N164*MeOH_FTD!$O$162+MeOH_FTD!$O164))/1000000*HLOOKUP($H$10,$Z$3:$AD$4,2,FALSE)/HLOOKUP($J$11,$Z$7:$AD$8,2,FALSE) -> 411618.4394 | K16: =((1-Vehicles!$C$34)*(1-Vehicles!$C$6)*Fuel_Specs!$B$15/((1-Vehicles!$C$34)*(1-Vehicles!$C$6)*Fuel_Specs!$B$15+Vehicles!$C$34*(1-Vehicles!$C$6)*Fuel_Specs!$B$16+Vehicles!$C$6*Fuel_Specs!$B$31)*(Petroleum!$B264*Petroleum!$D$262+Petroleum!$D264)+Vehicles!$C$34*(1-Vehicles!$C$6)*Fuel_Specs!$B$16/((1-Vehicles!$C$34)*(1-Vehicles!$C$6)*Fuel_Specs!$B$15+Vehicles!$C$34*(1-Vehicles!$C$6)*Fuel_Specs!$B$16+Vehicles!$C$6*Fuel_Specs!$B$31)*(Petroleum!B264*Petroleum!$F$262+Petroleum!$F264)+Vehicles!$C$6*Fuel_Specs!$B$31/((1-Vehicles!$C$34)*(1-Vehicles!$C$6)*Fuel_Specs!$B$15+Vehicles!$C$34*(1-Vehicles!$C$6)*Fuel_Specs!$B$16+Vehicles!$C$6*Fuel_Specs!$B$31)*(MeOH_FTD!$N164*MeOH_FTD!$O$162+MeOH_FTD!$O164))/1000000*HLOOKUP($H$10,$Z$3:$AD$4,2,FALSE)/HLOOKUP($J$11,$Z$7:$AD$8,2,FALSE) -> 433068.2046 | L16: =(MeOH_FTD!$N164*MeOH_FTD!$O$162+MeOH_FTD!$O164)/1000000*HLOOKUP($H$10,$Z$3:$AD$4,2,FALSE)/HLOOKUP($J$11,$Z$7:$AD$8,2,FALSE) -> 482581.3814 | M16: =((1-Vehicles!$C$36)*(1-Vehicles!$C$8)*Fuel_Specs!$B$15/((1-Vehicles!$C$36)*(1-Vehicles!$C$8)*Fuel_Specs!$B$15+Vehicles!$C$36*(1-Vehicles!$C$8)*Fuel_Specs!$B$16+Vehicles!$C$8*Fuel_Specs!$B$32)*(Petroleum!$B264*Petroleum!$D$262+(Petroleum!$D264-'T&D'!G216))+Vehicles!$C$36*(1-Vehicles!$C$8)*Fuel_Specs!$B$16/((1-Vehicles!$C$36)*(1-Vehicles!$C$8)*Fuel_Specs!$B$15+Vehicles!$C$36*(1-Vehicles!$C$8)*Fuel_Specs!$B$16+Vehicles!$C$8*Fuel_Specs!$B$32)*(Petroleum!B264*Petroleum!$F$262+Petroleum!$F264)+Vehicles!$C$8*Fuel_Specs!$B$32/((1-Vehicles!$C$36)*(1-Vehicles!$C$8)*Fuel_Specs!$B$15+Vehicles!$C$36*(1-Vehicles!$C$8)*Fuel_Specs!$B$16+Vehicles!$C$8*Fuel_Specs!$B$32)*(EtOH!BV548*EtOH!$BW$546+EtOH!$BW548)+Petroleum!AS125+Petroleum!AT125)/1000000*HLOOKUP($H$10,$Z$3:$AD$4,2,FALSE)/HLOOKUP($J$11,$Z$7:$AD$8,2,FALSE) -> 452344.5676 | N16: =((1-Vehicles!$C$37)*(1-Vehicles!$C$12)*Fuel_Specs!$B$15/((1-Vehicles!$C$37)*(1-Vehicles!$C$12)*Fuel_Specs!$B$15+Vehicles!$C$37*(1-Vehicles!$C$12)*Fuel_Specs!$B$16+Vehicles!$C$12*Fuel_Specs!$B$33)*(Petroleum!$B264*Petroleum!$D$262+Petroleum!$D264)+Vehicles!$C$37*(1-Vehicles!$C$12)*Fuel_Specs!$B$16/((1-Vehicles!$C$37)*(1-Vehicles!$C$12)*Fuel_Specs!$B$15+Vehicles!$C$37*(1-Vehicles!$C$12)*Fuel_Specs!$B$16+Vehicles!$C$12*Fuel_Specs!$B$33)*(Petroleum!B264*Petroleum!$F$262+Petroleum!$F264)+Vehicles!$C$12*Fuel_Specs!$B$33/((1-Vehicles!$C$37)*(1-Vehicles!$C$12)*Fuel_Specs!$B$15+Vehicles!$C$37*(1-Vehicles!$C$12)*Fuel_Specs!$B$16+Vehicles!$C$12*Fuel_Specs!$B$33)*(EtOH!$BX548*EtOH!$BY$546+EtOH!$BY548))/1000000*HLOOKUP($H$10,$Z$3:$AD$4,2,FALSE)/HLOOKUP($J$11,$Z$7:$AD$8,2,FALSE) -> 652452.7408 | O16: =((1-Vehicles!$C$36)*(1-Vehicles!$C$9)*Fuel_Specs!$B$15/((1-Vehicles!$C$36)*(1-Vehicles!$C$9)*Fuel_Specs!$B$15+Vehicles!$C$36*(1-Vehicles!$C$9)*Fuel_Specs!$B$16+Vehicles!$C$9*Fuel_Specs!$B$32)*(Petroleum!$B264*Petroleum!$D$262+(Petroleum!$D264-'T&D'!G216))+Vehicles!$C$36*(1-Vehicles!$C$9)*Fuel_Specs!$B$16/((1-Vehicles!$C$36)*(1-Vehicles!$C$9)*Fuel_Specs!$B$15+Vehicles!$C$36*(1-Vehicles!$C$9)*Fuel_Specs!$B$16+Vehicles!$C$9*Fuel_Specs!$B$32)*(Petroleum!B264*Petroleum!$F$262+Petroleum!$F264)+Vehicles!$C$9*Fuel_Specs!$B$32/((1-Vehicles!$C$36)*(1-Vehicles!$C$9)*Fuel_Specs!$B$15+Vehicles!$C$36*(1-Vehicles!$C$9)*Fuel_Specs!$B$16+Vehicles!$C$9*Fuel_Specs!$B$32)*(EtOH!BV548*EtOH!$BW$546+EtOH!$BW548)+Petroleum!AS125+Petroleum!AT125)/1000000*HLOOKUP($H$10,$Z$3:$AD$4,2,FALSE)/HLOOKUP($J$11,$Z$7:$AD$8,2,FALSE) -> 452344.5676 | P16: =(EtOH!$BT548*EtOH!$BU$546+EtOH!$BU548)/1000000*HLOOKUP($H$10,$Z$3:$AD$4,2,FALSE)/HLOOKUP($J$11,$Z$7:$AD$8,2,FALSE) -> 525902.5031 | Q16: =((1-Vehicles!$C$40)*(1-Vehicles!$C$16)*Fuel_Specs!$B$15/((1-Vehicles!$C$40)*(1-Vehicles!$C$16)*Fuel_Specs!$B$15+Vehicles!$C$40*(1-Vehicles!$C$16)*Fuel_Specs!$B$16+Vehicles!$C$16*Fuel_Specs!$B$46)*(Petroleum!$B264*Petroleum!$D$262+Petroleum!$D264)+Vehicles!$C$40*(1-Vehicles!$C$16)*Fuel_Specs!$B$16/((1-Vehicles!$C$40)*(1-Vehicles!$C$16)*Fuel_Specs!$B$15+Vehicles!$C$40*(1-Vehicles!$C$16)*Fuel_Specs!$B$16+Vehicles!$C$16*Fuel_Specs!$B$46)*(Petroleum!B264*Petroleum!$F$262+Petroleum!$F264)+Vehicles!$C$16*Fuel_Specs!$B$46/((1-Vehicles!$C$40)*(1-Vehicles!$C$16)*Fuel_Specs!$B$15+Vehicles!$C$40*(1-Vehicles!$C$16)*Fuel_Specs!$B$16+Vehicles!$C$16*Fuel_Specs!$B$46)*(BioOil!$CE434*BioOil!$CF$431+BioOil!$CF434))/1000000*HLOOKUP($H$10,$Z$3:$AD$4,2,FALSE)/HLOOKUP($J$11,$Z$7:$AD$8,2,FALSE) -> 101572.516 | R16: =((1-Vehicles!$C$40)*(1-Vehicles!$C$16)*Fuel_Specs!$B$15/((1-Vehicles!$C$40)*(1-Vehicles!$C$16)*Fuel_Specs!$B$15+Vehicles!$C$40*(1-Vehicles!$C$16)*Fuel_Specs!$B$16+Vehicles!$C$16*Fuel_Specs!$B$46)*(Petroleum!$B264*Petroleum!$D$262+Petroleum!$D264)+Vehicles!$C$40*(1-Vehicles!$C$16)*Fuel_Specs!$B$16/((1-Vehicles!$C$40)*(1-Vehicles!$C$16)*Fuel_Specs!$B$15+Vehicles!$C$40*(1-Vehicles!$C$16)*Fuel_Specs!$B$16+Vehicles!$C$16*Fuel_Specs!$B$46)*(Petroleum!B264*Petroleum!$F$262+Petroleum!$F264)+Vehicles!$C$16*Fuel_Specs!$B$46/((1-Vehicles!$C$40)*(1-Vehicles!$C$16)*Fuel_Specs!$B$15+Vehicles!$C$40*(1-Vehicles!$C$16)*Fuel_Specs!$B$16+Vehicles!$C$16*Fuel_Specs!$B$46)*(Pyrolysis_IDL!$AD299*Pyrolysis_IDL!$AE$297+Pyrolysis_IDL!$AE299))/1000000*HLOOKUP($H$10,$Z$3:$AD$4,2,FALSE)/HLOOKUP($J$11,$Z$7:$AD$8,2,FALSE) -> 306028.0411 | S16: =AN16*(Vehicles!$C$30/Vehicles!$AT$72)/(Vehicles!$C$30*(1/Vehicles!$AT$72+1/Vehicles!$AU$72)+Vehicles!$C$31/Vehicles!$AV$72)+B16*(Vehicles!$C$30/Vehicles!$AU$72+Vehicles!$C$31/Vehicles!$AV$72)/(Vehicles!$C$30*(1/Vehicles!$AT$72+1/Vehicles!$AU$72)+Vehicles!$C$31/Vehicles!$AV$72) -> 256411.756 | T16: =AN16*(Vehicles!$D$30/Vehicles!$AX$72)/(Vehicles!$D$30*(1/Vehicles!$AX$72+1/Vehicles!$AY$72)+Vehicles!$D$31/Vehicles!$AZ$72)+C16*(Vehicles!$D$30/Vehicles!$AY$72+Vehicles!$D$31/Vehicles!$AZ$72)/(Vehicles!$D$30*(1/Vehicles!$AX$72+1/Vehicles!$AY$72)+Vehicles!$D$31/Vehicles!$AZ$72) -> 249222.0678 | U16: =AN16*(Vehicles!$F$30/Vehicles!$BF$72)/(Vehicles!$F$30*(1/Vehicles!$BF$72+1/Vehicles!$BG$72)+Vehicles!$F$31/Vehicles!$BH$72)+D16*(Vehicles!$F$30/Vehicles!$BG$72+Vehicles!$F$31/Vehicles!$BH$72)/(Vehicles!$F$30*(1/Vehicles!$BF$72+1/Vehicles!$BG$72)+Vehicles!$F$31/Vehicles!$BH$72) -> 256411.756 | V16: =AN16*(Vehicles!$G$30/Vehicles!$BJ$72)/(Vehicles!$G$30*(1/Vehicles!$BJ$72+1/Vehicles!$BK$72)+Vehicles!$G$31/Vehicles!$BL$72)+F16*(Vehicles!$G$30/Vehicles!$BK$72+Vehicles!$G$31/Vehicles!$BL$72)/(Vehicles!$G$30*(1/Vehicles!$BJ$72+1/Vehicles!$BK$72)+Vehicles!$G$31/Vehicles!$BL$72) -> 193896.1883 | W16: =AN16*(Vehicles!$H$30/Vehicles!$BN$72)/(Vehicles!$H$30*(1/Vehicles!$BN$72+1/Vehicles!$BO$72)+Vehicles!$H$31/Vehicles!$BP$72)+G16*(Vehicles!$H$30/Vehicles!$BO$72+Vehicles!$H$31/Vehicles!$BP$72)/(Vehicles!$H$30*(1/Vehicles!$BN$72+1/Vehicles!$BO$72)+Vehicles!$H$31/Vehicles!$BP$72) -> 232756.9681 | X16: =AN16*(Vehicles!$I$30/Vehicles!$BR$72)/(Vehicles!$I$30*(1/Vehicles!$BR$72+1/Vehicles!$BS$72)+Vehicles!$I$31/Vehicles!$BT$72)+H16*(Vehicles!$I$30/Vehicles!$BS$72+Vehicles!$I$31/Vehicles!$BT$72)/(Vehicles!$I$30*(1/Vehicles!$BR$72+1/Vehicles!$BS$72)+Vehicles!$I$31/Vehicles!$BT$72) -> 193215.0553 | Y16: =AN16*(Vehicles!$J$30/Vehicles!$BV$72)/(Vehicles!$J$30*(1/Vehicles!$BV$72+1/Vehicles!$BW$72)+Vehicles!$J$31/Vehicles!$BX$72)+K16*(Vehicles!$J$30/Vehicles!$BW$72+Vehicles!$J$31/Vehicles!$BX$72)/(Vehicles!$J$30*(1/Vehicles!$BV$72+1/Vehicles!$BW$72)+Vehicles!$J$31/Vehicles!$BX$72) -> 380165.035 | Z16: =AN16*(Vehicles!$K$30/Vehicles!$BZ$72)/(Vehicles!$K$30*(1/Vehicles!$BZ$72+1/Vehicles!$CA$72)+Vehicles!$K$31/Vehicles!$CB$72)+O16*(Vehicles!$K$30/Vehicles!$CA$72+Vehicles!$K$31/Vehicles!$CB$72)/(Vehicles!$K$30*(1/Vehicles!$BZ$72+1/Vehicles!$CA$72)+Vehicles!$K$31/Vehicles!$CB$72) -> 392157.5988 | AA16: =AN16*(Vehicles!$L$30/Vehicles!$CD$72)/(Vehicles!$L$30*(1/Vehicles!$CD$72+1/Vehicles!$CE$72)+Vehicles!$L$31/Vehicles!$CF$72)+AO16*(Vehicles!$L$30/Vehicles!$CE$72+Vehicles!$L$31/Vehicles!$CF$72)/(Vehicles!$L$30*(1/Vehicles!$CD$72+1/Vehicles!$CE$72)+Vehicles!$L$31/Vehicles!$CF$72) -> 336275.1487 | AB16: =AN16*(Vehicles!$L$30/Vehicles!$CD$72)/(Vehicles!$L$30*(1/Vehicles!$CD$72+1/Vehicles!$CE$72)+Vehicles!$L$31/Vehicles!$CG$72)+AP16*(Vehicles!$L$30/Vehicles!$CE$72+Vehicles!$L$31/Vehicles!$CG$72)/(Vehicles!$L$30*(1/Vehicles!$CD$72+1/Vehicles!$CE$72)+Vehicles!$L$31/Vehicles!$CG$72) -> 525078.1194 | AC16: =(MeOH_FTD!$AJ164*MeOH_FTD!$AK$162+MeOH_FTD!$AK164)/1000000*HLOOKUP($H$10,$Z$3:$AD$4,2,FALSE)/HLOOKUP($J$11,$Z$7:$AD$8,2,FALSE) -> 575565.6824 | AD16: =((1-Vehicles!$C$41)*(1-Vehicles!$C$13)*Fuel_Specs!$B$20/((1-Vehicles!$C$41)*(1-Vehicles!$C$13)*Fuel_Specs!$B$20+Vehicles!$C$41*(1-Vehicles!$C$13)*Fuel_Specs!$B$23+Vehicles!$C$13*Fuel_Specs!$B$41)*(Petroleum!B264*Petroleum!$J$262+Petroleum!$J264)+Vehicles!$C$41*(1-Vehicles!$C$13)*Fuel_Specs!$B$23/((1-Vehicles!$C$41)*(1-Vehicles!$C$13)*Fuel_Specs!$B$20+Vehicles!$C$41*(1-Vehicles!$C$13)*Fuel_Specs!$B$23+Vehicles!$C$13*Fuel_Specs!$B$41)*(Petroleum!B264*IF(Inputs!F$102=1,Petroleum!$K$262,Petroleum!$L$262)+IF(Inputs!F$102=1,Petroleum!$K264,Petroleum!$L264))+Vehicles!$C$13*Fuel_Specs!$B$41/((1-Vehicles!$C$41)*(1-Vehicles!$C$13)*Fuel_Specs!$B$20+Vehicles!$C$41*(1-Vehicles!$C$13)*Fuel_Specs!$B$23+Vehicles!$C$13*Fuel_Specs!$B$41)*(MeOH_FTD!$AZ164*MeOH_FTD!$BA$162+MeOH_FTD!$BA164))/1000000*HLOOKUP($H$10,$Z$3:$AD$4,2,FALSE)/HLOOKUP($J$11,$Z$7:$AD$8,2,FALSE) -> 664751.8026 | AE16: =((1-Vehicles!$C$42)*(1-Vehicles!$C$14)*Fuel_Specs!$B$20/((1-Vehicles!$C$42)*(1-Vehicles!$C$14)*Fuel_Specs!$B$20+Vehicles!$C$42*(1-Vehicles!$C$14)*Fuel_Specs!$B$23+Vehicles!$C$14*Fuel_Specs!$B$40)*(Petroleum!B264*Petroleum!$J$262+Petroleum!$J264)+Vehicles!$C$42*(1-Vehicles!$C$14)*Fuel_Specs!$B$23/((1-Vehicles!$C$42)*(1-Vehicles!$C$14)*Fuel_Specs!$B$20+Vehicles!$C$42*(1-Vehicles!$C$14)*Fuel_Specs!$B$23+Vehicles!$C$14*Fuel_Specs!$B$40)*(Petroleum!B264*IF(Inputs!F$102=1,Petroleum!$K$262,Petroleum!$L$262)+IF(Inputs!F$102=1,Petroleum!$K264,Petroleum!$L264))+Vehicles!$C$14*Fuel_Specs!$B$40/((1-Vehicles!$C$42)*(1-Vehicles!$C$14)*Fuel_Specs!$B$20+Vehicles!$C$42*(1-Vehicles!$C$14)*Fuel_Specs!$B$23+Vehicles!$C$14*Fuel_Specs!$B$40)*(BioOil!$Y434*BioOil!$Z$431+BioOil!$Z434))/1000000*HLOOKUP($H$10,$Z$3:$AD$4,2,FALSE)/HLOOKUP($J$11,$Z$7:$AD$8,2,FALSE) -> 176641.9428 | AF16: =((1-Vehicles!$C$43)*(1-Vehicles!$C$15)*Fuel_Specs!$B$20/((1-Vehicles!$C$43)*(1-Vehicles!$C$15)*Fuel_Specs!$B$20+Vehicles!$C$43*(1-Vehicles!$C$15)*Fuel_Specs!$B$23+Vehicles!$C$15*IF(Inputs!$E$670=1,IF(Inputs!$E$670=1,Fuel_Specs!$B$42,IF(Inputs!$E$670=3,Fuel_Specs!$B$44,Fuel_Specs!$B$43)),Fuel_Specs!$B$43))*(Petroleum!B264*Petroleum!$J$262+Petroleum!$J264)+Vehicles!$C$43*(1-Vehicles!$C$15)*Fuel_Specs!$B$23/((1-Vehicles!$C$43)*(1-Vehicles!$C$15)*Fuel_Specs!$B$20+Vehicles!$C$43*(1-Vehicles!$C$15)*Fuel_Specs!$B$23+Vehicles!$C$15*IF(Inputs!$E$670=1,IF(Inputs!$E$670=1,Fuel_Specs!$B$42,IF(Inputs!$E$670=3,Fuel_Specs!$B$44,Fuel_Specs!$B$43)),Fuel_Specs!$B$43))*(Petroleum!B264*IF(Inputs!F$102=1,Petroleum!$K$262,Petroleum!$L$262)+IF(Inputs!F$102=1,Petroleum!$K264,Petroleum!$L264))+Vehicles!$C$15*IF(Inputs!$E$670=1,IF(Inputs!$E$670=1,Fuel_Specs!$B$42,IF(Inputs!$E$670=3,Fuel_Specs!$B$44,Fuel_Specs!$B$43)),Fuel_Specs!$B$43)/((1-Vehicles!$C$43)*(1-Vehicles!$C$15)*Fuel_Specs!$B$20+Vehicles!$C$43*(1-Vehicles!$C$15)*Fuel_Specs!$B$23+Vehicles!$C$15*IF(Inputs!$E$670=1,IF(Inputs!$E$670=1,Fuel_Specs!$B$42,IF(Inputs!$E$670=3,Fuel_Specs!$B$44,Fuel_Specs!$B$43)),Fuel_Specs!$B$43))*(BioOil!$BQ434*BioOil!$BR$431+BioOil!$BR434))/1000000*HLOOKUP($H$10,$Z$3:$AD$4,2,FALSE)/HLOOKUP($J$11,$Z$7:$AD$8,2,FALSE) -> 243945.771 | AG16: =((1-Vehicles!$C$43)*(1-Vehicles!$C$15)*Fuel_Specs!$B$20/((1-Vehicles!$C$43)*(1-Vehicles!$C$15)*Fuel_Specs!$B$20+Vehicles!$C$43*(1-Vehicles!$C$15)*Fuel_Specs!$B$23+Vehicles!$C$15*IF(Inputs!$E$670=1,Fuel_Specs!$B$42,Fuel_Specs!$B$43))*(Petroleum!B264*Petroleum!$J$262+Petroleum!$J264)+Vehicles!$C$43*(1-Vehicles!$C$15)*Fuel_Specs!$B$23/((1-Vehicles!$C$43)*(1-Vehicles!$C$15)*Fuel_Specs!$B$20+Vehicles!$C$43*(1-Vehicles!$C$15)*Fuel_Specs!$B$23+Vehicles!$C$15*IF(Inputs!$E$670=1,Fuel_Specs!$B$42,Fuel_Specs!$B$43))*(Petroleum!B264*IF(Inputs!F$102=1,Petroleum!$K$262,Petroleum!$L$262)+IF(Inputs!F$102=1,Petroleum!$K264,Petroleum!$L264))+Vehicles!$C$15*IF(Inputs!$E$670=1,Fuel_Specs!$B$42,Fuel_Specs!$B$43)/((1-Vehicles!$C$43)*(1-Vehicles!$C$15)*Fuel_Specs!$B$20+Vehicles!$C$43*(1-Vehicles!$C$15)*Fuel_Specs!$B$23+Vehicles!$C$15*IF(Inputs!$E$670=1,Fuel_Specs!$B$42,Fuel_Specs!$B$43))*(Pyrolysis_IDL!$AF299*Pyrolysis_IDL!$AG$297+Pyrolysis_IDL!$AG299))/1000000*HLOOKUP($H$10,$Z$3:$AD$4,2,FALSE)/HLOOKUP($J$11,$Z$7:$AD$8,2,FALSE) -> 347262.747 | AH16: =(((1-Vehicles!$C$44)*(1-Vehicles!$C$17-Vehicles!$C$18)*Fuel_Specs!$B$20*(Petroleum!B264*Petroleum!$J$262+Petroleum!$J264)+Vehicles!$C$44*(1-Vehicles!$C$17-Vehicles!$C$18)*Fuel_Specs!$B$23*(Petroleum!B264*IF(Inputs!F$102=1,Petroleum!$K$262,Petroleum!$L$262)+IF(Inputs!F$102=1,Petroleum!$K264,Petroleum!$L264))+Vehicles!$C$17*Fuel_Specs!$B$32*(EtOH!BT548*EtOH!$BU$546+EtOH!$BU548)+Vehicles!$C$18*Fuel_Specs!$B$35*('EtOH-Diesel Additives'!$B55*'EtOH-Diesel Additives'!$B$53))/((1-Vehicles!$C$44)*(1-Vehicles!$C$17-Vehicles!$C$18)*Fuel_Specs!$B$20+Vehicles!$C$44*(1-Vehicles!$C$17-Vehicles!$C$18)*Fuel_Specs!$B$23+Vehicles!$C$17*Fuel_Specs!$B$32+Vehicles!$C$18*Fuel_Specs!$B$35))/1000000*HLOOKUP($H$10,$Z$3:$AD$4,2,FALSE)/HLOOKUP($J$11,$Z$7:$AD$8,2,FALSE) -> 192142.6506 | AI16: =AN16*(Vehicles!$M$30/Vehicles!$CO$72)/(Vehicles!$M$30*(1/Vehicles!$CO$72+1/Vehicles!$CP$72)+Vehicles!$M$31/Vehicles!$CQ$72)+E16*(Vehicles!$M$30/Vehicles!$CP$72+Vehicles!$M$31/Vehicles!$CQ$72)/(Vehicles!$M$30*(1/Vehicles!$CO$72+1/Vehicles!$CP$72)+Vehicles!$M$31/Vehicles!$CQ$72) -> 205554.7811 | AJ16: =AN16*(Vehicles!$N$30/Vehicles!$CS$72)/(Vehicles!$N$30*(1/Vehicles!$CS$72+1/Vehicles!$CT$72)+Vehicles!$N$31/Vehicles!$CU$72)+AC16*(Vehicles!$N$30/Vehicles!$CT$72+Vehicles!$N$31/Vehicles!$CU$72)/(Vehicles!$N$30*(1/Vehicles!$CS$72+1/Vehicles!$CT$72)+Vehicles!$N$31/Vehicles!$CU$72) -> 491633.7305 | AK16: =AN16*(Vehicles!$O$30/Vehicles!$CW$72)/(Vehicles!$O$30*(1/Vehicles!$CW$72+1/Vehicles!$CX$72)+Vehicles!$O$31/Vehicles!$CY$72)+AD16*(Vehicles!$O$30/Vehicles!$CX$72+Vehicles!$O$31/Vehicles!$CY$72)/(Vehicles!$O$30*(1/Vehicles!$CW$72+1/Vehicles!$CX$72)+Vehicles!$O$31/Vehicles!$CY$72) -> 554322.667 | AL16: =AN16*(Vehicles!$P$30/Vehicles!$DA$72)/(Vehicles!$P$30*(1/Vehicles!$DA$72+1/Vehicles!$DB$72)+Vehicles!$P$31/Vehicles!$DC$72)+AE16*(Vehicles!$P$30/Vehicles!$DB$72+Vehicles!$P$31/Vehicles!$DC$72)/(Vehicles!$P$30*(1/Vehicles!$DA$72+1/Vehicles!$DB$72)+Vehicles!$P$31/Vehicles!$DC$72) -> 211230.1777 | AM16: =AN16*(Vehicles!$R$30/Vehicles!$DI$72)/(Vehicles!$R$30*(1/Vehicles!$DI$72+1/Vehicles!$DJ$72)+Vehicles!$R$31/Vehicles!$DK$72)+AH16*(Vehicles!$R$30/Vehicles!$DJ$72+Vehicles!$R$31/Vehicles!$DK$72)/(Vehicles!$R$30*(1/Vehicles!$DI$72+1/Vehicles!$DJ$72)+Vehicles!$R$31/Vehicles!$DK$72) -> 222125.6275 | AN16: =(Electric!$G205+Electric!$F205-1000000*(Electric!$F205+Electric!$G205)/(Electric!$F$204+Electric!$G$204))/1000000*HLOOKUP($H$10,$Z$3:$AD$4,2,FALSE)/HLOOKUP($J$11,$Z$7:$AD$8,2,FALSE) -> 293061.5031 | AO16: =((Hydrogen!$AJ307*Hydrogen!$AK$305+Hydrogen!$AK307)-1000000*(Hydrogen!$O$7+Hydrogen!$C$7+Hydrogen!$D$7+Hydrogen!$E$7))/1000000*HLOOKUP($H$10,$Z$3:$AD$4,2,FALSE)/HLOOKUP($J$11,$Z$7:$AD$8,2,FALSE) -> 362521.3729 | AP16: =((Hydrogen!$BT307*Hydrogen!$BU$305+Hydrogen!$BU307)-1000000*(Hydrogen!$O$8+Hydrogen!$C$8+Hydrogen!$D$8+Hydrogen!$E$8))/1000000*HLOOKUP($H$10,$Z$3:$AD$4,2,FALSE)/HLOOKUP($J$11,$Z$7:$AD$8,2,FALSE) -> 665995.6475 | AQ16: =AN16*(Vehicles!$S$30/Vehicles!$DY$72)/(Vehicles!$S$30*(1/Vehicles!$DY$72+1/Vehicles!$DZ$72)+Vehicles!$S$31/Vehicles!$EA$72)+AO16*(Vehicles!$S$30/Vehicles!$DZ$72+Vehicles!$S$31/Vehicles!$EA$72)/(Vehicles!$S$30*(1/Vehicles!$DY$72+1/Vehicles!$DZ$72)+Vehicles!$S$31/Vehicles!$EA$72) -> 334424.8216 | AR16: =AN16*(Vehicles!$S$30/Vehicles!$DY$72)/(Vehicles!$S$30*(1/Vehicles!$DY$72+1/Vehicles!$DZ$72)+Vehicles!$S$31/Vehicles!$EA$72)+AP16*(Vehicles!$S$30/Vehicles!$DZ$72+Vehicles!$S$31/Vehicles!$EA$72)/(Vehicles!$S$30*(1/Vehicles!$DY$72+1/Vehicles!$DZ$72)+Vehicles!$S$31/Vehicles!$EA$72) -> 515143.6038 | AS16: =((1-Vehicles!$C$40)*(1-Vehicles!$C$16)*Fuel_Specs!$B$15/((1-Vehicles!$C$40)*(1-Vehicles!$C$16)*Fuel_Specs!$B$15+Vehicles!$C$40*(1-Vehicles!$C$16)*Fuel_Specs!$B$16+Vehicles!$C$16*Fuel_Specs!$B$47)*(Petroleum!$B264*Petroleum!$D$262+Petroleum!$D264)+Vehicles!$C$40*(1-Vehicles!$C$16)*Fuel_Specs!$B$16/((1-Vehicles!$C$40)*(1-Vehicles!$C$16)*Fuel_Specs!$B$15+Vehicles!$C$40*(1-Vehicles!$C$16)*Fuel_Specs!$B$16+Vehicles!$C$16*Fuel_Specs!$B$47)*(Petroleum!B264*Petroleum!$F$262+Petroleum!$F264)+Vehicles!$C$16*Fuel_Specs!$B$47/((1-Vehicles!$C$40)*(1-Vehicles!$C$16)*Fuel_Specs!$B$15+Vehicles!$C$40*(1-Vehicles!$C$16)*Fuel_Specs!$B$16+Vehicles!$C$16*Fuel_Specs!$B$47)*(Pyrolysis_IDL!$AP299*Pyrolysis_IDL!$AQ$297+Pyrolysis_IDL!$AQ299))/1000000*HLOOKUP($H$10,$Z$3:$AD$4,2,FALSE)/HLOOKUP($J$11,$Z$7:$AD$8,2,FALSE) -> 169821.4574 | AT16: =(Petroleum!$B264*Petroleum!$S$262+Petroleum!$S264)/1000000*HLOOKUP($H$10,$Z$3:$AD$4,2,FALSE)/HLOOKUP($J$11,$Z$7:$AD$8,2,FALSE) -> 177281.0652 | AU16: =F2538+G2538 -> 222813.9445 | AV16: =F2569+G2569 -> 202681.8408 | BB16: SI - CA gasoline | BC16: RNAVGASCARFG | BE16: SIDI - CA gasoline | BF16: RNAVGASCARFGSIDI | BH16: CIDI - DME | BI16: RNAVDMECIDI | BK16: SI HEV - CA gasoline | BL16: RNAVHEVCRFG | BN16: SI PHEV - CA gasoline and Electricity | BO16: RNAVPHEVCRFG | BQ16: CIDI HEV - DME | BR16: RNAVHEVDMETHER | BT16: CIDI PHEV - DME and Electricity | BU16: RNAVPHEVDMETHER | BW16: FCV - Gaseous H2 | BX16: RNAVFCVGH2 | CB16: BSI - ARHC | CC16: RNAVCOOPARHC
A17: Coal | B17: =(Inputs!$E$1500*(Petroleum!$B265*Petroleum!$F$262+Petroleum!$F265)+(1-Inputs!$E$1500)*(Petroleum!$B265*Petroleum!$D$262+Petroleum!$D265))/1000000*HLOOKUP($H$10,$Z$3:$AD$4,2,FALSE)/HLOOKUP($J$11,$Z$7:$AD$8,2,FALSE) -> 2796.371233 | C17: =(Petroleum!$C265*Petroleum!$G$262+Petroleum!$G265)/1000000*HLOOKUP($H$10,$Z$3:$AD$4,2,FALSE)/HLOOKUP($J$11,$Z$7:$AD$8,2,FALSE) -> 2775.593168 | D17: =((1-Vehicles!$C$35)*(1-Vehicles!$C$7)*Fuel_Specs!$B$15/((1-Vehicles!$C$35)*(1-Vehicles!$C$7)*Fuel_Specs!$B$15+Vehicles!$C$35*(1-Vehicles!$C$7)*Fuel_Specs!$B$16+Vehicles!$C$7*Fuel_Specs!$B$32)*(Petroleum!$B265*Petroleum!$D$262+(Petroleum!$D265-'T&D'!G217))+Vehicles!$C$35*(1-Vehicles!$C$7)*Fuel_Specs!$B$16/((1-Vehicles!$C$35)*(1-Vehicles!$C$7)*Fuel_Specs!$B$15+Vehicles!$C$35*(1-Vehicles!$C$7)*Fuel_Specs!$B$16+Vehicles!$C$7*Fuel_Specs!$B$32)*(Petroleum!B265*Petroleum!$F$262+Petroleum!$F265)+Vehicles!$C$7*Fuel_Specs!$B$32/((1-Vehicles!$C$35)*(1-Vehicles!$C$7)*Fuel_Specs!$B$15+Vehicles!$C$35*(1-Vehicles!$C$7)*Fuel_Specs!$B$16+Vehicles!$C$7*Fuel_Specs!$B$32)*(EtOH!BV549*EtOH!$BW$546+EtOH!$BW549)+Petroleum!AS126+Petroleum!AT126)/1000000*HLOOKUP($H$10,$Z$3:$AD$4,2,FALSE)/HLOOKUP($J$11,$Z$7:$AD$8,2,FALSE) -> 2796.371233 | E17: =(Inputs!$E$97*(IF(Inputs!F$102=1,Petroleum!$B265,Petroleum!$C265)*IF(Inputs!F$102=1,Petroleum!$K$262,Petroleum!$L$262)+IF(Inputs!F$102=1,Petroleum!$K265,Petroleum!$L265))+(1-Inputs!$E$97)*(IF(Inputs!F$101=1,Petroleum!$B265,Petroleum!$C265)*Petroleum!$J$262+Petroleum!$J265))/1000000*HLOOKUP($H$10,$Z$3:$AD$4,2,FALSE)/HLOOKUP($J$11,$Z$7:$AD$8,2,FALSE) -> 1340.84917 | F17: =(NG!$J87*NG!$K$84+NG!$K87)/1000000*HLOOKUP($H$10,$Z$3:$AD$4,2,FALSE)/HLOOKUP($J$11,$Z$7:$AD$8,2,FALSE) -> 2852.953849 | G17: =(NG!$R87*NG!$S$84+NG!$S87)/1000000*HLOOKUP($H$10,$Z$3:$AD$4,2,FALSE)/HLOOKUP($J$11,$Z$7:$AD$8,2,FALSE) -> 361.6636978 | H17: =(NG!$X87*NG!$Y$84+NG!$Y87)/1000000*HLOOKUP($H$10,$Z$3:$AD$4,2,FALSE)/HLOOKUP($J$11,$Z$7:$AD$8,2,FALSE) -> 688.2088488 | I17: =(MeOH_FTD!BJ165*MeOH_FTD!BK$162+MeOH_FTD!BK165)/1000000*HLOOKUP($H$10,$Z$3:$AD$4,2,FALSE)/HLOOKUP($J$11,$Z$7:$AD$8,2,FALSE) -> -6787.723442 | J17: =((1-Vehicles!$C$34)*(1-Vehicles!$C$5)*Fuel_Specs!$B$15/((1-Vehicles!$C$34)*(1-Vehicles!$C$5)*Fuel_Specs!$B$15+Vehicles!$C$34*(1-Vehicles!$C$5)*Fuel_Specs!$B$16+Vehicles!$C$5*Fuel_Specs!$B$31)*(Petroleum!$B265*Petroleum!$D$262+Petroleum!$D265)+Vehicles!$C$34*(1-Vehicles!$C$5)*Fuel_Specs!$B$16/((1-Vehicles!$C$34)*(1-Vehicles!$C$5)*Fuel_Specs!$B$15+Vehicles!$C$34*(1-Vehicles!$C$5)*Fuel_Specs!$B$16+Vehicles!$C$5*Fuel_Specs!$B$31)*(Petroleum!B265*Petroleum!$F$262+Petroleum!$F265)+Vehicles!$C$5*Fuel_Specs!$B$31/((1-Vehicles!$C$34)*(1-Vehicles!$C$5)*Fuel_Specs!$B$15+Vehicles!$C$34*(1-Vehicles!$C$5)*Fuel_Specs!$B$16+Vehicles!$C$5*Fuel_Specs!$B$31)*(MeOH_FTD!$N165*MeOH_FTD!$O$162+MeOH_FTD!$O165))/1000000*HLOOKUP($H$10,$Z$3:$AD$4,2,FALSE)/HLOOKUP($J$11,$Z$7:$AD$8,2,FALSE) -> 4424.386297 | K17: =((1-Vehicles!$C$34)*(1-Vehicles!$C$6)*Fuel_Specs!$B$15/((1-Vehicles!$C$34)*(1-Vehicles!$C$6)*Fuel_Specs!$B$15+Vehicles!$C$34*(1-Vehicles!$C$6)*Fuel_Specs!$B$16+Vehicles!$C$6*Fuel_Specs!$B$31)*(Petroleum!$B265*Petroleum!$D$262+Petroleum!$D265)+Vehicles!$C$34*(1-Vehicles!$C$6)*Fuel_Specs!$B$16/((1-Vehicles!$C$34)*(1-Vehicles!$C$6)*Fuel_Specs!$B$15+Vehicles!$C$34*(1-Vehicles!$C$6)*Fuel_Specs!$B$16+Vehicles!$C$6*Fuel_Specs!$B$31)*(Petroleum!B265*Petroleum!$F$262+Petroleum!$F265)+Vehicles!$C$6*Fuel_Specs!$B$31/((1-Vehicles!$C$34)*(1-Vehicles!$C$6)*Fuel_Specs!$B$15+Vehicles!$C$34*(1-Vehicles!$C$6)*Fuel_Specs!$B$16+Vehicles!$C$6*Fuel_Specs!$B$31)*(MeOH_FTD!$N165*MeOH_FTD!$O$162+MeOH_FTD!$O165))/1000000*HLOOKUP($H$10,$Z$3:$AD$4,2,FALSE)/HLOOKUP($J$11,$Z$7:$AD$8,2,FALSE) -> 4736.273321 | L17: =(MeOH_FTD!$N165*MeOH_FTD!$O$162+MeOH_FTD!$O165)/1000000*HLOOKUP($H$10,$Z$3:$AD$4,2,FALSE)/HLOOKUP($J$11,$Z$7:$AD$8,2,FALSE) -> 5456.212079 | M17: =((1-Vehicles!$C$36)*(1-Vehicles!$C$8)*Fuel_Specs!$B$15/((1-Vehicles!$C$36)*(1-Vehicles!$C$8)*Fuel_Specs!$B$15+Vehicles!$C$36*(1-Vehicles!$C$8)*Fuel_Specs!$B$16+Vehicles!$C$8*Fuel_Specs!$B$32)*(Petroleum!$B265*Petroleum!$D$262+(Petroleum!$D265-'T&D'!G217))+Vehicles!$C$36*(1-Vehicles!$C$8)*Fuel_Specs!$B$16/((1-Vehicles!$C$36)*(1-Vehicles!$C$8)*Fuel_Specs!$B$15+Vehicles!$C$36*(1-Vehicles!$C$8)*Fuel_Specs!$B$16+Vehicles!$C$8*Fuel_Specs!$B$32)*(Petroleum!B265*Petroleum!$F$262+Petroleum!$F265)+Vehicles!$C$8*Fuel_Specs!$B$32/((1-Vehicles!$C$36)*(1-Vehicles!$C$8)*Fuel_Specs!$B$15+Vehicles!$C$36*(1-Vehicles!$C$8)*Fuel_Specs!$B$16+Vehicles!$C$8*Fuel_Specs!$B$32)*(EtOH!BV549*EtOH!$BW$546+EtOH!$BW549)+Petroleum!AS126+Petroleum!AT126)/1000000*HLOOKUP($H$10,$Z$3:$AD$4,2,FALSE)/HLOOKUP($J$11,$Z$7:$AD$8,2,FALSE) -> 15970.30116 | N17: =((1-Vehicles!$C$37)*(1-Vehicles!$C$12)*Fuel_Specs!$B$15/((1-Vehicles!$C$37)*(1-Vehicles!$C$12)*Fuel_Specs!$B$15+Vehicles!$C$37*(1-Vehicles!$C$12)*Fuel_Specs!$B$16+Vehicles!$C$12*Fuel_Specs!$B$33)*(Petroleum!$B265*Petroleum!$D$262+Petroleum!$D265)+Vehicles!$C$37*(1-Vehicles!$C$12)*Fuel_Specs!$B$16/((1-Vehicles!$C$37)*(1-Vehicles!$C$12)*Fuel_Specs!$B$15+Vehicles!$C$37*(1-Vehicles!$C$12)*Fuel_Specs!$B$16+Vehicles!$C$12*Fuel_Specs!$B$33)*(Petroleum!B265*Petroleum!$F$262+Petroleum!$F265)+Vehicles!$C$12*Fuel_Specs!$B$33/((1-Vehicles!$C$37)*(1-Vehicles!$C$12)*Fuel_Specs!$B$15+Vehicles!$C$37*(1-Vehicles!$C$12)*Fuel_Specs!$B$16+Vehicles!$C$12*Fuel_Specs!$B$33)*(EtOH!$BX549*EtOH!$BY$546+EtOH!$BY549))/1000000*HLOOKUP($H$10,$Z$3:$AD$4,2,FALSE)/HLOOKUP($J$11,$Z$7:$AD$8,2,FALSE) -> 4076.188826 | O17: =((1-Vehicles!$C$36)*(1-Vehicles!$C$9)*Fuel_Specs!$B$15/((1-Vehicles!$C$36)*(1-Vehicles!$C$9)*Fuel_Specs!$B$15+Vehicles!$C$36*(1-Vehicles!$C$9)*Fuel_Specs!$B$16+Vehicles!$C$9*Fuel_Specs!$B$32)*(Petroleum!$B265*Petroleum!$D$262+(Petroleum!$D265-'T&D'!G217))+Vehicles!$C$36*(1-Vehicles!$C$9)*Fuel_Specs!$B$16/((1-Vehicles!$C$36)*(1-Vehicles!$C$9)*Fuel_Specs!$B$15+Vehicles!$C$36*(1-Vehicles!$C$9)*Fuel_Specs!$B$16+Vehicles!$C$9*Fuel_Specs!$B$32)*(Petroleum!B265*Petroleum!$F$262+Petroleum!$F265)+Vehicles!$C$9*Fuel_Specs!$B$32/((1-Vehicles!$C$36)*(1-Vehicles!$C$9)*Fuel_Specs!$B$15+Vehicles!$C$36*(1-Vehicles!$C$9)*Fuel_Specs!$B$16+Vehicles!$C$9*Fuel_Specs!$B$32)*(EtOH!BV549*EtOH!$BW$546+EtOH!$BW549)+Petroleum!AS126+Petroleum!AT126)/1000000*HLOOKUP($H$10,$Z$3:$AD$4,2,FALSE)/HLOOKUP($J$11,$Z$7:$AD$8,2,FALSE) -> 15970.30116 | P17: =(EtOH!$BT549*EtOH!$BU$546+EtOH!$BU549)/1000000*HLOOKUP($H$10,$Z$3:$AD$4,2,FALSE)/HLOOKUP($J$11,$Z$7:$AD$8,2,FALSE) -> 20370.73029 | Q17: =((1-Vehicles!$C$40)*(1-Vehicles!$C$16)*Fuel_Specs!$B$15/((1-Vehicles!$C$40)*(1-Vehicles!$C$16)*Fuel_Specs!$B$15+Vehicles!$C$40*(1-Vehicles!$C$16)*Fuel_Specs!$B$16+Vehicles!$C$16*Fuel_Specs!$B$46)*(Petroleum!$B265*Petroleum!$D$262+Petroleum!$D265)+Vehicles!$C$40*(1-Vehicles!$C$16)*Fuel_Specs!$B$16/((1-Vehicles!$C$40)*(1-Vehicles!$C$16)*Fuel_Specs!$B$15+Vehicles!$C$40*(1-Vehicles!$C$16)*Fuel_Specs!$B$16+Vehicles!$C$16*Fuel_Specs!$B$46)*(Petroleum!B265*Petroleum!$F$262+Petroleum!$F265)+Vehicles!$C$16*Fuel_Specs!$B$46/((1-Vehicles!$C$40)*(1-Vehicles!$C$16)*Fuel_Specs!$B$15+Vehicles!$C$40*(1-Vehicles!$C$16)*Fuel_Specs!$B$16+Vehicles!$C$16*Fuel_Specs!$B$46)*(BioOil!$CE435*BioOil!$CF$431+BioOil!$CF435))/1000000*HLOOKUP($H$10,$Z$3:$AD$4,2,FALSE)/HLOOKUP($J$11,$Z$7:$AD$8,2,FALSE) -> 13849.68985 | R17: =((1-Vehicles!$C$40)*(1-Vehicles!$C$16)*Fuel_Specs!$B$15/((1-Vehicles!$C$40)*(1-Vehicles!$C$16)*Fuel_Specs!$B$15+Vehicles!$C$40*(1-Vehicles!$C$16)*Fuel_Specs!$B$16+Vehicles!$C$16*Fuel_Specs!$B$46)*(Petroleum!$B265*Petroleum!$D$262+Petroleum!$D265)+Vehicles!$C$40*(1-Vehicles!$C$16)*Fuel_Specs!$B$16/((1-Vehicles!$C$40)*(1-Vehicles!$C$16)*Fuel_Specs!$B$15+Vehicles!$C$40*(1-Vehicles!$C$16)*Fuel_Specs!$B$16+Vehicles!$C$16*Fuel_Specs!$B$46)*(Petroleum!B265*Petroleum!$F$262+Petroleum!$F265)+Vehicles!$C$16*Fuel_Specs!$B$46/((1-Vehicles!$C$40)*(1-Vehicles!$C$16)*Fuel_Specs!$B$15+Vehicles!$C$40*(1-Vehicles!$C$16)*Fuel_Specs!$B$16+Vehicles!$C$16*Fuel_Specs!$B$46)*(Pyrolysis_IDL!$AD300*Pyrolysis_IDL!$AE$297+Pyrolysis_IDL!$AE300))/1000000*HLOOKUP($H$10,$Z$3:$AD$4,2,FALSE)/HLOOKUP($J$11,$Z$7:$AD$8,2,FALSE) -> 5763.478986 | S17: =AN17*(Vehicles!$C$30/Vehicles!$AT$72)/(Vehicles!$C$30*(1/Vehicles!$AT$72+1/Vehicles!$AU$72)+Vehicles!$C$31/Vehicles!$AV$72)+B17*(Vehicles!$C$30/Vehicles!$AU$72+Vehicles!$C$31/Vehicles!$AV$72)/(Vehicles!$C$30*(1/Vehicles!$AT$72+1/Vehicles!$AU$72)+Vehicles!$C$31/Vehicles!$AV$72) -> 18429.1292 | T17: =AN17*(Vehicles!$D$30/Vehicles!$AX$72)/(Vehicles!$D$30*(1/Vehicles!$AX$72+1/Vehicles!$AY$72)+Vehicles!$D$31/Vehicles!$AZ$72)+C17*(Vehicles!$D$30/Vehicles!$AY$72+Vehicles!$D$31/Vehicles!$AZ$72)/(Vehicles!$D$30*(1/Vehicles!$AX$72+1/Vehicles!$AY$72)+Vehicles!$D$31/Vehicles!$AZ$72) -> 18416.20237 | U17: =AN17*(Vehicles!$F$30/Vehicles!$BF$72)/(Vehicles!$F$30*(1/Vehicles!$BF$72+1/Vehicles!$BG$72)+Vehicles!$F$31/Vehicles!$BH$72)+D17*(Vehicles!$F$30/Vehicles!$BG$72+Vehicles!$F$31/Vehicles!$BH$72)/(Vehicles!$F$30*(1/Vehicles!$BF$72+1/Vehicles!$BG$72)+Vehicles!$F$31/Vehicles!$BH$72) -> 18429.1292 | V17: =AN17*(Vehicles!$G$30/Vehicles!$BJ$72)/(Vehicles!$G$30*(1/Vehicles!$BJ$72+1/Vehicles!$BK$72)+Vehicles!$G$31/Vehicles!$BL$72)+F17*(Vehicles!$G$30/Vehicles!$BK$72+Vehicles!$G$31/Vehicles!$BL$72)/(Vehicles!$G$30*(1/Vehicles!$BJ$72+1/Vehicles!$BK$72)+Vehicles!$G$31/Vehicles!$BL$72) -> 18464.33141 | W17: =AN17*(Vehicles!$H$30/Vehicles!$BN$72)/(Vehicles!$H$30*(1/Vehicles!$BN$72+1/Vehicles!$BO$72)+Vehicles!$H$31/Vehicles!$BP$72)+G17*(Vehicles!$H$30/Vehicles!$BO$72+Vehicles!$H$31/Vehicles!$BP$72)/(Vehicles!$H$30*(1/Vehicles!$BN$72+1/Vehicles!$BO$72)+Vehicles!$H$31/Vehicles!$BP$72) -> 16914.40438 | X17: =AN17*(Vehicles!$I$30/Vehicles!$BR$72)/(Vehicles!$I$30*(1/Vehicles!$BR$72+1/Vehicles!$BS$72)+Vehicles!$I$31/Vehicles!$BT$72)+H17*(Vehicles!$I$30/Vehicles!$BS$72+Vehicles!$I$31/Vehicles!$BT$72)/(Vehicles!$I$30*(1/Vehicles!$BR$72+1/Vehicles!$BS$72)+Vehicles!$I$31/Vehicles!$BT$72) -> 17117.56063 | Y17: =AN17*(Vehicles!$J$30/Vehicles!$BV$72)/(Vehicles!$J$30*(1/Vehicles!$BV$72+1/Vehicles!$BW$72)+Vehicles!$J$31/Vehicles!$BX$72)+K17*(Vehicles!$J$30/Vehicles!$BW$72+Vehicles!$J$31/Vehicles!$BX$72)/(Vehicles!$J$30*(1/Vehicles!$BV$72+1/Vehicles!$BW$72)+Vehicles!$J$31/Vehicles!$BX$72) -> 19636.01659 | Z17: =AN17*(Vehicles!$K$30/Vehicles!$BZ$72)/(Vehicles!$K$30*(1/Vehicles!$BZ$72+1/Vehicles!$CA$72)+Vehicles!$K$31/Vehicles!$CB$72)+O17*(Vehicles!$K$30/Vehicles!$CA$72+Vehicles!$K$31/Vehicles!$CB$72)/(Vehicles!$K$30*(1/Vehicles!$BZ$72+1/Vehicles!$CA$72)+Vehicles!$K$31/Vehicles!$CB$72) -> 26625.13563 | AA17: =AN17*(Vehicles!$L$30/Vehicles!$CD$72)/(Vehicles!$L$30*(1/Vehicles!$CD$72+1/Vehicles!$CE$72)+Vehicles!$L$31/Vehicles!$CF$72)+AO17*(Vehicles!$L$30/Vehicles!$CE$72+Vehicles!$L$31/Vehicles!$CF$72)/(Vehicles!$L$30*(1/Vehicles!$CD$72+1/Vehicles!$CE$72)+Vehicles!$L$31/Vehicles!$CF$72) -> 24307.47589 | AB17: =AN17*(Vehicles!$L$30/Vehicles!$CD$72)/(Vehicles!$L$30*(1/Vehicles!$CD$72+1/Vehicles!$CE$72)+Vehicles!$L$31/Vehicles!$CG$72)+AP17*(Vehicles!$L$30/Vehicles!$CE$72+Vehicles!$L$31/Vehicles!$CG$72)/(Vehicles!$L$30*(1/Vehicles!$CD$72+1/Vehicles!$CE$72)+Vehicles!$L$31/Vehicles!$CG$72) -> 45856.80019 | AC17: =(MeOH_FTD!$AJ165*MeOH_FTD!$AK$162+MeOH_FTD!$AK165)/1000000*HLOOKUP($H$10,$Z$3:$AD$4,2,FALSE)/HLOOKUP($J$11,$Z$7:$AD$8,2,FALSE) -> 5650.5765 | AD17: =((1-Vehicles!$C$41)*(1-Vehicles!$C$13)*Fuel_Specs!$B$20/((1-Vehicles!$C$41)*(1-Vehicles!$C$13)*Fuel_Specs!$B$20+Vehicles!$C$41*(1-Vehicles!$C$13)*Fuel_Specs!$B$23+Vehicles!$C$13*Fuel_Specs!$B$41)*(Petroleum!B265*Petroleum!$J$262+Petroleum!$J265)+Vehicles!$C$41*(1-Vehicles!$C$13)*Fuel_Specs!$B$23/((1-Vehicles!$C$41)*(1-Vehicles!$C$13)*Fuel_Specs!$B$20+Vehicles!$C$41*(1-Vehicles!$C$13)*Fuel_Specs!$B$23+Vehicles!$C$13*Fuel_Specs!$B$41)*(Petroleum!B265*IF(Inputs!F$102=1,Petroleum!$K$262,Petroleum!$L$262)+IF(Inputs!F$102=1,Petroleum!$K265,Petroleum!$L265))+Vehicles!$C$13*Fuel_Specs!$B$41/((1-Vehicles!$C$41)*(1-Vehicles!$C$13)*Fuel_Specs!$B$20+Vehicles!$C$41*(1-Vehicles!$C$13)*Fuel_Specs!$B$23+Vehicles!$C$13*Fuel_Specs!$B$41)*(MeOH_FTD!$AZ165*MeOH_FTD!$BA$162+MeOH_FTD!$BA165))/1000000*HLOOKUP($H$10,$Z$3:$AD$4,2,FALSE)/HLOOKUP($J$11,$Z$7:$AD$8,2,FALSE) -> 243.3054839 | AE17: =((1-Vehicles!$C$42)*(1-Vehicles!$C$14)*Fuel_Specs!$B$20/((1-Vehicles!$C$42)*(1-Vehicles!$C$14)*Fuel_Specs!$B$20+Vehicles!$C$42*(1-Vehicles!$C$14)*Fuel_Specs!$B$23+Vehicles!$C$14*Fuel_Specs!$B$40)*(Petroleum!B265*Petroleum!$J$262+Petroleum!$J265)+Vehicles!$C$42*(1-Vehicles!$C$14)*Fuel_Specs!$B$23/((1-Vehicles!$C$42)*(1-Vehicles!$C$14)*Fuel_Specs!$B$20+Vehicles!$C$42*(1-Vehicles!$C$14)*Fuel_Specs!$B$23+Vehicles!$C$14*Fuel_Specs!$B$40)*(Petroleum!B265*IF(Inputs!F$102=1,Petroleum!$K$262,Petroleum!$L$262)+IF(Inputs!F$102=1,Petroleum!$K265,Petroleum!$L265))+Vehicles!$C$14*Fuel_Specs!$B$40/((1-Vehicles!$C$42)*(1-Vehicles!$C$14)*Fuel_Specs!$B$20+Vehicles!$C$42*(1-Vehicles!$C$14)*Fuel_Specs!$B$23+Vehicles!$C$14*Fuel_Specs!$B$40)*(BioOil!$Y435*BioOil!$Z$431+BioOil!$Z435))/1000000*HLOOKUP($H$10,$Z$3:$AD$4,2,FALSE)/HLOOKUP($J$11,$Z$7:$AD$8,2,FALSE) -> 3553.92871 | AF17: =((1-Vehicles!$C$43)*(1-Vehicles!$C$15)*Fuel_Specs!$B$20/((1-Vehicles!$C$43)*(1-Vehicles!$C$15)*Fuel_Specs!$B$20+Vehicles!$C$43*(1-Vehicles!$C$15)*Fuel_Specs!$B$23+Vehicles!$C$15*IF(Inputs!$E$670=1,IF(Inputs!$E$670=1,Fuel_Specs!$B$42,IF(Inputs!$E$670=3,Fuel_Specs!$B$44,Fuel_Specs!$B$43)),Fuel_Specs!$B$43))*(Petroleum!B265*Petroleum!$J$262+Petroleum!$J265)+Vehicles!$C$43*(1-Vehicles!$C$15)*Fuel_Specs!$B$23/((1-Vehicles!$C$43)*(1-Vehicles!$C$15)*Fuel_Specs!$B$20+Vehicles!$C$43*(1-Vehicles!$C$15)*Fuel_Specs!$B$23+Vehicles!$C$15*IF(Inputs!$E$670=1,IF(Inputs!$E$670=1,Fuel_Specs!$B$42,IF(Inputs!$E$670=3,Fuel_Specs!$B$44,Fuel_Specs!$B$43)),Fuel_Specs!$B$43))*(Petroleum!B265*IF(Inputs!F$102=1,Petroleum!$K$262,Petroleum!$L$262)+IF(Inputs!F$102=1,Petroleum!$K265,Petroleum!$L265))+Vehicles!$C$15*IF(Inputs!$E$670=1,IF(Inputs!$E$670=1,Fuel_Specs!$B$42,IF(Inputs!$E$670=3,Fuel_Specs!$B$44,Fuel_Specs!$B$43)),Fuel_Specs!$B$43)/((1-Vehicles!$C$43)*(1-Vehicles!$C$15)*Fuel_Specs!$B$20+Vehicles!$C$43*(1-Vehicles!$C$15)*Fuel_Specs!$B$23+Vehicles!$C$15*IF(Inputs!$E$670=1,IF(Inputs!$E$670=1,Fuel_Specs!$B$42,IF(Inputs!$E$670=3,Fuel_Specs!$B$44,Fuel_Specs!$B$43)),Fuel_Specs!$B$43))*(BioOil!$BQ435*BioOil!$BR$431+BioOil!$BR435))/1000000*HLOOKUP($H$10,$Z$3:$AD$4,2,FALSE)/HLOOKUP($J$11,$Z$7:$AD$8,2,FALSE) -> 13586.99735 | AG17: =((1-Vehicles!$C$43)*(1-Vehicles!$C$15)*Fuel_Specs!$B$20/((1-Vehicles!$C$43)*(1-Vehicles!$C$15)*Fuel_Specs!$B$20+Vehicles!$C$43*(1-Vehicles!$C$15)*Fuel_Specs!$B$23+Vehicles!$C$15*IF(Inputs!$E$670=1,Fuel_Specs!$B$42,Fuel_Specs!$B$43))*(Petroleum!B265*Petroleum!$J$262+Petroleum!$J265)+Vehicles!$C$43*(1-Vehicles!$C$15)*Fuel_Specs!$B$23/((1-Vehicles!$C$43)*(1-Vehicles!$C$15)*Fuel_Specs!$B$20+Vehicles!$C$43*(1-Vehicles!$C$15)*Fuel_Specs!$B$23+Vehicles!$C$15*IF(Inputs!$E$670=1,Fuel_Specs!$B$42,Fuel_Specs!$B$43))*(Petroleum!B265*IF(Inputs!F$102=1,Petroleum!$K$262,Petroleum!$L$262)+IF(Inputs!F$102=1,Petroleum!$K265,Petroleum!$L265))+Vehicles!$C$15*IF(Inputs!$E$670=1,Fuel_Specs!$B$42,Fuel_Specs!$B$43)/((1-Vehicles!$C$43)*(1-Vehicles!$C$15)*Fuel_Specs!$B$20+Vehicles!$C$43*(1-Vehicles!$C$15)*Fuel_Specs!$B$23+Vehicles!$C$15*IF(Inputs!$E$670=1,Fuel_Specs!$B$42,Fuel_Specs!$B$43))*(Pyrolysis_IDL!$AF300*Pyrolysis_IDL!$AG$297+Pyrolysis_IDL!$AG300))/1000000*HLOOKUP($H$10,$Z$3:$AD$4,2,FALSE)/HLOOKUP($J$11,$Z$7:$AD$8,2,FALSE) -> 5543.774325 | AH17: =(((1-Vehicles!$C$44)*(1-Vehicles!$C$17-Vehicles!$C$18)*Fuel_Specs!$B$20*(Petroleum!B265*Petroleum!$J$262+Petroleum!$J265)+Vehicles!$C$44*(1-Vehicles!$C$17-Vehicles!$C$18)*Fuel_Specs!$B$23*(Petroleum!B265*IF(Inputs!F$102=1,Petroleum!$K$262,Petroleum!$L$262)+IF(Inputs!F$102=1,Petroleum!$K265,Petroleum!$L265))+Vehicles!$C$17*Fuel_Specs!$B$32*(EtOH!BT549*EtOH!$BU$546+EtOH!$BU549)+Vehicles!$C$18*Fuel_Specs!$B$35*('EtOH-Diesel Additives'!$B56*'EtOH-Diesel Additives'!$B$53))/((1-Vehicles!$C$44)*(1-Vehicles!$C$17-Vehicles!$C$18)*Fuel_Specs!$B$20+Vehicles!$C$44*(1-Vehicles!$C$17-Vehicles!$C$18)*Fuel_Specs!$B$23+Vehicles!$C$17*Fuel_Specs!$B$32+Vehicles!$C$18*Fuel_Specs!$B$35))/1000000*HLOOKUP($H$10,$Z$3:$AD$4,2,FALSE)/HLOOKUP($J$11,$Z$7:$AD$8,2,FALSE) -> 2570.188239 | AI17: =AN17*(Vehicles!$M$30/Vehicles!$CO$72)/(Vehicles!$M$30*(1/Vehicles!$CO$72+1/Vehicles!$CP$72)+Vehicles!$M$31/Vehicles!$CQ$72)+E17*(Vehicles!$M$30/Vehicles!$CP$72+Vehicles!$M$31/Vehicles!$CQ$72)/(Vehicles!$M$30*(1/Vehicles!$CO$72+1/Vehicles!$CP$72)+Vehicles!$M$31/Vehicles!$CQ$72) -> 14064.79293 | AJ17: =AN17*(Vehicles!$N$30/Vehicles!$CS$72)/(Vehicles!$N$30*(1/Vehicles!$CS$72+1/Vehicles!$CT$72)+Vehicles!$N$31/Vehicles!$CU$72)+AC17*(Vehicles!$N$30/Vehicles!$CT$72+Vehicles!$N$31/Vehicles!$CU$72)/(Vehicles!$N$30*(1/Vehicles!$CS$72+1/Vehicles!$CT$72)+Vehicles!$N$31/Vehicles!$CU$72) -> 17094.10088 | AK17: =AN17*(Vehicles!$O$30/Vehicles!$CW$72)/(Vehicles!$O$30*(1/Vehicles!$CW$72+1/Vehicles!$CX$72)+Vehicles!$O$31/Vehicles!$CY$72)+AD17*(Vehicles!$O$30/Vehicles!$CX$72+Vehicles!$O$31/Vehicles!$CY$72)/(Vehicles!$O$30*(1/Vehicles!$CW$72+1/Vehicles!$CX$72)+Vehicles!$O$31/Vehicles!$CY$72) -> 13293.32932 | AL17: =AN17*(Vehicles!$P$30/Vehicles!$DA$72)/(Vehicles!$P$30*(1/Vehicles!$DA$72+1/Vehicles!$DB$72)+Vehicles!$P$31/Vehicles!$DC$72)+AE17*(Vehicles!$P$30/Vehicles!$DB$72+Vehicles!$P$31/Vehicles!$DC$72)/(Vehicles!$P$30*(1/Vehicles!$DA$72+1/Vehicles!$DB$72)+Vehicles!$P$31/Vehicles!$DC$72) -> 15620.36685 | AM17: =AN17*(Vehicles!$R$30/Vehicles!$DI$72)/(Vehicles!$R$30*(1/Vehicles!$DI$72+1/Vehicles!$DJ$72)+Vehicles!$R$31/Vehicles!$DK$72)+AH17*(Vehicles!$R$30/Vehicles!$DJ$72+Vehicles!$R$31/Vehicles!$DK$72)/(Vehicles!$R$30*(1/Vehicles!$DI$72+1/Vehicles!$DJ$72)+Vehicles!$R$31/Vehicles!$DK$72) -> 14928.89554 | AN17: =(Electric!$G206+Electric!$F206-1000000*(Electric!$F206+Electric!$G206)/(Electric!$F$204+Electric!$G$204))/1000000*HLOOKUP($H$10,$Z$3:$AD$4,2,FALSE)/HLOOKUP($J$11,$Z$7:$AD$8,2,FALSE) -> 44168.01104 | AO17: =((Hydrogen!$AJ308*Hydrogen!$AK$305+Hydrogen!$AK308)-1000000*(Hydrogen!$O$7+Hydrogen!$C$7+Hydrogen!$D$7+Hydrogen!$E$7))/1000000*HLOOKUP($H$10,$Z$3:$AD$4,2,FALSE)/HLOOKUP($J$11,$Z$7:$AD$8,2,FALSE) -> 12244.98844 | AP17: =((Hydrogen!$BT308*Hydrogen!$BU$305+Hydrogen!$BU308)-1000000*(Hydrogen!$O$8+Hydrogen!$C$8+Hydrogen!$D$8+Hydrogen!$E$8))/1000000*HLOOKUP($H$10,$Z$3:$AD$4,2,FALSE)/HLOOKUP($J$11,$Z$7:$AD$8,2,FALSE) -> 46882.50256 | AQ17: =AN17*(Vehicles!$S$30/Vehicles!$DY$72)/(Vehicles!$S$30*(1/Vehicles!$DY$72+1/Vehicles!$DZ$72)+Vehicles!$S$31/Vehicles!$EA$72)+AO17*(Vehicles!$S$30/Vehicles!$DZ$72+Vehicles!$S$31/Vehicles!$EA$72)/(Vehicles!$S$30*(1/Vehicles!$DY$72+1/Vehicles!$DZ$72)+Vehicles!$S$31/Vehicles!$EA$72) -> 25157.86668 | AR17: =AN17*(Vehicles!$S$30/Vehicles!$DY$72)/(Vehicles!$S$30*(1/Vehicles!$DY$72+1/Vehicles!$DZ$72)+Vehicles!$S$31/Vehicles!$EA$72)+AP17*(Vehicles!$S$30/Vehicles!$DZ$72+Vehicles!$S$31/Vehicles!$EA$72)/(Vehicles!$S$30*(1/Vehicles!$DY$72+1/Vehicles!$DZ$72)+Vehicles!$S$31/Vehicles!$EA$72) -> 45784.48942 | AS17: =((1-Vehicles!$C$40)*(1-Vehicles!$C$16)*Fuel_Specs!$B$15/((1-Vehicles!$C$40)*(1-Vehicles!$C$16)*Fuel_Specs!$B$15+Vehicles!$C$40*(1-Vehicles!$C$16)*Fuel_Specs!$B$16+Vehicles!$C$16*Fuel_Specs!$B$47)*(Petroleum!$B265*Petroleum!$D$262+Petroleum!$D265)+Vehicles!$C$40*(1-Vehicles!$C$16)*Fuel_Specs!$B$16/((1-Vehicles!$C$40)*(1-Vehicles!$C$16)*Fuel_Specs!$B$15+Vehicles!$C$40*(1-Vehicles!$C$16)*Fuel_Specs!$B$16+Vehicles!$C$16*Fuel_Specs!$B$47)*(Petroleum!B265*Petroleum!$F$262+Petroleum!$F265)+Vehicles!$C$16*Fuel_Specs!$B$47/((1-Vehicles!$C$40)*(1-Vehicles!$C$16)*Fuel_Specs!$B$15+Vehicles!$C$40*(1-Vehicles!$C$16)*Fuel_Specs!$B$16+Vehicles!$C$16*Fuel_Specs!$B$47)*(Pyrolysis_IDL!$AP300*Pyrolysis_IDL!$AQ$297+Pyrolysis_IDL!$AQ300))/1000000*HLOOKUP($H$10,$Z$3:$AD$4,2,FALSE)/HLOOKUP($J$11,$Z$7:$AD$8,2,FALSE) -> 6430.611175 | AT17: =(Petroleum!$B265*Petroleum!$S$262+Petroleum!$S265)/1000000*HLOOKUP($H$10,$Z$3:$AD$4,2,FALSE)/HLOOKUP($J$11,$Z$7:$AD$8,2,FALSE) -> 1457.16016 | AU17: 3214.9121 | AV17: 2926.011189 | BB17: ="SI - E"&TEXT(Vehicles_EtOH_LLBlend_EtOHShare*100,"0") -> SI - E10 | BC17: RNAVGASLLETOH | BE17: ="SIDI - E"&TEXT(Vehicles_EtOH_LLBlend_EtOHShare*100,"0") -> SIDI - E10 | BF17: RNAVGASLLETOHSIDI | BH17: CIDI - FT Diesel | BI17: RNAVFTDCIDI | BK17: SI HEV - RG from Pyrolysis | BL17: RNAVHEVRENGAS | BN17: SI PHEV - RG and Electricity | BO17: RNAVPHEVRENGAS | BQ17: CIDI HEV - FT Diesel | BR17: RNAVHEVFTDIESEL | BT17: CIDI PHEV - FTD and Electricity | BU17: RNAVPHEVFTDIESEL | BW17: FCV - Liquid H2 | BX17: RNAVFCVLH2 | CB17: MM - BioMethanol | CC17: RNAVCOOPBIOMEOH
A18: Natural Gas | B18: =B16-B17-B19 -> 159282.5704 | C18: 160582.9636 | D18: 159282.5704 | E18: 121094.4163 | F18: 130289.2564 | G18: 189439.5295 | H18: 119309.5455 | I18: 823748.4926 | J18: 380035.209 | K18: 406142.5765 | L18: 466407.0451 | M18: 375568.5238 | N18: 600126.5091 | O18: 375568.5238 | P18: 447871.9952 | Q18: 51225.01979 | R18: 244760.1851 | S18: 192608.6057 | T18: 193417.6301 | U18: 192608.6057 | V18: 174570.7545 | W18: 211370.405 | X18: 167739.8558 | Y18: 346189.6713 | Z18: 327168.382 | AA18: 290612.5894 | AB18: 471983.8984 | AC18: 563370.9924 | AD18: 661361.2589 | AE18: 129035.2612 | AF18: 194088.699 | AG18: =AG16-AG17-AG19 -> 287945.0528 | AH18: 143033.3498 | AI18: 158643.2448 | AJ18: 469519.5125 | AK18: 538396.8845 | AL18: 164224.8658 | AM18: 174064.1243 | AN18: 247478.9546 | AO18: 316810.2182 | AP18: 608339.1399 | AQ18: 288765.6882 | AR18: 462371.0186 | AS18: 67169.70292 | AT18: =AT16-AT17-AT19 -> 135206.892 | AU18: 145666.1713 | AV18: 123684.8522 | BB18: SI - EtOH FFV | BC18: RNAVETOHFFV | BE18: SIDI - Dedi. MeOH | BF18: RNAVMEOHSIDI | BH18: CIDI - Biodiesel | BI18: RNAVBIODIESELCIDI | BK18: ="SI HEV - E"&TEXT(Vehicles_EtOH_LLBlend_EtOHShare*100,"0") -> SI HEV - E10 | BL18: RNAVHEVLLETOH | BN18: ="SI PHEV - E"&TEXT(Vehicles_EtOH_LLBlend_EtOHShare*100,"0") -> SI PHEV - E10 | BO18: RNAVPHEVLLETOH | BQ18: CIDI HEV - Biodiesel | BR18: RNAVHEVBIODIESEL | BT18: CIDI PHEV - BD and Electricity | BU18: RNAVPHEVBIODIESEL
A19: Petroleum | B19: =(Inputs!$E$1500*(Petroleum!$B267*Petroleum!$F$262+Petroleum!$F267)+(1-Inputs!$E$1500)*(Petroleum!$B267*Petroleum!$D$262+Petroleum!$D267))/1000000*HLOOKUP($H$10,$Z$3:$AD$4,2,FALSE)/HLOOKUP($J$11,$Z$7:$AD$8,2,FALSE) -> 72073.23716 | C19: =(Petroleum!$C267*Petroleum!$G$262+Petroleum!$G267)/1000000*HLOOKUP($H$10,$Z$3:$AD$4,2,FALSE)/HLOOKUP($J$11,$Z$7:$AD$8,2,FALSE) -> 59237.20759 | D19: =((1-Vehicles!$C$35)*(1-Vehicles!$C$7)*Fuel_Specs!$B$15/((1-Vehicles!$C$35)*(1-Vehicles!$C$7)*Fuel_Specs!$B$15+Vehicles!$C$35*(1-Vehicles!$C$7)*Fuel_Specs!$B$16+Vehicles!$C$7*Fuel_Specs!$B$32)*(Petroleum!$B267*Petroleum!$D$262+(Petroleum!$D267-'T&D'!G219))+Vehicles!$C$35*(1-Vehicles!$C$7)*Fuel_Specs!$B$16/((1-Vehicles!$C$35)*(1-Vehicles!$C$7)*Fuel_Specs!$B$15+Vehicles!$C$35*(1-Vehicles!$C$7)*Fuel_Specs!$B$16+Vehicles!$C$7*Fuel_Specs!$B$32)*(Petroleum!B267*Petroleum!$F$262+Petroleum!$F267)+Vehicles!$C$7*Fuel_Specs!$B$32/((1-Vehicles!$C$35)*(1-Vehicles!$C$7)*Fuel_Specs!$B$15+Vehicles!$C$35*(1-Vehicles!$C$7)*Fuel_Specs!$B$16+Vehicles!$C$7*Fuel_Specs!$B$32)*(EtOH!BV551*EtOH!$BW$546+EtOH!$BW551)+Petroleum!AS128+Petroleum!AT128)/1000000*HLOOKUP($H$10,$Z$3:$AD$4,2,FALSE)/HLOOKUP($J$11,$Z$7:$AD$8,2,FALSE) -> 72073.23716 | E19: =(Inputs!$E$97*(IF(Inputs!F$102=1,Petroleum!$B267,Petroleum!$C267)*IF(Inputs!F$102=1,Petroleum!$K$262,Petroleum!$L$262)+IF(Inputs!F$102=1,Petroleum!$K267,Petroleum!$L267))+(1-Inputs!$E$97)*(IF(Inputs!F$101=1,Petroleum!$B267,Petroleum!$C267)*Petroleum!$J$262+Petroleum!$J267))/1000000*HLOOKUP($H$10,$Z$3:$AD$4,2,FALSE)/HLOOKUP($J$11,$Z$7:$AD$8,2,FALSE) -> 46132.41997 | F19: =(NG!$J89*NG!$K$84+NG!$K89)/1000000*HLOOKUP($H$10,$Z$3:$AD$4,2,FALSE)/HLOOKUP($J$11,$Z$7:$AD$8,2,FALSE) -> 524.9682828 | G19: =(NG!$R89*NG!$S$84+NG!$S89)/1000000*HLOOKUP($H$10,$Z$3:$AD$4,2,FALSE)/HLOOKUP($J$11,$Z$7:$AD$8,2,FALSE) -> 6329.234386 | H19: =(NG!$X89*NG!$Y$84+NG!$Y89)/1000000*HLOOKUP($H$10,$Z$3:$AD$4,2,FALSE)/HLOOKUP($J$11,$Z$7:$AD$8,2,FALSE) -> 12574.59858 | I19: =(MeOH_FTD!BJ167*MeOH_FTD!BK$162+MeOH_FTD!BK167)/1000000*HLOOKUP($H$10,$Z$3:$AD$4,2,FALSE)/HLOOKUP($J$11,$Z$7:$AD$8,2,FALSE) -> 3080.914448 | J19: =((1-Vehicles!$C$34)*(1-Vehicles!$C$5)*Fuel_Specs!$B$15/((1-Vehicles!$C$34)*(1-Vehicles!$C$5)*Fuel_Specs!$B$15+Vehicles!$C$34*(1-Vehicles!$C$5)*Fuel_Specs!$B$16+Vehicles!$C$5*Fuel_Specs!$B$31)*(Petroleum!$B267*Petroleum!$D$262+Petroleum!$D267)+Vehicles!$C$34*(1-Vehicles!$C$5)*Fuel_Specs!$B$16/((1-Vehicles!$C$34)*(1-Vehicles!$C$5)*Fuel_Specs!$B$15+Vehicles!$C$34*(1-Vehicles!$C$5)*Fuel_Specs!$B$16+Vehicles!$C$5*Fuel_Specs!$B$31)*(Petroleum!B267*Petroleum!$F$262+Petroleum!$F267)+Vehicles!$C$5*Fuel_Specs!$B$31/((1-Vehicles!$C$34)*(1-Vehicles!$C$5)*Fuel_Specs!$B$15+Vehicles!$C$34*(1-Vehicles!$C$5)*Fuel_Specs!$B$16+Vehicles!$C$5*Fuel_Specs!$B$31)*(MeOH_FTD!$N167*MeOH_FTD!$O$162+MeOH_FTD!$O167))/1000000*HLOOKUP($H$10,$Z$3:$AD$4,2,FALSE)/HLOOKUP($J$11,$Z$7:$AD$8,2,FALSE) -> 27158.84414 | K19: =((1-Vehicles!$C$34)*(1-Vehicles!$C$6)*Fuel_Specs!$B$15/((1-Vehicles!$C$34)*(1-Vehicles!$C$6)*Fuel_Specs!$B$15+Vehicles!$C$34*(1-Vehicles!$C$6)*Fuel_Specs!$B$16+Vehicles!$C$6*Fuel_Specs!$B$31)*(Petroleum!$B267*Petroleum!$D$262+Petroleum!$D267)+Vehicles!$C$34*(1-Vehicles!$C$6)*Fuel_Specs!$B$16/((1-Vehicles!$C$34)*(1-Vehicles!$C$6)*Fuel_Specs!$B$15+Vehicles!$C$34*(1-Vehicles!$C$6)*Fuel_Specs!$B$16+Vehicles!$C$6*Fuel_Specs!$B$31)*(Petroleum!B267*Petroleum!$F$262+Petroleum!$F267)+Vehicles!$C$6*Fuel_Specs!$B$31/((1-Vehicles!$C$34)*(1-Vehicles!$C$6)*Fuel_Specs!$B$15+Vehicles!$C$34*(1-Vehicles!$C$6)*Fuel_Specs!$B$16+Vehicles!$C$6*Fuel_Specs!$B$31)*(MeOH_FTD!$N167*MeOH_FTD!$O$162+MeOH_FTD!$O167))/1000000*HLOOKUP($H$10,$Z$3:$AD$4,2,FALSE)/HLOOKUP($J$11,$Z$7:$AD$8,2,FALSE) -> 22189.35481 | L19: =(MeOH_FTD!$N167*MeOH_FTD!$O$162+MeOH_FTD!$O167)/1000000*HLOOKUP($H$10,$Z$3:$AD$4,2,FALSE)/HLOOKUP($J$11,$Z$7:$AD$8,2,FALSE) -> 10718.12418 | M19: =((1-Vehicles!$C$36)*(1-Vehicles!$C$8)*Fuel_Specs!$B$15/((1-Vehicles!$C$36)*(1-Vehicles!$C$8)*Fuel_Specs!$B$15+Vehicles!$C$36*(1-Vehicles!$C$8)*Fuel_Specs!$B$16+Vehicles!$C$8*Fuel_Specs!$B$32)*(Petroleum!$B267*Petroleum!$D$262+(Petroleum!$D267-'T&D'!G219))+Vehicles!$C$36*(1-Vehicles!$C$8)*Fuel_Specs!$B$16/((1-Vehicles!$C$36)*(1-Vehicles!$C$8)*Fuel_Specs!$B$15+Vehicles!$C$36*(1-Vehicles!$C$8)*Fuel_Specs!$B$16+Vehicles!$C$8*Fuel_Specs!$B$32)*(Petroleum!B267*Petroleum!$F$262+Petroleum!$F267)+Vehicles!$C$8*Fuel_Specs!$B$32/((1-Vehicles!$C$36)*(1-Vehicles!$C$8)*Fuel_Specs!$B$15+Vehicles!$C$36*(1-Vehicles!$C$8)*Fuel_Specs!$B$16+Vehicles!$C$8*Fuel_Specs!$B$32)*(EtOH!BV551*EtOH!$BW$546+EtOH!$BW551)+Petroleum!AS128+Petroleum!AT128)/1000000*HLOOKUP($H$10,$Z$3:$AD$4,2,FALSE)/HLOOKUP($J$11,$Z$7:$AD$8,2,FALSE) -> 60805.7426 | N19: =((1-Vehicles!$C$37)*(1-Vehicles!$C$12)*Fuel_Specs!$B$15/((1-Vehicles!$C$37)*(1-Vehicles!$C$12)*Fuel_Specs!$B$15+Vehicles!$C$37*(1-Vehicles!$C$12)*Fuel_Specs!$B$16+Vehicles!$C$12*Fuel_Specs!$B$33)*(Petroleum!$B267*Petroleum!$D$262+Petroleum!$D267)+Vehicles!$C$37*(1-Vehicles!$C$12)*Fuel_Specs!$B$16/((1-Vehicles!$C$37)*(1-Vehicles!$C$12)*Fuel_Specs!$B$15+Vehicles!$C$37*(1-Vehicles!$C$12)*Fuel_Specs!$B$16+Vehicles!$C$12*Fuel_Specs!$B$33)*(Petroleum!B267*Petroleum!$F$262+Petroleum!$F267)+Vehicles!$C$12*Fuel_Specs!$B$33/((1-Vehicles!$C$37)*(1-Vehicles!$C$12)*Fuel_Specs!$B$15+Vehicles!$C$37*(1-Vehicles!$C$12)*Fuel_Specs!$B$16+Vehicles!$C$12*Fuel_Specs!$B$33)*(EtOH!$BX551*EtOH!$BY$546+EtOH!$BY551))/1000000*HLOOKUP($H$10,$Z$3:$AD$4,2,FALSE)/HLOOKUP($J$11,$Z$7:$AD$8,2,FALSE) -> 48250.04285 | O19: =((1-Vehicles!$C$36)*(1-Vehicles!$C$9)*Fuel_Specs!$B$15/((1-Vehicles!$C$36)*(1-Vehicles!$C$9)*Fuel_Specs!$B$15+Vehicles!$C$36*(1-Vehicles!$C$9)*Fuel_Specs!$B$16+Vehicles!$C$9*Fuel_Specs!$B$32)*(Petroleum!$B267*Petroleum!$D$262+(Petroleum!$D267-'T&D'!G219))+Vehicles!$C$36*(1-Vehicles!$C$9)*Fuel_Specs!$B$16/((1-Vehicles!$C$36)*(1-Vehicles!$C$9)*Fuel_Specs!$B$15+Vehicles!$C$36*(1-Vehicles!$C$9)*Fuel_Specs!$B$16+Vehicles!$C$9*Fuel_Specs!$B$32)*(Petroleum!B267*Petroleum!$F$262+Petroleum!$F267)+Vehicles!$C$9*Fuel_Specs!$B$32/((1-Vehicles!$C$36)*(1-Vehicles!$C$9)*Fuel_Specs!$B$15+Vehicles!$C$36*(1-Vehicles!$C$9)*Fuel_Specs!$B$16+Vehicles!$C$9*Fuel_Specs!$B$32)*(EtOH!BV551*EtOH!$BW$546+EtOH!$BW551)+Petroleum!AS128+Petroleum!AT128)/1000000*HLOOKUP($H$10,$Z$3:$AD$4,2,FALSE)/HLOOKUP($J$11,$Z$7:$AD$8,2,FALSE) -> 60805.7426 | P19: =(EtOH!$BT551*EtOH!$BU$546+EtOH!$BU551)/1000000*HLOOKUP($H$10,$Z$3:$AD$4,2,FALSE)/HLOOKUP($J$11,$Z$7:$AD$8,2,FALSE) -> 57659.77763 | Q19: =((1-Vehicles!$C$40)*(1-Vehicles!$C$16)*Fuel_Specs!$B$15/((1-Vehicles!$C$40)*(1-Vehicles!$C$16)*Fuel_Specs!$B$15+Vehicles!$C$40*(1-Vehicles!$C$16)*Fuel_Specs!$B$16+Vehicles!$C$16*Fuel_Specs!$B$46)*(Petroleum!$B267*Petroleum!$D$262+Petroleum!$D267)+Vehicles!$C$40*(1-Vehicles!$C$16)*Fuel_Specs!$B$16/((1-Vehicles!$C$40)*(1-Vehicles!$C$16)*Fuel_Specs!$B$15+Vehicles!$C$40*(1-Vehicles!$C$16)*Fuel_Specs!$B$16+Vehicles!$C$16*Fuel_Specs!$B$46)*(Petroleum!B267*Petroleum!$F$262+Petroleum!$F267)+Vehicles!$C$16*Fuel_Specs!$B$46/((1-Vehicles!$C$40)*(1-Vehicles!$C$16)*Fuel_Specs!$B$15+Vehicles!$C$40*(1-Vehicles!$C$16)*Fuel_Specs!$B$16+Vehicles!$C$16*Fuel_Specs!$B$46)*(BioOil!$CE437*BioOil!$CF$431+BioOil!$CF437))/1000000*HLOOKUP($H$10,$Z$3:$AD$4,2,FALSE)/HLOOKUP($J$11,$Z$7:$AD$8,2,FALSE) -> 36497.80639 | R19: =((1-Vehicles!$C$40)*(1-Vehicles!$C$16)*Fuel_Specs!$B$15/((1-Vehicles!$C$40)*(1-Vehicles!$C$16)*Fuel_Specs!$B$15+Vehicles!$C$40*(1-Vehicles!$C$16)*Fuel_Specs!$B$16+Vehicles!$C$16*Fuel_Specs!$B$46)*(Petroleum!$B267*Petroleum!$D$262+Petroleum!$D267)+Vehicles!$C$40*(1-Vehicles!$C$16)*Fuel_Specs!$B$16/((1-Vehicles!$C$40)*(1-Vehicles!$C$16)*Fuel_Specs!$B$15+Vehicles!$C$40*(1-Vehicles!$C$16)*Fuel_Specs!$B$16+Vehicles!$C$16*Fuel_Specs!$B$46)*(Petroleum!B267*Petroleum!$F$262+Petroleum!$F267)+Vehicles!$C$16*Fuel_Specs!$B$46/((1-Vehicles!$C$40)*(1-Vehicles!$C$16)*Fuel_Specs!$B$15+Vehicles!$C$40*(1-Vehicles!$C$16)*Fuel_Specs!$B$16+Vehicles!$C$16*Fuel_Specs!$B$46)*(Pyrolysis_IDL!$AD302*Pyrolysis_IDL!$AE$297+Pyrolysis_IDL!$AE302))/1000000*HLOOKUP($H$10,$Z$3:$AD$4,2,FALSE)/HLOOKUP($J$11,$Z$7:$AD$8,2,FALSE) -> 55504.37702 | S19: =AN19*(Vehicles!$C$30/Vehicles!$AT$72)/(Vehicles!$C$30*(1/Vehicles!$AT$72+1/Vehicles!$AU$72)+Vehicles!$C$31/Vehicles!$AV$72)+B19*(Vehicles!$C$30/Vehicles!$AU$72+Vehicles!$C$31/Vehicles!$AV$72)/(Vehicles!$C$30*(1/Vehicles!$AT$72+1/Vehicles!$AU$72)+Vehicles!$C$31/Vehicles!$AV$72) -> 45374.02108 | T19: =AN19*(Vehicles!$D$30/Vehicles!$AX$72)/(Vehicles!$D$30*(1/Vehicles!$AX$72+1/Vehicles!$AY$72)+Vehicles!$D$31/Vehicles!$AZ$72)+C19*(Vehicles!$D$30/Vehicles!$AY$72+Vehicles!$D$31/Vehicles!$AZ$72)/(Vehicles!$D$30*(1/Vehicles!$AX$72+1/Vehicles!$AY$72)+Vehicles!$D$31/Vehicles!$AZ$72) -> 37388.2354 | U19: =AN19*(Vehicles!$F$30/Vehicles!$BF$72)/(Vehicles!$F$30*(1/Vehicles!$BF$72+1/Vehicles!$BG$72)+Vehicles!$F$31/Vehicles!$BH$72)+D19*(Vehicles!$F$30/Vehicles!$BG$72+Vehicles!$F$31/Vehicles!$BH$72)/(Vehicles!$F$30*(1/Vehicles!$BF$72+1/Vehicles!$BG$72)+Vehicles!$F$31/Vehicles!$BH$72) -> 45374.02108 | V19: =AN19*(Vehicles!$G$30/Vehicles!$BJ$72)/(Vehicles!$G$30*(1/Vehicles!$BJ$72+1/Vehicles!$BK$72)+Vehicles!$G$31/Vehicles!$BL$72)+F19*(Vehicles!$G$30/Vehicles!$BK$72+Vehicles!$G$31/Vehicles!$BL$72)/(Vehicles!$G$30*(1/Vehicles!$BJ$72+1/Vehicles!$BK$72)+Vehicles!$G$31/Vehicles!$BL$72) -> 861.102393 | W19: =AN19*(Vehicles!$H$30/Vehicles!$BN$72)/(Vehicles!$H$30*(1/Vehicles!$BN$72+1/Vehicles!$BO$72)+Vehicles!$H$31/Vehicles!$BP$72)+G19*(Vehicles!$H$30/Vehicles!$BO$72+Vehicles!$H$31/Vehicles!$BP$72)/(Vehicles!$H$30*(1/Vehicles!$BN$72+1/Vehicles!$BO$72)+Vehicles!$H$31/Vehicles!$BP$72) -> 4472.158665 | X19: =AN19*(Vehicles!$I$30/Vehicles!$BR$72)/(Vehicles!$I$30*(1/Vehicles!$BR$72+1/Vehicles!$BS$72)+Vehicles!$I$31/Vehicles!$BT$72)+H19*(Vehicles!$I$30/Vehicles!$BS$72+Vehicles!$I$31/Vehicles!$BT$72)/(Vehicles!$I$30*(1/Vehicles!$BR$72+1/Vehicles!$BS$72)+Vehicles!$I$31/Vehicles!$BT$72) -> 8357.638958 | Y19: =AN19*(Vehicles!$J$30/Vehicles!$BV$72)/(Vehicles!$J$30*(1/Vehicles!$BV$72+1/Vehicles!$BW$72)+Vehicles!$J$31/Vehicles!$BX$72)+K19*(Vehicles!$J$30/Vehicles!$BW$72+Vehicles!$J$31/Vehicles!$BX$72)/(Vehicles!$J$30*(1/Vehicles!$BV$72+1/Vehicles!$BW$72)+Vehicles!$J$31/Vehicles!$BX$72) -> 14339.34709 | Z19: =AN19*(Vehicles!$K$30/Vehicles!$BZ$72)/(Vehicles!$K$30*(1/Vehicles!$BZ$72+1/Vehicles!$CA$72)+Vehicles!$K$31/Vehicles!$CB$72)+O19*(Vehicles!$K$30/Vehicles!$CA$72+Vehicles!$K$31/Vehicles!$CB$72)/(Vehicles!$K$30*(1/Vehicles!$BZ$72+1/Vehicles!$CA$72)+Vehicles!$K$31/Vehicles!$CB$72) -> 38364.08112 | AA19: =AN19*(Vehicles!$L$30/Vehicles!$CD$72)/(Vehicles!$L$30*(1/Vehicles!$CD$72+1/Vehicles!$CE$72)+Vehicles!$L$31/Vehicles!$CF$72)+AO19*(Vehicles!$L$30/Vehicles!$CE$72+Vehicles!$L$31/Vehicles!$CF$72)/(Vehicles!$L$30*(1/Vehicles!$CD$72+1/Vehicles!$CE$72)+Vehicles!$L$31/Vehicles!$CF$72) -> 21355.08346 | AB19: =AN19*(Vehicles!$L$30/Vehicles!$CD$72)/(Vehicles!$L$30*(1/Vehicles!$CD$72+1/Vehicles!$CE$72)+Vehicles!$L$31/Vehicles!$CG$72)+AP19*(Vehicles!$L$30/Vehicles!$CE$72+Vehicles!$L$31/Vehicles!$CG$72)/(Vehicles!$L$30*(1/Vehicles!$CD$72+1/Vehicles!$CE$72)+Vehicles!$L$31/Vehicles!$CG$72) -> 7237.420716 | AC19: =(MeOH_FTD!$AJ167*MeOH_FTD!$AK$162+MeOH_FTD!$AK167)/1000000*HLOOKUP($H$10,$Z$3:$AD$4,2,FALSE)/HLOOKUP($J$11,$Z$7:$AD$8,2,FALSE) -> 6544.113489 | AD19: =((1-Vehicles!$C$41)*(1-Vehicles!$C$13)*Fuel_Specs!$B$20/((1-Vehicles!$C$41)*(1-Vehicles!$C$13)*Fuel_Specs!$B$20+Vehicles!$C$41*(1-Vehicles!$C$13)*Fuel_Specs!$B$23+Vehicles!$C$13*Fuel_Specs!$B$41)*(Petroleum!B267*Petroleum!$J$262+Petroleum!$J267)+Vehicles!$C$41*(1-Vehicles!$C$13)*Fuel_Specs!$B$23/((1-Vehicles!$C$41)*(1-Vehicles!$C$13)*Fuel_Specs!$B$20+Vehicles!$C$41*(1-Vehicles!$C$13)*Fuel_Specs!$B$23+Vehicles!$C$13*Fuel_Specs!$B$41)*(Petroleum!B267*IF(Inputs!F$102=1,Petroleum!$K$262,Petroleum!$L$262)+IF(Inputs!F$102=1,Petroleum!$K267,Petroleum!$L267))+Vehicles!$C$13*Fuel_Specs!$B$41/((1-Vehicles!$C$41)*(1-Vehicles!$C$13)*Fuel_Specs!$B$20+Vehicles!$C$41*(1-Vehicles!$C$13)*Fuel_Specs!$B$23+Vehicles!$C$13*Fuel_Specs!$B$41)*(MeOH_FTD!$AZ167*MeOH_FTD!$BA$162+MeOH_FTD!$BA167))/1000000*HLOOKUP($H$10,$Z$3:$AD$4,2,FALSE)/HLOOKUP($J$11,$Z$7:$AD$8,2,FALSE) -> 3147.238263 | AE19: =((1-Vehicles!$C$42)*(1-Vehicles!$C$14)*Fuel_Specs!$B$20/((1-Vehicles!$C$42)*(1-Vehicles!$C$14)*Fuel_Specs!$B$20+Vehicles!$C$42*(1-Vehicles!$C$14)*Fuel_Specs!$B$23+Vehicles!$C$14*Fuel_Specs!$B$40)*(Petroleum!B267*Petroleum!$J$262+Petroleum!$J267)+Vehicles!$C$42*(1-Vehicles!$C$14)*Fuel_Specs!$B$23/((1-Vehicles!$C$42)*(1-Vehicles!$C$14)*Fuel_Specs!$B$20+Vehicles!$C$42*(1-Vehicles!$C$14)*Fuel_Specs!$B$23+Vehicles!$C$14*Fuel_Specs!$B$40)*(Petroleum!B267*IF(Inputs!F$102=1,Petroleum!$K$262,Petroleum!$L$262)+IF(Inputs!F$102=1,Petroleum!$K267,Petroleum!$L267))+Vehicles!$C$14*Fuel_Specs!$B$40/((1-Vehicles!$C$42)*(1-Vehicles!$C$14)*Fuel_Specs!$B$20+Vehicles!$C$42*(1-Vehicles!$C$14)*Fuel_Specs!$B$23+Vehicles!$C$14*Fuel_Specs!$B$40)*(BioOil!$Y437*BioOil!$Z$431+BioOil!$Z437))/1000000*HLOOKUP($H$10,$Z$3:$AD$4,2,FALSE)/HLOOKUP($J$11,$Z$7:$AD$8,2,FALSE) -> 44052.75286 | AF19: =((1-Vehicles!$C$43)*(1-Vehicles!$C$15)*Fuel_Specs!$B$20/((1-Vehicles!$C$43)*(1-Vehicles!$C$15)*Fuel_Specs!$B$20+Vehicles!$C$43*(1-Vehicles!$C$15)*Fuel_Specs!$B$23+Vehicles!$C$15*IF(Inputs!$E$670=1,IF(Inputs!$E$670=1,Fuel_Specs!$B$42,IF(Inputs!$E$670=3,Fuel_Specs!$B$44,Fuel_Specs!$B$43)),Fuel_Specs!$B$43))*(Petroleum!B267*Petroleum!$J$262+Petroleum!$J267)+Vehicles!$C$43*(1-Vehicles!$C$15)*Fuel_Specs!$B$23/((1-Vehicles!$C$43)*(1-Vehicles!$C$15)*Fuel_Specs!$B$20+Vehicles!$C$43*(1-Vehicles!$C$15)*Fuel_Specs!$B$23+Vehicles!$C$15*IF(Inputs!$E$670=1,IF(Inputs!$E$670=1,Fuel_Specs!$B$42,IF(Inputs!$E$670=3,Fuel_Specs!$B$44,Fuel_Specs!$B$43)),Fuel_Specs!$B$43))*(Petroleum!B267*IF(Inputs!F$102=1,Petroleum!$K$262,Petroleum!$L$262)+IF(Inputs!F$102=1,Petroleum!$K267,Petroleum!$L267))+Vehicles!$C$15*IF(Inputs!$E$670=1,IF(Inputs!$E$670=1,Fuel_Specs!$B$42,IF(Inputs!$E$670=3,Fuel_Specs!$B$44,Fuel_Specs!$B$43)),Fuel_Specs!$B$43)/((1-Vehicles!$C$43)*(1-Vehicles!$C$15)*Fuel_Specs!$B$20+Vehicles!$C$43*(1-Vehicles!$C$15)*Fuel_Specs!$B$23+Vehicles!$C$15*IF(Inputs!$E$670=1,IF(Inputs!$E$670=1,Fuel_Specs!$B$42,IF(Inputs!$E$670=3,Fuel_Specs!$B$44,Fuel_Specs!$B$43)),Fuel_Specs!$B$43))*(BioOil!$BQ437*BioOil!$BR$431+BioOil!$BR437))/1000000*HLOOKUP($H$10,$Z$3:$AD$4,2,FALSE)/HLOOKUP($J$11,$Z$7:$AD$8,2,FALSE) -> 36270.07468 | AG19: =((1-Vehicles!$C$43)*(1-Vehicles!$C$15)*Fuel_Specs!$B$20/((1-Vehicles!$C$43)*(1-Vehicles!$C$15)*Fuel_Specs!$B$20+Vehicles!$C$43*(1-Vehicles!$C$15)*Fuel_Specs!$B$23+Vehicles!$C$15*IF(Inputs!$E$670=1,Fuel_Specs!$B$42,Fuel_Specs!$B$43))*(Petroleum!B267*Petroleum!$J$262+Petroleum!$J267)+Vehicles!$C$43*(1-Vehicles!$C$15)*Fuel_Specs!$B$23/((1-Vehicles!$C$43)*(1-Vehicles!$C$15)*Fuel_Specs!$B$20+Vehicles!$C$43*(1-Vehicles!$C$15)*Fuel_Specs!$B$23+Vehicles!$C$15*IF(Inputs!$E$670=1,Fuel_Specs!$B$42,Fuel_Specs!$B$43))*(Petroleum!B267*IF(Inputs!F$102=1,Petroleum!$K$262,Petroleum!$L$262)+IF(Inputs!F$102=1,Petroleum!$K267,Petroleum!$L267))+Vehicles!$C$15*IF(Inputs!$E$670=1,Fuel_Specs!$B$42,Fuel_Specs!$B$43)/((1-Vehicles!$C$43)*(1-Vehicles!$C$15)*Fuel_Specs!$B$20+Vehicles!$C$43*(1-Vehicles!$C$15)*Fuel_Specs!$B$23+Vehicles!$C$15*IF(Inputs!$E$670=1,Fuel_Specs!$B$42,Fuel_Specs!$B$43))*(Pyrolysis_IDL!$AF302*Pyrolysis_IDL!$AG$297+Pyrolysis_IDL!$AG302))/1000000*HLOOKUP($H$10,$Z$3:$AD$4,2,FALSE)/HLOOKUP($J$11,$Z$7:$AD$8,2,FALSE) -> 53773.9199 | AH19: =(((1-Vehicles!$C$44)*(1-Vehicles!$C$17-Vehicles!$C$18)*Fuel_Specs!$B$20*(Petroleum!B267*Petroleum!$J$262+Petroleum!$J267)+Vehicles!$C$44*(1-Vehicles!$C$17-Vehicles!$C$18)*Fuel_Specs!$B$23*(Petroleum!B267*IF(Inputs!F$102=1,Petroleum!$K$262,Petroleum!$L$262)+IF(Inputs!F$102=1,Petroleum!$K267,Petroleum!$L267))+Vehicles!$C$17*Fuel_Specs!$B$32*(EtOH!BT551*EtOH!$BU$546+EtOH!$BU551)+Vehicles!$C$18*Fuel_Specs!$B$35*('EtOH-Diesel Additives'!$B58*'EtOH-Diesel Additives'!$B$53))/((1-Vehicles!$C$44)*(1-Vehicles!$C$17-Vehicles!$C$18)*Fuel_Specs!$B$20+Vehicles!$C$44*(1-Vehicles!$C$17-Vehicles!$C$18)*Fuel_Specs!$B$23+Vehicles!$C$17*Fuel_Specs!$B$32+Vehicles!$C$18*Fuel_Specs!$B$35))/1000000*HLOOKUP($H$10,$Z$3:$AD$4,2,FALSE)/HLOOKUP($J$11,$Z$7:$AD$8,2,FALSE) -> 46539.11253 | AI19: =AN19*(Vehicles!$M$30/Vehicles!$CO$72)/(Vehicles!$M$30*(1/Vehicles!$CO$72+1/Vehicles!$CP$72)+Vehicles!$M$31/Vehicles!$CQ$72)+E19*(Vehicles!$M$30/Vehicles!$CP$72+Vehicles!$M$31/Vehicles!$CQ$72)/(Vehicles!$M$30*(1/Vehicles!$CO$72+1/Vehicles!$CP$72)+Vehicles!$M$31/Vehicles!$CQ$72) -> 32846.74337 | AJ19: =AN19*(Vehicles!$N$30/Vehicles!$CS$72)/(Vehicles!$N$30*(1/Vehicles!$CS$72+1/Vehicles!$CT$72)+Vehicles!$N$31/Vehicles!$CU$72)+AC19*(Vehicles!$N$30/Vehicles!$CT$72+Vehicles!$N$31/Vehicles!$CU$72)/(Vehicles!$N$30*(1/Vehicles!$CS$72+1/Vehicles!$CT$72)+Vehicles!$N$31/Vehicles!$CU$72) -> 5020.117167 | AK19: =AN19*(Vehicles!$O$30/Vehicles!$CW$72)/(Vehicles!$O$30*(1/Vehicles!$CW$72+1/Vehicles!$CX$72)+Vehicles!$O$31/Vehicles!$CY$72)+AD19*(Vehicles!$O$30/Vehicles!$CX$72+Vehicles!$O$31/Vehicles!$CY$72)/(Vehicles!$O$30*(1/Vehicles!$CW$72+1/Vehicles!$CX$72)+Vehicles!$O$31/Vehicles!$CY$72) -> 2632.453092 | AL19: =AN19*(Vehicles!$P$30/Vehicles!$DA$72)/(Vehicles!$P$30*(1/Vehicles!$DA$72+1/Vehicles!$DB$72)+Vehicles!$P$31/Vehicles!$DC$72)+AE19*(Vehicles!$P$30/Vehicles!$DB$72+Vehicles!$P$31/Vehicles!$DC$72)/(Vehicles!$P$30*(1/Vehicles!$DA$72+1/Vehicles!$DB$72)+Vehicles!$P$31/Vehicles!$DC$72) -> 31384.94507 | AM19: =AN19*(Vehicles!$R$30/Vehicles!$DI$72)/(Vehicles!$R$30*(1/Vehicles!$DI$72+1/Vehicles!$DJ$72)+Vehicles!$R$31/Vehicles!$DK$72)+AH19*(Vehicles!$R$30/Vehicles!$DJ$72+Vehicles!$R$31/Vehicles!$DK$72)/(Vehicles!$R$30*(1/Vehicles!$DI$72+1/Vehicles!$DJ$72)+Vehicles!$R$31/Vehicles!$DK$72) -> 33132.60762 | AN19: =(Electric!$G208+Electric!$F208-1000000*(Electric!$F208+Electric!$G208)/(Electric!$F$204+Electric!$G$204))/1000000*HLOOKUP($H$10,$Z$3:$AD$4,2,FALSE)/HLOOKUP($J$11,$Z$7:$AD$8,2,FALSE) -> 1414.53744 | AO19: =((Hydrogen!$AJ310*Hydrogen!$AK$305+Hydrogen!$AK310)-1000000*(Hydrogen!$O$7+Hydrogen!$C$7+Hydrogen!$D$7+Hydrogen!$E$7))/1000000*HLOOKUP($H$10,$Z$3:$AD$4,2,FALSE)/HLOOKUP($J$11,$Z$7:$AD$8,2,FALSE) -> 33466.16627 | AP19: =((Hydrogen!$BT310*Hydrogen!$BU$305+Hydrogen!$BU310)-1000000*(Hydrogen!$O$8+Hydrogen!$C$8+Hydrogen!$D$8+Hydrogen!$E$8))/1000000*HLOOKUP($H$10,$Z$3:$AD$4,2,FALSE)/HLOOKUP($J$11,$Z$7:$AD$8,2,FALSE) -> 10774.005 | AQ19: =AN19*(Vehicles!$S$30/Vehicles!$DY$72)/(Vehicles!$S$30*(1/Vehicles!$DY$72+1/Vehicles!$DZ$72)+Vehicles!$S$31/Vehicles!$EA$72)+AO19*(Vehicles!$S$30/Vehicles!$DZ$72+Vehicles!$S$31/Vehicles!$EA$72)/(Vehicles!$S$30*(1/Vehicles!$DY$72+1/Vehicles!$DZ$72)+Vehicles!$S$31/Vehicles!$EA$72) -> 20501.26675 | AR19: =AN19*(Vehicles!$S$30/Vehicles!$DY$72)/(Vehicles!$S$30*(1/Vehicles!$DY$72+1/Vehicles!$DZ$72)+Vehicles!$S$31/Vehicles!$EA$72)+AP19*(Vehicles!$S$30/Vehicles!$DZ$72+Vehicles!$S$31/Vehicles!$EA$72)/(Vehicles!$S$30*(1/Vehicles!$DY$72+1/Vehicles!$DZ$72)+Vehicles!$S$31/Vehicles!$EA$72) -> 6988.095795 | AS19: =((1-Vehicles!$C$40)*(1-Vehicles!$C$16)*Fuel_Specs!$B$15/((1-Vehicles!$C$40)*(1-Vehicles!$C$16)*Fuel_Specs!$B$15+Vehicles!$C$40*(1-Vehicles!$C$16)*Fuel_Specs!$B$16+Vehicles!$C$16*Fuel_Specs!$B$47)*(Petroleum!$B267*Petroleum!$D$262+Petroleum!$D267)+Vehicles!$C$40*(1-Vehicles!$C$16)*Fuel_Specs!$B$16/((1-Vehicles!$C$40)*(1-Vehicles!$C$16)*Fuel_Specs!$B$15+Vehicles!$C$40*(1-Vehicles!$C$16)*Fuel_Specs!$B$16+Vehicles!$C$16*Fuel_Specs!$B$47)*(Petroleum!B267*Petroleum!$F$262+Petroleum!$F267)+Vehicles!$C$16*Fuel_Specs!$B$47/((1-Vehicles!$C$40)*(1-Vehicles!$C$16)*Fuel_Specs!$B$15+Vehicles!$C$40*(1-Vehicles!$C$16)*Fuel_Specs!$B$16+Vehicles!$C$16*Fuel_Specs!$B$47)*(Pyrolysis_IDL!$AP302*Pyrolysis_IDL!$AQ$297+Pyrolysis_IDL!$AQ302))/1000000*HLOOKUP($H$10,$Z$3:$AD$4,2,FALSE)/HLOOKUP($J$11,$Z$7:$AD$8,2,FALSE) -> 96221.14328 | AT19: =(Petroleum!$B267*Petroleum!$S$262+Petroleum!$S267)/1000000*HLOOKUP($H$10,$Z$3:$AD$4,2,FALSE)/HLOOKUP($J$11,$Z$7:$AD$8,2,FALSE) -> 40617.01302 | AU19: 73932.86103 | AV19: 76070.97739 | BB19: SI - BtOH FFV | BC19: RNAVBTOHFFV | BE19: SIDI - Dedi. EtOH | BF19: RNAVETOHSIDI | BH19: CIDI - RD from Bio Oil | BI19: RNAVRENDIESEL1CIDI | BK19: SI HEV - CNG | BL19: RNAVHEVCNG | BN19: SI PHEV - CNG and Electricity | BO19: RNAVPHEVCNG | BQ19: CIDI HEV - RD from Pyrolysis | BR19: RNAVHEVRENDIESEL | BT19: CIDI PHEV - RD from Pyrolysis and Electricity | BU19: RNAVPHEVRENDIESEL
A20: Water consumption | B20: =(Inputs!$E$1500*(Petroleum!$B268*Petroleum!$F$262+Petroleum!$F268)+(1-Inputs!$E$1500)*(Petroleum!$B268*Petroleum!$D$262+Petroleum!$D268))/1000000/HLOOKUP(Results_EnergyFunctionalUnit,$Z$7:$AD$8,2,0) -> 54.30316207 | C20: =(Petroleum!$C268*Petroleum!$G$262+Petroleum!$G268)/1000000/HLOOKUP(Results_EnergyFunctionalUnit,$Z$7:$AD$8,2,0) -> 56.26695387 | D20: =((1-Vehicles!$C$35)*(1-Vehicles!$C$7)*Fuel_Specs!$B$15/((1-Vehicles!$C$35)*(1-Vehicles!$C$7)*Fuel_Specs!$B$15+Vehicles!$C$35*(1-Vehicles!$C$7)*Fuel_Specs!$B$16+Vehicles!$C$7*Fuel_Specs!$B$32)*(Petroleum!$B268*Petroleum!$D$262+(Petroleum!$D268-'T&D'!G220))+Vehicles!$C$35*(1-Vehicles!$C$7)*Fuel_Specs!$B$16/((1-Vehicles!$C$35)*(1-Vehicles!$C$7)*Fuel_Specs!$B$15+Vehicles!$C$35*(1-Vehicles!$C$7)*Fuel_Specs!$B$16+Vehicles!$C$7*Fuel_Specs!$B$32)*(Petroleum!B268*Petroleum!$F$262+Petroleum!$F268)+Vehicles!$C$7*Fuel_Specs!$B$32/((1-Vehicles!$C$35)*(1-Vehicles!$C$7)*Fuel_Specs!$B$15+Vehicles!$C$35*(1-Vehicles!$C$7)*Fuel_Specs!$B$16+Vehicles!$C$7*Fuel_Specs!$B$32)*(EtOH!BV552*EtOH!$BW$546+EtOH!$BW552)+Petroleum!AS129+Petroleum!AT129)/1000000/HLOOKUP(Results_EnergyFunctionalUnit,$Z$7:$AD$8,2,0) -> 54.30316207 | E20: =(Inputs!$E$97*(IF(Inputs!F$102=1,Petroleum!$B268,Petroleum!$C268)*IF(Inputs!F$102=1,Petroleum!$K$262,Petroleum!$L$262)+IF(Inputs!F$102=1,Petroleum!$K268,Petroleum!$L268))+(1-Inputs!$E$97)*(IF(Inputs!F$101=1,Petroleum!$B268,Petroleum!$C268)*Petroleum!$J$262+Petroleum!$J268))/1000000/HLOOKUP(Results_EnergyFunctionalUnit,$Z$7:$AD$8,2,0) -> 24.32549555 | F20: =(NG!$J90*NG!$K$84+NG!$K90)/1000000/HLOOKUP(Results_EnergyFunctionalUnit,$Z$7:$AD$8,2,0) -> 9.185680205 | G20: =(NG!$R90*NG!$S$84+NG!$S90)/1000000/HLOOKUP(Results_EnergyFunctionalUnit,$Z$7:$AD$8,2,0) -> 4.344377032 | H20: =(NG!$X90*NG!$Y$84+NG!$Y90)/1000000/HLOOKUP(Results_EnergyFunctionalUnit,$Z$7:$AD$8,2,0) -> 7.519281798 | I20: =(MeOH_FTD!BJ168*MeOH_FTD!BK$162+MeOH_FTD!BK168)/1000000/HLOOKUP(Results_EnergyFunctionalUnit,$Z$7:$AD$8,2,0) -> -8.693094636 | J20: =((1-Vehicles!$C$34)*(1-Vehicles!$C$5)*Fuel_Specs!$B$15/((1-Vehicles!$C$34)*(1-Vehicles!$C$5)*Fuel_Specs!$B$15+Vehicles!$C$34*(1-Vehicles!$C$5)*Fuel_Specs!$B$16+Vehicles!$C$5*Fuel_Specs!$B$31)*(Petroleum!$B268*Petroleum!$D$262+Petroleum!$D268)+Vehicles!$C$34*(1-Vehicles!$C$5)*Fuel_Specs!$B$16/((1-Vehicles!$C$34)*(1-Vehicles!$C$5)*Fuel_Specs!$B$15+Vehicles!$C$34*(1-Vehicles!$C$5)*Fuel_Specs!$B$16+Vehicles!$C$5*Fuel_Specs!$B$31)*(Petroleum!B268*Petroleum!$F$262+Petroleum!$F268)+Vehicles!$C$5*Fuel_Specs!$B$31/((1-Vehicles!$C$34)*(1-Vehicles!$C$5)*Fuel_Specs!$B$15+Vehicles!$C$34*(1-Vehicles!$C$5)*Fuel_Specs!$B$16+Vehicles!$C$5*Fuel_Specs!$B$31)*(MeOH_FTD!$N168*MeOH_FTD!$O$162+MeOH_FTD!$O168))/1000000/HLOOKUP(Results_EnergyFunctionalUnit,$Z$7:$AD$8,2,0) -> 19.11820654 | K20: =((1-Vehicles!$C$34)*(1-Vehicles!$C$6)*Fuel_Specs!$B$15/((1-Vehicles!$C$34)*(1-Vehicles!$C$6)*Fuel_Specs!$B$15+Vehicles!$C$34*(1-Vehicles!$C$6)*Fuel_Specs!$B$16+Vehicles!$C$6*Fuel_Specs!$B$31)*(Petroleum!$B268*Petroleum!$D$262+Petroleum!$D268)+Vehicles!$C$34*(1-Vehicles!$C$6)*Fuel_Specs!$B$16/((1-Vehicles!$C$34)*(1-Vehicles!$C$6)*Fuel_Specs!$B$15+Vehicles!$C$34*(1-Vehicles!$C$6)*Fuel_Specs!$B$16+Vehicles!$C$6*Fuel_Specs!$B$31)*(Petroleum!B268*Petroleum!$F$262+Petroleum!$F268)+Vehicles!$C$6*Fuel_Specs!$B$31/((1-Vehicles!$C$34)*(1-Vehicles!$C$6)*Fuel_Specs!$B$15+Vehicles!$C$34*(1-Vehicles!$C$6)*Fuel_Specs!$B$16+Vehicles!$C$6*Fuel_Specs!$B$31)*(MeOH_FTD!$N168*MeOH_FTD!$O$162+MeOH_FTD!$O168))/1000000/HLOOKUP(Results_EnergyFunctionalUnit,$Z$7:$AD$8,2,0) -> 18.09966216 | L20: =(MeOH_FTD!$N168*MeOH_FTD!$O$162+MeOH_FTD!$O168)/1000000/HLOOKUP(Results_EnergyFunctionalUnit,$Z$7:$AD$8,2,0) -> 15.7485237 | M20: =((1-Vehicles!$C$36)*(1-Vehicles!$C$8)*Fuel_Specs!$B$15/((1-Vehicles!$C$36)*(1-Vehicles!$C$8)*Fuel_Specs!$B$15+Vehicles!$C$36*(1-Vehicles!$C$8)*Fuel_Specs!$B$16+Vehicles!$C$8*Fuel_Specs!$B$32)*(Petroleum!$B268*Petroleum!$D$262+(Petroleum!$D268-'T&D'!G220))+Vehicles!$C$36*(1-Vehicles!$C$8)*Fuel_Specs!$B$16/((1-Vehicles!$C$36)*(1-Vehicles!$C$8)*Fuel_Specs!$B$15+Vehicles!$C$36*(1-Vehicles!$C$8)*Fuel_Specs!$B$16+Vehicles!$C$8*Fuel_Specs!$B$32)*(Petroleum!B268*Petroleum!$F$262+Petroleum!$F268)+Vehicles!$C$8*Fuel_Specs!$B$32/((1-Vehicles!$C$36)*(1-Vehicles!$C$8)*Fuel_Specs!$B$15+Vehicles!$C$36*(1-Vehicles!$C$8)*Fuel_Specs!$B$16+Vehicles!$C$8*Fuel_Specs!$B$32)*(EtOH!BV552*EtOH!$BW$546+EtOH!$BW552)+Petroleum!AS129+Petroleum!AT129)/1000000/HLOOKUP(Results_EnergyFunctionalUnit,$Z$7:$AD$8,2,0) -> 324.7012688 | N20: =((1-Vehicles!$C$37)*(1-Vehicles!$C$12)*Fuel_Specs!$B$15/((1-Vehicles!$C$37)*(1-Vehicles!$C$12)*Fuel_Specs!$B$15+Vehicles!$C$37*(1-Vehicles!$C$12)*Fuel_Specs!$B$16+Vehicles!$C$12*Fuel_Specs!$B$33)*(Petroleum!$B268*Petroleum!$D$262+Petroleum!$D268)+Vehicles!$C$37*(1-Vehicles!$C$12)*Fuel_Specs!$B$16/((1-Vehicles!$C$37)*(1-Vehicles!$C$12)*Fuel_Specs!$B$15+Vehicles!$C$37*(1-Vehicles!$C$12)*Fuel_Specs!$B$16+Vehicles!$C$12*Fuel_Specs!$B$33)*(Petroleum!B268*Petroleum!$F$262+Petroleum!$F268)+Vehicles!$C$12*Fuel_Specs!$B$33/((1-Vehicles!$C$37)*(1-Vehicles!$C$12)*Fuel_Specs!$B$15+Vehicles!$C$37*(1-Vehicles!$C$12)*Fuel_Specs!$B$16+Vehicles!$C$12*Fuel_Specs!$B$33)*(EtOH!$BX552*EtOH!$BY$546+EtOH!$BY552))/1000000/HLOOKUP(Results_EnergyFunctionalUnit,$Z$7:$AD$8,2,0) -> 412.4660636 | O20: =((1-Vehicles!$C$36)*(1-Vehicles!$C$9)*Fuel_Specs!$B$15/((1-Vehicles!$C$36)*(1-Vehicles!$C$9)*Fuel_Specs!$B$15+Vehicles!$C$36*(1-Vehicles!$C$9)*Fuel_Specs!$B$16+Vehicles!$C$9*Fuel_Specs!$B$32)*(Petroleum!$B268*Petroleum!$D$262+(Petroleum!$D268-'T&D'!G220))+Vehicles!$C$36*(1-Vehicles!$C$9)*Fuel_Specs!$B$16/((1-Vehicles!$C$36)*(1-Vehicles!$C$9)*Fuel_Specs!$B$15+Vehicles!$C$36*(1-Vehicles!$C$9)*Fuel_Specs!$B$16+Vehicles!$C$9*Fuel_Specs!$B$32)*(Petroleum!B268*Petroleum!$F$262+Petroleum!$F268)+Vehicles!$C$9*Fuel_Specs!$B$32/((1-Vehicles!$C$36)*(1-Vehicles!$C$9)*Fuel_Specs!$B$15+Vehicles!$C$36*(1-Vehicles!$C$9)*Fuel_Specs!$B$16+Vehicles!$C$9*Fuel_Specs!$B$32)*(EtOH!BV552*EtOH!$BW$546+EtOH!$BW552)+Petroleum!AS129+Petroleum!AT129)/1000000/HLOOKUP(Results_EnergyFunctionalUnit,$Z$7:$AD$8,2,0) -> 324.7012688 | P20: =(EtOH!$BT552*EtOH!$BU$546+EtOH!$BU552)/1000000/HLOOKUP(Results_EnergyFunctionalUnit,$Z$7:$AD$8,2,0) -> 415.0192622 | Q20: =((1-Vehicles!$C$40)*(1-Vehicles!$C$16)*Fuel_Specs!$B$15/((1-Vehicles!$C$40)*(1-Vehicles!$C$16)*Fuel_Specs!$B$15+Vehicles!$C$40*(1-Vehicles!$C$16)*Fuel_Specs!$B$16+Vehicles!$C$16*Fuel_Specs!$B$46)*(Petroleum!$B268*Petroleum!$D$262+Petroleum!$D268)+Vehicles!$C$40*(1-Vehicles!$C$16)*Fuel_Specs!$B$16/((1-Vehicles!$C$40)*(1-Vehicles!$C$16)*Fuel_Specs!$B$15+Vehicles!$C$40*(1-Vehicles!$C$16)*Fuel_Specs!$B$16+Vehicles!$C$16*Fuel_Specs!$B$46)*(Petroleum!B268*Petroleum!$F$262+Petroleum!$F268)+Vehicles!$C$16*Fuel_Specs!$B$46/((1-Vehicles!$C$40)*(1-Vehicles!$C$16)*Fuel_Specs!$B$15+Vehicles!$C$40*(1-Vehicles!$C$16)*Fuel_Specs!$B$16+Vehicles!$C$16*Fuel_Specs!$B$46)*(BioOil!$CE438*BioOil!$CF$431+BioOil!$CF438))/1000000/HLOOKUP(Results_EnergyFunctionalUnit,$Z$7:$AD$8,2,0) -> 659.0718648 | R20: =((1-Vehicles!$C$40)*(1-Vehicles!$C$16)*Fuel_Specs!$B$15/((1-Vehicles!$C$40)*(1-Vehicles!$C$16)*Fuel_Specs!$B$15+Vehicles!$C$40*(1-Vehicles!$C$16)*Fuel_Specs!$B$16+Vehicles!$C$16*Fuel_Specs!$B$46)*(Petroleum!$B268*Petroleum!$D$262+Petroleum!$D268)+Vehicles!$C$40*(1-Vehicles!$C$16)*Fuel_Specs!$B$16/((1-Vehicles!$C$40)*(1-Vehicles!$C$16)*Fuel_Specs!$B$15+Vehicles!$C$40*(1-Vehicles!$C$16)*Fuel_Specs!$B$16+Vehicles!$C$16*Fuel_Specs!$B$46)*(Petroleum!B268*Petroleum!$F$262+Petroleum!$F268)+Vehicles!$C$16*Fuel_Specs!$B$46/((1-Vehicles!$C$40)*(1-Vehicles!$C$16)*Fuel_Specs!$B$15+Vehicles!$C$40*(1-Vehicles!$C$16)*Fuel_Specs!$B$16+Vehicles!$C$16*Fuel_Specs!$B$46)*(Pyrolysis_IDL!$AD303*Pyrolysis_IDL!$AE$297+Pyrolysis_IDL!$AE303))/1000000/HLOOKUP(Results_EnergyFunctionalUnit,$Z$7:$AD$8,2,0) -> 16.02985532 | S20: =AN20*(Vehicles!$C$30/Vehicles!$AT$72)/(Vehicles!$C$30*(1/Vehicles!$AT$72+1/Vehicles!$AU$72)+Vehicles!$C$31/Vehicles!$AV$72)+B20*(Vehicles!$C$30/Vehicles!$AU$72+Vehicles!$C$31/Vehicles!$AV$72)/(Vehicles!$C$30*(1/Vehicles!$AT$72+1/Vehicles!$AU$72)+Vehicles!$C$31/Vehicles!$AV$72) -> 130.0498418 | T20: =AN20*(Vehicles!$D$30/Vehicles!$AX$72)/(Vehicles!$D$30*(1/Vehicles!$AX$72+1/Vehicles!$AY$72)+Vehicles!$D$31/Vehicles!$AZ$72)+C20*(Vehicles!$D$30/Vehicles!$AY$72+Vehicles!$D$31/Vehicles!$AZ$72)/(Vehicles!$D$30*(1/Vehicles!$AX$72+1/Vehicles!$AY$72)+Vehicles!$D$31/Vehicles!$AZ$72) -> 131.2715919 | U20: =AN20*(Vehicles!$F$30/Vehicles!$BF$72)/(Vehicles!$F$30*(1/Vehicles!$BF$72+1/Vehicles!$BG$72)+Vehicles!$F$31/Vehicles!$BH$72)+D20*(Vehicles!$F$30/Vehicles!$BG$72+Vehicles!$F$31/Vehicles!$BH$72)/(Vehicles!$F$30*(1/Vehicles!$BF$72+1/Vehicles!$BG$72)+Vehicles!$F$31/Vehicles!$BH$72) -> 130.0498418 | V20: =AN20*(Vehicles!$G$30/Vehicles!$BJ$72)/(Vehicles!$G$30*(1/Vehicles!$BJ$72+1/Vehicles!$BK$72)+Vehicles!$G$31/Vehicles!$BL$72)+F20*(Vehicles!$G$30/Vehicles!$BK$72+Vehicles!$G$31/Vehicles!$BL$72)/(Vehicles!$G$30*(1/Vehicles!$BJ$72+1/Vehicles!$BK$72)+Vehicles!$G$31/Vehicles!$BL$72) -> 101.9805281 | W20: =AN20*(Vehicles!$H$30/Vehicles!$BN$72)/(Vehicles!$H$30*(1/Vehicles!$BN$72+1/Vehicles!$BO$72)+Vehicles!$H$31/Vehicles!$BP$72)+G20*(Vehicles!$H$30/Vehicles!$BO$72+Vehicles!$H$31/Vehicles!$BP$72)/(Vehicles!$H$30*(1/Vehicles!$BN$72+1/Vehicles!$BO$72)+Vehicles!$H$31/Vehicles!$BP$72) -> 98.96856795 | X20: =AN20*(Vehicles!$I$30/Vehicles!$BR$72)/(Vehicles!$I$30*(1/Vehicles!$BR$72+1/Vehicles!$BS$72)+Vehicles!$I$31/Vehicles!$BT$72)+H20*(Vehicles!$I$30/Vehicles!$BS$72+Vehicles!$I$31/Vehicles!$BT$72)/(Vehicles!$I$30*(1/Vehicles!$BR$72+1/Vehicles!$BS$72)+Vehicles!$I$31/Vehicles!$BT$72) -> 100.9437978 | Y20: =AN20*(Vehicles!$J$30/Vehicles!$BV$72)/(Vehicles!$J$30*(1/Vehicles!$BV$72+1/Vehicles!$BW$72)+Vehicles!$J$31/Vehicles!$BX$72)+K20*(Vehicles!$J$30/Vehicles!$BW$72+Vehicles!$J$31/Vehicles!$BX$72)/(Vehicles!$J$30*(1/Vehicles!$BV$72+1/Vehicles!$BW$72)+Vehicles!$J$31/Vehicles!$BX$72) -> 107.5262577 | Z20: =AN20*(Vehicles!$K$30/Vehicles!$BZ$72)/(Vehicles!$K$30*(1/Vehicles!$BZ$72+1/Vehicles!$CA$72)+Vehicles!$K$31/Vehicles!$CB$72)+O20*(Vehicles!$K$30/Vehicles!$CA$72+Vehicles!$K$31/Vehicles!$CB$72)/(Vehicles!$K$30*(1/Vehicles!$BZ$72+1/Vehicles!$CA$72)+Vehicles!$K$31/Vehicles!$CB$72) -> 298.2748614 | AA20: =AN20*(Vehicles!$L$30/Vehicles!$CD$72)/(Vehicles!$L$30*(1/Vehicles!$CD$72+1/Vehicles!$CE$72)+Vehicles!$L$31/Vehicles!$CF$72)+AO20*(Vehicles!$L$30/Vehicles!$CE$72+Vehicles!$L$31/Vehicles!$CF$72)/(Vehicles!$L$30*(1/Vehicles!$CD$72+1/Vehicles!$CE$72)+Vehicles!$L$31/Vehicles!$CF$72) -> 137.627437 | AB20: =AN20*(Vehicles!$L$30/Vehicles!$CD$72)/(Vehicles!$L$30*(1/Vehicles!$CD$72+1/Vehicles!$CE$72)+Vehicles!$L$31/Vehicles!$CG$72)+AP20*(Vehicles!$L$30/Vehicles!$CE$72+Vehicles!$L$31/Vehicles!$CG$72)/(Vehicles!$L$30*(1/Vehicles!$CD$72+1/Vehicles!$CE$72)+Vehicles!$L$31/Vehicles!$CG$72) -> 184.2657793 | AC20: =(MeOH_FTD!$AJ168*MeOH_FTD!$AK$162+MeOH_FTD!$AK168)/1000000/HLOOKUP(Results_EnergyFunctionalUnit,$Z$7:$AD$8,2,0) -> 16.34673933 | AD20: =((1-Vehicles!$C$41)*(1-Vehicles!$C$13)*Fuel_Specs!$B$20/((1-Vehicles!$C$41)*(1-Vehicles!$C$13)*Fuel_Specs!$B$20+Vehicles!$C$41*(1-Vehicles!$C$13)*Fuel_Specs!$B$23+Vehicles!$C$13*Fuel_Specs!$B$41)*(Petroleum!B268*Petroleum!$J$262+Petroleum!$J268)+Vehicles!$C$41*(1-Vehicles!$C$13)*Fuel_Specs!$B$23/((1-Vehicles!$C$41)*(1-Vehicles!$C$13)*Fuel_Specs!$B$20+Vehicles!$C$41*(1-Vehicles!$C$13)*Fuel_Specs!$B$23+Vehicles!$C$13*Fuel_Specs!$B$41)*(Petroleum!B268*IF(Inputs!F$102=1,Petroleum!$K$262,Petroleum!$L$262)+IF(Inputs!F$102=1,Petroleum!$K268,Petroleum!$L268))+Vehicles!$C$13*Fuel_Specs!$B$41/((1-Vehicles!$C$41)*(1-Vehicles!$C$13)*Fuel_Specs!$B$20+Vehicles!$C$41*(1-Vehicles!$C$13)*Fuel_Specs!$B$23+Vehicles!$C$13*Fuel_Specs!$B$41)*(MeOH_FTD!$AZ168*MeOH_FTD!$BA$162+MeOH_FTD!$BA168))/1000000/HLOOKUP(Results_EnergyFunctionalUnit,$Z$7:$AD$8,2,0) -> 31.57881716 | AE20: =((1-Vehicles!$C$42)*(1-Vehicles!$C$14)*Fuel_Specs!$B$20/((1-Vehicles!$C$42)*(1-Vehicles!$C$14)*Fuel_Specs!$B$20+Vehicles!$C$42*(1-Vehicles!$C$14)*Fuel_Specs!$B$23+Vehicles!$C$14*Fuel_Specs!$B$40)*(Petroleum!B268*Petroleum!$J$262+Petroleum!$J268)+Vehicles!$C$42*(1-Vehicles!$C$14)*Fuel_Specs!$B$23/((1-Vehicles!$C$42)*(1-Vehicles!$C$14)*Fuel_Specs!$B$20+Vehicles!$C$42*(1-Vehicles!$C$14)*Fuel_Specs!$B$23+Vehicles!$C$14*Fuel_Specs!$B$40)*(Petroleum!B268*IF(Inputs!F$102=1,Petroleum!$K$262,Petroleum!$L$262)+IF(Inputs!F$102=1,Petroleum!$K268,Petroleum!$L268))+Vehicles!$C$14*Fuel_Specs!$B$40/((1-Vehicles!$C$42)*(1-Vehicles!$C$14)*Fuel_Specs!$B$20+Vehicles!$C$42*(1-Vehicles!$C$14)*Fuel_Specs!$B$23+Vehicles!$C$14*Fuel_Specs!$B$40)*(BioOil!$Y438*BioOil!$Z$431+BioOil!$Z438))/1000000/HLOOKUP(Results_EnergyFunctionalUnit,$Z$7:$AD$8,2,0) -> 137.3518754 | AF20: =((1-Vehicles!$C$43)*(1-Vehicles!$C$15)*Fuel_Specs!$B$20/((1-Vehicles!$C$43)*(1-Vehicles!$C$15)*Fuel_Specs!$B$20+Vehicles!$C$43*(1-Vehicles!$C$15)*Fuel_Specs!$B$23+Vehicles!$C$15*IF(Inputs!$E$670=1,IF(Inputs!$E$670=1,Fuel_Specs!$B$42,IF(Inputs!$E$670=3,Fuel_Specs!$B$44,Fuel_Specs!$B$43)),Fuel_Specs!$B$43))*(Petroleum!B268*Petroleum!$J$262+Petroleum!$J268)+Vehicles!$C$43*(1-Vehicles!$C$15)*Fuel_Specs!$B$23/((1-Vehicles!$C$43)*(1-Vehicles!$C$15)*Fuel_Specs!$B$20+Vehicles!$C$43*(1-Vehicles!$C$15)*Fuel_Specs!$B$23+Vehicles!$C$15*IF(Inputs!$E$670=1,IF(Inputs!$E$670=1,Fuel_Specs!$B$42,IF(Inputs!$E$670=3,Fuel_Specs!$B$44,Fuel_Specs!$B$43)),Fuel_Specs!$B$43))*(Petroleum!B268*IF(Inputs!F$102=1,Petroleum!$K$262,Petroleum!$L$262)+IF(Inputs!F$102=1,Petroleum!$K268,Petroleum!$L268))+Vehicles!$C$15*IF(Inputs!$E$670=1,IF(Inputs!$E$670=1,Fuel_Specs!$B$42,IF(Inputs!$E$670=3,Fuel_Specs!$B$44,Fuel_Specs!$B$43)),Fuel_Specs!$B$43)/((1-Vehicles!$C$43)*(1-Vehicles!$C$15)*Fuel_Specs!$B$20+Vehicles!$C$43*(1-Vehicles!$C$15)*Fuel_Specs!$B$23+Vehicles!$C$15*IF(Inputs!$E$670=1,IF(Inputs!$E$670=1,Fuel_Specs!$B$42,IF(Inputs!$E$670=3,Fuel_Specs!$B$44,Fuel_Specs!$B$43)),Fuel_Specs!$B$43))*(BioOil!$BQ438*BioOil!$BR$431+BioOil!$BR438))/1000000/HLOOKUP(Results_EnergyFunctionalUnit,$Z$7:$AD$8,2,0) -> 636.8072139 | AG20: =((1-Vehicles!$C$43)*(1-Vehicles!$C$15)*Fuel_Specs!$B$20/((1-Vehicles!$C$43)*(1-Vehicles!$C$15)*Fuel_Specs!$B$20+Vehicles!$C$43*(1-Vehicles!$C$15)*Fuel_Specs!$B$23+Vehicles!$C$15*IF(Inputs!$E$670=1,Fuel_Specs!$B$42,Fuel_Specs!$B$43))*(Petroleum!B268*Petroleum!$J$262+Petroleum!$J268)+Vehicles!$C$43*(1-Vehicles!$C$15)*Fuel_Specs!$B$23/((1-Vehicles!$C$43)*(1-Vehicles!$C$15)*Fuel_Specs!$B$20+Vehicles!$C$43*(1-Vehicles!$C$15)*Fuel_Specs!$B$23+Vehicles!$C$15*IF(Inputs!$E$670=1,Fuel_Specs!$B$42,Fuel_Specs!$B$43))*(Petroleum!B268*IF(Inputs!F$102=1,Petroleum!$K$262,Petroleum!$L$262)+IF(Inputs!F$102=1,Petroleum!$K268,Petroleum!$L268))+Vehicles!$C$15*IF(Inputs!$E$670=1,Fuel_Specs!$B$42,Fuel_Specs!$B$43)/((1-Vehicles!$C$43)*(1-Vehicles!$C$15)*Fuel_Specs!$B$20+Vehicles!$C$43*(1-Vehicles!$C$15)*Fuel_Specs!$B$23+Vehicles!$C$15*IF(Inputs!$E$670=1,Fuel_Specs!$B$42,Fuel_Specs!$B$43))*(Pyrolysis_IDL!$AF303*Pyrolysis_IDL!$AG$297+Pyrolysis_IDL!$AG303))/1000000/HLOOKUP(Results_EnergyFunctionalUnit,$Z$7:$AD$8,2,0) -> 13.38545206 | AH20: =(((1-Vehicles!$C$44)*(1-Vehicles!$C$17-Vehicles!$C$18)*Fuel_Specs!$B$20*(Petroleum!B268*Petroleum!$J$262+Petroleum!$J268)+Vehicles!$C$44*(1-Vehicles!$C$17-Vehicles!$C$18)*Fuel_Specs!$B$23*(Petroleum!B268*IF(Inputs!F$102=1,Petroleum!$K$262,Petroleum!$L$262)+IF(Inputs!F$102=1,Petroleum!$K268,Petroleum!$L268))+Vehicles!$C$17*Fuel_Specs!$B$32*(EtOH!BT552*EtOH!$BU$546+EtOH!$BU552)+Vehicles!$C$18*Fuel_Specs!$B$35*('EtOH-Diesel Additives'!$B59*'EtOH-Diesel Additives'!$B$53))/((1-Vehicles!$C$44)*(1-Vehicles!$C$17-Vehicles!$C$18)*Fuel_Specs!$B$20+Vehicles!$C$44*(1-Vehicles!$C$17-Vehicles!$C$18)*Fuel_Specs!$B$23+Vehicles!$C$17*Fuel_Specs!$B$32+Vehicles!$C$18*Fuel_Specs!$B$35))/1000000/HLOOKUP(Results_EnergyFunctionalUnit,$Z$7:$AD$8,2,0) -> 48.29782565 | AI20: =AN20*(Vehicles!$M$30/Vehicles!$CO$72)/(Vehicles!$M$30*(1/Vehicles!$CO$72+1/Vehicles!$CP$72)+Vehicles!$M$31/Vehicles!$CQ$72)+E20*(Vehicles!$M$30/Vehicles!$CP$72+Vehicles!$M$31/Vehicles!$CQ$72)/(Vehicles!$M$30*(1/Vehicles!$CO$72+1/Vehicles!$CP$72)+Vehicles!$M$31/Vehicles!$CQ$72) -> 92.788906 | AJ20: =AN20*(Vehicles!$N$30/Vehicles!$CS$72)/(Vehicles!$N$30*(1/Vehicles!$CS$72+1/Vehicles!$CT$72)+Vehicles!$N$31/Vehicles!$CU$72)+AC20*(Vehicles!$N$30/Vehicles!$CT$72+Vehicles!$N$31/Vehicles!$CU$72)/(Vehicles!$N$30*(1/Vehicles!$CS$72+1/Vehicles!$CT$72)+Vehicles!$N$31/Vehicles!$CU$72) -> 87.18063713 | AK20: =AN20*(Vehicles!$O$30/Vehicles!$CW$72)/(Vehicles!$O$30*(1/Vehicles!$CW$72+1/Vehicles!$CX$72)+Vehicles!$O$31/Vehicles!$CY$72)+AD20*(Vehicles!$O$30/Vehicles!$CX$72+Vehicles!$O$31/Vehicles!$CY$72)/(Vehicles!$O$30*(1/Vehicles!$CW$72+1/Vehicles!$CX$72)+Vehicles!$O$31/Vehicles!$CY$72) -> 97.88726678 | AL20: =AN20*(Vehicles!$P$30/Vehicles!$DA$72)/(Vehicles!$P$30*(1/Vehicles!$DA$72+1/Vehicles!$DB$72)+Vehicles!$P$31/Vehicles!$DC$72)+AE20*(Vehicles!$P$30/Vehicles!$DB$72+Vehicles!$P$31/Vehicles!$DC$72)/(Vehicles!$P$30*(1/Vehicles!$DA$72+1/Vehicles!$DB$72)+Vehicles!$P$31/Vehicles!$DC$72) -> 172.2351643 | AM20: =AN20*(Vehicles!$R$30/Vehicles!$DI$72)/(Vehicles!$R$30*(1/Vehicles!$DI$72+1/Vehicles!$DJ$72)+Vehicles!$R$31/Vehicles!$DK$72)+AH20*(Vehicles!$R$30/Vehicles!$DJ$72+Vehicles!$R$31/Vehicles!$DK$72)/(Vehicles!$R$30*(1/Vehicles!$DI$72+1/Vehicles!$DJ$72)+Vehicles!$R$31/Vehicles!$DK$72) -> 109.6390602 | AN20: =(Electric!$G209+Electric!$F209)/1000000/HLOOKUP(Results_EnergyFunctionalUnit,$Z$7:$AD$8,2,0) -> 254.7645494 | AO20: =(Hydrogen!$AJ311*Hydrogen!$AK$305+Hydrogen!$AK311)/1000000*HLOOKUP($H$10,$Z$3:$AD$4,2,FALSE)/HLOOKUP($J$11,$Z$7:$AD$8,2,FALSE) -> 66.48308288 | AP20: =(Hydrogen!$BT311*Hydrogen!$BU$305+Hydrogen!$BU311)/1000000/HLOOKUP(Results_EnergyFunctionalUnit,$Z$7:$AD$8,2,0) -> 141.4476718 | AQ20: =AN20*(Vehicles!$S$30/Vehicles!$DY$72)/(Vehicles!$S$30*(1/Vehicles!$DY$72+1/Vehicles!$DZ$72)+Vehicles!$S$31/Vehicles!$EA$72)+AO20*(Vehicles!$S$30/Vehicles!$DZ$72+Vehicles!$S$31/Vehicles!$EA$72)/(Vehicles!$S$30*(1/Vehicles!$DY$72+1/Vehicles!$DZ$72)+Vehicles!$S$31/Vehicles!$EA$72) -> 142.6430281 | AR20: =AN20*(Vehicles!$S$30/Vehicles!$DY$72)/(Vehicles!$S$30*(1/Vehicles!$DY$72+1/Vehicles!$DZ$72)+Vehicles!$S$31/Vehicles!$EA$72)+AP20*(Vehicles!$S$30/Vehicles!$DZ$72+Vehicles!$S$31/Vehicles!$EA$72)/(Vehicles!$S$30*(1/Vehicles!$DY$72+1/Vehicles!$DZ$72)+Vehicles!$S$31/Vehicles!$EA$72) -> 187.2844041 | AS20: =((1-Vehicles!$C$40)*(1-Vehicles!$C$16)*Fuel_Specs!$B$15/((1-Vehicles!$C$40)*(1-Vehicles!$C$16)*Fuel_Specs!$B$15+Vehicles!$C$40*(1-Vehicles!$C$16)*Fuel_Specs!$B$16+Vehicles!$C$16*Fuel_Specs!$B$47)*(Petroleum!$B268*Petroleum!$D$262+Petroleum!$D268)+Vehicles!$C$40*(1-Vehicles!$C$16)*Fuel_Specs!$B$16/((1-Vehicles!$C$40)*(1-Vehicles!$C$16)*Fuel_Specs!$B$15+Vehicles!$C$40*(1-Vehicles!$C$16)*Fuel_Specs!$B$16+Vehicles!$C$16*Fuel_Specs!$B$47)*(Petroleum!B268*Petroleum!$F$262+Petroleum!$F268)+Vehicles!$C$16*Fuel_Specs!$B$47/((1-Vehicles!$C$40)*(1-Vehicles!$C$16)*Fuel_Specs!$B$15+Vehicles!$C$40*(1-Vehicles!$C$16)*Fuel_Specs!$B$16+Vehicles!$C$16*Fuel_Specs!$B$47)*(Pyrolysis_IDL!$AP303*Pyrolysis_IDL!$AQ$297+Pyrolysis_IDL!$AQ303))/1000000/HLOOKUP(Results_EnergyFunctionalUnit,$Z$7:$AD$8,2,0) -> 44.70749687 | AT20: =(Petroleum!$B268*Petroleum!$S$262+Petroleum!$S268)/1000000/HLOOKUP(Results_EnergyFunctionalUnit,$Z$7:$AD$8,2,0) -> 23.0686403 | AU20: 53.6795476 | AV20: 36.82046777 | BB20: SI - MeOH FFV | BC20: RNAVMEOHFFV | BH20: CIDI - RD from Pyrolysis | BI20: RNAVRENDIESEL2CIDI | BK20: SI HEV - LNG | BL20: RNAVHEVLNG | BN20: SI PHEV - LNG and Electricity | BO20: RNAVPHEVLNG | BQ20: CIDI HEV - EtOH-Diesel | BR20: RNAVHEVEDIESEL | BT20: CIDI PHEV - EtOH-Diesel and Electricity | BU20: RNAVPHEVEDIESEL
A21: CO2 (w/ C in VOC & CO) | B21: =(Inputs!$E$1500*(Petroleum!$B279*Petroleum!$F$262+Petroleum!$F279)+(1-Inputs!$E$1500)*(Petroleum!$B279*Petroleum!$D$262+Petroleum!$D279)+Vehicles!B95/Vehicles!B73*1000000)/1000000*HLOOKUP($J$10,$Z$5:$AD$6,2,FALSE)/HLOOKUP($J$11,$Z$7:$AD$8,2,FALSE)+B25*Fuel_Specs!$B$153/Fuel_Specs!$B$156+B26*Fuel_Specs!$B$154/Fuel_Specs!$B$156 -> 12882.19955 | C21: =((Petroleum!$C279*Petroleum!$G$262+Petroleum!$G279)+Vehicles!C95/Vehicles!C73*1000000)/1000000*HLOOKUP($J$10,$Z$5:$AD$6,2,FALSE)/HLOOKUP($J$11,$Z$7:$AD$8,2,FALSE)+C25*Fuel_Specs!$B$153/Fuel_Specs!$B$156+C26*Fuel_Specs!$B$154/Fuel_Specs!$B$156 -> 12321.12461 | D21: =((1-Vehicles!$C$35)*(1-Vehicles!$C$7)*Fuel_Specs!$B$15/((1-Vehicles!$C$35)*(1-Vehicles!$C$7)*Fuel_Specs!$B$15+Vehicles!$C$35*(1-Vehicles!$C$7)*Fuel_Specs!$B$16+Vehicles!$C$7*Fuel_Specs!$B$32)*(Petroleum!$B279*Petroleum!$D$262+(Petroleum!$D279-'T&D'!G232))+Vehicles!$C$35*(1-Vehicles!$C$7)*Fuel_Specs!$B$16/((1-Vehicles!$C$35)*(1-Vehicles!$C$7)*Fuel_Specs!$B$15+Vehicles!$C$35*(1-Vehicles!$C$7)*Fuel_Specs!$B$16+Vehicles!$C$7*Fuel_Specs!$B$32)*(Petroleum!B279*Petroleum!$F$262+Petroleum!$F279)+Vehicles!$C$7*Fuel_Specs!$B$32/((1-Vehicles!$C$35)*(1-Vehicles!$C$7)*Fuel_Specs!$B$15+Vehicles!$C$35*(1-Vehicles!$C$7)*Fuel_Specs!$B$16+Vehicles!$C$7*Fuel_Specs!$B$32)*(EtOH!BV563*EtOH!$BW$546+EtOH!$BW563)+Petroleum!AS141+Petroleum!AT141+Vehicles!D95/Vehicles!D73*1000000)/1000000*HLOOKUP($J$10,$Z$5:$AD$6,2,FALSE)/HLOOKUP($J$11,$Z$7:$AD$8,2,FALSE)+D25*Fuel_Specs!$B$153/Fuel_Specs!$B$156+D26*Fuel_Specs!$B$154/Fuel_Specs!$B$156 -> 12882.19955 | E21: =(Inputs!$E$97*(IF(Inputs!F$102=1,Petroleum!$B279,Petroleum!$C279)*IF(Inputs!F$102=1,Petroleum!$K$262,Petroleum!$L$262)+IF(Inputs!F$102=1,Petroleum!$K279,Petroleum!$L279))+(1-Inputs!$E$97)*(IF(Inputs!F$101=1,Petroleum!$B279,Petroleum!$C279)*Petroleum!$J$262+Petroleum!$J279))/1000000*HLOOKUP($J$10,$Z$5:$AD$6,2,FALSE)/HLOOKUP($J$11,$Z$7:$AD$8,2,FALSE)+E25*Fuel_Specs!$B$153/Fuel_Specs!$B$156+E26*Fuel_Specs!$B$154/Fuel_Specs!$B$156 -> 12194.10902 | F21: =(NG!$J101*NG!$K$84+NG!$K101)/1000000*HLOOKUP($J$10,$Z$5:$AD$6,2,FALSE)/HLOOKUP($J$11,$Z$7:$AD$8,2,FALSE)+F25*Fuel_Specs!$B$153/Fuel_Specs!$B$156+F26*Fuel_Specs!$B$154/Fuel_Specs!$B$156 -> 7952.146932 | G21: =(NG!$R101*NG!$S$84+NG!$S101)/1000000*HLOOKUP($J$10,$Z$5:$AD$6,2,FALSE)/HLOOKUP($J$11,$Z$7:$AD$8,2,FALSE)+G25*Fuel_Specs!$B$153/Fuel_Specs!$B$156+G26*Fuel_Specs!$B$154/Fuel_Specs!$B$156 -> 11653.99721 | H21: =(NG!$X101*NG!$Y$84+NG!$Y101)/1000000*HLOOKUP($J$10,$Z$5:$AD$6,2,FALSE)/HLOOKUP($J$11,$Z$7:$AD$8,2,FALSE)+H25*Fuel_Specs!$B$153/Fuel_Specs!$B$156+H26*Fuel_Specs!$B$154/Fuel_Specs!$B$156 -> 9036.093778 | I21: =(MeOH_FTD!BJ179*MeOH_FTD!BK$162+MeOH_FTD!BK179)/1000000*HLOOKUP($J$10,$Z$5:$AD$6,2,FALSE)/HLOOKUP($J$11,$Z$7:$AD$8,2,FALSE)+I25*Fuel_Specs!$B$153/Fuel_Specs!$B$156+I26*Fuel_Specs!$B$154/Fuel_Specs!$B$156 -> 34683.93297 | J21: =((1-Vehicles!$C$34)*(1-Vehicles!$C$5)*Fuel_Specs!$B$15/((1-Vehicles!$C$34)*(1-Vehicles!$C$5)*Fuel_Specs!$B$15+Vehicles!$C$34*(1-Vehicles!$C$5)*Fuel_Specs!$B$16+Vehicles!$C$5*Fuel_Specs!$B$31)*(Petroleum!$B279*Petroleum!$D$262+Petroleum!$D279)+Vehicles!$C$34*(1-Vehicles!$C$5)*Fuel_Specs!$B$16/((1-Vehicles!$C$34)*(1-Vehicles!$C$5)*Fuel_Specs!$B$15+Vehicles!$C$34*(1-Vehicles!$C$5)*Fuel_Specs!$B$16+Vehicles!$C$5*Fuel_Specs!$B$31)*(Petroleum!B279*Petroleum!$F$262+Petroleum!$F279)+Vehicles!$C$5*Fuel_Specs!$B$31/((1-Vehicles!$C$34)*(1-Vehicles!$C$5)*Fuel_Specs!$B$15+Vehicles!$C$34*(1-Vehicles!$C$5)*Fuel_Specs!$B$16+Vehicles!$C$5*Fuel_Specs!$B$31)*(MeOH_FTD!$N179*MeOH_FTD!$O$162+MeOH_FTD!$O179)+Vehicles!I95/Vehicles!I73*1000000)/1000000*HLOOKUP($J$10,$Z$5:$AD$6,2,FALSE)/HLOOKUP($J$11,$Z$7:$AD$8,2,FALSE)+J25*Fuel_Specs!$B$153/Fuel_Specs!$B$156+J26*Fuel_Specs!$B$154/Fuel_Specs!$B$156 -> 16475.85467 | K21: =((1-Vehicles!$C$34)*(1-Vehicles!$C$6)*Fuel_Specs!$B$15/((1-Vehicles!$C$34)*(1-Vehicles!$C$6)*Fuel_Specs!$B$15+Vehicles!$C$34*(1-Vehicles!$C$6)*Fuel_Specs!$B$16+Vehicles!$C$6*Fuel_Specs!$B$31)*(Petroleum!$B279*Petroleum!$D$262+Petroleum!$D279)+Vehicles!$C$34*(1-Vehicles!$C$6)*Fuel_Specs!$B$16/((1-Vehicles!$C$34)*(1-Vehicles!$C$6)*Fuel_Specs!$B$15+Vehicles!$C$34*(1-Vehicles!$C$6)*Fuel_Specs!$B$16+Vehicles!$C$6*Fuel_Specs!$B$31)*(Petroleum!B279*Petroleum!$F$262+Petroleum!$F279)+Vehicles!$C$6*Fuel_Specs!$B$31/((1-Vehicles!$C$34)*(1-Vehicles!$C$6)*Fuel_Specs!$B$15+Vehicles!$C$34*(1-Vehicles!$C$6)*Fuel_Specs!$B$16+Vehicles!$C$6*Fuel_Specs!$B$31)*(MeOH_FTD!$N179*MeOH_FTD!$O$162+MeOH_FTD!$O179)+Vehicles!J95/Vehicles!J73*1000000)/1000000*HLOOKUP($J$10,$Z$5:$AD$6,2,FALSE)/HLOOKUP($J$11,$Z$7:$AD$8,2,FALSE)+K25*Fuel_Specs!$B$153/Fuel_Specs!$B$156+K26*Fuel_Specs!$B$154/Fuel_Specs!$B$156 -> 16503.12351 | L21: =(MeOH_FTD!$N179*MeOH_FTD!$O$162+MeOH_FTD!$O179)/1000000*HLOOKUP($J$10,$Z$5:$AD$6,2,FALSE)/HLOOKUP($J$11,$Z$7:$AD$8,2,FALSE)+L25*Fuel_Specs!$B$153/Fuel_Specs!$B$156+L26*Fuel_Specs!$B$154/Fuel_Specs!$B$156 -> 16566.06903 | M21: =((1-Vehicles!$C$36)*(1-Vehicles!$C$8)*Fuel_Specs!$B$15/((1-Vehicles!$C$36)*(1-Vehicles!$C$8)*Fuel_Specs!$B$15+Vehicles!$C$36*(1-Vehicles!$C$8)*Fuel_Specs!$B$16+Vehicles!$C$8*Fuel_Specs!$B$32)*(Petroleum!$B279*Petroleum!$D$262+(Petroleum!$D279-'T&D'!G232))+Vehicles!$C$36*(1-Vehicles!$C$8)*Fuel_Specs!$B$16/((1-Vehicles!$C$36)*(1-Vehicles!$C$8)*Fuel_Specs!$B$15+Vehicles!$C$36*(1-Vehicles!$C$8)*Fuel_Specs!$B$16+Vehicles!$C$8*Fuel_Specs!$B$32)*(Petroleum!B279*Petroleum!$F$262+Petroleum!$F279)+Vehicles!$C$8*Fuel_Specs!$B$32/((1-Vehicles!$C$36)*(1-Vehicles!$C$8)*Fuel_Specs!$B$15+Vehicles!$C$36*(1-Vehicles!$C$8)*Fuel_Specs!$B$16+Vehicles!$C$8*Fuel_Specs!$B$32)*(EtOH!BV563*EtOH!$BW$546+EtOH!$BW563)+Petroleum!AS141+Petroleum!AT141+Vehicles!K95/Vehicles!K73*1000000)/1000000*HLOOKUP($J$10,$Z$5:$AD$6,2,FALSE)/HLOOKUP($J$11,$Z$7:$AD$8,2,FALSE)+M25*Fuel_Specs!$B$153/Fuel_Specs!$B$156+M26*Fuel_Specs!$B$154/Fuel_Specs!$B$156 -> -22223.51903 | N21: =((1-Vehicles!$C$37)*(1-Vehicles!$C$12)*Fuel_Specs!$B$15/((1-Vehicles!$C$37)*(1-Vehicles!$C$12)*Fuel_Specs!$B$15+Vehicles!$C$37*(1-Vehicles!$C$12)*Fuel_Specs!$B$16+Vehicles!$C$12*Fuel_Specs!$B$33)*(Petroleum!$B279*Petroleum!$D$262+Petroleum!$D279)+Vehicles!$C$37*(1-Vehicles!$C$12)*Fuel_Specs!$B$16/((1-Vehicles!$C$37)*(1-Vehicles!$C$12)*Fuel_Specs!$B$15+Vehicles!$C$37*(1-Vehicles!$C$12)*Fuel_Specs!$B$16+Vehicles!$C$12*Fuel_Specs!$B$33)*(Petroleum!B279*Petroleum!$F$262+Petroleum!$F279)+Vehicles!$C$12*Fuel_Specs!$B$33/((1-Vehicles!$C$37)*(1-Vehicles!$C$12)*Fuel_Specs!$B$15+Vehicles!$C$37*(1-Vehicles!$C$12)*Fuel_Specs!$B$16+Vehicles!$C$12*Fuel_Specs!$B$33)*(EtOH!$BX563*EtOH!$BY$546+EtOH!$BY563)+Vehicles!L95/Vehicles!L73*1000000)/1000000*HLOOKUP($J$10,$Z$5:$AD$6,2,FALSE)/HLOOKUP($J$11,$Z$7:$AD$8,2,FALSE)+N25*Fuel_Specs!$B$153/Fuel_Specs!$B$156+N26*Fuel_Specs!$B$154/Fuel_Specs!$B$156 -> -32027.96329 | O21: =((1-Vehicles!$C$36)*(1-Vehicles!$C$9)*Fuel_Specs!$B$15/((1-Vehicles!$C$36)*(1-Vehicles!$C$9)*Fuel_Specs!$B$15+Vehicles!$C$36*(1-Vehicles!$C$9)*Fuel_Specs!$B$16+Vehicles!$C$9*Fuel_Specs!$B$32)*(Petroleum!$B279*Petroleum!$D$262+(Petroleum!$D279-'T&D'!G232))+Vehicles!$C$36*(1-Vehicles!$C$9)*Fuel_Specs!$B$16/((1-Vehicles!$C$36)*(1-Vehicles!$C$9)*Fuel_Specs!$B$15+Vehicles!$C$36*(1-Vehicles!$C$9)*Fuel_Specs!$B$16+Vehicles!$C$9*Fuel_Specs!$B$32)*(Petroleum!B279*Petroleum!$F$262+Petroleum!$F279)+Vehicles!$C$9*Fuel_Specs!$B$32/((1-Vehicles!$C$36)*(1-Vehicles!$C$9)*Fuel_Specs!$B$15+Vehicles!$C$36*(1-Vehicles!$C$9)*Fuel_Specs!$B$16+Vehicles!$C$9*Fuel_Specs!$B$32)*(EtOH!BV563*EtOH!$BW$546+EtOH!$BW563)+Petroleum!AS141+Petroleum!AT141+Vehicles!M95/Vehicles!M73*1000000)/1000000*HLOOKUP($J$10,$Z$5:$AD$6,2,FALSE)/HLOOKUP($J$11,$Z$7:$AD$8,2,FALSE)+O25*Fuel_Specs!$B$153/Fuel_Specs!$B$156+O26*Fuel_Specs!$B$154/Fuel_Specs!$B$156 -> -22223.51903 | P21: =(EtOH!$BT563*EtOH!$BU$546+EtOH!$BU563+Vehicles!DS95/Vehicles!DS73*1000000)/1000000*HLOOKUP($J$10,$Z$5:$AD$6,2,FALSE)/HLOOKUP($J$11,$Z$7:$AD$8,2,FALSE)+P25*Fuel_Specs!$B$153/Fuel_Specs!$B$156+P26*Fuel_Specs!$B$154/Fuel_Specs!$B$156 -> -33894.30822 | Q21: =((1-Vehicles!$C$40)*(1-Vehicles!$C$16)*Fuel_Specs!$B$15/((1-Vehicles!$C$40)*(1-Vehicles!$C$16)*Fuel_Specs!$B$15+Vehicles!$C$40*(1-Vehicles!$C$16)*Fuel_Specs!$B$16+Vehicles!$C$16*Fuel_Specs!$B46)*(Petroleum!$B279*Petroleum!$D$262+Petroleum!$D279)+Vehicles!$C$40*(1-Vehicles!$C$16)*Fuel_Specs!$B$16/((1-Vehicles!$C$40)*(1-Vehicles!$C$16)*Fuel_Specs!$B$15+Vehicles!$C$40*(1-Vehicles!$C$16)*Fuel_Specs!$B$16+Vehicles!$C$16*Fuel_Specs!$B46)*(Petroleum!B279*Petroleum!$F$262+Petroleum!$F279)+Vehicles!$C$16*Fuel_Specs!$B46/((1-Vehicles!$C$40)*(1-Vehicles!$C$16)*Fuel_Specs!$B$15+Vehicles!$C$40*(1-Vehicles!$C$16)*Fuel_Specs!$B$16+Vehicles!$C$16*Fuel_Specs!$B46)*(BioOil!$CE449*BioOil!$CF$431+BioOil!$CF449)+Vehicles!P95/Vehicles!P73*1000000)/1000000*HLOOKUP($J$10,$Z$5:$AD$6,2,FALSE)/HLOOKUP($J$11,$Z$7:$AD$8,2,FALSE)+Q25*Fuel_Specs!$B$153/Fuel_Specs!$B$156+Q26*Fuel_Specs!$B$154/Fuel_Specs!$B$156 -> -67551.16805 | R21: =((1-Vehicles!$C$40)*(1-Vehicles!$C$16)*Fuel_Specs!$B$15/((1-Vehicles!$C$40)*(1-Vehicles!$C$16)*Fuel_Specs!$B$15+Vehicles!$C$40*(1-Vehicles!$C$16)*Fuel_Specs!$B$16+Vehicles!$C$16*Fuel_Specs!$B46)*(Petroleum!$B279*Petroleum!$D$262+Petroleum!$D279)+Vehicles!$C$40*(1-Vehicles!$C$16)*Fuel_Specs!$B$16/((1-Vehicles!$C$40)*(1-Vehicles!$C$16)*Fuel_Specs!$B$15+Vehicles!$C$40*(1-Vehicles!$C$16)*Fuel_Specs!$B$16+Vehicles!$C$16*Fuel_Specs!$B46)*(Petroleum!B279*Petroleum!$F$262+Petroleum!$F279)+Vehicles!$C$16*Fuel_Specs!$B46/((1-Vehicles!$C$40)*(1-Vehicles!$C$16)*Fuel_Specs!$B$15+Vehicles!$C$40*(1-Vehicles!$C$16)*Fuel_Specs!$B$16+Vehicles!$C$16*Fuel_Specs!$B46)*(Pyrolysis_IDL!$AD314*Pyrolysis_IDL!$AE$297+Pyrolysis_IDL!$AE314)+Vehicles!P95/Vehicles!P73*1000000)/1000000*HLOOKUP($J$10,$Z$5:$AD$6,2,FALSE)/HLOOKUP($J$11,$Z$7:$AD$8,2,FALSE)+R25*Fuel_Specs!$B$153/Fuel_Specs!$B$156+R26*Fuel_Specs!$B$154/Fuel_Specs!$B$156 -> -55373.26488 | S21: =AN21*(Vehicles!$C$30/Vehicles!$AT$72)/(Vehicles!$C$30*(1/Vehicles!$AT$72+1/Vehicles!$AU$72)+Vehicles!$C$31/Vehicles!$AV$72)+B21*(Vehicles!$C$30/Vehicles!$AU$72+Vehicles!$C$31/Vehicles!$AV$72)/(Vehicles!$C$30*(1/Vehicles!$AT$72+1/Vehicles!$AU$72)+Vehicles!$C$31/Vehicles!$AV$72) -> 28224.39919 | T21: =AN21*(Vehicles!$D$30/Vehicles!$AX$72)/(Vehicles!$D$30*(1/Vehicles!$AX$72+1/Vehicles!$AY$72)+Vehicles!$D$31/Vehicles!$AZ$72)+C21*(Vehicles!$D$30/Vehicles!$AY$72+Vehicles!$D$31/Vehicles!$AZ$72)/(Vehicles!$D$30*(1/Vehicles!$AX$72+1/Vehicles!$AY$72)+Vehicles!$D$31/Vehicles!$AZ$72) -> 27875.33298 | U21: =AN21*(Vehicles!$F$30/Vehicles!$BF$72)/(Vehicles!$F$30*(1/Vehicles!$BF$72+1/Vehicles!$BG$72)+Vehicles!$F$31/Vehicles!$BH$72)+D21*(Vehicles!$F$30/Vehicles!$BG$72+Vehicles!$F$31/Vehicles!$BH$72)/(Vehicles!$F$30*(1/Vehicles!$BF$72+1/Vehicles!$BG$72)+Vehicles!$F$31/Vehicles!$BH$72) -> 28224.39919 | V21: =AN21*(Vehicles!$G$30/Vehicles!$BJ$72)/(Vehicles!$G$30*(1/Vehicles!$BJ$72+1/Vehicles!$BK$72)+Vehicles!$G$31/Vehicles!$BL$72)+F21*(Vehicles!$G$30/Vehicles!$BK$72+Vehicles!$G$31/Vehicles!$BL$72)/(Vehicles!$G$30*(1/Vehicles!$BJ$72+1/Vehicles!$BK$72)+Vehicles!$G$31/Vehicles!$BL$72) -> 25157.22461 | W21: =AN21*(Vehicles!$H$30/Vehicles!$BN$72)/(Vehicles!$H$30*(1/Vehicles!$BN$72+1/Vehicles!$BO$72)+Vehicles!$H$31/Vehicles!$BP$72)+G21*(Vehicles!$H$30/Vehicles!$BO$72+Vehicles!$H$31/Vehicles!$BP$72)/(Vehicles!$H$30*(1/Vehicles!$BN$72+1/Vehicles!$BO$72)+Vehicles!$H$31/Vehicles!$BP$72) -> 27460.28747 | X21: =AN21*(Vehicles!$I$30/Vehicles!$BR$72)/(Vehicles!$I$30*(1/Vehicles!$BR$72+1/Vehicles!$BS$72)+Vehicles!$I$31/Vehicles!$BT$72)+H21*(Vehicles!$I$30/Vehicles!$BS$72+Vehicles!$I$31/Vehicles!$BT$72)/(Vehicles!$I$30*(1/Vehicles!$BR$72+1/Vehicles!$BS$72)+Vehicles!$I$31/Vehicles!$BT$72) -> 25831.58946 | Y21: =AN21*(Vehicles!$J$30/Vehicles!$BV$72)/(Vehicles!$J$30*(1/Vehicles!$BV$72+1/Vehicles!$BW$72)+Vehicles!$J$31/Vehicles!$BX$72)+K21*(Vehicles!$J$30/Vehicles!$BW$72+Vehicles!$J$31/Vehicles!$BX$72)/(Vehicles!$J$30*(1/Vehicles!$BV$72+1/Vehicles!$BW$72)+Vehicles!$J$31/Vehicles!$BX$72) -> 30477.11468 | Z21: =AN21*(Vehicles!$K$30/Vehicles!$BZ$72)/(Vehicles!$K$30*(1/Vehicles!$BZ$72+1/Vehicles!$CA$72)+Vehicles!$K$31/Vehicles!$CB$72)+O21*(Vehicles!$K$30/Vehicles!$CA$72+Vehicles!$K$31/Vehicles!$CB$72)/(Vehicles!$K$30*(1/Vehicles!$BZ$72+1/Vehicles!$CA$72)+Vehicles!$K$31/Vehicles!$CB$72) -> 6383.786954 | AA21: =AN21*(Vehicles!$L$30/Vehicles!$CD$72)/(Vehicles!$L$30*(1/Vehicles!$CD$72+1/Vehicles!$CE$72)+Vehicles!$L$31/Vehicles!$CF$72)+AO21*(Vehicles!$L$30/Vehicles!$CE$72+Vehicles!$L$31/Vehicles!$CF$72)/(Vehicles!$L$30*(1/Vehicles!$CD$72+1/Vehicles!$CE$72)+Vehicles!$L$31/Vehicles!$CF$72) -> 71285.71944 | AB21: =AN21*(Vehicles!$L$30/Vehicles!$CD$72)/(Vehicles!$L$30*(1/Vehicles!$CD$72+1/Vehicles!$CE$72)+Vehicles!$L$31/Vehicles!$CG$72)+AP21*(Vehicles!$L$30/Vehicles!$CE$72+Vehicles!$L$31/Vehicles!$CG$72)/(Vehicles!$L$30*(1/Vehicles!$CD$72+1/Vehicles!$CE$72)+Vehicles!$L$31/Vehicles!$CG$72) -> 83140.75234 | AC21: =(MeOH_FTD!$AJ179*MeOH_FTD!$AK$162+MeOH_FTD!$AK179+Vehicles!AB95/Vehicles!AB73*1000000)/1000000*HLOOKUP($J$10,$Z$5:$AD$6,2,FALSE)/HLOOKUP($J$11,$Z$7:$AD$8,2,FALSE)+AC25*Fuel_Specs!$B$153/Fuel_Specs!$B$156+AC26*Fuel_Specs!$B$154/Fuel_Specs!$B$156 -> 24286.22997 | AD21: =((1-Vehicles!$C$41)*(1-Vehicles!$C$13)*Fuel_Specs!$B$20/((1-Vehicles!$C$41)*(1-Vehicles!$C$13)*Fuel_Specs!$B$20+Vehicles!$C$41*(1-Vehicles!$C$13)*Fuel_Specs!$B$23+Vehicles!$C$13*Fuel_Specs!$B$41)*(Petroleum!B279*Petroleum!$J$262+Petroleum!$J279)+Vehicles!$C$41*(1-Vehicles!$C$13)*Fuel_Specs!$B$23/((1-Vehicles!$C$41)*(1-Vehicles!$C$13)*Fuel_Specs!$B$20+Vehicles!$C$41*(1-Vehicles!$C$13)*Fuel_Specs!$B$23+Vehicles!$C$13*Fuel_Specs!$B$41)*(Petroleum!B279*IF(Inputs!F$102=1,Petroleum!$K$262,Petroleum!$L$262)+IF(Inputs!F$102=1,Petroleum!$K279,Petroleum!$L279))+Vehicles!$C$13*Fuel_Specs!$B$41/((1-Vehicles!$C$41)*(1-Vehicles!$C$13)*Fuel_Specs!$B$20+Vehicles!$C$41*(1-Vehicles!$C$13)*Fuel_Specs!$B$23+Vehicles!$C$13*Fuel_Specs!$B$41)*(MeOH_FTD!$AZ179*MeOH_FTD!$BA$162+MeOH_FTD!$BA179)+Vehicles!AC95/Vehicles!AC73*1000000)/1000000*HLOOKUP($J$10,$Z$5:$AD$6,2,FALSE)/HLOOKUP($J$11,$Z$7:$AD$8,2,FALSE)+AD25*Fuel_Specs!$B$153/Fuel_Specs!$B$156+AD26*Fuel_Specs!$B$154/Fuel_Specs!$B$156 -> 14150.92349 | AE21: =((1-Vehicles!$C$42)*(1-Vehicles!$C$14)*Fuel_Specs!$B$20/((1-Vehicles!$C$42)*(1-Vehicles!$C$14)*Fuel_Specs!$B$20+Vehicles!$C$42*(1-Vehicles!$C$14)*Fuel_Specs!$B$23+Vehicles!$C$14*Fuel_Specs!$B40)*(Petroleum!B279*Petroleum!$J$262+Petroleum!$J279)+Vehicles!$C$42*(1-Vehicles!$C$14)*Fuel_Specs!$B$23/((1-Vehicles!$C$42)*(1-Vehicles!$C$14)*Fuel_Specs!$B$20+Vehicles!$C$42*(1-Vehicles!$C$14)*Fuel_Specs!$B$23+Vehicles!$C$14*Fuel_Specs!$B40)*(Petroleum!B279*IF(Inputs!F$102=1,Petroleum!$K$262,Petroleum!$L$262)+IF(Inputs!F$102=1,Petroleum!$K279,Petroleum!$L279))+Vehicles!$C$14*Fuel_Specs!$B40/((1-Vehicles!$C$42)*(1-Vehicles!$C$14)*Fuel_Specs!$B$20+Vehicles!$C$42*(1-Vehicles!$C$14)*Fuel_Specs!$B$23+Vehicles!$C$14*Fuel_Specs!$B40)*(BioOil!$Y449*BioOil!$Z$431+BioOil!$Z449)+Vehicles!AD95/Vehicles!AD73*1000000)/1000000*HLOOKUP($J$10,$Z$5:$AD$6,2,FALSE)/HLOOKUP($J$11,$Z$7:$AD$8,2,FALSE)+AE25*Fuel_Specs!$B$153/Fuel_Specs!$B$156+AE26*Fuel_Specs!$B$154/Fuel_Specs!$B$156 -> -521.2615774 | AF21: =((1-Vehicles!$C$43)*(1-Vehicles!$C$15)*Fuel_Specs!$B$20/((1-Vehicles!$C$43)*(1-Vehicles!$C$15)*Fuel_Specs!$B$20+Vehicles!$C$43*(1-Vehicles!$C$15)*Fuel_Specs!$B$23+Vehicles!$C$15*IF(Inputs!$E$670=1,Fuel_Specs!$B$42,Fuel_Specs!$B$43))*(Petroleum!B279*Petroleum!$J$262+Petroleum!$J279)+Vehicles!$C$43*(1-Vehicles!$C$15)*Fuel_Specs!$B$23/((1-Vehicles!$C$43)*(1-Vehicles!$C$15)*Fuel_Specs!$B$20+Vehicles!$C$43*(1-Vehicles!$C$15)*Fuel_Specs!$B$23+Vehicles!$C$15*IF(Inputs!$E$670=1,Fuel_Specs!$B$42,Fuel_Specs!$B$43))*(Petroleum!B279*IF(Inputs!F$102=1,Petroleum!$K$262,Petroleum!$L$262)+IF(Inputs!F$102=1,Petroleum!$K279,Petroleum!$L279))+Vehicles!$C$15*IF(Inputs!$E$670=1,Fuel_Specs!$B$42,Fuel_Specs!$B$43)/((1-Vehicles!$C$43)*(1-Vehicles!$C$15)*Fuel_Specs!$B$20+Vehicles!$C$43*(1-Vehicles!$C$15)*Fuel_Specs!$B$23+Vehicles!$C$15*IF(Inputs!$E$670=1,Fuel_Specs!$B$42,Fuel_Specs!$B$43))*(BioOil!$BQ449*BioOil!$BR$431+BioOil!$BR449)+Vehicles!AE95/Vehicles!AE73*1000000)/1000000*HLOOKUP($J$10,$Z$5:$AD$6,2,FALSE)/HLOOKUP($J$11,$Z$7:$AD$8,2,FALSE)+AF25*Fuel_Specs!$B$153/Fuel_Specs!$B$156+AF26*Fuel_Specs!$B$154/Fuel_Specs!$B$156 -> -51113.95936 | AG21: =((1-Vehicles!$C$43)*(1-Vehicles!$C$15)*Fuel_Specs!$B$20/((1-Vehicles!$C$43)*(1-Vehicles!$C$15)*Fuel_Specs!$B$20+Vehicles!$C$43*(1-Vehicles!$C$15)*Fuel_Specs!$B$23+Vehicles!$C$15*IF(Inputs!$E$670=1,Fuel_Specs!$B$42,Fuel_Specs!$B$43))*(Petroleum!B279*Petroleum!$J$262+Petroleum!$J279)+Vehicles!$C$43*(1-Vehicles!$C$15)*Fuel_Specs!$B$23/((1-Vehicles!$C$43)*(1-Vehicles!$C$15)*Fuel_Specs!$B$20+Vehicles!$C$43*(1-Vehicles!$C$15)*Fuel_Specs!$B$23+Vehicles!$C$15*IF(Inputs!$E$670=1,Fuel_Specs!$B$42,Fuel_Specs!$B$43))*(Petroleum!B279*IF(Inputs!F$102=1,Petroleum!$K$262,Petroleum!$L$262)+IF(Inputs!F$102=1,Petroleum!$K279,Petroleum!$L279))+Vehicles!$C$15*IF(Inputs!$E$670=1,Fuel_Specs!$B$42,Fuel_Specs!$B$43)/((1-Vehicles!$C$43)*(1-Vehicles!$C$15)*Fuel_Specs!$B$20+Vehicles!$C$43*(1-Vehicles!$C$15)*Fuel_Specs!$B$23+Vehicles!$C$15*IF(Inputs!$E$670=1,Fuel_Specs!$B$42,Fuel_Specs!$B$43))*(Pyrolysis_IDL!$AF314*Pyrolysis_IDL!$AG$297+Pyrolysis_IDL!$AG314)+Vehicles!AE95/Vehicles!AE73*1000000)/1000000*HLOOKUP($J$10,$Z$5:$AD$6,2,FALSE)/HLOOKUP($J$11,$Z$7:$AD$8,2,FALSE)+AG25*Fuel_Specs!$B$153/Fuel_Specs!$B$156+AG26*Fuel_Specs!$B$154/Fuel_Specs!$B$156 -> -54676.62854 | AH21: =(((1-Vehicles!$C$44)*(1-Vehicles!$C$17-Vehicles!$C$18)*Fuel_Specs!$B$20*(Petroleum!B279*Petroleum!$J$262+Petroleum!$J279)+Vehicles!$C$44*(1-Vehicles!$C$17-Vehicles!$C$18)*Fuel_Specs!$B$23*(Petroleum!B279*IF(Inputs!F$102=1,Petroleum!$K$262,Petroleum!$L$262)+IF(Inputs!F$102=1,Petroleum!$K279,Petroleum!$L279))+Vehicles!$C$17*Fuel_Specs!$B$32*(EtOH!BT563*EtOH!$BU$546+EtOH!$BU563)+Vehicles!$C$18*Fuel_Specs!$B$35*('EtOH-Diesel Additives'!$B70*'EtOH-Diesel Additives'!$B$53))/((1-Vehicles!$C$44)*(1-Vehicles!$C$17-Vehicles!$C$18)*Fuel_Specs!$B$20+Vehicles!$C$44*(1-Vehicles!$C$17-Vehicles!$C$18)*Fuel_Specs!$B$23+Vehicles!$C$17*Fuel_Specs!$B$32+Vehicles!$C$18*Fuel_Specs!$B$35)+Vehicles!AF95/Vehicles!AF73*1000000)/1000000*HLOOKUP($J$10,$Z$5:$AD$6,2,FALSE)/HLOOKUP($J$11,$Z$7:$AD$8,2,FALSE)+AH25*Fuel_Specs!$B$153/Fuel_Specs!$B$156+AH26*Fuel_Specs!$B$154/Fuel_Specs!$B$156 -> 9437.255294 | AI21: =AN21*(Vehicles!$M$30/Vehicles!$CO$72)/(Vehicles!$M$30*(1/Vehicles!$CO$72+1/Vehicles!$CP$72)+Vehicles!$M$31/Vehicles!$CQ$72)+E21*(Vehicles!$M$30/Vehicles!$CP$72+Vehicles!$M$31/Vehicles!$CQ$72)/(Vehicles!$M$30*(1/Vehicles!$CO$72+1/Vehicles!$CP$72)+Vehicles!$M$31/Vehicles!$CQ$72) -> 24461.59281 | AJ21: =AN21*(Vehicles!$N$30/Vehicles!$CS$72)/(Vehicles!$N$30*(1/Vehicles!$CS$72+1/Vehicles!$CT$72)+Vehicles!$N$31/Vehicles!$CU$72)+AC21*(Vehicles!$N$30/Vehicles!$CT$72+Vehicles!$N$31/Vehicles!$CU$72)/(Vehicles!$N$30*(1/Vehicles!$CS$72+1/Vehicles!$CT$72)+Vehicles!$N$31/Vehicles!$CU$72) -> 32961.14632 | AK21: =AN21*(Vehicles!$O$30/Vehicles!$CW$72)/(Vehicles!$O$30*(1/Vehicles!$CW$72+1/Vehicles!$CX$72)+Vehicles!$O$31/Vehicles!$CY$72)+AD21*(Vehicles!$O$30/Vehicles!$CX$72+Vehicles!$O$31/Vehicles!$CY$72)/(Vehicles!$O$30*(1/Vehicles!$CW$72+1/Vehicles!$CX$72)+Vehicles!$O$31/Vehicles!$CY$72) -> 25837.03797 | AL21: =AN21*(Vehicles!$P$30/Vehicles!$DA$72)/(Vehicles!$P$30*(1/Vehicles!$DA$72+1/Vehicles!$DB$72)+Vehicles!$P$31/Vehicles!$DC$72)+AE21*(Vehicles!$P$30/Vehicles!$DB$72+Vehicles!$P$31/Vehicles!$DC$72)/(Vehicles!$P$30*(1/Vehicles!$DA$72+1/Vehicles!$DB$72)+Vehicles!$P$31/Vehicles!$DC$72) -> 15523.95702 | AM21: =AN21*(Vehicles!$R$30/Vehicles!$DI$72)/(Vehicles!$R$30*(1/Vehicles!$DI$72+1/Vehicles!$DJ$72)+Vehicles!$R$31/Vehicles!$DK$72)+AH21*(Vehicles!$R$30/Vehicles!$DJ$72+Vehicles!$R$31/Vehicles!$DK$72)/(Vehicles!$R$30*(1/Vehicles!$DI$72+1/Vehicles!$DJ$72)+Vehicles!$R$31/Vehicles!$DK$72) -> 22523.79993 | AN21: =(Electric!$G220+Electric!$F220)/1000000*HLOOKUP($J$10,$Z$5:$AD$6,2,FALSE)/HLOOKUP($J$11,$Z$7:$AD$8,2,FALSE)+AN25*Fuel_Specs!$B$153/Fuel_Specs!$B$156+AN26*Fuel_Specs!$B$154/Fuel_Specs!$B$156 -> 53484.88518 | AO21: =(Hydrogen!$AJ322*Hydrogen!$AK$305+Hydrogen!$AK322)/1000000*HLOOKUP($J$10,$Z$5:$AD$6,2,FALSE)/HLOOKUP($J$11,$Z$7:$AD$8,2,FALSE)+AO25*Fuel_Specs!$B$153/Fuel_Specs!$B$156+AO26*Fuel_Specs!$B$154/Fuel_Specs!$B$156 -> 82097.2277 | AP21: =(Hydrogen!$BT322*Hydrogen!$BU$305+Hydrogen!$BU322)/1000000*HLOOKUP($J$10,$Z$5:$AD$6,2,FALSE)/HLOOKUP($J$11,$Z$7:$AD$8,2,FALSE)+AP25*Fuel_Specs!$B$153/Fuel_Specs!$B$156+AP26*Fuel_Specs!$B$154/Fuel_Specs!$B$156 -> 101152.5291 | AQ21: =AN21*(Vehicles!$S$30/Vehicles!$DY$72)/(Vehicles!$S$30*(1/Vehicles!$DY$72+1/Vehicles!$DZ$72)+Vehicles!$S$31/Vehicles!$EA$72)+AO21*(Vehicles!$S$30/Vehicles!$DZ$72+Vehicles!$S$31/Vehicles!$EA$72)/(Vehicles!$S$30*(1/Vehicles!$DY$72+1/Vehicles!$DZ$72)+Vehicles!$S$31/Vehicles!$EA$72) -> 70523.52117 | AR21: =AN21*(Vehicles!$S$30/Vehicles!$DY$72)/(Vehicles!$S$30*(1/Vehicles!$DY$72+1/Vehicles!$DZ$72)+Vehicles!$S$31/Vehicles!$EA$72)+AP21*(Vehicles!$S$30/Vehicles!$DZ$72+Vehicles!$S$31/Vehicles!$EA$72)/(Vehicles!$S$30*(1/Vehicles!$DY$72+1/Vehicles!$DZ$72)+Vehicles!$S$31/Vehicles!$EA$72) -> 81870.94383 | AS21: =((1-Vehicles!$C$40)*(1-Vehicles!$C$16)*Fuel_Specs!$B$15/((1-Vehicles!$C$40)*(1-Vehicles!$C$16)*Fuel_Specs!$B$15+Vehicles!$C$40*(1-Vehicles!$C$16)*Fuel_Specs!$B$16+Vehicles!$C$16*Fuel_Specs!$B$47)*(Petroleum!$B279*Petroleum!$D$262+Petroleum!$D279)+Vehicles!$C$40*(1-Vehicles!$C$16)*Fuel_Specs!$B$16/((1-Vehicles!$C$40)*(1-Vehicles!$C$16)*Fuel_Specs!$B$15+Vehicles!$C$40*(1-Vehicles!$C$16)*Fuel_Specs!$B$16+Vehicles!$C$16*Fuel_Specs!$B$47)*(Petroleum!B279*Petroleum!$F$262+Petroleum!$F279)+Vehicles!$C$16*Fuel_Specs!$B$47/((1-Vehicles!$C$40)*(1-Vehicles!$C$16)*Fuel_Specs!$B$15+Vehicles!$C$40*(1-Vehicles!$C$16)*Fuel_Specs!$B$16+Vehicles!$C$16*Fuel_Specs!$B$47)*(Pyrolysis_IDL!$AP314*Pyrolysis_IDL!$AQ$297+Pyrolysis_IDL!$AQ314)+Vehicles!Q95/Vehicles!Q73*1000000)/1000000*HLOOKUP($J$10,$Z$5:$AD$6,2,FALSE)/HLOOKUP($J$11,$Z$7:$AD$8,2,FALSE)+AS25*Fuel_Specs!$B$153/Fuel_Specs!$B$156+AS26*Fuel_Specs!$B$154/Fuel_Specs!$B$156 -> -60361.56779 | AT21: =(Petroleum!$B279*Petroleum!$S$262+Petroleum!$S279)/1000000*HLOOKUP($J$10,$Z$5:$AD$6,2,FALSE)/HLOOKUP($J$11,$Z$7:$AD$8,2,FALSE)+AT25*Fuel_Specs!$B$153/Fuel_Specs!$B$156+AT26*Fuel_Specs!$B$154/Fuel_Specs!$B$156 -> 12126.77549 | AU21: 3517.232854 | AV21: 306.1643033 | BB21: SI - CNG Vehicle | BC21: RNAVCNG | BH21: CIDI - EtOH-Diesel | BI21: RNAVEDIESELCIDI | BK21: SI HEV - LPG | BL21: RNAVHEVLPG | BN21: SI PHEV - LPG and Electricity | BO21: RNAVPHEVLPG
A22: CH4 | B22: =(Inputs!$E$1500*(Petroleum!$B277*Petroleum!$F$262+Petroleum!$F277)+(1-Inputs!$E$1500)*(Petroleum!$B277*Petroleum!$D$262+Petroleum!$D277))/1000000*HLOOKUP($J$10,$Z$5:$AD$6,2,FALSE)/HLOOKUP($J$11,$Z$7:$AD$8,2,FALSE) -> 115.8852261 | C22: =(Petroleum!$C277*Petroleum!$G$262+Petroleum!$G277)/1000000*HLOOKUP($J$10,$Z$5:$AD$6,2,FALSE)/HLOOKUP($J$11,$Z$7:$AD$8,2,FALSE) -> 115.276569 | D22: =((1-Vehicles!$C$35)*(1-Vehicles!$C$7)*Fuel_Specs!$B$15/((1-Vehicles!$C$35)*(1-Vehicles!$C$7)*Fuel_Specs!$B$15+Vehicles!$C$35*(1-Vehicles!$C$7)*Fuel_Specs!$B$16+Vehicles!$C$7*Fuel_Specs!$B$32)*(Petroleum!$B277*Petroleum!$D$262+(Petroleum!$D277-'T&D'!G230))+Vehicles!$C$35*(1-Vehicles!$C$7)*Fuel_Specs!$B$16/((1-Vehicles!$C$35)*(1-Vehicles!$C$7)*Fuel_Specs!$B$15+Vehicles!$C$35*(1-Vehicles!$C$7)*Fuel_Specs!$B$16+Vehicles!$C$7*Fuel_Specs!$B$32)*(Petroleum!B277*Petroleum!$F$262+Petroleum!$F277)+Vehicles!$C$7*Fuel_Specs!$B$32/((1-Vehicles!$C$35)*(1-Vehicles!$C$7)*Fuel_Specs!$B$15+Vehicles!$C$35*(1-Vehicles!$C$7)*Fuel_Specs!$B$16+Vehicles!$C$7*Fuel_Specs!$B$32)*(EtOH!BV561*EtOH!$BW$546+EtOH!$BW561)+Petroleum!AS139+Petroleum!AT139)/1000000*HLOOKUP($J$10,$Z$5:$AD$6,2,FALSE)/HLOOKUP($J$11,$Z$7:$AD$8,2,FALSE) -> 115.8852261 | E22: =(Inputs!$E$97*(IF(Inputs!F$102=1,Petroleum!$B277,Petroleum!$C277)*IF(Inputs!F$102=1,Petroleum!$K$262,Petroleum!$L$262)+IF(Inputs!F$102=1,Petroleum!$K277,Petroleum!$L277))+(1-Inputs!$E$97)*(IF(Inputs!F$101=1,Petroleum!$B277,Petroleum!$C277)*Petroleum!$J$262+Petroleum!$J277))/1000000*HLOOKUP($J$10,$Z$5:$AD$6,2,FALSE)/HLOOKUP($J$11,$Z$7:$AD$8,2,FALSE) -> 109.9001435 | F22: =(NG!$J99*NG!$K$84+NG!$K99)/1000000*HLOOKUP($J$10,$Z$5:$AD$6,2,FALSE)/HLOOKUP($J$11,$Z$7:$AD$8,2,FALSE) -> 266.0242626 | G22: =(NG!$R99*NG!$S$84+NG!$S99)/1000000*HLOOKUP($J$10,$Z$5:$AD$6,2,FALSE)/HLOOKUP($J$11,$Z$7:$AD$8,2,FALSE) -> 283.0380372 | H22: =(NG!$X99*NG!$Y$84+NG!$Y99)/1000000*HLOOKUP($J$10,$Z$5:$AD$6,2,FALSE)/HLOOKUP($J$11,$Z$7:$AD$8,2,FALSE) -> 147.9457667 | I22: =(MeOH_FTD!BJ177*MeOH_FTD!BK$162+MeOH_FTD!BK177)/1000000*HLOOKUP($J$10,$Z$5:$AD$6,2,FALSE)/HLOOKUP($J$11,$Z$7:$AD$8,2,FALSE) -> 237.1914868 | J22: =((1-Vehicles!$C$34)*(1-Vehicles!$C$5)*Fuel_Specs!$B$15/((1-Vehicles!$C$34)*(1-Vehicles!$C$5)*Fuel_Specs!$B$15+Vehicles!$C$34*(1-Vehicles!$C$5)*Fuel_Specs!$B$16+Vehicles!$C$5*Fuel_Specs!$B$31)*(Petroleum!$B277*Petroleum!$D$262+Petroleum!$D277)+Vehicles!$C$34*(1-Vehicles!$C$5)*Fuel_Specs!$B$16/((1-Vehicles!$C$34)*(1-Vehicles!$C$5)*Fuel_Specs!$B$15+Vehicles!$C$34*(1-Vehicles!$C$5)*Fuel_Specs!$B$16+Vehicles!$C$5*Fuel_Specs!$B$31)*(Petroleum!B277*Petroleum!$F$262+Petroleum!$F277)+Vehicles!$C$5*Fuel_Specs!$B$31/((1-Vehicles!$C$34)*(1-Vehicles!$C$5)*Fuel_Specs!$B$15+Vehicles!$C$34*(1-Vehicles!$C$5)*Fuel_Specs!$B$16+Vehicles!$C$5*Fuel_Specs!$B$31)*(MeOH_FTD!$N177*MeOH_FTD!$O$162+MeOH_FTD!$O177))/1000000*HLOOKUP($J$10,$Z$5:$AD$6,2,FALSE)/HLOOKUP($J$11,$Z$7:$AD$8,2,FALSE) -> 180.3717243 | K22: =((1-Vehicles!$C$34)*(1-Vehicles!$C$6)*Fuel_Specs!$B$15/((1-Vehicles!$C$34)*(1-Vehicles!$C$6)*Fuel_Specs!$B$15+Vehicles!$C$34*(1-Vehicles!$C$6)*Fuel_Specs!$B$16+Vehicles!$C$6*Fuel_Specs!$B$31)*(Petroleum!$B277*Petroleum!$D$262+Petroleum!$D277)+Vehicles!$C$34*(1-Vehicles!$C$6)*Fuel_Specs!$B$16/((1-Vehicles!$C$34)*(1-Vehicles!$C$6)*Fuel_Specs!$B$15+Vehicles!$C$34*(1-Vehicles!$C$6)*Fuel_Specs!$B$16+Vehicles!$C$6*Fuel_Specs!$B$31)*(Petroleum!B277*Petroleum!$F$262+Petroleum!$F277)+Vehicles!$C$6*Fuel_Specs!$B$31/((1-Vehicles!$C$34)*(1-Vehicles!$C$6)*Fuel_Specs!$B$15+Vehicles!$C$34*(1-Vehicles!$C$6)*Fuel_Specs!$B$16+Vehicles!$C$6*Fuel_Specs!$B$31)*(MeOH_FTD!$N177*MeOH_FTD!$O$162+MeOH_FTD!$O177))/1000000*HLOOKUP($J$10,$Z$5:$AD$6,2,FALSE)/HLOOKUP($J$11,$Z$7:$AD$8,2,FALSE) -> 187.3869687 | L22: =(MeOH_FTD!$N177*MeOH_FTD!$O$162+MeOH_FTD!$O177)/1000000*HLOOKUP($J$10,$Z$5:$AD$6,2,FALSE)/HLOOKUP($J$11,$Z$7:$AD$8,2,FALSE) -> 203.5804809 | M22: =((1-Vehicles!$C$36)*(1-Vehicles!$C$8)*Fuel_Specs!$B$15/((1-Vehicles!$C$36)*(1-Vehicles!$C$8)*Fuel_Specs!$B$15+Vehicles!$C$36*(1-Vehicles!$C$8)*Fuel_Specs!$B$16+Vehicles!$C$8*Fuel_Specs!$B$32)*(Petroleum!$B277*Petroleum!$D$262+(Petroleum!$D277-'T&D'!G230))+Vehicles!$C$36*(1-Vehicles!$C$8)*Fuel_Specs!$B$16/((1-Vehicles!$C$36)*(1-Vehicles!$C$8)*Fuel_Specs!$B$15+Vehicles!$C$36*(1-Vehicles!$C$8)*Fuel_Specs!$B$16+Vehicles!$C$8*Fuel_Specs!$B$32)*(Petroleum!B277*Petroleum!$F$262+Petroleum!$F277)+Vehicles!$C$8*Fuel_Specs!$B$32/((1-Vehicles!$C$36)*(1-Vehicles!$C$8)*Fuel_Specs!$B$15+Vehicles!$C$36*(1-Vehicles!$C$8)*Fuel_Specs!$B$16+Vehicles!$C$8*Fuel_Specs!$B$32)*(EtOH!BV561*EtOH!$BW$546+EtOH!$BW561)+Petroleum!AS139+Petroleum!AT139)/1000000*HLOOKUP($J$10,$Z$5:$AD$6,2,FALSE)/HLOOKUP($J$11,$Z$7:$AD$8,2,FALSE) -> 119.7295114 | N22: =((1-Vehicles!$C$37)*(1-Vehicles!$C$12)*Fuel_Specs!$B$15/((1-Vehicles!$C$37)*(1-Vehicles!$C$12)*Fuel_Specs!$B$15+Vehicles!$C$37*(1-Vehicles!$C$12)*Fuel_Specs!$B$16+Vehicles!$C$12*Fuel_Specs!$B$33)*(Petroleum!$B277*Petroleum!$D$262+Petroleum!$D277)+Vehicles!$C$37*(1-Vehicles!$C$12)*Fuel_Specs!$B$16/((1-Vehicles!$C$37)*(1-Vehicles!$C$12)*Fuel_Specs!$B$15+Vehicles!$C$37*(1-Vehicles!$C$12)*Fuel_Specs!$B$16+Vehicles!$C$12*Fuel_Specs!$B$33)*(Petroleum!B277*Petroleum!$F$262+Petroleum!$F277)+Vehicles!$C$12*Fuel_Specs!$B$33/((1-Vehicles!$C$37)*(1-Vehicles!$C$12)*Fuel_Specs!$B$15+Vehicles!$C$37*(1-Vehicles!$C$12)*Fuel_Specs!$B$16+Vehicles!$C$12*Fuel_Specs!$B$33)*(EtOH!$BX561*EtOH!$BY$546+EtOH!$BY561))/1000000*HLOOKUP($J$10,$Z$5:$AD$6,2,FALSE)/HLOOKUP($J$11,$Z$7:$AD$8,2,FALSE) -> 143.8181013 | O22: =((1-Vehicles!$C$36)*(1-Vehicles!$C$9)*Fuel_Specs!$B$15/((1-Vehicles!$C$36)*(1-Vehicles!$C$9)*Fuel_Specs!$B$15+Vehicles!$C$36*(1-Vehicles!$C$9)*Fuel_Specs!$B$16+Vehicles!$C$9*Fuel_Specs!$B$32)*(Petroleum!$B277*Petroleum!$D$262+(Petroleum!$D277-'T&D'!G230))+Vehicles!$C$36*(1-Vehicles!$C$9)*Fuel_Specs!$B$16/((1-Vehicles!$C$36)*(1-Vehicles!$C$9)*Fuel_Specs!$B$15+Vehicles!$C$36*(1-Vehicles!$C$9)*Fuel_Specs!$B$16+Vehicles!$C$9*Fuel_Specs!$B$32)*(Petroleum!B277*Petroleum!$F$262+Petroleum!$F277)+Vehicles!$C$9*Fuel_Specs!$B$32/((1-Vehicles!$C$36)*(1-Vehicles!$C$9)*Fuel_Specs!$B$15+Vehicles!$C$36*(1-Vehicles!$C$9)*Fuel_Specs!$B$16+Vehicles!$C$9*Fuel_Specs!$B$32)*(EtOH!BV561*EtOH!$BW$546+EtOH!$BW561)+Petroleum!AS139+Petroleum!AT139)/1000000*HLOOKUP($J$10,$Z$5:$AD$6,2,FALSE)/HLOOKUP($J$11,$Z$7:$AD$8,2,FALSE) -> 119.7295114 | P22: =(EtOH!$BT561*EtOH!$BU$546+EtOH!$BU561)/1000000*HLOOKUP($J$10,$Z$5:$AD$6,2,FALSE)/HLOOKUP($J$11,$Z$7:$AD$8,2,FALSE) -> 121.0787111 | Q22: =((1-Vehicles!$C$40)*(1-Vehicles!$C$16)*Fuel_Specs!$B$15/((1-Vehicles!$C$40)*(1-Vehicles!$C$16)*Fuel_Specs!$B$15+Vehicles!$C$40*(1-Vehicles!$C$16)*Fuel_Specs!$B$16+Vehicles!$C$16*Fuel_Specs!$B$46)*(Petroleum!$B277*Petroleum!$D$262+Petroleum!$D277)+Vehicles!$C$40*(1-Vehicles!$C$16)*Fuel_Specs!$B$16/((1-Vehicles!$C$40)*(1-Vehicles!$C$16)*Fuel_Specs!$B$15+Vehicles!$C$40*(1-Vehicles!$C$16)*Fuel_Specs!$B$16+Vehicles!$C$16*Fuel_Specs!$B$46)*(Petroleum!B277*Petroleum!$F$262+Petroleum!$F277)+Vehicles!$C$16*Fuel_Specs!$B$46/((1-Vehicles!$C$40)*(1-Vehicles!$C$16)*Fuel_Specs!$B$15+Vehicles!$C$40*(1-Vehicles!$C$16)*Fuel_Specs!$B$16+Vehicles!$C$16*Fuel_Specs!$B$46)*(BioOil!$CE447*BioOil!$CF$431+BioOil!$CF447))/1000000*HLOOKUP($J$10,$Z$5:$AD$6,2,FALSE)/HLOOKUP($J$11,$Z$7:$AD$8,2,FALSE) -> 16.80278984 | R22: =((1-Vehicles!$C$40)*(1-Vehicles!$C$16)*Fuel_Specs!$B$15/((1-Vehicles!$C$40)*(1-Vehicles!$C$16)*Fuel_Specs!$B$15+Vehicles!$C$40*(1-Vehicles!$C$16)*Fuel_Specs!$B$16+Vehicles!$C$16*Fuel_Specs!$B$46)*(Petroleum!$B277*Petroleum!$D$262+Petroleum!$D277)+Vehicles!$C$40*(1-Vehicles!$C$16)*Fuel_Specs!$B$16/((1-Vehicles!$C$40)*(1-Vehicles!$C$16)*Fuel_Specs!$B$15+Vehicles!$C$40*(1-Vehicles!$C$16)*Fuel_Specs!$B$16+Vehicles!$C$16*Fuel_Specs!$B$46)*(Petroleum!B277*Petroleum!$F$262+Petroleum!$F277)+Vehicles!$C$16*Fuel_Specs!$B$46/((1-Vehicles!$C$40)*(1-Vehicles!$C$16)*Fuel_Specs!$B$15+Vehicles!$C$40*(1-Vehicles!$C$16)*Fuel_Specs!$B$16+Vehicles!$C$16*Fuel_Specs!$B$46)*(Pyrolysis_IDL!$AD312*Pyrolysis_IDL!$AE$297+Pyrolysis_IDL!$AE312))/1000000*HLOOKUP($J$10,$Z$5:$AD$6,2,FALSE)/HLOOKUP($J$11,$Z$7:$AD$8,2,FALSE) -> 56.68895541 | S22: =AN22*(Vehicles!$C$30/Vehicles!$AT$72)/(Vehicles!$C$30*(1/Vehicles!$AT$72+1/Vehicles!$AU$72)+Vehicles!$C$31/Vehicles!$AV$72)+B22*(Vehicles!$C$30/Vehicles!$AU$72+Vehicles!$C$31/Vehicles!$AV$72)/(Vehicles!$C$30*(1/Vehicles!$AT$72+1/Vehicles!$AU$72)+Vehicles!$C$31/Vehicles!$AV$72) -> 123.6410496 | T22: =AN22*(Vehicles!$D$30/Vehicles!$AX$72)/(Vehicles!$D$30*(1/Vehicles!$AX$72+1/Vehicles!$AY$72)+Vehicles!$D$31/Vehicles!$AZ$72)+C22*(Vehicles!$D$30/Vehicles!$AY$72+Vehicles!$D$31/Vehicles!$AZ$72)/(Vehicles!$D$30*(1/Vehicles!$AX$72+1/Vehicles!$AY$72)+Vehicles!$D$31/Vehicles!$AZ$72) -> 123.2623806 | U22: =AN22*(Vehicles!$F$30/Vehicles!$BF$72)/(Vehicles!$F$30*(1/Vehicles!$BF$72+1/Vehicles!$BG$72)+Vehicles!$F$31/Vehicles!$BH$72)+D22*(Vehicles!$F$30/Vehicles!$BG$72+Vehicles!$F$31/Vehicles!$BH$72)/(Vehicles!$F$30*(1/Vehicles!$BF$72+1/Vehicles!$BG$72)+Vehicles!$F$31/Vehicles!$BH$72) -> 123.6410496 | V22: =AN22*(Vehicles!$G$30/Vehicles!$BJ$72)/(Vehicles!$G$30*(1/Vehicles!$BJ$72+1/Vehicles!$BK$72)+Vehicles!$G$31/Vehicles!$BL$72)+F22*(Vehicles!$G$30/Vehicles!$BK$72+Vehicles!$G$31/Vehicles!$BL$72)/(Vehicles!$G$30*(1/Vehicles!$BJ$72+1/Vehicles!$BK$72)+Vehicles!$G$31/Vehicles!$BL$72) -> 217.0482951 | W22: =AN22*(Vehicles!$H$30/Vehicles!$BN$72)/(Vehicles!$H$30*(1/Vehicles!$BN$72+1/Vehicles!$BO$72)+Vehicles!$H$31/Vehicles!$BP$72)+G22*(Vehicles!$H$30/Vehicles!$BO$72+Vehicles!$H$31/Vehicles!$BP$72)/(Vehicles!$H$30*(1/Vehicles!$BN$72+1/Vehicles!$BO$72)+Vehicles!$H$31/Vehicles!$BP$72) -> 227.633216 | X22: =AN22*(Vehicles!$I$30/Vehicles!$BR$72)/(Vehicles!$I$30*(1/Vehicles!$BR$72+1/Vehicles!$BS$72)+Vehicles!$I$31/Vehicles!$BT$72)+H22*(Vehicles!$I$30/Vehicles!$BS$72+Vehicles!$I$31/Vehicles!$BT$72)/(Vehicles!$I$30*(1/Vehicles!$BR$72+1/Vehicles!$BS$72)+Vehicles!$I$31/Vehicles!$BT$72) -> 143.5871399 | Y22: =AN22*(Vehicles!$J$30/Vehicles!$BV$72)/(Vehicles!$J$30*(1/Vehicles!$BV$72+1/Vehicles!$BW$72)+Vehicles!$J$31/Vehicles!$BX$72)+K22*(Vehicles!$J$30/Vehicles!$BW$72+Vehicles!$J$31/Vehicles!$BX$72)/(Vehicles!$J$30*(1/Vehicles!$BV$72+1/Vehicles!$BW$72)+Vehicles!$J$31/Vehicles!$BX$72) -> 168.1250225 | Z22: =AN22*(Vehicles!$K$30/Vehicles!$BZ$72)/(Vehicles!$K$30*(1/Vehicles!$BZ$72+1/Vehicles!$CA$72)+Vehicles!$K$31/Vehicles!$CB$72)+O22*(Vehicles!$K$30/Vehicles!$CA$72+Vehicles!$K$31/Vehicles!$CB$72)/(Vehicles!$K$30*(1/Vehicles!$BZ$72+1/Vehicles!$CA$72)+Vehicles!$K$31/Vehicles!$CB$72) -> 126.0327266 | AA22: =AN22*(Vehicles!$L$30/Vehicles!$CD$72)/(Vehicles!$L$30*(1/Vehicles!$CD$72+1/Vehicles!$CE$72)+Vehicles!$L$31/Vehicles!$CF$72)+AO22*(Vehicles!$L$30/Vehicles!$CE$72+Vehicles!$L$31/Vehicles!$CF$72)/(Vehicles!$L$30*(1/Vehicles!$CD$72+1/Vehicles!$CE$72)+Vehicles!$L$31/Vehicles!$CF$72) -> 217.726449 | AB22: =AN22*(Vehicles!$L$30/Vehicles!$CD$72)/(Vehicles!$L$30*(1/Vehicles!$CD$72+1/Vehicles!$CE$72)+Vehicles!$L$31/Vehicles!$CG$72)+AP22*(Vehicles!$L$30/Vehicles!$CE$72+Vehicles!$L$31/Vehicles!$CG$72)/(Vehicles!$L$30*(1/Vehicles!$CD$72+1/Vehicles!$CE$72)+Vehicles!$L$31/Vehicles!$CG$72) -> 252.7319941 | AC22: =(MeOH_FTD!$AJ177*MeOH_FTD!$AK$162+MeOH_FTD!$AK177)/1000000*HLOOKUP($J$10,$Z$5:$AD$6,2,FALSE)/HLOOKUP($J$11,$Z$7:$AD$8,2,FALSE) -> 216.6836182 | AD22: =((1-Vehicles!$C$41)*(1-Vehicles!$C$13)*Fuel_Specs!$B$20/((1-Vehicles!$C$41)*(1-Vehicles!$C$13)*Fuel_Specs!$B$20+Vehicles!$C$41*(1-Vehicles!$C$13)*Fuel_Specs!$B$23+Vehicles!$C$13*Fuel_Specs!$B$41)*(Petroleum!B277*Petroleum!$J$262+Petroleum!$J277)+Vehicles!$C$41*(1-Vehicles!$C$13)*Fuel_Specs!$B$23/((1-Vehicles!$C$41)*(1-Vehicles!$C$13)*Fuel_Specs!$B$20+Vehicles!$C$41*(1-Vehicles!$C$13)*Fuel_Specs!$B$23+Vehicles!$C$13*Fuel_Specs!$B$41)*(Petroleum!B277*IF(Inputs!F$102=1,Petroleum!$K$262,Petroleum!$L$262)+IF(Inputs!F$102=1,Petroleum!$K277,Petroleum!$L277))+Vehicles!$C$13*Fuel_Specs!$B$41/((1-Vehicles!$C$41)*(1-Vehicles!$C$13)*Fuel_Specs!$B$20+Vehicles!$C$41*(1-Vehicles!$C$13)*Fuel_Specs!$B$23+Vehicles!$C$13*Fuel_Specs!$B$41)*(MeOH_FTD!$AZ177*MeOH_FTD!$BA$162+MeOH_FTD!$BA177))/1000000*HLOOKUP($J$10,$Z$5:$AD$6,2,FALSE)/HLOOKUP($J$11,$Z$7:$AD$8,2,FALSE) -> 218.5303704 | AE22: =((1-Vehicles!$C$42)*(1-Vehicles!$C$14)*Fuel_Specs!$B$20/((1-Vehicles!$C$42)*(1-Vehicles!$C$14)*Fuel_Specs!$B$20+Vehicles!$C$42*(1-Vehicles!$C$14)*Fuel_Specs!$B$23+Vehicles!$C$14*Fuel_Specs!$B$40)*(Petroleum!B277*Petroleum!$J$262+Petroleum!$J277)+Vehicles!$C$42*(1-Vehicles!$C$14)*Fuel_Specs!$B$23/((1-Vehicles!$C$42)*(1-Vehicles!$C$14)*Fuel_Specs!$B$20+Vehicles!$C$42*(1-Vehicles!$C$14)*Fuel_Specs!$B$23+Vehicles!$C$14*Fuel_Specs!$B$40)*(Petroleum!B277*IF(Inputs!F$102=1,Petroleum!$K$262,Petroleum!$L$262)+IF(Inputs!F$102=1,Petroleum!$K277,Petroleum!$L277))+Vehicles!$C$14*Fuel_Specs!$B$40/((1-Vehicles!$C$42)*(1-Vehicles!$C$14)*Fuel_Specs!$B$20+Vehicles!$C$42*(1-Vehicles!$C$14)*Fuel_Specs!$B$23+Vehicles!$C$14*Fuel_Specs!$B$40)*(BioOil!$Y447*BioOil!$Z$431+BioOil!$Z447))/1000000*HLOOKUP($J$10,$Z$5:$AD$6,2,FALSE)/HLOOKUP($J$11,$Z$7:$AD$8,2,FALSE) -> 95.6102387 | AF22: =((1-Vehicles!$C$43)*(1-Vehicles!$C$15)*Fuel_Specs!$B$20/((1-Vehicles!$C$43)*(1-Vehicles!$C$15)*Fuel_Specs!$B$20+Vehicles!$C$43*(1-Vehicles!$C$15)*Fuel_Specs!$B$23+Vehicles!$C$15*IF(Inputs!$E$670=1,IF(Inputs!$E$670=1,Fuel_Specs!$B$42,IF(Inputs!$E$670=3,Fuel_Specs!$B$44,Fuel_Specs!$B$43)),Fuel_Specs!$B$43))*(Petroleum!B277*Petroleum!$J$262+Petroleum!$J277)+Vehicles!$C$43*(1-Vehicles!$C$15)*Fuel_Specs!$B$23/((1-Vehicles!$C$43)*(1-Vehicles!$C$15)*Fuel_Specs!$B$20+Vehicles!$C$43*(1-Vehicles!$C$15)*Fuel_Specs!$B$23+Vehicles!$C$15*IF(Inputs!$E$670=1,IF(Inputs!$E$670=1,Fuel_Specs!$B$42,IF(Inputs!$E$670=3,Fuel_Specs!$B$44,Fuel_Specs!$B$43)),Fuel_Specs!$B$43))*(Petroleum!B277*IF(Inputs!F$102=1,Petroleum!$K$262,Petroleum!$L$262)+IF(Inputs!F$102=1,Petroleum!$K277,Petroleum!$L277))+Vehicles!$C$15*IF(Inputs!$E$670=1,IF(Inputs!$E$670=1,Fuel_Specs!$B$42,IF(Inputs!$E$670=3,Fuel_Specs!$B$44,Fuel_Specs!$B$43)),Fuel_Specs!$B$43)/((1-Vehicles!$C$43)*(1-Vehicles!$C$15)*Fuel_Specs!$B$20+Vehicles!$C$43*(1-Vehicles!$C$15)*Fuel_Specs!$B$23+Vehicles!$C$15*IF(Inputs!$E$670=1,IF(Inputs!$E$670=1,Fuel_Specs!$B$42,IF(Inputs!$E$670=3,Fuel_Specs!$B$44,Fuel_Specs!$B$43)),Fuel_Specs!$B$43))*(BioOil!$BQ447*BioOil!$BR$431+BioOil!$BR447))/1000000*HLOOKUP($J$10,$Z$5:$AD$6,2,FALSE)/HLOOKUP($J$11,$Z$7:$AD$8,2,FALSE) -> 45.34802049 | AG22: =((1-Vehicles!$C$43)*(1-Vehicles!$C$15)*Fuel_Specs!$B$20/((1-Vehicles!$C$43)*(1-Vehicles!$C$15)*Fuel_Specs!$B$20+Vehicles!$C$43*(1-Vehicles!$C$15)*Fuel_Specs!$B$23+Vehicles!$C$15*IF(Inputs!$E$670=1,Fuel_Specs!$B$42,Fuel_Specs!$B$43))*(Petroleum!B277*Petroleum!$J$262+Petroleum!$J277)+Vehicles!$C$43*(1-Vehicles!$C$15)*Fuel_Specs!$B$23/((1-Vehicles!$C$43)*(1-Vehicles!$C$15)*Fuel_Specs!$B$20+Vehicles!$C$43*(1-Vehicles!$C$15)*Fuel_Specs!$B$23+Vehicles!$C$15*IF(Inputs!$E$670=1,Fuel_Specs!$B$42,Fuel_Specs!$B$43))*(Petroleum!B277*IF(Inputs!F$102=1,Petroleum!$K$262,Petroleum!$L$262)+IF(Inputs!F$102=1,Petroleum!$K277,Petroleum!$L277))+Vehicles!$C$15*IF(Inputs!$E$670=1,Fuel_Specs!$B$42,Fuel_Specs!$B$43)/((1-Vehicles!$C$43)*(1-Vehicles!$C$15)*Fuel_Specs!$B$20+Vehicles!$C$43*(1-Vehicles!$C$15)*Fuel_Specs!$B$23+Vehicles!$C$15*IF(Inputs!$E$670=1,Fuel_Specs!$B$42,Fuel_Specs!$B$43))*(Pyrolysis_IDL!$AF312*Pyrolysis_IDL!$AG$297+Pyrolysis_IDL!$AG312))/1000000*HLOOKUP($J$10,$Z$5:$AD$6,2,FALSE)/HLOOKUP($J$11,$Z$7:$AD$8,2,FALSE) -> 62.20306681 | AH22: =(((1-Vehicles!$C$44)*(1-Vehicles!$C$17-Vehicles!$C$18)*Fuel_Specs!$B$20*(Petroleum!B277*Petroleum!$J$262+Petroleum!$J277)+Vehicles!$C$44*(1-Vehicles!$C$17-Vehicles!$C$18)*Fuel_Specs!$B$23*(Petroleum!B277*IF(Inputs!F$102=1,Petroleum!$K$262,Petroleum!$L$262)+IF(Inputs!F$102=1,Petroleum!$K277,Petroleum!$L277))+Vehicles!$C$17*Fuel_Specs!$B$32*(EtOH!BT561*EtOH!$BU$546+EtOH!$BU561)+Vehicles!$C$18*Fuel_Specs!$B$35*('EtOH-Diesel Additives'!$B68*'EtOH-Diesel Additives'!$B$53))/((1-Vehicles!$C$44)*(1-Vehicles!$C$17-Vehicles!$C$18)*Fuel_Specs!$B$20+Vehicles!$C$44*(1-Vehicles!$C$17-Vehicles!$C$18)*Fuel_Specs!$B$23+Vehicles!$C$17*Fuel_Specs!$B$32+Vehicles!$C$18*Fuel_Specs!$B$35))/1000000*HLOOKUP($J$10,$Z$5:$AD$6,2,FALSE)/HLOOKUP($J$11,$Z$7:$AD$8,2,FALSE) -> 110.1667349 | AI22: =AN22*(Vehicles!$M$30/Vehicles!$CO$72)/(Vehicles!$M$30*(1/Vehicles!$CO$72+1/Vehicles!$CP$72)+Vehicles!$M$31/Vehicles!$CQ$72)+E22*(Vehicles!$M$30/Vehicles!$CP$72+Vehicles!$M$31/Vehicles!$CQ$72)/(Vehicles!$M$30*(1/Vehicles!$CO$72+1/Vehicles!$CP$72)+Vehicles!$M$31/Vehicles!$CQ$72) -> 117.7764521 | AJ22: =AN22*(Vehicles!$N$30/Vehicles!$CS$72)/(Vehicles!$N$30*(1/Vehicles!$CS$72+1/Vehicles!$CT$72)+Vehicles!$N$31/Vehicles!$CU$72)+AC22*(Vehicles!$N$30/Vehicles!$CT$72+Vehicles!$N$31/Vehicles!$CU$72)/(Vehicles!$N$30*(1/Vehicles!$CS$72+1/Vehicles!$CT$72)+Vehicles!$N$31/Vehicles!$CU$72) -> 192.8345715 | AK22: =AN22*(Vehicles!$O$30/Vehicles!$CW$72)/(Vehicles!$O$30*(1/Vehicles!$CW$72+1/Vehicles!$CX$72)+Vehicles!$O$31/Vehicles!$CY$72)+AD22*(Vehicles!$O$30/Vehicles!$CX$72+Vehicles!$O$31/Vehicles!$CY$72)/(Vehicles!$O$30*(1/Vehicles!$CW$72+1/Vehicles!$CX$72)+Vehicles!$O$31/Vehicles!$CY$72) -> 194.1326539 | AL22: =AN22*(Vehicles!$P$30/Vehicles!$DA$72)/(Vehicles!$P$30*(1/Vehicles!$DA$72+1/Vehicles!$DB$72)+Vehicles!$P$31/Vehicles!$DC$72)+AE22*(Vehicles!$P$30/Vehicles!$DB$72+Vehicles!$P$31/Vehicles!$DC$72)/(Vehicles!$P$30*(1/Vehicles!$DA$72+1/Vehicles!$DB$72)+Vehicles!$P$31/Vehicles!$DC$72) -> 107.732076 | AM22: =AN22*(Vehicles!$R$30/Vehicles!$DI$72)/(Vehicles!$R$30*(1/Vehicles!$DI$72+1/Vehicles!$DJ$72)+Vehicles!$R$31/Vehicles!$DK$72)+AH22*(Vehicles!$R$30/Vehicles!$DJ$72+Vehicles!$R$31/Vehicles!$DK$72)/(Vehicles!$R$30*(1/Vehicles!$DI$72+1/Vehicles!$DJ$72)+Vehicles!$R$31/Vehicles!$DK$72) -> 117.9638393 | AN22: =(Electric!$G218+Electric!$F218)/1000000*HLOOKUP($J$10,$Z$5:$AD$6,2,FALSE)/HLOOKUP($J$11,$Z$7:$AD$8,2,FALSE) -> 136.4107875 | AO22: =(Hydrogen!$AJ320*Hydrogen!$AK$305+Hydrogen!$AK320)/1000000*HLOOKUP($J$10,$Z$5:$AD$6,2,FALSE)/HLOOKUP($J$11,$Z$7:$AD$8,2,FALSE) -> 267.1142998 | AP22: =(Hydrogen!$BT320*Hydrogen!$BU$305+Hydrogen!$BU320)/1000000*HLOOKUP($J$10,$Z$5:$AD$6,2,FALSE)/HLOOKUP($J$11,$Z$7:$AD$8,2,FALSE) -> 323.3808001 | AQ22: =AN22*(Vehicles!$S$30/Vehicles!$DY$72)/(Vehicles!$S$30*(1/Vehicles!$DY$72+1/Vehicles!$DZ$72)+Vehicles!$S$31/Vehicles!$EA$72)+AO22*(Vehicles!$S$30/Vehicles!$DZ$72+Vehicles!$S$31/Vehicles!$EA$72)/(Vehicles!$S$30*(1/Vehicles!$DY$72+1/Vehicles!$DZ$72)+Vehicles!$S$31/Vehicles!$EA$72) -> 214.2446652 | AR22: =AN22*(Vehicles!$S$30/Vehicles!$DY$72)/(Vehicles!$S$30*(1/Vehicles!$DY$72+1/Vehicles!$DZ$72)+Vehicles!$S$31/Vehicles!$EA$72)+AP22*(Vehicles!$S$30/Vehicles!$DZ$72+Vehicles!$S$31/Vehicles!$EA$72)/(Vehicles!$S$30*(1/Vehicles!$DY$72+1/Vehicles!$DZ$72)+Vehicles!$S$31/Vehicles!$EA$72) -> 247.7513386 | AS22: =((1-Vehicles!$C$40)*(1-Vehicles!$C$16)*Fuel_Specs!$B$15/((1-Vehicles!$C$40)*(1-Vehicles!$C$16)*Fuel_Specs!$B$15+Vehicles!$C$40*(1-Vehicles!$C$16)*Fuel_Specs!$B$16+Vehicles!$C$16*Fuel_Specs!$B$47)*(Petroleum!$B277*Petroleum!$D$262+Petroleum!$D277)+Vehicles!$C$40*(1-Vehicles!$C$16)*Fuel_Specs!$B$16/((1-Vehicles!$C$40)*(1-Vehicles!$C$16)*Fuel_Specs!$B$15+Vehicles!$C$40*(1-Vehicles!$C$16)*Fuel_Specs!$B$16+Vehicles!$C$16*Fuel_Specs!$B$47)*(Petroleum!B277*Petroleum!$F$262+Petroleum!$F277)+Vehicles!$C$16*Fuel_Specs!$B$47/((1-Vehicles!$C$40)*(1-Vehicles!$C$16)*Fuel_Specs!$B$15+Vehicles!$C$40*(1-Vehicles!$C$16)*Fuel_Specs!$B$16+Vehicles!$C$16*Fuel_Specs!$B$47)*(Pyrolysis_IDL!$AP312*Pyrolysis_IDL!$AQ$297+Pyrolysis_IDL!$AQ312))/1000000*HLOOKUP($J$10,$Z$5:$AD$6,2,FALSE)/HLOOKUP($J$11,$Z$7:$AD$8,2,FALSE) -> 28.27237046 | AT22: =(Petroleum!$B277*Petroleum!$S$262+Petroleum!$S277)/1000000*HLOOKUP($J$10,$Z$5:$AD$6,2,FALSE)/HLOOKUP($J$11,$Z$7:$AD$8,2,FALSE) -> 112.3325375 | AU22: 107.5033211 | AV22: 46.79390379 | BB22: SI - LNG Vehicle | BC22: RNAVLNG | BH22: CIDI - PUP-derived Diesel | BI22: RNAVNRPDIESELCIDI | BK22: SI HEV - MeOH | BL22: RNAVHEVMEOH | BN22: SI PHEV - MeOH and Electricity | BO22: RNAVPHEVMEOH
A23: N2O | B23: =(Inputs!$E$1500*(Petroleum!$B278*Petroleum!$F$262+Petroleum!$F278)+(1-Inputs!$E$1500)*(Petroleum!$B278*Petroleum!$D$262+Petroleum!$D278))/1000000*HLOOKUP($J$10,$Z$5:$AD$6,2,FALSE)/HLOOKUP($J$11,$Z$7:$AD$8,2,FALSE) -> 2.873519388 | C23: =(Petroleum!$C278*Petroleum!$G$262+Petroleum!$G278)/1000000*HLOOKUP($J$10,$Z$5:$AD$6,2,FALSE)/HLOOKUP($J$11,$Z$7:$AD$8,2,FALSE) -> 2.881949715 | D23: =((1-Vehicles!$C$35)*(1-Vehicles!$C$7)*Fuel_Specs!$B$15/((1-Vehicles!$C$35)*(1-Vehicles!$C$7)*Fuel_Specs!$B$15+Vehicles!$C$35*(1-Vehicles!$C$7)*Fuel_Specs!$B$16+Vehicles!$C$7*Fuel_Specs!$B$32)*(Petroleum!$B278*Petroleum!$D$262+(Petroleum!$D278-'T&D'!G231))+Vehicles!$C$35*(1-Vehicles!$C$7)*Fuel_Specs!$B$16/((1-Vehicles!$C$35)*(1-Vehicles!$C$7)*Fuel_Specs!$B$15+Vehicles!$C$35*(1-Vehicles!$C$7)*Fuel_Specs!$B$16+Vehicles!$C$7*Fuel_Specs!$B$32)*(Petroleum!B278*Petroleum!$F$262+Petroleum!$F278)+Vehicles!$C$7*Fuel_Specs!$B$32/((1-Vehicles!$C$35)*(1-Vehicles!$C$7)*Fuel_Specs!$B$15+Vehicles!$C$35*(1-Vehicles!$C$7)*Fuel_Specs!$B$16+Vehicles!$C$7*Fuel_Specs!$B$32)*(EtOH!BV562*EtOH!$BW$546+EtOH!$BW562)+Petroleum!AS140+Petroleum!AT140)/1000000*HLOOKUP($J$10,$Z$5:$AD$6,2,FALSE)/HLOOKUP($J$11,$Z$7:$AD$8,2,FALSE) -> 2.873519388 | E23: =(Inputs!$E$97*(IF(Inputs!F$102=1,Petroleum!$B278,Petroleum!$C278)*IF(Inputs!F$102=1,Petroleum!$K$262,Petroleum!$L$262)+IF(Inputs!F$102=1,Petroleum!$K278,Petroleum!$L278))+(1-Inputs!$E$97)*(IF(Inputs!F$101=1,Petroleum!$B278,Petroleum!$C278)*Petroleum!$J$262+Petroleum!$J278))/1000000*HLOOKUP($J$10,$Z$5:$AD$6,2,FALSE)/HLOOKUP($J$11,$Z$7:$AD$8,2,FALSE) -> 0.2231710893 | F23: =(NG!$J100*NG!$K$84+NG!$K100)/1000000*HLOOKUP($J$10,$Z$5:$AD$6,2,FALSE)/HLOOKUP($J$11,$Z$7:$AD$8,2,FALSE) -> 1.58324647 | G23: =(NG!$R100*NG!$S$84+NG!$S100)/1000000*HLOOKUP($J$10,$Z$5:$AD$6,2,FALSE)/HLOOKUP($J$11,$Z$7:$AD$8,2,FALSE) -> 0.1681169347 | H23: =(NG!$X100*NG!$Y$84+NG!$Y100)/1000000*HLOOKUP($J$10,$Z$5:$AD$6,2,FALSE)/HLOOKUP($J$11,$Z$7:$AD$8,2,FALSE) -> 0.1696799601 | I23: =(MeOH_FTD!BJ178*MeOH_FTD!BK$162+MeOH_FTD!BK178)/1000000*HLOOKUP($J$10,$Z$5:$AD$6,2,FALSE)/HLOOKUP($J$11,$Z$7:$AD$8,2,FALSE) -> 0.1648087627 | J23: =((1-Vehicles!$C$34)*(1-Vehicles!$C$5)*Fuel_Specs!$B$15/((1-Vehicles!$C$34)*(1-Vehicles!$C$5)*Fuel_Specs!$B$15+Vehicles!$C$34*(1-Vehicles!$C$5)*Fuel_Specs!$B$16+Vehicles!$C$5*Fuel_Specs!$B$31)*(Petroleum!$B278*Petroleum!$D$262+Petroleum!$D278)+Vehicles!$C$34*(1-Vehicles!$C$5)*Fuel_Specs!$B$16/((1-Vehicles!$C$34)*(1-Vehicles!$C$5)*Fuel_Specs!$B$15+Vehicles!$C$34*(1-Vehicles!$C$5)*Fuel_Specs!$B$16+Vehicles!$C$5*Fuel_Specs!$B$31)*(Petroleum!B278*Petroleum!$F$262+Petroleum!$F278)+Vehicles!$C$5*Fuel_Specs!$B$31/((1-Vehicles!$C$34)*(1-Vehicles!$C$5)*Fuel_Specs!$B$15+Vehicles!$C$34*(1-Vehicles!$C$5)*Fuel_Specs!$B$16+Vehicles!$C$5*Fuel_Specs!$B$31)*(MeOH_FTD!$N178*MeOH_FTD!$O$162+MeOH_FTD!$O178))/1000000*HLOOKUP($J$10,$Z$5:$AD$6,2,FALSE)/HLOOKUP($J$11,$Z$7:$AD$8,2,FALSE) -> 0.2758714922 | K23: =((1-Vehicles!$C$34)*(1-Vehicles!$C$6)*Fuel_Specs!$B$15/((1-Vehicles!$C$34)*(1-Vehicles!$C$6)*Fuel_Specs!$B$15+Vehicles!$C$34*(1-Vehicles!$C$6)*Fuel_Specs!$B$16+Vehicles!$C$6*Fuel_Specs!$B$31)*(Petroleum!$B278*Petroleum!$D$262+Petroleum!$D278)+Vehicles!$C$34*(1-Vehicles!$C$6)*Fuel_Specs!$B$16/((1-Vehicles!$C$34)*(1-Vehicles!$C$6)*Fuel_Specs!$B$15+Vehicles!$C$34*(1-Vehicles!$C$6)*Fuel_Specs!$B$16+Vehicles!$C$6*Fuel_Specs!$B$31)*(Petroleum!B278*Petroleum!$F$262+Petroleum!$F278)+Vehicles!$C$6*Fuel_Specs!$B$31/((1-Vehicles!$C$34)*(1-Vehicles!$C$6)*Fuel_Specs!$B$15+Vehicles!$C$34*(1-Vehicles!$C$6)*Fuel_Specs!$B$16+Vehicles!$C$6*Fuel_Specs!$B$31)*(MeOH_FTD!$N178*MeOH_FTD!$O$162+MeOH_FTD!$O178))/1000000*HLOOKUP($J$10,$Z$5:$AD$6,2,FALSE)/HLOOKUP($J$11,$Z$7:$AD$8,2,FALSE) -> 0.2753999172 | L23: =(MeOH_FTD!$N178*MeOH_FTD!$O$162+MeOH_FTD!$O178)/1000000*HLOOKUP($J$10,$Z$5:$AD$6,2,FALSE)/HLOOKUP($J$11,$Z$7:$AD$8,2,FALSE) -> 0.2743113654 | M23: =((1-Vehicles!$C$36)*(1-Vehicles!$C$8)*Fuel_Specs!$B$15/((1-Vehicles!$C$36)*(1-Vehicles!$C$8)*Fuel_Specs!$B$15+Vehicles!$C$36*(1-Vehicles!$C$8)*Fuel_Specs!$B$16+Vehicles!$C$8*Fuel_Specs!$B$32)*(Petroleum!$B278*Petroleum!$D$262+(Petroleum!$D278-'T&D'!G231))+Vehicles!$C$36*(1-Vehicles!$C$8)*Fuel_Specs!$B$16/((1-Vehicles!$C$36)*(1-Vehicles!$C$8)*Fuel_Specs!$B$15+Vehicles!$C$36*(1-Vehicles!$C$8)*Fuel_Specs!$B$16+Vehicles!$C$8*Fuel_Specs!$B$32)*(Petroleum!B278*Petroleum!$F$262+Petroleum!$F278)+Vehicles!$C$8*Fuel_Specs!$B$32/((1-Vehicles!$C$36)*(1-Vehicles!$C$8)*Fuel_Specs!$B$15+Vehicles!$C$36*(1-Vehicles!$C$8)*Fuel_Specs!$B$16+Vehicles!$C$8*Fuel_Specs!$B$32)*(EtOH!BV562*EtOH!$BW$546+EtOH!$BW562)+Petroleum!AS140+Petroleum!AT140)/1000000*HLOOKUP($J$10,$Z$5:$AD$6,2,FALSE)/HLOOKUP($J$11,$Z$7:$AD$8,2,FALSE) -> 30.08697864 | N23: =((1-Vehicles!$C$37)*(1-Vehicles!$C$12)*Fuel_Specs!$B$15/((1-Vehicles!$C$37)*(1-Vehicles!$C$12)*Fuel_Specs!$B$15+Vehicles!$C$37*(1-Vehicles!$C$12)*Fuel_Specs!$B$16+Vehicles!$C$12*Fuel_Specs!$B$33)*(Petroleum!$B278*Petroleum!$D$262+Petroleum!$D278)+Vehicles!$C$37*(1-Vehicles!$C$12)*Fuel_Specs!$B$16/((1-Vehicles!$C$37)*(1-Vehicles!$C$12)*Fuel_Specs!$B$15+Vehicles!$C$37*(1-Vehicles!$C$12)*Fuel_Specs!$B$16+Vehicles!$C$12*Fuel_Specs!$B$33)*(Petroleum!B278*Petroleum!$F$262+Petroleum!$F278)+Vehicles!$C$12*Fuel_Specs!$B$33/((1-Vehicles!$C$37)*(1-Vehicles!$C$12)*Fuel_Specs!$B$15+Vehicles!$C$37*(1-Vehicles!$C$12)*Fuel_Specs!$B$16+Vehicles!$C$12*Fuel_Specs!$B$33)*(EtOH!$BX562*EtOH!$BY$546+EtOH!$BY562))/1000000*HLOOKUP($J$10,$Z$5:$AD$6,2,FALSE)/HLOOKUP($J$11,$Z$7:$AD$8,2,FALSE) -> 33.94339622 | O23: =((1-Vehicles!$C$36)*(1-Vehicles!$C$9)*Fuel_Specs!$B$15/((1-Vehicles!$C$36)*(1-Vehicles!$C$9)*Fuel_Specs!$B$15+Vehicles!$C$36*(1-Vehicles!$C$9)*Fuel_Specs!$B$16+Vehicles!$C$9*Fuel_Specs!$B$32)*(Petroleum!$B278*Petroleum!$D$262+(Petroleum!$D278-'T&D'!G231))+Vehicles!$C$36*(1-Vehicles!$C$9)*Fuel_Specs!$B$16/((1-Vehicles!$C$36)*(1-Vehicles!$C$9)*Fuel_Specs!$B$15+Vehicles!$C$36*(1-Vehicles!$C$9)*Fuel_Specs!$B$16+Vehicles!$C$9*Fuel_Specs!$B$32)*(Petroleum!B278*Petroleum!$F$262+Petroleum!$F278)+Vehicles!$C$9*Fuel_Specs!$B$32/((1-Vehicles!$C$36)*(1-Vehicles!$C$9)*Fuel_Specs!$B$15+Vehicles!$C$36*(1-Vehicles!$C$9)*Fuel_Specs!$B$16+Vehicles!$C$9*Fuel_Specs!$B$32)*(EtOH!BV562*EtOH!$BW$546+EtOH!$BW562)+Petroleum!AS140+Petroleum!AT140)/1000000*HLOOKUP($J$10,$Z$5:$AD$6,2,FALSE)/HLOOKUP($J$11,$Z$7:$AD$8,2,FALSE) -> 30.08697864 | P23: =(EtOH!$BT562*EtOH!$BU$546+EtOH!$BU562)/1000000*HLOOKUP($J$10,$Z$5:$AD$6,2,FALSE)/HLOOKUP($J$11,$Z$7:$AD$8,2,FALSE) -> 39.17553793 | Q23: =((1-Vehicles!$C$40)*(1-Vehicles!$C$16)*Fuel_Specs!$B$15/((1-Vehicles!$C$40)*(1-Vehicles!$C$16)*Fuel_Specs!$B$15+Vehicles!$C$40*(1-Vehicles!$C$16)*Fuel_Specs!$B$16+Vehicles!$C$16*Fuel_Specs!$B$46)*(Petroleum!$B278*Petroleum!$D$262+Petroleum!$D278)+Vehicles!$C$40*(1-Vehicles!$C$16)*Fuel_Specs!$B$16/((1-Vehicles!$C$40)*(1-Vehicles!$C$16)*Fuel_Specs!$B$15+Vehicles!$C$40*(1-Vehicles!$C$16)*Fuel_Specs!$B$16+Vehicles!$C$16*Fuel_Specs!$B$46)*(Petroleum!B278*Petroleum!$F$262+Petroleum!$F278)+Vehicles!$C$16*Fuel_Specs!$B$46/((1-Vehicles!$C$40)*(1-Vehicles!$C$16)*Fuel_Specs!$B$15+Vehicles!$C$40*(1-Vehicles!$C$16)*Fuel_Specs!$B$16+Vehicles!$C$16*Fuel_Specs!$B$46)*(BioOil!$CE448*BioOil!$CF$431+BioOil!$CF448))/1000000*HLOOKUP($J$10,$Z$5:$AD$6,2,FALSE)/HLOOKUP($J$11,$Z$7:$AD$8,2,FALSE) -> 23.86332021 | R23: =((1-Vehicles!$C$40)*(1-Vehicles!$C$16)*Fuel_Specs!$B$15/((1-Vehicles!$C$40)*(1-Vehicles!$C$16)*Fuel_Specs!$B$15+Vehicles!$C$40*(1-Vehicles!$C$16)*Fuel_Specs!$B$16+Vehicles!$C$16*Fuel_Specs!$B$46)*(Petroleum!$B278*Petroleum!$D$262+Petroleum!$D278)+Vehicles!$C$40*(1-Vehicles!$C$16)*Fuel_Specs!$B$16/((1-Vehicles!$C$40)*(1-Vehicles!$C$16)*Fuel_Specs!$B$15+Vehicles!$C$40*(1-Vehicles!$C$16)*Fuel_Specs!$B$16+Vehicles!$C$16*Fuel_Specs!$B$46)*(Petroleum!B278*Petroleum!$F$262+Petroleum!$F278)+Vehicles!$C$16*Fuel_Specs!$B$46/((1-Vehicles!$C$40)*(1-Vehicles!$C$16)*Fuel_Specs!$B$15+Vehicles!$C$40*(1-Vehicles!$C$16)*Fuel_Specs!$B$16+Vehicles!$C$16*Fuel_Specs!$B$46)*(Pyrolysis_IDL!$AD313*Pyrolysis_IDL!$AE$297+Pyrolysis_IDL!$AE313))/1000000*HLOOKUP($J$10,$Z$5:$AD$6,2,FALSE)/HLOOKUP($J$11,$Z$7:$AD$8,2,FALSE) -> 0.3832135956 | S23: =AN23*(Vehicles!$C$30/Vehicles!$AT$72)/(Vehicles!$C$30*(1/Vehicles!$AT$72+1/Vehicles!$AU$72)+Vehicles!$C$31/Vehicles!$AV$72)+B23*(Vehicles!$C$30/Vehicles!$AU$72+Vehicles!$C$31/Vehicles!$AV$72)/(Vehicles!$C$30*(1/Vehicles!$AT$72+1/Vehicles!$AU$72)+Vehicles!$C$31/Vehicles!$AV$72) -> 2.202947143 | T23: =AN23*(Vehicles!$D$30/Vehicles!$AX$72)/(Vehicles!$D$30*(1/Vehicles!$AX$72+1/Vehicles!$AY$72)+Vehicles!$D$31/Vehicles!$AZ$72)+C23*(Vehicles!$D$30/Vehicles!$AY$72+Vehicles!$D$31/Vehicles!$AZ$72)/(Vehicles!$D$30*(1/Vehicles!$AX$72+1/Vehicles!$AY$72)+Vehicles!$D$31/Vehicles!$AZ$72) -> 2.208191973 | U23: =AN23*(Vehicles!$F$30/Vehicles!$BF$72)/(Vehicles!$F$30*(1/Vehicles!$BF$72+1/Vehicles!$BG$72)+Vehicles!$F$31/Vehicles!$BH$72)+D23*(Vehicles!$F$30/Vehicles!$BG$72+Vehicles!$F$31/Vehicles!$BH$72)/(Vehicles!$F$30*(1/Vehicles!$BF$72+1/Vehicles!$BG$72)+Vehicles!$F$31/Vehicles!$BH$72) -> 2.202947143 | V23: =AN23*(Vehicles!$G$30/Vehicles!$BJ$72)/(Vehicles!$G$30*(1/Vehicles!$BJ$72+1/Vehicles!$BK$72)+Vehicles!$G$31/Vehicles!$BL$72)+F23*(Vehicles!$G$30/Vehicles!$BK$72+Vehicles!$G$31/Vehicles!$BL$72)/(Vehicles!$G$30*(1/Vehicles!$BJ$72+1/Vehicles!$BK$72)+Vehicles!$G$31/Vehicles!$BL$72) -> 1.400218937 | W23: =AN23*(Vehicles!$H$30/Vehicles!$BN$72)/(Vehicles!$H$30*(1/Vehicles!$BN$72+1/Vehicles!$BO$72)+Vehicles!$H$31/Vehicles!$BP$72)+G23*(Vehicles!$H$30/Vehicles!$BO$72+Vehicles!$H$31/Vehicles!$BP$72)/(Vehicles!$H$30*(1/Vehicles!$BN$72+1/Vehicles!$BO$72)+Vehicles!$H$31/Vehicles!$BP$72) -> 0.519812648 | X23: =AN23*(Vehicles!$I$30/Vehicles!$BR$72)/(Vehicles!$I$30*(1/Vehicles!$BR$72+1/Vehicles!$BS$72)+Vehicles!$I$31/Vehicles!$BT$72)+H23*(Vehicles!$I$30/Vehicles!$BS$72+Vehicles!$I$31/Vehicles!$BT$72)/(Vehicles!$I$30*(1/Vehicles!$BR$72+1/Vehicles!$BS$72)+Vehicles!$I$31/Vehicles!$BT$72) -> 0.520785066 | Y23: =AN23*(Vehicles!$J$30/Vehicles!$BV$72)/(Vehicles!$J$30*(1/Vehicles!$BV$72+1/Vehicles!$BW$72)+Vehicles!$J$31/Vehicles!$BX$72)+K23*(Vehicles!$J$30/Vehicles!$BW$72+Vehicles!$J$31/Vehicles!$BX$72)/(Vehicles!$J$30*(1/Vehicles!$BV$72+1/Vehicles!$BW$72)+Vehicles!$J$31/Vehicles!$BX$72) -> 0.5865575008 | Z23: =AN23*(Vehicles!$K$30/Vehicles!$BZ$72)/(Vehicles!$K$30*(1/Vehicles!$BZ$72+1/Vehicles!$CA$72)+Vehicles!$K$31/Vehicles!$CB$72)+O23*(Vehicles!$K$30/Vehicles!$CA$72+Vehicles!$K$31/Vehicles!$CB$72)/(Vehicles!$K$30*(1/Vehicles!$BZ$72+1/Vehicles!$CA$72)+Vehicles!$K$31/Vehicles!$CB$72) -> 19.13348254 | AA23: =AN23*(Vehicles!$L$30/Vehicles!$CD$72)/(Vehicles!$L$30*(1/Vehicles!$CD$72+1/Vehicles!$CE$72)+Vehicles!$L$31/Vehicles!$CF$72)+AO23*(Vehicles!$L$30/Vehicles!$CE$72+Vehicles!$L$31/Vehicles!$CF$72)/(Vehicles!$L$30*(1/Vehicles!$CD$72+1/Vehicles!$CE$72)+Vehicles!$L$31/Vehicles!$CF$72) -> 1.551450831 | AB23: =AN23*(Vehicles!$L$30/Vehicles!$CD$72)/(Vehicles!$L$30*(1/Vehicles!$CD$72+1/Vehicles!$CE$72)+Vehicles!$L$31/Vehicles!$CG$72)+AP23*(Vehicles!$L$30/Vehicles!$CE$72+Vehicles!$L$31/Vehicles!$CG$72)/(Vehicles!$L$30*(1/Vehicles!$CD$72+1/Vehicles!$CE$72)+Vehicles!$L$31/Vehicles!$CG$72) -> 1.825834817 | AC23: =(MeOH_FTD!$AJ178*MeOH_FTD!$AK$162+MeOH_FTD!$AK178)/1000000*HLOOKUP($J$10,$Z$5:$AD$6,2,FALSE)/HLOOKUP($J$11,$Z$7:$AD$8,2,FALSE) -> 0.3867490588 | AD23: =((1-Vehicles!$C$41)*(1-Vehicles!$C$13)*Fuel_Specs!$B$20/((1-Vehicles!$C$41)*(1-Vehicles!$C$13)*Fuel_Specs!$B$20+Vehicles!$C$41*(1-Vehicles!$C$13)*Fuel_Specs!$B$23+Vehicles!$C$13*Fuel_Specs!$B$41)*(Petroleum!B278*Petroleum!$J$262+Petroleum!$J278)+Vehicles!$C$41*(1-Vehicles!$C$13)*Fuel_Specs!$B$23/((1-Vehicles!$C$41)*(1-Vehicles!$C$13)*Fuel_Specs!$B$20+Vehicles!$C$41*(1-Vehicles!$C$13)*Fuel_Specs!$B$23+Vehicles!$C$13*Fuel_Specs!$B$41)*(Petroleum!B278*IF(Inputs!F$102=1,Petroleum!$K$262,Petroleum!$L$262)+IF(Inputs!F$102=1,Petroleum!$K278,Petroleum!$L278))+Vehicles!$C$13*Fuel_Specs!$B$41/((1-Vehicles!$C$41)*(1-Vehicles!$C$13)*Fuel_Specs!$B$20+Vehicles!$C$41*(1-Vehicles!$C$13)*Fuel_Specs!$B$23+Vehicles!$C$13*Fuel_Specs!$B$41)*(MeOH_FTD!$AZ178*MeOH_FTD!$BA$162+MeOH_FTD!$BA178))/1000000*HLOOKUP($J$10,$Z$5:$AD$6,2,FALSE)/HLOOKUP($J$11,$Z$7:$AD$8,2,FALSE) -> 0.2039572941 | AE23: =((1-Vehicles!$C$42)*(1-Vehicles!$C$14)*Fuel_Specs!$B$20/((1-Vehicles!$C$42)*(1-Vehicles!$C$14)*Fuel_Specs!$B$20+Vehicles!$C$42*(1-Vehicles!$C$14)*Fuel_Specs!$B$23+Vehicles!$C$14*Fuel_Specs!$B$40)*(Petroleum!B278*Petroleum!$J$262+Petroleum!$J278)+Vehicles!$C$42*(1-Vehicles!$C$14)*Fuel_Specs!$B$23/((1-Vehicles!$C$42)*(1-Vehicles!$C$14)*Fuel_Specs!$B$20+Vehicles!$C$42*(1-Vehicles!$C$14)*Fuel_Specs!$B$23+Vehicles!$C$14*Fuel_Specs!$B$40)*(Petroleum!B278*IF(Inputs!F$102=1,Petroleum!$K$262,Petroleum!$L$262)+IF(Inputs!F$102=1,Petroleum!$K278,Petroleum!$L278))+Vehicles!$C$14*Fuel_Specs!$B$40/((1-Vehicles!$C$42)*(1-Vehicles!$C$14)*Fuel_Specs!$B$20+Vehicles!$C$42*(1-Vehicles!$C$14)*Fuel_Specs!$B$23+Vehicles!$C$14*Fuel_Specs!$B$40)*(BioOil!$Y448*BioOil!$Z$431+BioOil!$Z448))/1000000*HLOOKUP($J$10,$Z$5:$AD$6,2,FALSE)/HLOOKUP($J$11,$Z$7:$AD$8,2,FALSE) -> 4.441053086 | AF23: =((1-Vehicles!$C$43)*(1-Vehicles!$C$15)*Fuel_Specs!$B$20/((1-Vehicles!$C$43)*(1-Vehicles!$C$15)*Fuel_Specs!$B$20+Vehicles!$C$43*(1-Vehicles!$C$15)*Fuel_Specs!$B$23+Vehicles!$C$15*IF(Inputs!$E$670=1,IF(Inputs!$E$670=1,Fuel_Specs!$B$42,IF(Inputs!$E$670=3,Fuel_Specs!$B$44,Fuel_Specs!$B$43)),Fuel_Specs!$B$43))*(Petroleum!B278*Petroleum!$J$262+Petroleum!$J278)+Vehicles!$C$43*(1-Vehicles!$C$15)*Fuel_Specs!$B$23/((1-Vehicles!$C$43)*(1-Vehicles!$C$15)*Fuel_Specs!$B$20+Vehicles!$C$43*(1-Vehicles!$C$15)*Fuel_Specs!$B$23+Vehicles!$C$15*IF(Inputs!$E$670=1,IF(Inputs!$E$670=1,Fuel_Specs!$B$42,IF(Inputs!$E$670=3,Fuel_Specs!$B$44,Fuel_Specs!$B$43)),Fuel_Specs!$B$43))*(Petroleum!B278*IF(Inputs!F$102=1,Petroleum!$K$262,Petroleum!$L$262)+IF(Inputs!F$102=1,Petroleum!$K278,Petroleum!$L278))+Vehicles!$C$15*IF(Inputs!$E$670=1,IF(Inputs!$E$670=1,Fuel_Specs!$B$42,IF(Inputs!$E$670=3,Fuel_Specs!$B$44,Fuel_Specs!$B$43)),Fuel_Specs!$B$43)/((1-Vehicles!$C$43)*(1-Vehicles!$C$15)*Fuel_Specs!$B$20+Vehicles!$C$43*(1-Vehicles!$C$15)*Fuel_Specs!$B$23+Vehicles!$C$15*IF(Inputs!$E$670=1,IF(Inputs!$E$670=1,Fuel_Specs!$B$42,IF(Inputs!$E$670=3,Fuel_Specs!$B$44,Fuel_Specs!$B$43)),Fuel_Specs!$B$43))*(BioOil!$BQ448*BioOil!$BR$431+BioOil!$BR448))/1000000*HLOOKUP($J$10,$Z$5:$AD$6,2,FALSE)/HLOOKUP($J$11,$Z$7:$AD$8,2,FALSE) -> 23.09257748 | AG23: =((1-Vehicles!$C$43)*(1-Vehicles!$C$15)*Fuel_Specs!$B$20/((1-Vehicles!$C$43)*(1-Vehicles!$C$15)*Fuel_Specs!$B$20+Vehicles!$C$43*(1-Vehicles!$C$15)*Fuel_Specs!$B$23+Vehicles!$C$15*IF(Inputs!$E$670=1,Fuel_Specs!$B$42,Fuel_Specs!$B$43))*(Petroleum!B278*Petroleum!$J$262+Petroleum!$J278)+Vehicles!$C$43*(1-Vehicles!$C$15)*Fuel_Specs!$B$23/((1-Vehicles!$C$43)*(1-Vehicles!$C$15)*Fuel_Specs!$B$20+Vehicles!$C$43*(1-Vehicles!$C$15)*Fuel_Specs!$B$23+Vehicles!$C$15*IF(Inputs!$E$670=1,Fuel_Specs!$B$42,Fuel_Specs!$B$43))*(Petroleum!B278*IF(Inputs!F$102=1,Petroleum!$K$262,Petroleum!$L$262)+IF(Inputs!F$102=1,Petroleum!$K278,Petroleum!$L278))+Vehicles!$C$15*IF(Inputs!$E$670=1,Fuel_Specs!$B$42,Fuel_Specs!$B$43)/((1-Vehicles!$C$43)*(1-Vehicles!$C$15)*Fuel_Specs!$B$20+Vehicles!$C$43*(1-Vehicles!$C$15)*Fuel_Specs!$B$23+Vehicles!$C$15*IF(Inputs!$E$670=1,Fuel_Specs!$B$42,Fuel_Specs!$B$43))*(Pyrolysis_IDL!$AF313*Pyrolysis_IDL!$AG$297+Pyrolysis_IDL!$AG313))/1000000*HLOOKUP($J$10,$Z$5:$AD$6,2,FALSE)/HLOOKUP($J$11,$Z$7:$AD$8,2,FALSE) -> 0.413493486 | AH23: =(((1-Vehicles!$C$44)*(1-Vehicles!$C$17-Vehicles!$C$18)*Fuel_Specs!$B$20*(Petroleum!B278*Petroleum!$J$262+Petroleum!$J278)+Vehicles!$C$44*(1-Vehicles!$C$17-Vehicles!$C$18)*Fuel_Specs!$B$23*(Petroleum!B278*IF(Inputs!F$102=1,Petroleum!$K$262,Petroleum!$L$262)+IF(Inputs!F$102=1,Petroleum!$K278,Petroleum!$L278))+Vehicles!$C$17*Fuel_Specs!$B$32*(EtOH!BT562*EtOH!$BU$546+EtOH!$BU562)+Vehicles!$C$18*Fuel_Specs!$B$35*('EtOH-Diesel Additives'!$B69*'EtOH-Diesel Additives'!$B$53))/((1-Vehicles!$C$44)*(1-Vehicles!$C$17-Vehicles!$C$18)*Fuel_Specs!$B$20+Vehicles!$C$44*(1-Vehicles!$C$17-Vehicles!$C$18)*Fuel_Specs!$B$23+Vehicles!$C$17*Fuel_Specs!$B$32+Vehicles!$C$18*Fuel_Specs!$B$35))/1000000*HLOOKUP($J$10,$Z$5:$AD$6,2,FALSE)/HLOOKUP($J$11,$Z$7:$AD$8,2,FALSE) -> 2.623328827 | AI23: =AN23*(Vehicles!$M$30/Vehicles!$CO$72)/(Vehicles!$M$30*(1/Vehicles!$CO$72+1/Vehicles!$CP$72)+Vehicles!$M$31/Vehicles!$CQ$72)+E23*(Vehicles!$M$30/Vehicles!$CP$72+Vehicles!$M$31/Vehicles!$CQ$72)/(Vehicles!$M$30*(1/Vehicles!$CO$72+1/Vehicles!$CP$72)+Vehicles!$M$31/Vehicles!$CQ$72) -> 0.4833409409 | AJ23: =AN23*(Vehicles!$N$30/Vehicles!$CS$72)/(Vehicles!$N$30*(1/Vehicles!$CS$72+1/Vehicles!$CT$72)+Vehicles!$N$31/Vehicles!$CU$72)+AC23*(Vehicles!$N$30/Vehicles!$CT$72+Vehicles!$N$31/Vehicles!$CU$72)/(Vehicles!$N$30*(1/Vehicles!$CS$72+1/Vehicles!$CT$72)+Vehicles!$N$31/Vehicles!$CU$72) -> 0.5983199187 | AK23: =AN23*(Vehicles!$O$30/Vehicles!$CW$72)/(Vehicles!$O$30*(1/Vehicles!$CW$72+1/Vehicles!$CX$72)+Vehicles!$O$31/Vehicles!$CY$72)+AD23*(Vehicles!$O$30/Vehicles!$CX$72+Vehicles!$O$31/Vehicles!$CY$72)/(Vehicles!$O$30*(1/Vehicles!$CW$72+1/Vehicles!$CX$72)+Vehicles!$O$31/Vehicles!$CY$72) -> 0.4698355616 | AL23: =AN23*(Vehicles!$P$30/Vehicles!$DA$72)/(Vehicles!$P$30*(1/Vehicles!$DA$72+1/Vehicles!$DB$72)+Vehicles!$P$31/Vehicles!$DC$72)+AE23*(Vehicles!$P$30/Vehicles!$DB$72+Vehicles!$P$31/Vehicles!$DC$72)/(Vehicles!$P$30*(1/Vehicles!$DA$72+1/Vehicles!$DB$72)+Vehicles!$P$31/Vehicles!$DC$72) -> 3.448090791 | AM23: =AN23*(Vehicles!$R$30/Vehicles!$DI$72)/(Vehicles!$R$30*(1/Vehicles!$DI$72+1/Vehicles!$DJ$72)+Vehicles!$R$31/Vehicles!$DK$72)+AH23*(Vehicles!$R$30/Vehicles!$DJ$72+Vehicles!$R$31/Vehicles!$DK$72)/(Vehicles!$R$30*(1/Vehicles!$DI$72+1/Vehicles!$DJ$72)+Vehicles!$R$31/Vehicles!$DK$72) -> 2.170412153 | AN23: =(Electric!$G219+Electric!$F219)/1000000*HLOOKUP($J$10,$Z$5:$AD$6,2,FALSE)/HLOOKUP($J$11,$Z$7:$AD$8,2,FALSE) -> 1.098869423 | AO23: =(Hydrogen!$AJ321*Hydrogen!$AK$305+Hydrogen!$AK321)/1000000*HLOOKUP($J$10,$Z$5:$AD$6,2,FALSE)/HLOOKUP($J$11,$Z$7:$AD$8,2,FALSE) -> 1.826330512 | AP23: =(Hydrogen!$BT321*Hydrogen!$BU$305+Hydrogen!$BU321)/1000000*HLOOKUP($J$10,$Z$5:$AD$6,2,FALSE)/HLOOKUP($J$11,$Z$7:$AD$8,2,FALSE) -> 2.267364256 | AQ23: =AN23*(Vehicles!$S$30/Vehicles!$DY$72)/(Vehicles!$S$30*(1/Vehicles!$DY$72+1/Vehicles!$DZ$72)+Vehicles!$S$31/Vehicles!$EA$72)+AO23*(Vehicles!$S$30/Vehicles!$DZ$72+Vehicles!$S$31/Vehicles!$EA$72)/(Vehicles!$S$30*(1/Vehicles!$DY$72+1/Vehicles!$DZ$72)+Vehicles!$S$31/Vehicles!$EA$72) -> 1.532072146 | AR23: =AN23*(Vehicles!$S$30/Vehicles!$DY$72)/(Vehicles!$S$30*(1/Vehicles!$DY$72+1/Vehicles!$DZ$72)+Vehicles!$S$31/Vehicles!$EA$72)+AP23*(Vehicles!$S$30/Vehicles!$DZ$72+Vehicles!$S$31/Vehicles!$EA$72)/(Vehicles!$S$30*(1/Vehicles!$DY$72+1/Vehicles!$DZ$72)+Vehicles!$S$31/Vehicles!$EA$72) -> 1.794707525 | AS23: =((1-Vehicles!$C$40)*(1-Vehicles!$C$16)*Fuel_Specs!$B$15/((1-Vehicles!$C$40)*(1-Vehicles!$C$16)*Fuel_Specs!$B$15+Vehicles!$C$40*(1-Vehicles!$C$16)*Fuel_Specs!$B$16+Vehicles!$C$16*Fuel_Specs!$B$47)*(Petroleum!$B278*Petroleum!$D$262+Petroleum!$D278)+Vehicles!$C$40*(1-Vehicles!$C$16)*Fuel_Specs!$B$16/((1-Vehicles!$C$40)*(1-Vehicles!$C$16)*Fuel_Specs!$B$15+Vehicles!$C$40*(1-Vehicles!$C$16)*Fuel_Specs!$B$16+Vehicles!$C$16*Fuel_Specs!$B$47)*(Petroleum!B278*Petroleum!$F$262+Petroleum!$F278)+Vehicles!$C$16*Fuel_Specs!$B$47/((1-Vehicles!$C$40)*(1-Vehicles!$C$16)*Fuel_Specs!$B$15+Vehicles!$C$40*(1-Vehicles!$C$16)*Fuel_Specs!$B$16+Vehicles!$C$16*Fuel_Specs!$B$47)*(Pyrolysis_IDL!$AP313*Pyrolysis_IDL!$AQ$297+Pyrolysis_IDL!$AQ313))/1000000*HLOOKUP($J$10,$Z$5:$AD$6,2,FALSE)/HLOOKUP($J$11,$Z$7:$AD$8,2,FALSE) -> 8.682570808 | AT23: =(Petroleum!$B278*Petroleum!$S$262+Petroleum!$S278)/1000000*HLOOKUP($J$10,$Z$5:$AD$6,2,FALSE)/HLOOKUP($J$11,$Z$7:$AD$8,2,FALSE) -> 0.2495190399 | AU23: -1.145518767 | AV23: 0.8032020473 | BB23: SI - LPG Vehicle | BC23: RNAVLPG | BK23: SI HEV - EtOH | BL23: RNAVHEVETOH | BN23: SI PHEV - EtOH and Electricity | BO23: RNAVPHEVETOH
A24: GHGs | B24: =B21+SUMPRODUCT(B22:B23,Fuel_Specs!$B$140:$B$141)+SUMPRODUCT(B25:B27,Fuel_Specs!$B$146:$B$148)+SUMPRODUCT(B31:B32,Fuel_Specs!$B$149:$B$150) -> 17120.05009 | C24: =C21+SUMPRODUCT(C22:C23,Fuel_Specs!$B$140:$B$141)+SUMPRODUCT(C25:C27,Fuel_Specs!$B$146:$B$148)+SUMPRODUCT(C31:C32,Fuel_Specs!$B$149:$B$150) -> 16543.13864 | D24: =D21+SUMPRODUCT(D22:D23,Fuel_Specs!$B$140:$B$141)+SUMPRODUCT(D25:D27,Fuel_Specs!$B$146:$B$148)+SUMPRODUCT(D31:D32,Fuel_Specs!$B$149:$B$150) -> 17120.05009 | E24: =E21+SUMPRODUCT(E22:E23,Fuel_Specs!$B$140:$B$141)+SUMPRODUCT(E25:E27,Fuel_Specs!$B$146:$B$148)+SUMPRODUCT(E31:E32,Fuel_Specs!$B$149:$B$150) -> 15530.05901 | F24: =F21+SUMPRODUCT(F22:F23,Fuel_Specs!$B$140:$B$141)+SUMPRODUCT(F25:F27,Fuel_Specs!$B$146:$B$148)+SUMPRODUCT(F31:F32,Fuel_Specs!$B$149:$B$150) -> 16311.89624 | G24: =G21+SUMPRODUCT(G22:G23,Fuel_Specs!$B$140:$B$141)+SUMPRODUCT(G25:G27,Fuel_Specs!$B$146:$B$148)+SUMPRODUCT(G31:G32,Fuel_Specs!$B$149:$B$150) -> 20134.42664 | H24: =H21+SUMPRODUCT(H22:H23,Fuel_Specs!$B$140:$B$141)+SUMPRODUCT(H25:H27,Fuel_Specs!$B$146:$B$148)+SUMPRODUCT(H31:H32,Fuel_Specs!$B$149:$B$150) -> 13491.20025 | I24: =I21+SUMPRODUCT(I22:I23,Fuel_Specs!$B$140:$B$141)+SUMPRODUCT(I25:I27,Fuel_Specs!$B$146:$B$148)+SUMPRODUCT(I31:I32,Fuel_Specs!$B$149:$B$150) -> 41797.23207 | J24: =J21+SUMPRODUCT(J22:J23,Fuel_Specs!$B$140:$B$141)+SUMPRODUCT(J25:J27,Fuel_Specs!$B$146:$B$148)+SUMPRODUCT(J31:J32,Fuel_Specs!$B$149:$B$150) -> 21926.24497 | K24: =K21+SUMPRODUCT(K22:K23,Fuel_Specs!$B$140:$B$141)+SUMPRODUCT(K25:K27,Fuel_Specs!$B$146:$B$148)+SUMPRODUCT(K31:K32,Fuel_Specs!$B$149:$B$150) -> 22162.43935 | L24: =L21+SUMPRODUCT(L22:L23,Fuel_Specs!$B$140:$B$141)+SUMPRODUCT(L25:L27,Fuel_Specs!$B$146:$B$148)+SUMPRODUCT(L31:L32,Fuel_Specs!$B$149:$B$150) -> 22707.65437 | M24: =M21+SUMPRODUCT(M22:M23,Fuel_Specs!$B$140:$B$141)+SUMPRODUCT(M25:M27,Fuel_Specs!$B$146:$B$148)+SUMPRODUCT(M31:M32,Fuel_Specs!$B$149:$B$150) -> -10441.83442 | N24: =N21+SUMPRODUCT(N22:N23,Fuel_Specs!$B$140:$B$141)+SUMPRODUCT(N25:N27,Fuel_Specs!$B$146:$B$148)+SUMPRODUCT(N31:N32,Fuel_Specs!$B$149:$B$150) -> -18475.6367 | O24: =O21+SUMPRODUCT(O22:O23,Fuel_Specs!$B$140:$B$141)+SUMPRODUCT(O25:O27,Fuel_Specs!$B$146:$B$148)+SUMPRODUCT(O31:O32,Fuel_Specs!$B$149:$B$150) -> -10441.83442 | P24: =P21+SUMPRODUCT(P22:P23,Fuel_Specs!$B$140:$B$141)+SUMPRODUCT(P25:P27,Fuel_Specs!$B$146:$B$148)+SUMPRODUCT(P31:P32,Fuel_Specs!$B$149:$B$150) -> -19591.24078 | Q24: =Q21+SUMPRODUCT(Q22:Q23,Fuel_Specs!$B$140:$B$141)+SUMPRODUCT(Q25:Q27,Fuel_Specs!$B$146:$B$148)+SUMPRODUCT(Q31:Q32,Fuel_Specs!$B$149:$B$150) -> -60535.7585 | R24: =R21+SUMPRODUCT(R22:R23,Fuel_Specs!$B$140:$B$141)+SUMPRODUCT(R25:R27,Fuel_Specs!$B$146:$B$148)+SUMPRODUCT(R31:R32,Fuel_Specs!$B$149:$B$150) -> -53579.31669 | S24: =S21+SUMPRODUCT(S22:S23,Fuel_Specs!$B$140:$B$141)+SUMPRODUCT(S25:S27,Fuel_Specs!$B$146:$B$148)+SUMPRODUCT(S31:S32,Fuel_Specs!$B$149:$B$150) -> 32510.30704 | T24: =T21+SUMPRODUCT(T22:T23,Fuel_Specs!$B$140:$B$141)+SUMPRODUCT(T25:T27,Fuel_Specs!$B$146:$B$148)+SUMPRODUCT(T31:T32,Fuel_Specs!$B$149:$B$150) -> 32151.38833 | U24: =U21+SUMPRODUCT(U22:U23,Fuel_Specs!$B$140:$B$141)+SUMPRODUCT(U25:U27,Fuel_Specs!$B$146:$B$148)+SUMPRODUCT(U31:U32,Fuel_Specs!$B$149:$B$150) -> 32510.30704 | V24: =V21+SUMPRODUCT(V22:V23,Fuel_Specs!$B$140:$B$141)+SUMPRODUCT(V25:V27,Fuel_Specs!$B$146:$B$148)+SUMPRODUCT(V31:V32,Fuel_Specs!$B$149:$B$150) -> 32007.52357 | W24: =W21+SUMPRODUCT(W22:W23,Fuel_Specs!$B$140:$B$141)+SUMPRODUCT(W25:W27,Fuel_Specs!$B$146:$B$148)+SUMPRODUCT(W31:W32,Fuel_Specs!$B$149:$B$150) -> 34385.66616 | X24: =X21+SUMPRODUCT(X22:X23,Fuel_Specs!$B$140:$B$141)+SUMPRODUCT(X25:X27,Fuel_Specs!$B$146:$B$148)+SUMPRODUCT(X31:X32,Fuel_Specs!$B$149:$B$150) -> 30252.66055 | Y24: =Y21+SUMPRODUCT(Y22:Y23,Fuel_Specs!$B$140:$B$141)+SUMPRODUCT(Y25:Y27,Fuel_Specs!$B$146:$B$148)+SUMPRODUCT(Y31:Y32,Fuel_Specs!$B$149:$B$150) -> 35647.37055 | Z24: =Z21+SUMPRODUCT(Z22:Z23,Fuel_Specs!$B$140:$B$141)+SUMPRODUCT(Z25:Z27,Fuel_Specs!$B$146:$B$148)+SUMPRODUCT(Z31:Z32,Fuel_Specs!$B$149:$B$150) -> 15363.00294 | AA24: =AA21+SUMPRODUCT(AA22:AA23,Fuel_Specs!$B$140:$B$141)+SUMPRODUCT(AA25:AA27,Fuel_Specs!$B$146:$B$148)+SUMPRODUCT(AA31:AA32,Fuel_Specs!$B$149:$B$150) -> 78197.5137 | AB24: =AB21+SUMPRODUCT(AB22:AB23,Fuel_Specs!$B$140:$B$141)+SUMPRODUCT(AB25:AB27,Fuel_Specs!$B$146:$B$148)+SUMPRODUCT(AB31:AB32,Fuel_Specs!$B$149:$B$150) -> 91170.61867 | AC24: =AC21+SUMPRODUCT(AC22:AC23,Fuel_Specs!$B$140:$B$141)+SUMPRODUCT(AC25:AC27,Fuel_Specs!$B$146:$B$148)+SUMPRODUCT(AC31:AC32,Fuel_Specs!$B$149:$B$150) -> 30848.98429 | AD24: =AD21+SUMPRODUCT(AD22:AD23,Fuel_Specs!$B$140:$B$141)+SUMPRODUCT(AD25:AD27,Fuel_Specs!$B$146:$B$148)+SUMPRODUCT(AD31:AD32,Fuel_Specs!$B$149:$B$150) -> 20718.80887 | AE24: =AE21+SUMPRODUCT(AE22:AE23,Fuel_Specs!$B$140:$B$141)+SUMPRODUCT(AE25:AE27,Fuel_Specs!$B$146:$B$148)+SUMPRODUCT(AE31:AE32,Fuel_Specs!$B$149:$B$150) -> 3540.331028 | AF24: =AF21+SUMPRODUCT(AF22:AF23,Fuel_Specs!$B$140:$B$141)+SUMPRODUCT(AF25:AF27,Fuel_Specs!$B$146:$B$148)+SUMPRODUCT(AF31:AF32,Fuel_Specs!$B$149:$B$150) -> -43458.3147 | AG24: =AG21+SUMPRODUCT(AG22:AG23,Fuel_Specs!$B$140:$B$141)+SUMPRODUCT(AG25:AG27,Fuel_Specs!$B$146:$B$148)+SUMPRODUCT(AG31:AG32,Fuel_Specs!$B$149:$B$150) -> -52710.09343 | AH24: =AH21+SUMPRODUCT(AH22:AH23,Fuel_Specs!$B$140:$B$141)+SUMPRODUCT(AH25:AH27,Fuel_Specs!$B$146:$B$148)+SUMPRODUCT(AH31:AH32,Fuel_Specs!$B$149:$B$150) -> 13436.39276 | AI24: =AI21+SUMPRODUCT(AI22:AI23,Fuel_Specs!$B$140:$B$141)+SUMPRODUCT(AI25:AI27,Fuel_Specs!$B$146:$B$148)+SUMPRODUCT(AI31:AI32,Fuel_Specs!$B$149:$B$150) -> 28103.28316 | AJ24: =AJ21+SUMPRODUCT(AJ22:AJ23,Fuel_Specs!$B$140:$B$141)+SUMPRODUCT(AJ25:AJ27,Fuel_Specs!$B$146:$B$148)+SUMPRODUCT(AJ31:AJ32,Fuel_Specs!$B$149:$B$150) -> 38870.95789 | AK24: =AK21+SUMPRODUCT(AK22:AK23,Fuel_Specs!$B$140:$B$141)+SUMPRODUCT(AK25:AK27,Fuel_Specs!$B$146:$B$148)+SUMPRODUCT(AK31:AK32,Fuel_Specs!$B$149:$B$150) -> 31750.45617 | AL24: =AL21+SUMPRODUCT(AL22:AL23,Fuel_Specs!$B$140:$B$141)+SUMPRODUCT(AL25:AL27,Fuel_Specs!$B$146:$B$148)+SUMPRODUCT(AL31:AL32,Fuel_Specs!$B$149:$B$150) -> 19675.70167 | AM24: =AM21+SUMPRODUCT(AM22:AM23,Fuel_Specs!$B$140:$B$141)+SUMPRODUCT(AM25:AM27,Fuel_Specs!$B$146:$B$148)+SUMPRODUCT(AM31:AM32,Fuel_Specs!$B$149:$B$150) -> 26631.64486 | AN24: =AN21+SUMPRODUCT(AN22:AN23,Fuel_Specs!$B$140:$B$141)+SUMPRODUCT(AN25:AN27,Fuel_Specs!$B$146:$B$148)+SUMPRODUCT(AN31:AN32,Fuel_Specs!$B$149:$B$150) -> 57849.918 | AO24: =AO21+SUMPRODUCT(AO22:AO23,Fuel_Specs!$B$140:$B$141)+SUMPRODUCT(AO25:AO27,Fuel_Specs!$B$146:$B$148)+SUMPRODUCT(AO31:AO32,Fuel_Specs!$B$149:$B$150) -> 90555.82207 | AP24: =AP21+SUMPRODUCT(AP22:AP23,Fuel_Specs!$B$140:$B$141)+SUMPRODUCT(AP25:AP27,Fuel_Specs!$B$146:$B$148)+SUMPRODUCT(AP31:AP32,Fuel_Specs!$B$149:$B$150) -> 111408.2674 | AQ24: =AQ21+SUMPRODUCT(AQ22:AQ23,Fuel_Specs!$B$140:$B$141)+SUMPRODUCT(AQ25:AQ27,Fuel_Specs!$B$146:$B$148)+SUMPRODUCT(AQ31:AQ32,Fuel_Specs!$B$149:$B$150) -> 77326.26789 | AR24: =AR21+SUMPRODUCT(AR22:AR23,Fuel_Specs!$B$140:$B$141)+SUMPRODUCT(AR25:AR27,Fuel_Specs!$B$146:$B$148)+SUMPRODUCT(AR31:AR32,Fuel_Specs!$B$149:$B$150) -> 89743.88888 | AS24: =AS21+SUMPRODUCT(AS22:AS23,Fuel_Specs!$B$140:$B$141)+SUMPRODUCT(AS25:AS27,Fuel_Specs!$B$146:$B$148)+SUMPRODUCT(AS31:AS32,Fuel_Specs!$B$149:$B$150) -> -57148.70932 | AT24: =AT21+SUMPRODUCT(AT22:AT23,Fuel_Specs!$B$140:$B$141)+SUMPRODUCT(AT25:AT27,Fuel_Specs!$B$146:$B$148)+SUMPRODUCT(AT31:AT32,Fuel_Specs!$B$149:$B$150) -> 15542.4038 | AU24: 6408.1052 | AV24: 1919.896795 | BB24: SI - Dedi. MeOH Vehicle | BC24: RNAVMEOH | BN24: SI PHEV - Gaseous H2 and Electricity | BO24: RNAVPHEVGH2
A25: VOC: Total | B25: =(Inputs!$E$1500*(Petroleum!$B269*Petroleum!$F$262+Petroleum!$F269)+(1-Inputs!$E$1500)*(Petroleum!$B269*Petroleum!$D$262+Petroleum!$D269))/1000000*HLOOKUP($J$10,$Z$5:$AD$6,2,FALSE)/HLOOKUP($J$11,$Z$7:$AD$8,2,FALSE) -> 29.39712938 | C25: =(Petroleum!$C269*Petroleum!$G$262+Petroleum!$G269)/1000000*HLOOKUP($J$10,$Z$5:$AD$6,2,FALSE)/HLOOKUP($J$11,$Z$7:$AD$8,2,FALSE) -> 30.62834714 | D25: =((1-Vehicles!$C$35)*(1-Vehicles!$C$7)*Fuel_Specs!$B$15/((1-Vehicles!$C$35)*(1-Vehicles!$C$7)*Fuel_Specs!$B$15+Vehicles!$C$35*(1-Vehicles!$C$7)*Fuel_Specs!$B$16+Vehicles!$C$7*Fuel_Specs!$B$32)*(Petroleum!$B269*Petroleum!$D$262+(Petroleum!$D269-'T&D'!G222))+Vehicles!$C$35*(1-Vehicles!$C$7)*Fuel_Specs!$B$16/((1-Vehicles!$C$35)*(1-Vehicles!$C$7)*Fuel_Specs!$B$15+Vehicles!$C$35*(1-Vehicles!$C$7)*Fuel_Specs!$B$16+Vehicles!$C$7*Fuel_Specs!$B$32)*(Petroleum!B269*Petroleum!$F$262+Petroleum!$F269)+Vehicles!$C$7*Fuel_Specs!$B$32/((1-Vehicles!$C$35)*(1-Vehicles!$C$7)*Fuel_Specs!$B$15+Vehicles!$C$35*(1-Vehicles!$C$7)*Fuel_Specs!$B$16+Vehicles!$C$7*Fuel_Specs!$B$32)*(EtOH!BV553*EtOH!$BW$546+EtOH!$BW553)+Petroleum!AS131+Petroleum!AT131)/1000000*HLOOKUP($J$10,$Z$5:$AD$6,2,FALSE)/HLOOKUP($J$11,$Z$7:$AD$8,2,FALSE) -> 29.39712938 | E25: =(Inputs!$E$97*(IF(Inputs!F$102=1,Petroleum!$B269,Petroleum!$C269)*IF(Inputs!F$102=1,Petroleum!$K$262,Petroleum!$L$262)+IF(Inputs!F$102=1,Petroleum!$K269,Petroleum!$L269))+(1-Inputs!$E$97)*(IF(Inputs!F$101=1,Petroleum!$B269,Petroleum!$C269)*Petroleum!$J$262+Petroleum!$J269))/1000000*HLOOKUP($J$10,$Z$5:$AD$6,2,FALSE)/HLOOKUP($J$11,$Z$7:$AD$8,2,FALSE) -> 7.400461725 | F25: =(NG!$J91*NG!$K$84+NG!$K91)/1000000*HLOOKUP($J$10,$Z$5:$AD$6,2,FALSE)/HLOOKUP($J$11,$Z$7:$AD$8,2,FALSE) -> 11.68878998 | G25: =(NG!$R91*NG!$S$84+NG!$S91)/1000000*HLOOKUP($J$10,$Z$5:$AD$6,2,FALSE)/HLOOKUP($J$11,$Z$7:$AD$8,2,FALSE) -> 8.554055807 | H25: =(NG!$X91*NG!$Y$84+NG!$Y91)/1000000*HLOOKUP($J$10,$Z$5:$AD$6,2,FALSE)/HLOOKUP($J$11,$Z$7:$AD$8,2,FALSE) -> 12.91349234 | I25: =(MeOH_FTD!BJ169*MeOH_FTD!BK$162+MeOH_FTD!BK169)/1000000*HLOOKUP($J$10,$Z$5:$AD$6,2,FALSE)/HLOOKUP($J$11,$Z$7:$AD$8,2,FALSE) -> 33.42434226 | J25: =((1-Vehicles!$C$34)*(1-Vehicles!$C$5)*Fuel_Specs!$B$15/((1-Vehicles!$C$34)*(1-Vehicles!$C$5)*Fuel_Specs!$B$15+Vehicles!$C$34*(1-Vehicles!$C$5)*Fuel_Specs!$B$16+Vehicles!$C$5*Fuel_Specs!$B$31)*(Petroleum!$B269*Petroleum!$D$262+Petroleum!$D269)+Vehicles!$C$34*(1-Vehicles!$C$5)*Fuel_Specs!$B$16/((1-Vehicles!$C$34)*(1-Vehicles!$C$5)*Fuel_Specs!$B$15+Vehicles!$C$34*(1-Vehicles!$C$5)*Fuel_Specs!$B$16+Vehicles!$C$5*Fuel_Specs!$B$31)*(Petroleum!B269*Petroleum!$F$262+Petroleum!$F269)+Vehicles!$C$5*Fuel_Specs!$B$31/((1-Vehicles!$C$34)*(1-Vehicles!$C$5)*Fuel_Specs!$B$15+Vehicles!$C$34*(1-Vehicles!$C$5)*Fuel_Specs!$B$16+Vehicles!$C$5*Fuel_Specs!$B$31)*(MeOH_FTD!$N169*MeOH_FTD!$O$162+MeOH_FTD!$O169))/1000000*HLOOKUP($J$10,$Z$5:$AD$6,2,FALSE)/HLOOKUP($J$11,$Z$7:$AD$8,2,FALSE) -> 25.04516529 | K25: =((1-Vehicles!$C$34)*(1-Vehicles!$C$6)*Fuel_Specs!$B$15/((1-Vehicles!$C$34)*(1-Vehicles!$C$6)*Fuel_Specs!$B$15+Vehicles!$C$34*(1-Vehicles!$C$6)*Fuel_Specs!$B$16+Vehicles!$C$6*Fuel_Specs!$B$31)*(Petroleum!$B269*Petroleum!$D$262+Petroleum!$D269)+Vehicles!$C$34*(1-Vehicles!$C$6)*Fuel_Specs!$B$16/((1-Vehicles!$C$34)*(1-Vehicles!$C$6)*Fuel_Specs!$B$15+Vehicles!$C$34*(1-Vehicles!$C$6)*Fuel_Specs!$B$16+Vehicles!$C$6*Fuel_Specs!$B$31)*(Petroleum!B269*Petroleum!$F$262+Petroleum!$F269)+Vehicles!$C$6*Fuel_Specs!$B$31/((1-Vehicles!$C$34)*(1-Vehicles!$C$6)*Fuel_Specs!$B$15+Vehicles!$C$34*(1-Vehicles!$C$6)*Fuel_Specs!$B$16+Vehicles!$C$6*Fuel_Specs!$B$31)*(MeOH_FTD!$N169*MeOH_FTD!$O$162+MeOH_FTD!$O169))/1000000*HLOOKUP($J$10,$Z$5:$AD$6,2,FALSE)/HLOOKUP($J$11,$Z$7:$AD$8,2,FALSE) -> 24.81107322 | L25: =(MeOH_FTD!$N169*MeOH_FTD!$O$162+MeOH_FTD!$O169)/1000000*HLOOKUP($J$10,$Z$5:$AD$6,2,FALSE)/HLOOKUP($J$11,$Z$7:$AD$8,2,FALSE) -> 24.27071105 | M25: =((1-Vehicles!$C$36)*(1-Vehicles!$C$8)*Fuel_Specs!$B$15/((1-Vehicles!$C$36)*(1-Vehicles!$C$8)*Fuel_Specs!$B$15+Vehicles!$C$36*(1-Vehicles!$C$8)*Fuel_Specs!$B$16+Vehicles!$C$8*Fuel_Specs!$B$32)*(Petroleum!$B269*Petroleum!$D$262+(Petroleum!$D269-'T&D'!G222))+Vehicles!$C$36*(1-Vehicles!$C$8)*Fuel_Specs!$B$16/((1-Vehicles!$C$36)*(1-Vehicles!$C$8)*Fuel_Specs!$B$15+Vehicles!$C$36*(1-Vehicles!$C$8)*Fuel_Specs!$B$16+Vehicles!$C$8*Fuel_Specs!$B$32)*(Petroleum!B269*Petroleum!$F$262+Petroleum!$F269)+Vehicles!$C$8*Fuel_Specs!$B$32/((1-Vehicles!$C$36)*(1-Vehicles!$C$8)*Fuel_Specs!$B$15+Vehicles!$C$36*(1-Vehicles!$C$8)*Fuel_Specs!$B$16+Vehicles!$C$8*Fuel_Specs!$B$32)*(EtOH!BV553*EtOH!$BW$546+EtOH!$BW553)+Petroleum!AS131+Petroleum!AT131)/1000000*HLOOKUP($J$10,$Z$5:$AD$6,2,FALSE)/HLOOKUP($J$11,$Z$7:$AD$8,2,FALSE) -> 52.34873822 | N25: =((1-Vehicles!$C$37)*(1-Vehicles!$C$12)*Fuel_Specs!$B$15/((1-Vehicles!$C$37)*(1-Vehicles!$C$12)*Fuel_Specs!$B$15+Vehicles!$C$37*(1-Vehicles!$C$12)*Fuel_Specs!$B$16+Vehicles!$C$12*Fuel_Specs!$B$33)*(Petroleum!$B269*Petroleum!$D$262+Petroleum!$D269)+Vehicles!$C$37*(1-Vehicles!$C$12)*Fuel_Specs!$B$16/((1-Vehicles!$C$37)*(1-Vehicles!$C$12)*Fuel_Specs!$B$15+Vehicles!$C$37*(1-Vehicles!$C$12)*Fuel_Specs!$B$16+Vehicles!$C$12*Fuel_Specs!$B$33)*(Petroleum!B269*Petroleum!$F$262+Petroleum!$F269)+Vehicles!$C$12*Fuel_Specs!$B$33/((1-Vehicles!$C$37)*(1-Vehicles!$C$12)*Fuel_Specs!$B$15+Vehicles!$C$37*(1-Vehicles!$C$12)*Fuel_Specs!$B$16+Vehicles!$C$12*Fuel_Specs!$B$33)*(EtOH!$BX553*EtOH!$BY$546+EtOH!$BY553))/1000000*HLOOKUP($J$10,$Z$5:$AD$6,2,FALSE)/HLOOKUP($J$11,$Z$7:$AD$8,2,FALSE) -> 57.40369891 | O25: =((1-Vehicles!$C$36)*(1-Vehicles!$C$9)*Fuel_Specs!$B$15/((1-Vehicles!$C$36)*(1-Vehicles!$C$9)*Fuel_Specs!$B$15+Vehicles!$C$36*(1-Vehicles!$C$9)*Fuel_Specs!$B$16+Vehicles!$C$9*Fuel_Specs!$B$32)*(Petroleum!$B269*Petroleum!$D$262+(Petroleum!$D269-'T&D'!G222))+Vehicles!$C$36*(1-Vehicles!$C$9)*Fuel_Specs!$B$16/((1-Vehicles!$C$36)*(1-Vehicles!$C$9)*Fuel_Specs!$B$15+Vehicles!$C$36*(1-Vehicles!$C$9)*Fuel_Specs!$B$16+Vehicles!$C$9*Fuel_Specs!$B$32)*(Petroleum!B269*Petroleum!$F$262+Petroleum!$F269)+Vehicles!$C$9*Fuel_Specs!$B$32/((1-Vehicles!$C$36)*(1-Vehicles!$C$9)*Fuel_Specs!$B$15+Vehicles!$C$36*(1-Vehicles!$C$9)*Fuel_Specs!$B$16+Vehicles!$C$9*Fuel_Specs!$B$32)*(EtOH!BV553*EtOH!$BW$546+EtOH!$BW553)+Petroleum!AS131+Petroleum!AT131)/1000000*HLOOKUP($J$10,$Z$5:$AD$6,2,FALSE)/HLOOKUP($J$11,$Z$7:$AD$8,2,FALSE) -> 52.34873822 | P25: =(EtOH!$BT553*EtOH!$BU$546+EtOH!$BU553)/1000000*HLOOKUP($J$10,$Z$5:$AD$6,2,FALSE)/HLOOKUP($J$11,$Z$7:$AD$8,2,FALSE) -> 60.02197141 | Q25: =((1-Vehicles!$C$40)*(1-Vehicles!$C$16)*Fuel_Specs!$B$15/((1-Vehicles!$C$40)*(1-Vehicles!$C$16)*Fuel_Specs!$B$15+Vehicles!$C$40*(1-Vehicles!$C$16)*Fuel_Specs!$B$16+Vehicles!$C$16*Fuel_Specs!$B$46)*(Petroleum!$B269*Petroleum!$D$262+Petroleum!$D269)+Vehicles!$C$40*(1-Vehicles!$C$16)*Fuel_Specs!$B$16/((1-Vehicles!$C$40)*(1-Vehicles!$C$16)*Fuel_Specs!$B$15+Vehicles!$C$40*(1-Vehicles!$C$16)*Fuel_Specs!$B$16+Vehicles!$C$16*Fuel_Specs!$B$46)*(Petroleum!B269*Petroleum!$F$262+Petroleum!$F269)+Vehicles!$C$16*Fuel_Specs!$B$46/((1-Vehicles!$C$40)*(1-Vehicles!$C$16)*Fuel_Specs!$B$15+Vehicles!$C$40*(1-Vehicles!$C$16)*Fuel_Specs!$B$16+Vehicles!$C$16*Fuel_Specs!$B$46)*(BioOil!$CE439*BioOil!$CF$431+BioOil!$CF439))/1000000*HLOOKUP($J$10,$Z$5:$AD$6,2,FALSE)/HLOOKUP($J$11,$Z$7:$AD$8,2,FALSE) -> 19.41010915 | R25: =((1-Vehicles!$C$40)*(1-Vehicles!$C$16)*Fuel_Specs!$B$15/((1-Vehicles!$C$40)*(1-Vehicles!$C$16)*Fuel_Specs!$B$15+Vehicles!$C$40*(1-Vehicles!$C$16)*Fuel_Specs!$B$16+Vehicles!$C$16*Fuel_Specs!$B$46)*(Petroleum!$B269*Petroleum!$D$262+Petroleum!$D269)+Vehicles!$C$40*(1-Vehicles!$C$16)*Fuel_Specs!$B$16/((1-Vehicles!$C$40)*(1-Vehicles!$C$16)*Fuel_Specs!$B$15+Vehicles!$C$40*(1-Vehicles!$C$16)*Fuel_Specs!$B$16+Vehicles!$C$16*Fuel_Specs!$B$46)*(Petroleum!B269*Petroleum!$F$262+Petroleum!$F269)+Vehicles!$C$16*Fuel_Specs!$B$46/((1-Vehicles!$C$40)*(1-Vehicles!$C$16)*Fuel_Specs!$B$15+Vehicles!$C$40*(1-Vehicles!$C$16)*Fuel_Specs!$B$16+Vehicles!$C$16*Fuel_Specs!$B$46)*(Pyrolysis_IDL!$AD304*Pyrolysis_IDL!$AE$297+Pyrolysis_IDL!$AE304))/1000000*HLOOKUP($J$10,$Z$5:$AD$6,2,FALSE)/HLOOKUP($J$11,$Z$7:$AD$8,2,FALSE) -> 5.683895162 | S25: =AN25*(Vehicles!$C$30/Vehicles!$AT$72)/(Vehicles!$C$30*(1/Vehicles!$AT$72+1/Vehicles!$AU$72)+Vehicles!$C$31/Vehicles!$AV$72)+B25*(Vehicles!$C$30/Vehicles!$AU$72+Vehicles!$C$31/Vehicles!$AV$72)/(Vehicles!$C$30*(1/Vehicles!$AT$72+1/Vehicles!$AU$72)+Vehicles!$C$31/Vehicles!$AV$72) -> 21.26809236 | T25: =AN25*(Vehicles!$D$30/Vehicles!$AX$72)/(Vehicles!$D$30*(1/Vehicles!$AX$72+1/Vehicles!$AY$72)+Vehicles!$D$31/Vehicles!$AZ$72)+C25*(Vehicles!$D$30/Vehicles!$AY$72+Vehicles!$D$31/Vehicles!$AZ$72)/(Vehicles!$D$30*(1/Vehicles!$AX$72+1/Vehicles!$AY$72)+Vehicles!$D$31/Vehicles!$AZ$72) -> 22.0340801 | U25: =AN25*(Vehicles!$F$30/Vehicles!$BF$72)/(Vehicles!$F$30*(1/Vehicles!$BF$72+1/Vehicles!$BG$72)+Vehicles!$F$31/Vehicles!$BH$72)+D25*(Vehicles!$F$30/Vehicles!$BG$72+Vehicles!$F$31/Vehicles!$BH$72)/(Vehicles!$F$30*(1/Vehicles!$BF$72+1/Vehicles!$BG$72)+Vehicles!$F$31/Vehicles!$BH$72) -> 21.26809236 | V25: =AN25*(Vehicles!$G$30/Vehicles!$BJ$72)/(Vehicles!$G$30*(1/Vehicles!$BJ$72+1/Vehicles!$BK$72)+Vehicles!$G$31/Vehicles!$BL$72)+F25*(Vehicles!$G$30/Vehicles!$BK$72+Vehicles!$G$31/Vehicles!$BL$72)/(Vehicles!$G$30*(1/Vehicles!$BJ$72+1/Vehicles!$BK$72)+Vehicles!$G$31/Vehicles!$BL$72) -> 10.25105612 | W25: =AN25*(Vehicles!$H$30/Vehicles!$BN$72)/(Vehicles!$H$30*(1/Vehicles!$BN$72+1/Vehicles!$BO$72)+Vehicles!$H$31/Vehicles!$BP$72)+G25*(Vehicles!$H$30/Vehicles!$BO$72+Vehicles!$H$31/Vehicles!$BP$72)/(Vehicles!$H$30*(1/Vehicles!$BN$72+1/Vehicles!$BO$72)+Vehicles!$H$31/Vehicles!$BP$72) -> 8.300817912 | X25: =AN25*(Vehicles!$I$30/Vehicles!$BR$72)/(Vehicles!$I$30*(1/Vehicles!$BR$72+1/Vehicles!$BS$72)+Vehicles!$I$31/Vehicles!$BT$72)+H25*(Vehicles!$I$30/Vehicles!$BS$72+Vehicles!$I$31/Vehicles!$BT$72)/(Vehicles!$I$30*(1/Vehicles!$BR$72+1/Vehicles!$BS$72)+Vehicles!$I$31/Vehicles!$BT$72) -> 11.01299036 | Y25: =AN25*(Vehicles!$J$30/Vehicles!$BV$72)/(Vehicles!$J$30*(1/Vehicles!$BV$72+1/Vehicles!$BW$72)+Vehicles!$J$31/Vehicles!$BX$72)+K25*(Vehicles!$J$30/Vehicles!$BW$72+Vehicles!$J$31/Vehicles!$BX$72)/(Vehicles!$J$30*(1/Vehicles!$BV$72+1/Vehicles!$BW$72)+Vehicles!$J$31/Vehicles!$BX$72) -> 18.41493116 | Z25: =AN25*(Vehicles!$K$30/Vehicles!$BZ$72)/(Vehicles!$K$30*(1/Vehicles!$BZ$72+1/Vehicles!$CA$72)+Vehicles!$K$31/Vehicles!$CB$72)+O25*(Vehicles!$K$30/Vehicles!$CA$72+Vehicles!$K$31/Vehicles!$CB$72)/(Vehicles!$K$30*(1/Vehicles!$BZ$72+1/Vehicles!$CA$72)+Vehicles!$K$31/Vehicles!$CB$72) -> 35.54716737 | AA25: =AN25*(Vehicles!$L$30/Vehicles!$CD$72)/(Vehicles!$L$30*(1/Vehicles!$CD$72+1/Vehicles!$CE$72)+Vehicles!$L$31/Vehicles!$CF$72)+AO25*(Vehicles!$L$30/Vehicles!$CE$72+Vehicles!$L$31/Vehicles!$CF$72)/(Vehicles!$L$30*(1/Vehicles!$CD$72+1/Vehicles!$CE$72)+Vehicles!$L$31/Vehicles!$CF$72) -> 12.24099721 | AB25: =AN25*(Vehicles!$L$30/Vehicles!$CD$72)/(Vehicles!$L$30*(1/Vehicles!$CD$72+1/Vehicles!$CE$72)+Vehicles!$L$31/Vehicles!$CG$72)+AP25*(Vehicles!$L$30/Vehicles!$CE$72+Vehicles!$L$31/Vehicles!$CG$72)/(Vehicles!$L$30*(1/Vehicles!$CD$72+1/Vehicles!$CE$72)+Vehicles!$L$31/Vehicles!$CG$72) -> 14.11898192 | AC25: =(MeOH_FTD!$AJ169*MeOH_FTD!$AK$162+MeOH_FTD!$AK169)/1000000*HLOOKUP($J$10,$Z$5:$AD$6,2,FALSE)/HLOOKUP($J$11,$Z$7:$AD$8,2,FALSE) -> 13.3639061 | AD25: =((1-Vehicles!$C$41)*(1-Vehicles!$C$13)*Fuel_Specs!$B$20/((1-Vehicles!$C$41)*(1-Vehicles!$C$13)*Fuel_Specs!$B$20+Vehicles!$C$41*(1-Vehicles!$C$13)*Fuel_Specs!$B$23+Vehicles!$C$13*Fuel_Specs!$B$41)*(Petroleum!B269*Petroleum!$J$262+Petroleum!$J269)+Vehicles!$C$41*(1-Vehicles!$C$13)*Fuel_Specs!$B$23/((1-Vehicles!$C$41)*(1-Vehicles!$C$13)*Fuel_Specs!$B$20+Vehicles!$C$41*(1-Vehicles!$C$13)*Fuel_Specs!$B$23+Vehicles!$C$13*Fuel_Specs!$B$41)*(Petroleum!B269*IF(Inputs!F$102=1,Petroleum!$K$262,Petroleum!$L$262)+IF(Inputs!F$102=1,Petroleum!$K269,Petroleum!$L269))+Vehicles!$C$13*Fuel_Specs!$B$41/((1-Vehicles!$C$41)*(1-Vehicles!$C$13)*Fuel_Specs!$B$20+Vehicles!$C$41*(1-Vehicles!$C$13)*Fuel_Specs!$B$23+Vehicles!$C$13*Fuel_Specs!$B$41)*(MeOH_FTD!$AZ169*MeOH_FTD!$BA$162+MeOH_FTD!$BA169))/1000000*HLOOKUP($J$10,$Z$5:$AD$6,2,FALSE)/HLOOKUP($J$11,$Z$7:$AD$8,2,FALSE) -> 13.69074631 | AE25: =((1-Vehicles!$C$42)*(1-Vehicles!$C$14)*Fuel_Specs!$B$20/((1-Vehicles!$C$42)*(1-Vehicles!$C$14)*Fuel_Specs!$B$20+Vehicles!$C$42*(1-Vehicles!$C$14)*Fuel_Specs!$B$23+Vehicles!$C$14*Fuel_Specs!$B$40)*(Petroleum!B269*Petroleum!$J$262+Petroleum!$J269)+Vehicles!$C$42*(1-Vehicles!$C$14)*Fuel_Specs!$B$23/((1-Vehicles!$C$42)*(1-Vehicles!$C$14)*Fuel_Specs!$B$20+Vehicles!$C$42*(1-Vehicles!$C$14)*Fuel_Specs!$B$23+Vehicles!$C$14*Fuel_Specs!$B$40)*(Petroleum!B269*IF(Inputs!F$102=1,Petroleum!$K$262,Petroleum!$L$262)+IF(Inputs!F$102=1,Petroleum!$K269,Petroleum!$L269))+Vehicles!$C$14*Fuel_Specs!$B$40/((1-Vehicles!$C$42)*(1-Vehicles!$C$14)*Fuel_Specs!$B$20+Vehicles!$C$42*(1-Vehicles!$C$14)*Fuel_Specs!$B$23+Vehicles!$C$14*Fuel_Specs!$B$40)*(BioOil!$Y439*BioOil!$Z$431+BioOil!$Z439))/1000000*HLOOKUP($J$10,$Z$5:$AD$6,2,FALSE)/HLOOKUP($J$11,$Z$7:$AD$8,2,FALSE) -> 9.805684181 | AF25: =((1-Vehicles!$C$43)*(1-Vehicles!$C$15)*Fuel_Specs!$B$20/((1-Vehicles!$C$43)*(1-Vehicles!$C$15)*Fuel_Specs!$B$20+Vehicles!$C$43*(1-Vehicles!$C$15)*Fuel_Specs!$B$23+Vehicles!$C$15*IF(Inputs!$E$670=1,IF(Inputs!$E$670=1,Fuel_Specs!$B$42,IF(Inputs!$E$670=3,Fuel_Specs!$B$44,Fuel_Specs!$B$43)),Fuel_Specs!$B$43))*(Petroleum!B269*Petroleum!$J$262+Petroleum!$J269)+Vehicles!$C$43*(1-Vehicles!$C$15)*Fuel_Specs!$B$23/((1-Vehicles!$C$43)*(1-Vehicles!$C$15)*Fuel_Specs!$B$20+Vehicles!$C$43*(1-Vehicles!$C$15)*Fuel_Specs!$B$23+Vehicles!$C$15*IF(Inputs!$E$670=1,IF(Inputs!$E$670=1,Fuel_Specs!$B$42,IF(Inputs!$E$670=3,Fuel_Specs!$B$44,Fuel_Specs!$B$43)),Fuel_Specs!$B$43))*(Petroleum!B269*IF(Inputs!F$102=1,Petroleum!$K$262,Petroleum!$L$262)+IF(Inputs!F$102=1,Petroleum!$K269,Petroleum!$L269))+Vehicles!$C$15*IF(Inputs!$E$670=1,IF(Inputs!$E$670=1,Fuel_Specs!$B$42,IF(Inputs!$E$670=3,Fuel_Specs!$B$44,Fuel_Specs!$B$43)),Fuel_Specs!$B$43)/((1-Vehicles!$C$43)*(1-Vehicles!$C$15)*Fuel_Specs!$B$20+Vehicles!$C$43*(1-Vehicles!$C$15)*Fuel_Specs!$B$23+Vehicles!$C$15*IF(Inputs!$E$670=1,IF(Inputs!$E$670=1,Fuel_Specs!$B$42,IF(Inputs!$E$670=3,Fuel_Specs!$B$44,Fuel_Specs!$B$43)),Fuel_Specs!$B$43))*(BioOil!$BQ439*BioOil!$BR$431+BioOil!$BR439))/1000000*HLOOKUP($J$10,$Z$5:$AD$6,2,FALSE)/HLOOKUP($J$11,$Z$7:$AD$8,2,FALSE) -> 20.29209271 | AG25: =((1-Vehicles!$C$43)*(1-Vehicles!$C$15)*Fuel_Specs!$B$20/((1-Vehicles!$C$43)*(1-Vehicles!$C$15)*Fuel_Specs!$B$20+Vehicles!$C$43*(1-Vehicles!$C$15)*Fuel_Specs!$B$23+Vehicles!$C$15*IF(Inputs!$E$670=1,Fuel_Specs!$B$42,Fuel_Specs!$B$43))*(Petroleum!B269*Petroleum!$J$262+Petroleum!$J269)+Vehicles!$C$43*(1-Vehicles!$C$15)*Fuel_Specs!$B$23/((1-Vehicles!$C$43)*(1-Vehicles!$C$15)*Fuel_Specs!$B$20+Vehicles!$C$43*(1-Vehicles!$C$15)*Fuel_Specs!$B$23+Vehicles!$C$15*IF(Inputs!$E$670=1,Fuel_Specs!$B$42,Fuel_Specs!$B$43))*(Petroleum!B269*IF(Inputs!F$102=1,Petroleum!$K$262,Petroleum!$L$262)+IF(Inputs!F$102=1,Petroleum!$K269,Petroleum!$L269))+Vehicles!$C$15*IF(Inputs!$E$670=1,Fuel_Specs!$B$42,Fuel_Specs!$B$43)/((1-Vehicles!$C$43)*(1-Vehicles!$C$15)*Fuel_Specs!$B$20+Vehicles!$C$43*(1-Vehicles!$C$15)*Fuel_Specs!$B$23+Vehicles!$C$15*IF(Inputs!$E$670=1,Fuel_Specs!$B$42,Fuel_Specs!$B$43))*(Pyrolysis_IDL!$AF304*Pyrolysis_IDL!$AG$297+Pyrolysis_IDL!$AG304))/1000000*HLOOKUP($J$10,$Z$5:$AD$6,2,FALSE)/HLOOKUP($J$11,$Z$7:$AD$8,2,FALSE) -> 5.40280369 | AH25: =(((1-Vehicles!$C$44)*(1-Vehicles!$C$17-Vehicles!$C$18)*Fuel_Specs!$B$20*(Petroleum!B269*Petroleum!$J$262+Petroleum!$J269)+Vehicles!$C$44*(1-Vehicles!$C$17-Vehicles!$C$18)*Fuel_Specs!$B$23*(Petroleum!B269*IF(Inputs!F$102=1,Petroleum!$K$262,Petroleum!$L$262)+IF(Inputs!F$102=1,Petroleum!$K269,Petroleum!$L269))+Vehicles!$C$17*Fuel_Specs!$B$32*(EtOH!BT553*EtOH!$BU$546+EtOH!$BU553)+Vehicles!$C$18*Fuel_Specs!$B$35*('EtOH-Diesel Additives'!$B60*'EtOH-Diesel Additives'!$B$53))/((1-Vehicles!$C$44)*(1-Vehicles!$C$17-Vehicles!$C$18)*Fuel_Specs!$B$20+Vehicles!$C$44*(1-Vehicles!$C$17-Vehicles!$C$18)*Fuel_Specs!$B$23+Vehicles!$C$17*Fuel_Specs!$B$32+Vehicles!$C$18*Fuel_Specs!$B$35))/1000000*HLOOKUP($J$10,$Z$5:$AD$6,2,FALSE)/HLOOKUP($J$11,$Z$7:$AD$8,2,FALSE) -> 10.60741905 | AI25: =AN25*(Vehicles!$M$30/Vehicles!$CO$72)/(Vehicles!$M$30*(1/Vehicles!$CO$72+1/Vehicles!$CP$72)+Vehicles!$M$31/Vehicles!$CQ$72)+E25*(Vehicles!$M$30/Vehicles!$CP$72+Vehicles!$M$31/Vehicles!$CQ$72)/(Vehicles!$M$30*(1/Vehicles!$CO$72+1/Vehicles!$CP$72)+Vehicles!$M$31/Vehicles!$CQ$72) -> 7.544081981 | AJ25: =AN25*(Vehicles!$N$30/Vehicles!$CS$72)/(Vehicles!$N$30*(1/Vehicles!$CS$72+1/Vehicles!$CT$72)+Vehicles!$N$31/Vehicles!$CU$72)+AC25*(Vehicles!$N$30/Vehicles!$CT$72+Vehicles!$N$31/Vehicles!$CU$72)/(Vehicles!$N$30*(1/Vehicles!$CS$72+1/Vehicles!$CT$72)+Vehicles!$N$31/Vehicles!$CU$72) -> 11.73578787 | AK25: =AN25*(Vehicles!$O$30/Vehicles!$CW$72)/(Vehicles!$O$30*(1/Vehicles!$CW$72+1/Vehicles!$CX$72)+Vehicles!$O$31/Vehicles!$CY$72)+AD25*(Vehicles!$O$30/Vehicles!$CX$72+Vehicles!$O$31/Vehicles!$CY$72)/(Vehicles!$O$30*(1/Vehicles!$CW$72+1/Vehicles!$CX$72)+Vehicles!$O$31/Vehicles!$CY$72) -> 11.9655239 | AL25: =AN25*(Vehicles!$P$30/Vehicles!$DA$72)/(Vehicles!$P$30*(1/Vehicles!$DA$72+1/Vehicles!$DB$72)+Vehicles!$P$31/Vehicles!$DC$72)+AE25*(Vehicles!$P$30/Vehicles!$DB$72+Vehicles!$P$31/Vehicles!$DC$72)/(Vehicles!$P$30*(1/Vehicles!$DA$72+1/Vehicles!$DB$72)+Vehicles!$P$31/Vehicles!$DC$72) -> 9.234713184 | AM25: =AN25*(Vehicles!$R$30/Vehicles!$DI$72)/(Vehicles!$R$30*(1/Vehicles!$DI$72+1/Vehicles!$DJ$72)+Vehicles!$R$31/Vehicles!$DK$72)+AH25*(Vehicles!$R$30/Vehicles!$DJ$72+Vehicles!$R$31/Vehicles!$DK$72)/(Vehicles!$R$30*(1/Vehicles!$DI$72+1/Vehicles!$DJ$72)+Vehicles!$R$31/Vehicles!$DK$72) -> 9.798252737 | AN25: =(Electric!$G210+Electric!$F210)/1000000*HLOOKUP($J$10,$Z$5:$AD$6,2,FALSE)/HLOOKUP($J$11,$Z$7:$AD$8,2,FALSE) -> 7.883869075 | AO25: =(Hydrogen!$AJ312*Hydrogen!$AK$305+Hydrogen!$AK312)/1000000*HLOOKUP($J$10,$Z$5:$AD$6,2,FALSE)/HLOOKUP($J$11,$Z$7:$AD$8,2,FALSE) -> 14.88734099 | AP25: =(Hydrogen!$BT312*Hydrogen!$BU$305+Hydrogen!$BU312)/1000000*HLOOKUP($J$10,$Z$5:$AD$6,2,FALSE)/HLOOKUP($J$11,$Z$7:$AD$8,2,FALSE) -> 17.9059378 | AQ25: =AN25*(Vehicles!$S$30/Vehicles!$DY$72)/(Vehicles!$S$30*(1/Vehicles!$DY$72+1/Vehicles!$DZ$72)+Vehicles!$S$31/Vehicles!$EA$72)+AO25*(Vehicles!$S$30/Vehicles!$DZ$72+Vehicles!$S$31/Vehicles!$EA$72)/(Vehicles!$S$30*(1/Vehicles!$DY$72+1/Vehicles!$DZ$72)+Vehicles!$S$31/Vehicles!$EA$72) -> 12.05443317 | AR25: =AN25*(Vehicles!$S$30/Vehicles!$DY$72)/(Vehicles!$S$30*(1/Vehicles!$DY$72+1/Vehicles!$DZ$72)+Vehicles!$S$31/Vehicles!$EA$72)+AP25*(Vehicles!$S$30/Vehicles!$DZ$72+Vehicles!$S$31/Vehicles!$EA$72)/(Vehicles!$S$30*(1/Vehicles!$DY$72+1/Vehicles!$DZ$72)+Vehicles!$S$31/Vehicles!$EA$72) -> 13.8520061 | AS25: =((1-Vehicles!$C$40)*(1-Vehicles!$C$16)*Fuel_Specs!$B$15/((1-Vehicles!$C$40)*(1-Vehicles!$C$16)*Fuel_Specs!$B$15+Vehicles!$C$40*(1-Vehicles!$C$16)*Fuel_Specs!$B$16+Vehicles!$C$16*Fuel_Specs!$B$47)*(Petroleum!$B269*Petroleum!$D$262+Petroleum!$D269)+Vehicles!$C$40*(1-Vehicles!$C$16)*Fuel_Specs!$B$16/((1-Vehicles!$C$40)*(1-Vehicles!$C$16)*Fuel_Specs!$B$15+Vehicles!$C$40*(1-Vehicles!$C$16)*Fuel_Specs!$B$16+Vehicles!$C$16*Fuel_Specs!$B$47)*(Petroleum!B269*Petroleum!$F$262+Petroleum!$F269)+Vehicles!$C$16*Fuel_Specs!$B$47/((1-Vehicles!$C$40)*(1-Vehicles!$C$16)*Fuel_Specs!$B$15+Vehicles!$C$40*(1-Vehicles!$C$16)*Fuel_Specs!$B$16+Vehicles!$C$16*Fuel_Specs!$B$47)*(Pyrolysis_IDL!$AP304*Pyrolysis_IDL!$AQ$297+Pyrolysis_IDL!$AQ304))/1000000*HLOOKUP($J$10,$Z$5:$AD$6,2,FALSE)/HLOOKUP($J$11,$Z$7:$AD$8,2,FALSE) -> 7.706235839 | AT25: =(Petroleum!$B269*Petroleum!$S$262+Petroleum!$S269)/1000000*HLOOKUP($J$10,$Z$5:$AD$6,2,FALSE)/HLOOKUP($J$11,$Z$7:$AD$8,2,FALSE) -> 26.38899761 | AU25: 24.7372672 | AV25: 22.43153696 | BB25: SI - Dedi. EtOH Vehicle | BC25: RNAVETOHDED | BN25: SI PHEV - Liquid H2 and Electricity | BO25: RNAVPHEVLH2
A26: CO: Total | B26: =(Inputs!$E$1500*(Petroleum!$B270*Petroleum!$F$262+Petroleum!$F270)+(1-Inputs!$E$1500)*(Petroleum!$B270*Petroleum!$D$262+Petroleum!$D270))/1000000*HLOOKUP($J$10,$Z$5:$AD$6,2,FALSE)/HLOOKUP($J$11,$Z$7:$AD$8,2,FALSE) -> 15.8923088 | C26: =(Petroleum!$C270*Petroleum!$G$262+Petroleum!$G270)/1000000*HLOOKUP($J$10,$Z$5:$AD$6,2,FALSE)/HLOOKUP($J$11,$Z$7:$AD$8,2,FALSE) -> 17.4038155 | D26: =((1-Vehicles!$C$35)*(1-Vehicles!$C$7)*Fuel_Specs!$B$15/((1-Vehicles!$C$35)*(1-Vehicles!$C$7)*Fuel_Specs!$B$15+Vehicles!$C$35*(1-Vehicles!$C$7)*Fuel_Specs!$B$16+Vehicles!$C$7*Fuel_Specs!$B$32)*(Petroleum!$B270*Petroleum!$D$262+(Petroleum!$D270-'T&D'!G223))+Vehicles!$C$35*(1-Vehicles!$C$7)*Fuel_Specs!$B$16/((1-Vehicles!$C$35)*(1-Vehicles!$C$7)*Fuel_Specs!$B$15+Vehicles!$C$35*(1-Vehicles!$C$7)*Fuel_Specs!$B$16+Vehicles!$C$7*Fuel_Specs!$B$32)*(Petroleum!B270*Petroleum!$F$262+Petroleum!$F270)+Vehicles!$C$7*Fuel_Specs!$B$32/((1-Vehicles!$C$35)*(1-Vehicles!$C$7)*Fuel_Specs!$B$15+Vehicles!$C$35*(1-Vehicles!$C$7)*Fuel_Specs!$B$16+Vehicles!$C$7*Fuel_Specs!$B$32)*(EtOH!BV554*EtOH!$BW$546+EtOH!$BW554)+Petroleum!AS132+Petroleum!AT132)/1000000*HLOOKUP($J$10,$Z$5:$AD$6,2,FALSE)/HLOOKUP($J$11,$Z$7:$AD$8,2,FALSE) -> 15.8923088 | E26: =(Inputs!$E$97*(IF(Inputs!F$102=1,Petroleum!$B270,Petroleum!$C270)*IF(Inputs!F$102=1,Petroleum!$K$262,Petroleum!$L$262)+IF(Inputs!F$102=1,Petroleum!$K270,Petroleum!$L270))+(1-Inputs!$E$97)*(IF(Inputs!F$101=1,Petroleum!$B270,Petroleum!$C270)*Petroleum!$J$262+Petroleum!$J270))/1000000*HLOOKUP($J$10,$Z$5:$AD$6,2,FALSE)/HLOOKUP($J$11,$Z$7:$AD$8,2,FALSE) -> 12.09449632 | F26: =(NG!$J92*NG!$K$84+NG!$K92)/1000000*HLOOKUP($J$10,$Z$5:$AD$6,2,FALSE)/HLOOKUP($J$11,$Z$7:$AD$8,2,FALSE) -> 37.75375444 | G26: =(NG!$R92*NG!$S$84+NG!$S92)/1000000*HLOOKUP($J$10,$Z$5:$AD$6,2,FALSE)/HLOOKUP($J$11,$Z$7:$AD$8,2,FALSE) -> 22.93230565 | H26: =(NG!$X92*NG!$Y$84+NG!$Y92)/1000000*HLOOKUP($J$10,$Z$5:$AD$6,2,FALSE)/HLOOKUP($J$11,$Z$7:$AD$8,2,FALSE) -> 19.04141221 | I26: =(MeOH_FTD!BJ170*MeOH_FTD!BK$162+MeOH_FTD!BK170)/1000000*HLOOKUP($J$10,$Z$5:$AD$6,2,FALSE)/HLOOKUP($J$11,$Z$7:$AD$8,2,FALSE) -> 28.59925068 | J26: =((1-Vehicles!$C$34)*(1-Vehicles!$C$5)*Fuel_Specs!$B$15/((1-Vehicles!$C$34)*(1-Vehicles!$C$5)*Fuel_Specs!$B$15+Vehicles!$C$34*(1-Vehicles!$C$5)*Fuel_Specs!$B$16+Vehicles!$C$5*Fuel_Specs!$B$31)*(Petroleum!$B270*Petroleum!$D$262+Petroleum!$D270)+Vehicles!$C$34*(1-Vehicles!$C$5)*Fuel_Specs!$B$16/((1-Vehicles!$C$34)*(1-Vehicles!$C$5)*Fuel_Specs!$B$15+Vehicles!$C$34*(1-Vehicles!$C$5)*Fuel_Specs!$B$16+Vehicles!$C$5*Fuel_Specs!$B$31)*(Petroleum!B270*Petroleum!$F$262+Petroleum!$F270)+Vehicles!$C$5*Fuel_Specs!$B$31/((1-Vehicles!$C$34)*(1-Vehicles!$C$5)*Fuel_Specs!$B$15+Vehicles!$C$34*(1-Vehicles!$C$5)*Fuel_Specs!$B$16+Vehicles!$C$5*Fuel_Specs!$B$31)*(MeOH_FTD!$N170*MeOH_FTD!$O$162+MeOH_FTD!$O170))/1000000*HLOOKUP($J$10,$Z$5:$AD$6,2,FALSE)/HLOOKUP($J$11,$Z$7:$AD$8,2,FALSE) -> 22.06408392 | K26: =((1-Vehicles!$C$34)*(1-Vehicles!$C$6)*Fuel_Specs!$B$15/((1-Vehicles!$C$34)*(1-Vehicles!$C$6)*Fuel_Specs!$B$15+Vehicles!$C$34*(1-Vehicles!$C$6)*Fuel_Specs!$B$16+Vehicles!$C$6*Fuel_Specs!$B$31)*(Petroleum!$B270*Petroleum!$D$262+Petroleum!$D270)+Vehicles!$C$34*(1-Vehicles!$C$6)*Fuel_Specs!$B$16/((1-Vehicles!$C$34)*(1-Vehicles!$C$6)*Fuel_Specs!$B$15+Vehicles!$C$34*(1-Vehicles!$C$6)*Fuel_Specs!$B$16+Vehicles!$C$6*Fuel_Specs!$B$31)*(Petroleum!B270*Petroleum!$F$262+Petroleum!$F270)+Vehicles!$C$6*Fuel_Specs!$B$31/((1-Vehicles!$C$34)*(1-Vehicles!$C$6)*Fuel_Specs!$B$15+Vehicles!$C$34*(1-Vehicles!$C$6)*Fuel_Specs!$B$16+Vehicles!$C$6*Fuel_Specs!$B$31)*(MeOH_FTD!$N170*MeOH_FTD!$O$162+MeOH_FTD!$O170))/1000000*HLOOKUP($J$10,$Z$5:$AD$6,2,FALSE)/HLOOKUP($J$11,$Z$7:$AD$8,2,FALSE) -> 22.93500053 | L26: =(MeOH_FTD!$N170*MeOH_FTD!$O$162+MeOH_FTD!$O170)/1000000*HLOOKUP($J$10,$Z$5:$AD$6,2,FALSE)/HLOOKUP($J$11,$Z$7:$AD$8,2,FALSE) -> 24.9453651 | M26: =((1-Vehicles!$C$36)*(1-Vehicles!$C$8)*Fuel_Specs!$B$15/((1-Vehicles!$C$36)*(1-Vehicles!$C$8)*Fuel_Specs!$B$15+Vehicles!$C$36*(1-Vehicles!$C$8)*Fuel_Specs!$B$16+Vehicles!$C$8*Fuel_Specs!$B$32)*(Petroleum!$B270*Petroleum!$D$262+(Petroleum!$D270-'T&D'!G223))+Vehicles!$C$36*(1-Vehicles!$C$8)*Fuel_Specs!$B$16/((1-Vehicles!$C$36)*(1-Vehicles!$C$8)*Fuel_Specs!$B$15+Vehicles!$C$36*(1-Vehicles!$C$8)*Fuel_Specs!$B$16+Vehicles!$C$8*Fuel_Specs!$B$32)*(Petroleum!B270*Petroleum!$F$262+Petroleum!$F270)+Vehicles!$C$8*Fuel_Specs!$B$32/((1-Vehicles!$C$36)*(1-Vehicles!$C$8)*Fuel_Specs!$B$15+Vehicles!$C$36*(1-Vehicles!$C$8)*Fuel_Specs!$B$16+Vehicles!$C$8*Fuel_Specs!$B$32)*(EtOH!BV554*EtOH!$BW$546+EtOH!$BW554)+Petroleum!AS132+Petroleum!AT132)/1000000*HLOOKUP($J$10,$Z$5:$AD$6,2,FALSE)/HLOOKUP($J$11,$Z$7:$AD$8,2,FALSE) -> 35.53612782 | N26: =((1-Vehicles!$C$37)*(1-Vehicles!$C$12)*Fuel_Specs!$B$15/((1-Vehicles!$C$37)*(1-Vehicles!$C$12)*Fuel_Specs!$B$15+Vehicles!$C$37*(1-Vehicles!$C$12)*Fuel_Specs!$B$16+Vehicles!$C$12*Fuel_Specs!$B$33)*(Petroleum!$B270*Petroleum!$D$262+Petroleum!$D270)+Vehicles!$C$37*(1-Vehicles!$C$12)*Fuel_Specs!$B$16/((1-Vehicles!$C$37)*(1-Vehicles!$C$12)*Fuel_Specs!$B$15+Vehicles!$C$37*(1-Vehicles!$C$12)*Fuel_Specs!$B$16+Vehicles!$C$12*Fuel_Specs!$B$33)*(Petroleum!B270*Petroleum!$F$262+Petroleum!$F270)+Vehicles!$C$12*Fuel_Specs!$B$33/((1-Vehicles!$C$37)*(1-Vehicles!$C$12)*Fuel_Specs!$B$15+Vehicles!$C$37*(1-Vehicles!$C$12)*Fuel_Specs!$B$16+Vehicles!$C$12*Fuel_Specs!$B$33)*(EtOH!$BX554*EtOH!$BY$546+EtOH!$BY554))/1000000*HLOOKUP($J$10,$Z$5:$AD$6,2,FALSE)/HLOOKUP($J$11,$Z$7:$AD$8,2,FALSE) -> 47.31269918 | O26: =((1-Vehicles!$C$36)*(1-Vehicles!$C$9)*Fuel_Specs!$B$15/((1-Vehicles!$C$36)*(1-Vehicles!$C$9)*Fuel_Specs!$B$15+Vehicles!$C$36*(1-Vehicles!$C$9)*Fuel_Specs!$B$16+Vehicles!$C$9*Fuel_Specs!$B$32)*(Petroleum!$B270*Petroleum!$D$262+(Petroleum!$D270-'T&D'!G223))+Vehicles!$C$36*(1-Vehicles!$C$9)*Fuel_Specs!$B$16/((1-Vehicles!$C$36)*(1-Vehicles!$C$9)*Fuel_Specs!$B$15+Vehicles!$C$36*(1-Vehicles!$C$9)*Fuel_Specs!$B$16+Vehicles!$C$9*Fuel_Specs!$B$32)*(Petroleum!B270*Petroleum!$F$262+Petroleum!$F270)+Vehicles!$C$9*Fuel_Specs!$B$32/((1-Vehicles!$C$36)*(1-Vehicles!$C$9)*Fuel_Specs!$B$15+Vehicles!$C$36*(1-Vehicles!$C$9)*Fuel_Specs!$B$16+Vehicles!$C$9*Fuel_Specs!$B$32)*(EtOH!BV554*EtOH!$BW$546+EtOH!$BW554)+Petroleum!AS132+Petroleum!AT132)/1000000*HLOOKUP($J$10,$Z$5:$AD$6,2,FALSE)/HLOOKUP($J$11,$Z$7:$AD$8,2,FALSE) -> 35.53612782 | P26: =(EtOH!$BT554*EtOH!$BU$546+EtOH!$BU554)/1000000*HLOOKUP($J$10,$Z$5:$AD$6,2,FALSE)/HLOOKUP($J$11,$Z$7:$AD$8,2,FALSE) -> 42.2100088 | Q26: =((1-Vehicles!$C$40)*(1-Vehicles!$C$16)*Fuel_Specs!$B$15/((1-Vehicles!$C$40)*(1-Vehicles!$C$16)*Fuel_Specs!$B$15+Vehicles!$C$40*(1-Vehicles!$C$16)*Fuel_Specs!$B$16+Vehicles!$C$16*Fuel_Specs!$B$46)*(Petroleum!$B270*Petroleum!$D$262+Petroleum!$D270)+Vehicles!$C$40*(1-Vehicles!$C$16)*Fuel_Specs!$B$16/((1-Vehicles!$C$40)*(1-Vehicles!$C$16)*Fuel_Specs!$B$15+Vehicles!$C$40*(1-Vehicles!$C$16)*Fuel_Specs!$B$16+Vehicles!$C$16*Fuel_Specs!$B$46)*(Petroleum!B270*Petroleum!$F$262+Petroleum!$F270)+Vehicles!$C$16*Fuel_Specs!$B$46/((1-Vehicles!$C$40)*(1-Vehicles!$C$16)*Fuel_Specs!$B$15+Vehicles!$C$40*(1-Vehicles!$C$16)*Fuel_Specs!$B$16+Vehicles!$C$16*Fuel_Specs!$B$46)*(BioOil!$CE440*BioOil!$CF$431+BioOil!$CF440))/1000000*HLOOKUP($J$10,$Z$5:$AD$6,2,FALSE)/HLOOKUP($J$11,$Z$7:$AD$8,2,FALSE) -> 166.2926235 | R26: =((1-Vehicles!$C$40)*(1-Vehicles!$C$16)*Fuel_Specs!$B$15/((1-Vehicles!$C$40)*(1-Vehicles!$C$16)*Fuel_Specs!$B$15+Vehicles!$C$40*(1-Vehicles!$C$16)*Fuel_Specs!$B$16+Vehicles!$C$16*Fuel_Specs!$B$46)*(Petroleum!$B270*Petroleum!$D$262+Petroleum!$D270)+Vehicles!$C$40*(1-Vehicles!$C$16)*Fuel_Specs!$B$16/((1-Vehicles!$C$40)*(1-Vehicles!$C$16)*Fuel_Specs!$B$15+Vehicles!$C$40*(1-Vehicles!$C$16)*Fuel_Specs!$B$16+Vehicles!$C$16*Fuel_Specs!$B$46)*(Petroleum!B270*Petroleum!$F$262+Petroleum!$F270)+Vehicles!$C$16*Fuel_Specs!$B$46/((1-Vehicles!$C$40)*(1-Vehicles!$C$16)*Fuel_Specs!$B$15+Vehicles!$C$40*(1-Vehicles!$C$16)*Fuel_Specs!$B$16+Vehicles!$C$16*Fuel_Specs!$B$46)*(Pyrolysis_IDL!$AD305*Pyrolysis_IDL!$AE$297+Pyrolysis_IDL!$AE305))/1000000*HLOOKUP($J$10,$Z$5:$AD$6,2,FALSE)/HLOOKUP($J$11,$Z$7:$AD$8,2,FALSE) -> 16.28243755 | S26: =AN26*(Vehicles!$C$30/Vehicles!$AT$72)/(Vehicles!$C$30*(1/Vehicles!$AT$72+1/Vehicles!$AU$72)+Vehicles!$C$31/Vehicles!$AV$72)+B26*(Vehicles!$C$30/Vehicles!$AU$72+Vehicles!$C$31/Vehicles!$AV$72)/(Vehicles!$C$30*(1/Vehicles!$AT$72+1/Vehicles!$AU$72)+Vehicles!$C$31/Vehicles!$AV$72) -> 21.408785 | T26: =AN26*(Vehicles!$D$30/Vehicles!$AX$72)/(Vehicles!$D$30*(1/Vehicles!$AX$72+1/Vehicles!$AY$72)+Vehicles!$D$31/Vehicles!$AZ$72)+C26*(Vehicles!$D$30/Vehicles!$AY$72+Vehicles!$D$31/Vehicles!$AZ$72)/(Vehicles!$D$30*(1/Vehicles!$AX$72+1/Vehicles!$AY$72)+Vehicles!$D$31/Vehicles!$AZ$72) -> 22.34915122 | U26: =AN26*(Vehicles!$F$30/Vehicles!$BF$72)/(Vehicles!$F$30*(1/Vehicles!$BF$72+1/Vehicles!$BG$72)+Vehicles!$F$31/Vehicles!$BH$72)+D26*(Vehicles!$F$30/Vehicles!$BG$72+Vehicles!$F$31/Vehicles!$BH$72)/(Vehicles!$F$30*(1/Vehicles!$BF$72+1/Vehicles!$BG$72)+Vehicles!$F$31/Vehicles!$BH$72) -> 21.408785 | V26: =AN26*(Vehicles!$G$30/Vehicles!$BJ$72)/(Vehicles!$G$30*(1/Vehicles!$BJ$72+1/Vehicles!$BK$72)+Vehicles!$G$31/Vehicles!$BL$72)+F26*(Vehicles!$G$30/Vehicles!$BK$72+Vehicles!$G$31/Vehicles!$BL$72)/(Vehicles!$G$30*(1/Vehicles!$BJ$72+1/Vehicles!$BK$72)+Vehicles!$G$31/Vehicles!$BL$72) -> 35.00962773 | W26: =AN26*(Vehicles!$H$30/Vehicles!$BN$72)/(Vehicles!$H$30*(1/Vehicles!$BN$72+1/Vehicles!$BO$72)+Vehicles!$H$31/Vehicles!$BP$72)+G26*(Vehicles!$H$30/Vehicles!$BO$72+Vehicles!$H$31/Vehicles!$BP$72)/(Vehicles!$H$30*(1/Vehicles!$BN$72+1/Vehicles!$BO$72)+Vehicles!$H$31/Vehicles!$BP$72) -> 25.78863671 | X26: =AN26*(Vehicles!$I$30/Vehicles!$BR$72)/(Vehicles!$I$30*(1/Vehicles!$BR$72+1/Vehicles!$BS$72)+Vehicles!$I$31/Vehicles!$BT$72)+H26*(Vehicles!$I$30/Vehicles!$BS$72+Vehicles!$I$31/Vehicles!$BT$72)/(Vehicles!$I$30*(1/Vehicles!$BR$72+1/Vehicles!$BS$72)+Vehicles!$I$31/Vehicles!$BT$72) -> 23.36796286 | Y26: =AN26*(Vehicles!$J$30/Vehicles!$BV$72)/(Vehicles!$J$30*(1/Vehicles!$BV$72+1/Vehicles!$BW$72)+Vehicles!$J$31/Vehicles!$BX$72)+K26*(Vehicles!$J$30/Vehicles!$BW$72+Vehicles!$J$31/Vehicles!$BX$72)/(Vehicles!$J$30*(1/Vehicles!$BV$72+1/Vehicles!$BW$72)+Vehicles!$J$31/Vehicles!$BX$72) -> 25.7903133 | Z26: =AN26*(Vehicles!$K$30/Vehicles!$BZ$72)/(Vehicles!$K$30*(1/Vehicles!$BZ$72+1/Vehicles!$CA$72)+Vehicles!$K$31/Vehicles!$CB$72)+O26*(Vehicles!$K$30/Vehicles!$CA$72+Vehicles!$K$31/Vehicles!$CB$72)/(Vehicles!$K$30*(1/Vehicles!$BZ$72+1/Vehicles!$CA$72)+Vehicles!$K$31/Vehicles!$CB$72) -> 33.62995727 | AA26: =AN26*(Vehicles!$L$30/Vehicles!$CD$72)/(Vehicles!$L$30*(1/Vehicles!$CD$72+1/Vehicles!$CE$72)+Vehicles!$L$31/Vehicles!$CF$72)+AO26*(Vehicles!$L$30/Vehicles!$CE$72+Vehicles!$L$31/Vehicles!$CF$72)/(Vehicles!$L$30*(1/Vehicles!$CD$72+1/Vehicles!$CE$72)+Vehicles!$L$31/Vehicles!$CF$72) -> 39.21284614 | AB26: =AN26*(Vehicles!$L$30/Vehicles!$CD$72)/(Vehicles!$L$30*(1/Vehicles!$CD$72+1/Vehicles!$CE$72)+Vehicles!$L$31/Vehicles!$CG$72)+AP26*(Vehicles!$L$30/Vehicles!$CE$72+Vehicles!$L$31/Vehicles!$CG$72)/(Vehicles!$L$30*(1/Vehicles!$CD$72+1/Vehicles!$CE$72)+Vehicles!$L$31/Vehicles!$CG$72) -> 43.6386494 | AC26: =(MeOH_FTD!$AJ170*MeOH_FTD!$AK$162+MeOH_FTD!$AK170)/1000000*HLOOKUP($J$10,$Z$5:$AD$6,2,FALSE)/HLOOKUP($J$11,$Z$7:$AD$8,2,FALSE) -> 28.45587393 | AD26: =((1-Vehicles!$C$41)*(1-Vehicles!$C$13)*Fuel_Specs!$B$20/((1-Vehicles!$C$41)*(1-Vehicles!$C$13)*Fuel_Specs!$B$20+Vehicles!$C$41*(1-Vehicles!$C$13)*Fuel_Specs!$B$23+Vehicles!$C$13*Fuel_Specs!$B$41)*(Petroleum!B270*Petroleum!$J$262+Petroleum!$J270)+Vehicles!$C$41*(1-Vehicles!$C$13)*Fuel_Specs!$B$23/((1-Vehicles!$C$41)*(1-Vehicles!$C$13)*Fuel_Specs!$B$20+Vehicles!$C$41*(1-Vehicles!$C$13)*Fuel_Specs!$B$23+Vehicles!$C$13*Fuel_Specs!$B$41)*(Petroleum!B270*IF(Inputs!F$102=1,Petroleum!$K$262,Petroleum!$L$262)+IF(Inputs!F$102=1,Petroleum!$K270,Petroleum!$L270))+Vehicles!$C$13*Fuel_Specs!$B$41/((1-Vehicles!$C$41)*(1-Vehicles!$C$13)*Fuel_Specs!$B$20+Vehicles!$C$41*(1-Vehicles!$C$13)*Fuel_Specs!$B$23+Vehicles!$C$13*Fuel_Specs!$B$41)*(MeOH_FTD!$AZ170*MeOH_FTD!$BA$162+MeOH_FTD!$BA170))/1000000*HLOOKUP($J$10,$Z$5:$AD$6,2,FALSE)/HLOOKUP($J$11,$Z$7:$AD$8,2,FALSE) -> 27.10487702 | AE26: =((1-Vehicles!$C$42)*(1-Vehicles!$C$14)*Fuel_Specs!$B$20/((1-Vehicles!$C$42)*(1-Vehicles!$C$14)*Fuel_Specs!$B$20+Vehicles!$C$42*(1-Vehicles!$C$14)*Fuel_Specs!$B$23+Vehicles!$C$14*Fuel_Specs!$B$40)*(Petroleum!B270*Petroleum!$J$262+Petroleum!$J270)+Vehicles!$C$42*(1-Vehicles!$C$14)*Fuel_Specs!$B$23/((1-Vehicles!$C$42)*(1-Vehicles!$C$14)*Fuel_Specs!$B$20+Vehicles!$C$42*(1-Vehicles!$C$14)*Fuel_Specs!$B$23+Vehicles!$C$14*Fuel_Specs!$B$40)*(Petroleum!B270*IF(Inputs!F$102=1,Petroleum!$K$262,Petroleum!$L$262)+IF(Inputs!F$102=1,Petroleum!$K270,Petroleum!$L270))+Vehicles!$C$14*Fuel_Specs!$B$40/((1-Vehicles!$C$42)*(1-Vehicles!$C$14)*Fuel_Specs!$B$20+Vehicles!$C$42*(1-Vehicles!$C$14)*Fuel_Specs!$B$23+Vehicles!$C$14*Fuel_Specs!$B$40)*(BioOil!$Y440*BioOil!$Z$431+BioOil!$Z440))/1000000*HLOOKUP($J$10,$Z$5:$AD$6,2,FALSE)/HLOOKUP($J$11,$Z$7:$AD$8,2,FALSE) -> 12.63559269 | AF26: =((1-Vehicles!$C$43)*(1-Vehicles!$C$15)*Fuel_Specs!$B$20/((1-Vehicles!$C$43)*(1-Vehicles!$C$15)*Fuel_Specs!$B$20+Vehicles!$C$43*(1-Vehicles!$C$15)*Fuel_Specs!$B$23+Vehicles!$C$15*IF(Inputs!$E$670=1,IF(Inputs!$E$670=1,Fuel_Specs!$B$42,IF(Inputs!$E$670=3,Fuel_Specs!$B$44,Fuel_Specs!$B$43)),Fuel_Specs!$B$43))*(Petroleum!B270*Petroleum!$J$262+Petroleum!$J270)+Vehicles!$C$43*(1-Vehicles!$C$15)*Fuel_Specs!$B$23/((1-Vehicles!$C$43)*(1-Vehicles!$C$15)*Fuel_Specs!$B$20+Vehicles!$C$43*(1-Vehicles!$C$15)*Fuel_Specs!$B$23+Vehicles!$C$15*IF(Inputs!$E$670=1,IF(Inputs!$E$670=1,Fuel_Specs!$B$42,IF(Inputs!$E$670=3,Fuel_Specs!$B$44,Fuel_Specs!$B$43)),Fuel_Specs!$B$43))*(Petroleum!B270*IF(Inputs!F$102=1,Petroleum!$K$262,Petroleum!$L$262)+IF(Inputs!F$102=1,Petroleum!$K270,Petroleum!$L270))+Vehicles!$C$15*IF(Inputs!$E$670=1,IF(Inputs!$E$670=1,Fuel_Specs!$B$42,IF(Inputs!$E$670=3,Fuel_Specs!$B$44,Fuel_Specs!$B$43)),Fuel_Specs!$B$43)/((1-Vehicles!$C$43)*(1-Vehicles!$C$15)*Fuel_Specs!$B$20+Vehicles!$C$43*(1-Vehicles!$C$15)*Fuel_Specs!$B$23+Vehicles!$C$15*IF(Inputs!$E$670=1,IF(Inputs!$E$670=1,Fuel_Specs!$B$42,IF(Inputs!$E$670=3,Fuel_Specs!$B$44,Fuel_Specs!$B$43)),Fuel_Specs!$B$43))*(BioOil!$BQ440*BioOil!$BR$431+BioOil!$BR440))/1000000*HLOOKUP($J$10,$Z$5:$AD$6,2,FALSE)/HLOOKUP($J$11,$Z$7:$AD$8,2,FALSE) -> 16.76104521 | AG26: =((1-Vehicles!$C$43)*(1-Vehicles!$C$15)*Fuel_Specs!$B$20/((1-Vehicles!$C$43)*(1-Vehicles!$C$15)*Fuel_Specs!$B$20+Vehicles!$C$43*(1-Vehicles!$C$15)*Fuel_Specs!$B$23+Vehicles!$C$15*IF(Inputs!$E$670=1,Fuel_Specs!$B$42,Fuel_Specs!$B$43))*(Petroleum!B270*Petroleum!$J$262+Petroleum!$J270)+Vehicles!$C$43*(1-Vehicles!$C$15)*Fuel_Specs!$B$23/((1-Vehicles!$C$43)*(1-Vehicles!$C$15)*Fuel_Specs!$B$20+Vehicles!$C$43*(1-Vehicles!$C$15)*Fuel_Specs!$B$23+Vehicles!$C$15*IF(Inputs!$E$670=1,Fuel_Specs!$B$42,Fuel_Specs!$B$43))*(Petroleum!B270*IF(Inputs!F$102=1,Petroleum!$K$262,Petroleum!$L$262)+IF(Inputs!F$102=1,Petroleum!$K270,Petroleum!$L270))+Vehicles!$C$15*IF(Inputs!$E$670=1,Fuel_Specs!$B$42,Fuel_Specs!$B$43)/((1-Vehicles!$C$43)*(1-Vehicles!$C$15)*Fuel_Specs!$B$20+Vehicles!$C$43*(1-Vehicles!$C$15)*Fuel_Specs!$B$23+Vehicles!$C$15*IF(Inputs!$E$670=1,Fuel_Specs!$B$42,Fuel_Specs!$B$43))*(Pyrolysis_IDL!$AF305*Pyrolysis_IDL!$AG$297+Pyrolysis_IDL!$AG305))/1000000*HLOOKUP($J$10,$Z$5:$AD$6,2,FALSE)/HLOOKUP($J$11,$Z$7:$AD$8,2,FALSE) -> 19.51325609 | AH26: =(((1-Vehicles!$C$44)*(1-Vehicles!$C$17-Vehicles!$C$18)*Fuel_Specs!$B$20*(Petroleum!B270*Petroleum!$J$262+Petroleum!$J270)+Vehicles!$C$44*(1-Vehicles!$C$17-Vehicles!$C$18)*Fuel_Specs!$B$23*(Petroleum!B270*IF(Inputs!F$102=1,Petroleum!$K$262,Petroleum!$L$262)+IF(Inputs!F$102=1,Petroleum!$K270,Petroleum!$L270))+Vehicles!$C$17*Fuel_Specs!$B$32*(EtOH!BT554*EtOH!$BU$546+EtOH!$BU554)+Vehicles!$C$18*Fuel_Specs!$B$35*('EtOH-Diesel Additives'!$B61*'EtOH-Diesel Additives'!$B$53))/((1-Vehicles!$C$44)*(1-Vehicles!$C$17-Vehicles!$C$18)*Fuel_Specs!$B$20+Vehicles!$C$44*(1-Vehicles!$C$17-Vehicles!$C$18)*Fuel_Specs!$B$23+Vehicles!$C$17*Fuel_Specs!$B$32+Vehicles!$C$18*Fuel_Specs!$B$35))/1000000*HLOOKUP($J$10,$Z$5:$AD$6,2,FALSE)/HLOOKUP($J$11,$Z$7:$AD$8,2,FALSE) -> 13.99843753 | AI26: =AN26*(Vehicles!$M$30/Vehicles!$CO$72)/(Vehicles!$M$30*(1/Vehicles!$CO$72+1/Vehicles!$CP$72)+Vehicles!$M$31/Vehicles!$CQ$72)+E26*(Vehicles!$M$30/Vehicles!$CP$72+Vehicles!$M$31/Vehicles!$CQ$72)/(Vehicles!$M$30*(1/Vehicles!$CO$72+1/Vehicles!$CP$72)+Vehicles!$M$31/Vehicles!$CQ$72) -> 17.56024436 | AJ26: =AN26*(Vehicles!$N$30/Vehicles!$CS$72)/(Vehicles!$N$30*(1/Vehicles!$CS$72+1/Vehicles!$CT$72)+Vehicles!$N$31/Vehicles!$CU$72)+AC26*(Vehicles!$N$30/Vehicles!$CT$72+Vehicles!$N$31/Vehicles!$CU$72)/(Vehicles!$N$30*(1/Vehicles!$CS$72+1/Vehicles!$CT$72)+Vehicles!$N$31/Vehicles!$CU$72) -> 29.06065899 | AK26: =AN26*(Vehicles!$O$30/Vehicles!$CW$72)/(Vehicles!$O$30*(1/Vehicles!$CW$72+1/Vehicles!$CX$72)+Vehicles!$O$31/Vehicles!$CY$72)+AD26*(Vehicles!$O$30/Vehicles!$CX$72+Vehicles!$O$31/Vehicles!$CY$72)/(Vehicles!$O$30*(1/Vehicles!$CW$72+1/Vehicles!$CX$72)+Vehicles!$O$31/Vehicles!$CY$72) -> 28.11104307 | AL26: =AN26*(Vehicles!$P$30/Vehicles!$DA$72)/(Vehicles!$P$30*(1/Vehicles!$DA$72+1/Vehicles!$DB$72)+Vehicles!$P$31/Vehicles!$DC$72)+AE26*(Vehicles!$P$30/Vehicles!$DB$72+Vehicles!$P$31/Vehicles!$DC$72)/(Vehicles!$P$30*(1/Vehicles!$DA$72+1/Vehicles!$DB$72)+Vehicles!$P$31/Vehicles!$DC$72) -> 17.94058108 | AM26: =AN26*(Vehicles!$R$30/Vehicles!$DI$72)/(Vehicles!$R$30*(1/Vehicles!$DI$72+1/Vehicles!$DJ$72)+Vehicles!$R$31/Vehicles!$DK$72)+AH26*(Vehicles!$R$30/Vehicles!$DJ$72+Vehicles!$R$31/Vehicles!$DK$72)/(Vehicles!$R$30*(1/Vehicles!$DI$72+1/Vehicles!$DJ$72)+Vehicles!$R$31/Vehicles!$DK$72) -> 18.89852491 | AN26: =(Electric!$G211+Electric!$F211)/1000000*HLOOKUP($J$10,$Z$5:$AD$6,2,FALSE)/HLOOKUP($J$11,$Z$7:$AD$8,2,FALSE) -> 30.49150282 | AO26: =(Hydrogen!$AJ313*Hydrogen!$AK$305+Hydrogen!$AK313)/1000000*HLOOKUP($J$10,$Z$5:$AD$6,2,FALSE)/HLOOKUP($J$11,$Z$7:$AD$8,2,FALSE) -> 44.50983806 | AP26: =(Hydrogen!$BT313*Hydrogen!$BU$305+Hydrogen!$BU313)/1000000*HLOOKUP($J$10,$Z$5:$AD$6,2,FALSE)/HLOOKUP($J$11,$Z$7:$AD$8,2,FALSE) -> 51.6236956 | AQ26: =AN26*(Vehicles!$S$30/Vehicles!$DY$72)/(Vehicles!$S$30*(1/Vehicles!$DY$72+1/Vehicles!$DZ$72)+Vehicles!$S$31/Vehicles!$EA$72)+AO26*(Vehicles!$S$30/Vehicles!$DZ$72+Vehicles!$S$31/Vehicles!$EA$72)/(Vehicles!$S$30*(1/Vehicles!$DY$72+1/Vehicles!$DZ$72)+Vehicles!$S$31/Vehicles!$EA$72) -> 38.8394146 | AR26: =AN26*(Vehicles!$S$30/Vehicles!$DY$72)/(Vehicles!$S$30*(1/Vehicles!$DY$72+1/Vehicles!$DZ$72)+Vehicles!$S$31/Vehicles!$EA$72)+AP26*(Vehicles!$S$30/Vehicles!$DZ$72+Vehicles!$S$31/Vehicles!$EA$72)/(Vehicles!$S$30*(1/Vehicles!$DY$72+1/Vehicles!$DZ$72)+Vehicles!$S$31/Vehicles!$EA$72) -> 43.07571329 | AS26: =((1-Vehicles!$C$40)*(1-Vehicles!$C$16)*Fuel_Specs!$B$15/((1-Vehicles!$C$40)*(1-Vehicles!$C$16)*Fuel_Specs!$B$15+Vehicles!$C$40*(1-Vehicles!$C$16)*Fuel_Specs!$B$16+Vehicles!$C$16*Fuel_Specs!$B$47)*(Petroleum!$B270*Petroleum!$D$262+Petroleum!$D270)+Vehicles!$C$40*(1-Vehicles!$C$16)*Fuel_Specs!$B$16/((1-Vehicles!$C$40)*(1-Vehicles!$C$16)*Fuel_Specs!$B$15+Vehicles!$C$40*(1-Vehicles!$C$16)*Fuel_Specs!$B$16+Vehicles!$C$16*Fuel_Specs!$B$47)*(Petroleum!B270*Petroleum!$F$262+Petroleum!$F270)+Vehicles!$C$16*Fuel_Specs!$B$47/((1-Vehicles!$C$40)*(1-Vehicles!$C$16)*Fuel_Specs!$B$15+Vehicles!$C$40*(1-Vehicles!$C$16)*Fuel_Specs!$B$16+Vehicles!$C$16*Fuel_Specs!$B$47)*(Pyrolysis_IDL!$AP305*Pyrolysis_IDL!$AQ$297+Pyrolysis_IDL!$AQ305))/1000000*HLOOKUP($J$10,$Z$5:$AD$6,2,FALSE)/HLOOKUP($J$11,$Z$7:$AD$8,2,FALSE) -> 54.0536436 | AT26: =(Petroleum!$B270*Petroleum!$S$262+Petroleum!$S270)/1000000*HLOOKUP($J$10,$Z$5:$AD$6,2,FALSE)/HLOOKUP($J$11,$Z$7:$AD$8,2,FALSE) -> 12.90513113 | AU26: 16.61840507 | AV26: 16.53321485 | BB26: SI - Gaseous H2 | BC26: RNAVGH2ICE
A27: NOx: Total | B27: =(Inputs!$E$1500*(Petroleum!$B271*Petroleum!$F$262+Petroleum!$F271)+(1-Inputs!$E$1500)*(Petroleum!$B271*Petroleum!$D$262+Petroleum!$D271))/1000000*HLOOKUP($J$10,$Z$5:$AD$6,2,FALSE)/HLOOKUP($J$11,$Z$7:$AD$8,2,FALSE) -> 25.59714441 | C27: =(Petroleum!$C271*Petroleum!$G$262+Petroleum!$G271)/1000000*HLOOKUP($J$10,$Z$5:$AD$6,2,FALSE)/HLOOKUP($J$11,$Z$7:$AD$8,2,FALSE) -> 41.61029643 | D27: =((1-Vehicles!$C$35)*(1-Vehicles!$C$7)*Fuel_Specs!$B$15/((1-Vehicles!$C$35)*(1-Vehicles!$C$7)*Fuel_Specs!$B$15+Vehicles!$C$35*(1-Vehicles!$C$7)*Fuel_Specs!$B$16+Vehicles!$C$7*Fuel_Specs!$B$32)*(Petroleum!$B271*Petroleum!$D$262+(Petroleum!$D271-'T&D'!G224))+Vehicles!$C$35*(1-Vehicles!$C$7)*Fuel_Specs!$B$16/((1-Vehicles!$C$35)*(1-Vehicles!$C$7)*Fuel_Specs!$B$15+Vehicles!$C$35*(1-Vehicles!$C$7)*Fuel_Specs!$B$16+Vehicles!$C$7*Fuel_Specs!$B$32)*(Petroleum!B271*Petroleum!$F$262+Petroleum!$F271)+Vehicles!$C$7*Fuel_Specs!$B$32/((1-Vehicles!$C$35)*(1-Vehicles!$C$7)*Fuel_Specs!$B$15+Vehicles!$C$35*(1-Vehicles!$C$7)*Fuel_Specs!$B$16+Vehicles!$C$7*Fuel_Specs!$B$32)*(EtOH!BV555*EtOH!$BW$546+EtOH!$BW555)+Petroleum!AS133+Petroleum!AT133)/1000000*HLOOKUP($J$10,$Z$5:$AD$6,2,FALSE)/HLOOKUP($J$11,$Z$7:$AD$8,2,FALSE) -> 25.59714441 | E27: =(Inputs!$E$97*(IF(Inputs!F$102=1,Petroleum!$B271,Petroleum!$C271)*IF(Inputs!F$102=1,Petroleum!$K$262,Petroleum!$L$262)+IF(Inputs!F$102=1,Petroleum!$K271,Petroleum!$L271))+(1-Inputs!$E$97)*(IF(Inputs!F$101=1,Petroleum!$B271,Petroleum!$C271)*Petroleum!$J$262+Petroleum!$J271))/1000000*HLOOKUP($J$10,$Z$5:$AD$6,2,FALSE)/HLOOKUP($J$11,$Z$7:$AD$8,2,FALSE) -> 18.28292397 | F27: =(NG!$J93*NG!$K$84+NG!$K93)/1000000*HLOOKUP($J$10,$Z$5:$AD$6,2,FALSE)/HLOOKUP($J$11,$Z$7:$AD$8,2,FALSE) -> 44.51750102 | G27: =(NG!$R93*NG!$S$84+NG!$S93)/1000000*HLOOKUP($J$10,$Z$5:$AD$6,2,FALSE)/HLOOKUP($J$11,$Z$7:$AD$8,2,FALSE) -> 27.61304582 | H27: =(NG!$X93*NG!$Y$84+NG!$Y93)/1000000*HLOOKUP($J$10,$Z$5:$AD$6,2,FALSE)/HLOOKUP($J$11,$Z$7:$AD$8,2,FALSE) -> 23.523629 | I27: =(MeOH_FTD!BJ171*MeOH_FTD!BK$162+MeOH_FTD!BK171)/1000000*HLOOKUP($J$10,$Z$5:$AD$6,2,FALSE)/HLOOKUP($J$11,$Z$7:$AD$8,2,FALSE) -> 33.87453593 | J27: =((1-Vehicles!$C$34)*(1-Vehicles!$C$5)*Fuel_Specs!$B$15/((1-Vehicles!$C$34)*(1-Vehicles!$C$5)*Fuel_Specs!$B$15+Vehicles!$C$34*(1-Vehicles!$C$5)*Fuel_Specs!$B$16+Vehicles!$C$5*Fuel_Specs!$B$31)*(Petroleum!$B271*Petroleum!$D$262+Petroleum!$D271)+Vehicles!$C$34*(1-Vehicles!$C$5)*Fuel_Specs!$B$16/((1-Vehicles!$C$34)*(1-Vehicles!$C$5)*Fuel_Specs!$B$15+Vehicles!$C$34*(1-Vehicles!$C$5)*Fuel_Specs!$B$16+Vehicles!$C$5*Fuel_Specs!$B$31)*(Petroleum!B271*Petroleum!$F$262+Petroleum!$F271)+Vehicles!$C$5*Fuel_Specs!$B$31/((1-Vehicles!$C$34)*(1-Vehicles!$C$5)*Fuel_Specs!$B$15+Vehicles!$C$34*(1-Vehicles!$C$5)*Fuel_Specs!$B$16+Vehicles!$C$5*Fuel_Specs!$B$31)*(MeOH_FTD!$N171*MeOH_FTD!$O$162+MeOH_FTD!$O171))/1000000*HLOOKUP($J$10,$Z$5:$AD$6,2,FALSE)/HLOOKUP($J$11,$Z$7:$AD$8,2,FALSE) -> 26.76728481 | K27: =((1-Vehicles!$C$34)*(1-Vehicles!$C$6)*Fuel_Specs!$B$15/((1-Vehicles!$C$34)*(1-Vehicles!$C$6)*Fuel_Specs!$B$15+Vehicles!$C$34*(1-Vehicles!$C$6)*Fuel_Specs!$B$16+Vehicles!$C$6*Fuel_Specs!$B$31)*(Petroleum!$B271*Petroleum!$D$262+Petroleum!$D271)+Vehicles!$C$34*(1-Vehicles!$C$6)*Fuel_Specs!$B$16/((1-Vehicles!$C$34)*(1-Vehicles!$C$6)*Fuel_Specs!$B$15+Vehicles!$C$34*(1-Vehicles!$C$6)*Fuel_Specs!$B$16+Vehicles!$C$6*Fuel_Specs!$B$31)*(Petroleum!B271*Petroleum!$F$262+Petroleum!$F271)+Vehicles!$C$6*Fuel_Specs!$B$31/((1-Vehicles!$C$34)*(1-Vehicles!$C$6)*Fuel_Specs!$B$15+Vehicles!$C$34*(1-Vehicles!$C$6)*Fuel_Specs!$B$16+Vehicles!$C$6*Fuel_Specs!$B$31)*(MeOH_FTD!$N171*MeOH_FTD!$O$162+MeOH_FTD!$O171))/1000000*HLOOKUP($J$10,$Z$5:$AD$6,2,FALSE)/HLOOKUP($J$11,$Z$7:$AD$8,2,FALSE) -> 27.37874067 | L27: =(MeOH_FTD!$N171*MeOH_FTD!$O$162+MeOH_FTD!$O171)/1000000*HLOOKUP($J$10,$Z$5:$AD$6,2,FALSE)/HLOOKUP($J$11,$Z$7:$AD$8,2,FALSE) -> 28.79018373 | M27: =((1-Vehicles!$C$36)*(1-Vehicles!$C$8)*Fuel_Specs!$B$15/((1-Vehicles!$C$36)*(1-Vehicles!$C$8)*Fuel_Specs!$B$15+Vehicles!$C$36*(1-Vehicles!$C$8)*Fuel_Specs!$B$16+Vehicles!$C$8*Fuel_Specs!$B$32)*(Petroleum!$B271*Petroleum!$D$262+(Petroleum!$D271-'T&D'!G224))+Vehicles!$C$36*(1-Vehicles!$C$8)*Fuel_Specs!$B$16/((1-Vehicles!$C$36)*(1-Vehicles!$C$8)*Fuel_Specs!$B$15+Vehicles!$C$36*(1-Vehicles!$C$8)*Fuel_Specs!$B$16+Vehicles!$C$8*Fuel_Specs!$B$32)*(Petroleum!B271*Petroleum!$F$262+Petroleum!$F271)+Vehicles!$C$8*Fuel_Specs!$B$32/((1-Vehicles!$C$36)*(1-Vehicles!$C$8)*Fuel_Specs!$B$15+Vehicles!$C$36*(1-Vehicles!$C$8)*Fuel_Specs!$B$16+Vehicles!$C$8*Fuel_Specs!$B$32)*(EtOH!BV555*EtOH!$BW$546+EtOH!$BW555)+Petroleum!AS133+Petroleum!AT133)/1000000*HLOOKUP($J$10,$Z$5:$AD$6,2,FALSE)/HLOOKUP($J$11,$Z$7:$AD$8,2,FALSE) -> 72.58200711 | N27: =((1-Vehicles!$C$37)*(1-Vehicles!$C$12)*Fuel_Specs!$B$15/((1-Vehicles!$C$37)*(1-Vehicles!$C$12)*Fuel_Specs!$B$15+Vehicles!$C$37*(1-Vehicles!$C$12)*Fuel_Specs!$B$16+Vehicles!$C$12*Fuel_Specs!$B$33)*(Petroleum!$B271*Petroleum!$D$262+Petroleum!$D271)+Vehicles!$C$37*(1-Vehicles!$C$12)*Fuel_Specs!$B$16/((1-Vehicles!$C$37)*(1-Vehicles!$C$12)*Fuel_Specs!$B$15+Vehicles!$C$37*(1-Vehicles!$C$12)*Fuel_Specs!$B$16+Vehicles!$C$12*Fuel_Specs!$B$33)*(Petroleum!B271*Petroleum!$F$262+Petroleum!$F271)+Vehicles!$C$12*Fuel_Specs!$B$33/((1-Vehicles!$C$37)*(1-Vehicles!$C$12)*Fuel_Specs!$B$15+Vehicles!$C$37*(1-Vehicles!$C$12)*Fuel_Specs!$B$16+Vehicles!$C$12*Fuel_Specs!$B$33)*(EtOH!$BX555*EtOH!$BY$546+EtOH!$BY555))/1000000*HLOOKUP($J$10,$Z$5:$AD$6,2,FALSE)/HLOOKUP($J$11,$Z$7:$AD$8,2,FALSE) -> 85.27062476 | O27: =((1-Vehicles!$C$36)*(1-Vehicles!$C$9)*Fuel_Specs!$B$15/((1-Vehicles!$C$36)*(1-Vehicles!$C$9)*Fuel_Specs!$B$15+Vehicles!$C$36*(1-Vehicles!$C$9)*Fuel_Specs!$B$16+Vehicles!$C$9*Fuel_Specs!$B$32)*(Petroleum!$B271*Petroleum!$D$262+(Petroleum!$D271-'T&D'!G224))+Vehicles!$C$36*(1-Vehicles!$C$9)*Fuel_Specs!$B$16/((1-Vehicles!$C$36)*(1-Vehicles!$C$9)*Fuel_Specs!$B$15+Vehicles!$C$36*(1-Vehicles!$C$9)*Fuel_Specs!$B$16+Vehicles!$C$9*Fuel_Specs!$B$32)*(Petroleum!B271*Petroleum!$F$262+Petroleum!$F271)+Vehicles!$C$9*Fuel_Specs!$B$32/((1-Vehicles!$C$36)*(1-Vehicles!$C$9)*Fuel_Specs!$B$15+Vehicles!$C$36*(1-Vehicles!$C$9)*Fuel_Specs!$B$16+Vehicles!$C$9*Fuel_Specs!$B$32)*(EtOH!BV555*EtOH!$BW$546+EtOH!$BW555)+Petroleum!AS133+Petroleum!AT133)/1000000*HLOOKUP($J$10,$Z$5:$AD$6,2,FALSE)/HLOOKUP($J$11,$Z$7:$AD$8,2,FALSE) -> 72.58200711 | P27: =(EtOH!$BT555*EtOH!$BU$546+EtOH!$BU555)/1000000*HLOOKUP($J$10,$Z$5:$AD$6,2,FALSE)/HLOOKUP($J$11,$Z$7:$AD$8,2,FALSE) -> 88.35088509 | Q27: =((1-Vehicles!$C$40)*(1-Vehicles!$C$16)*Fuel_Specs!$B$15/((1-Vehicles!$C$40)*(1-Vehicles!$C$16)*Fuel_Specs!$B$15+Vehicles!$C$40*(1-Vehicles!$C$16)*Fuel_Specs!$B$16+Vehicles!$C$16*Fuel_Specs!$B$46)*(Petroleum!$B271*Petroleum!$D$262+Petroleum!$D271)+Vehicles!$C$40*(1-Vehicles!$C$16)*Fuel_Specs!$B$16/((1-Vehicles!$C$40)*(1-Vehicles!$C$16)*Fuel_Specs!$B$15+Vehicles!$C$40*(1-Vehicles!$C$16)*Fuel_Specs!$B$16+Vehicles!$C$16*Fuel_Specs!$B$46)*(Petroleum!B271*Petroleum!$F$262+Petroleum!$F271)+Vehicles!$C$16*Fuel_Specs!$B$46/((1-Vehicles!$C$40)*(1-Vehicles!$C$16)*Fuel_Specs!$B$15+Vehicles!$C$40*(1-Vehicles!$C$16)*Fuel_Specs!$B$16+Vehicles!$C$16*Fuel_Specs!$B$46)*(BioOil!$CE441*BioOil!$CF$431+BioOil!$CF441))/1000000*HLOOKUP($J$10,$Z$5:$AD$6,2,FALSE)/HLOOKUP($J$11,$Z$7:$AD$8,2,FALSE) -> 260.9931073 | R27: =((1-Vehicles!$C$40)*(1-Vehicles!$C$16)*Fuel_Specs!$B$15/((1-Vehicles!$C$40)*(1-Vehicles!$C$16)*Fuel_Specs!$B$15+Vehicles!$C$40*(1-Vehicles!$C$16)*Fuel_Specs!$B$16+Vehicles!$C$16*Fuel_Specs!$B$46)*(Petroleum!$B271*Petroleum!$D$262+Petroleum!$D271)+Vehicles!$C$40*(1-Vehicles!$C$16)*Fuel_Specs!$B$16/((1-Vehicles!$C$40)*(1-Vehicles!$C$16)*Fuel_Specs!$B$15+Vehicles!$C$40*(1-Vehicles!$C$16)*Fuel_Specs!$B$16+Vehicles!$C$16*Fuel_Specs!$B$46)*(Petroleum!B271*Petroleum!$F$262+Petroleum!$F271)+Vehicles!$C$16*Fuel_Specs!$B$46/((1-Vehicles!$C$40)*(1-Vehicles!$C$16)*Fuel_Specs!$B$15+Vehicles!$C$40*(1-Vehicles!$C$16)*Fuel_Specs!$B$16+Vehicles!$C$16*Fuel_Specs!$B$46)*(Pyrolysis_IDL!$AD306*Pyrolysis_IDL!$AE$297+Pyrolysis_IDL!$AE306))/1000000*HLOOKUP($J$10,$Z$5:$AD$6,2,FALSE)/HLOOKUP($J$11,$Z$7:$AD$8,2,FALSE) -> 21.98302723 | S27: =AN27*(Vehicles!$C$30/Vehicles!$AT$72)/(Vehicles!$C$30*(1/Vehicles!$AT$72+1/Vehicles!$AU$72)+Vehicles!$C$31/Vehicles!$AV$72)+B27*(Vehicles!$C$30/Vehicles!$AU$72+Vehicles!$C$31/Vehicles!$AV$72)/(Vehicles!$C$30*(1/Vehicles!$AT$72+1/Vehicles!$AU$72)+Vehicles!$C$31/Vehicles!$AV$72) -> 31.48727006 | T27: =AN27*(Vehicles!$D$30/Vehicles!$AX$72)/(Vehicles!$D$30*(1/Vehicles!$AX$72+1/Vehicles!$AY$72)+Vehicles!$D$31/Vehicles!$AZ$72)+C27*(Vehicles!$D$30/Vehicles!$AY$72+Vehicles!$D$31/Vehicles!$AZ$72)/(Vehicles!$D$30*(1/Vehicles!$AX$72+1/Vehicles!$AY$72)+Vehicles!$D$31/Vehicles!$AZ$72) -> 41.44966531 | U27: =AN27*(Vehicles!$F$30/Vehicles!$BF$72)/(Vehicles!$F$30*(1/Vehicles!$BF$72+1/Vehicles!$BG$72)+Vehicles!$F$31/Vehicles!$BH$72)+D27*(Vehicles!$F$30/Vehicles!$BG$72+Vehicles!$F$31/Vehicles!$BH$72)/(Vehicles!$F$30*(1/Vehicles!$BF$72+1/Vehicles!$BG$72)+Vehicles!$F$31/Vehicles!$BH$72) -> 31.48727006 | V27: =AN27*(Vehicles!$G$30/Vehicles!$BJ$72)/(Vehicles!$G$30*(1/Vehicles!$BJ$72+1/Vehicles!$BK$72)+Vehicles!$G$31/Vehicles!$BL$72)+F27*(Vehicles!$G$30/Vehicles!$BK$72+Vehicles!$G$31/Vehicles!$BL$72)/(Vehicles!$G$30*(1/Vehicles!$BJ$72+1/Vehicles!$BK$72)+Vehicles!$G$31/Vehicles!$BL$72) -> 43.25834864 | W27: =AN27*(Vehicles!$H$30/Vehicles!$BN$72)/(Vehicles!$H$30*(1/Vehicles!$BN$72+1/Vehicles!$BO$72)+Vehicles!$H$31/Vehicles!$BP$72)+G27*(Vehicles!$H$30/Vehicles!$BO$72+Vehicles!$H$31/Vehicles!$BP$72)/(Vehicles!$H$30*(1/Vehicles!$BN$72+1/Vehicles!$BO$72)+Vehicles!$H$31/Vehicles!$BP$72) -> 32.74143955 | X27: =AN27*(Vehicles!$I$30/Vehicles!$BR$72)/(Vehicles!$I$30*(1/Vehicles!$BR$72+1/Vehicles!$BS$72)+Vehicles!$I$31/Vehicles!$BT$72)+H27*(Vehicles!$I$30/Vehicles!$BS$72+Vehicles!$I$31/Vehicles!$BT$72)/(Vehicles!$I$30*(1/Vehicles!$BR$72+1/Vehicles!$BS$72)+Vehicles!$I$31/Vehicles!$BT$72) -> 30.1972567 | Y27: =AN27*(Vehicles!$J$30/Vehicles!$BV$72)/(Vehicles!$J$30*(1/Vehicles!$BV$72+1/Vehicles!$BW$72)+Vehicles!$J$31/Vehicles!$BX$72)+K27*(Vehicles!$J$30/Vehicles!$BW$72+Vehicles!$J$31/Vehicles!$BX$72)/(Vehicles!$J$30*(1/Vehicles!$BV$72+1/Vehicles!$BW$72)+Vehicles!$J$31/Vehicles!$BX$72) -> 32.59566934 | Z27: =AN27*(Vehicles!$K$30/Vehicles!$BZ$72)/(Vehicles!$K$30*(1/Vehicles!$BZ$72+1/Vehicles!$CA$72)+Vehicles!$K$31/Vehicles!$CB$72)+O27*(Vehicles!$K$30/Vehicles!$CA$72+Vehicles!$K$31/Vehicles!$CB$72)/(Vehicles!$K$30*(1/Vehicles!$BZ$72+1/Vehicles!$CA$72)+Vehicles!$K$31/Vehicles!$CB$72) -> 60.71835288 | AA27: =AN27*(Vehicles!$L$30/Vehicles!$CD$72)/(Vehicles!$L$30*(1/Vehicles!$CD$72+1/Vehicles!$CE$72)+Vehicles!$L$31/Vehicles!$CF$72)+AO27*(Vehicles!$L$30/Vehicles!$CE$72+Vehicles!$L$31/Vehicles!$CF$72)/(Vehicles!$L$30*(1/Vehicles!$CD$72+1/Vehicles!$CE$72)+Vehicles!$L$31/Vehicles!$CF$72) -> 47.01419128 | AB27: =AN27*(Vehicles!$L$30/Vehicles!$CD$72)/(Vehicles!$L$30*(1/Vehicles!$CD$72+1/Vehicles!$CE$72)+Vehicles!$L$31/Vehicles!$CG$72)+AP27*(Vehicles!$L$30/Vehicles!$CE$72+Vehicles!$L$31/Vehicles!$CG$72)/(Vehicles!$L$30*(1/Vehicles!$CD$72+1/Vehicles!$CE$72)+Vehicles!$L$31/Vehicles!$CG$72) -> 54.53720334 | AC27: =(MeOH_FTD!$AJ171*MeOH_FTD!$AK$162+MeOH_FTD!$AK171)/1000000*HLOOKUP($J$10,$Z$5:$AD$6,2,FALSE)/HLOOKUP($J$11,$Z$7:$AD$8,2,FALSE) -> 34.26580206 | AD27: =((1-Vehicles!$C$41)*(1-Vehicles!$C$13)*Fuel_Specs!$B$20/((1-Vehicles!$C$41)*(1-Vehicles!$C$13)*Fuel_Specs!$B$20+Vehicles!$C$41*(1-Vehicles!$C$13)*Fuel_Specs!$B$23+Vehicles!$C$13*Fuel_Specs!$B$41)*(Petroleum!B271*Petroleum!$J$262+Petroleum!$J271)+Vehicles!$C$41*(1-Vehicles!$C$13)*Fuel_Specs!$B$23/((1-Vehicles!$C$41)*(1-Vehicles!$C$13)*Fuel_Specs!$B$20+Vehicles!$C$41*(1-Vehicles!$C$13)*Fuel_Specs!$B$23+Vehicles!$C$13*Fuel_Specs!$B$41)*(Petroleum!B271*IF(Inputs!F$102=1,Petroleum!$K$262,Petroleum!$L$262)+IF(Inputs!F$102=1,Petroleum!$K271,Petroleum!$L271))+Vehicles!$C$13*Fuel_Specs!$B$41/((1-Vehicles!$C$41)*(1-Vehicles!$C$13)*Fuel_Specs!$B$20+Vehicles!$C$41*(1-Vehicles!$C$13)*Fuel_Specs!$B$23+Vehicles!$C$13*Fuel_Specs!$B$41)*(MeOH_FTD!$AZ171*MeOH_FTD!$BA$162+MeOH_FTD!$BA171))/1000000*HLOOKUP($J$10,$Z$5:$AD$6,2,FALSE)/HLOOKUP($J$11,$Z$7:$AD$8,2,FALSE) -> 32.44275308 | AE27: =((1-Vehicles!$C$42)*(1-Vehicles!$C$14)*Fuel_Specs!$B$20/((1-Vehicles!$C$42)*(1-Vehicles!$C$14)*Fuel_Specs!$B$20+Vehicles!$C$42*(1-Vehicles!$C$14)*Fuel_Specs!$B$23+Vehicles!$C$14*Fuel_Specs!$B$40)*(Petroleum!B271*Petroleum!$J$262+Petroleum!$J271)+Vehicles!$C$42*(1-Vehicles!$C$14)*Fuel_Specs!$B$23/((1-Vehicles!$C$42)*(1-Vehicles!$C$14)*Fuel_Specs!$B$20+Vehicles!$C$42*(1-Vehicles!$C$14)*Fuel_Specs!$B$23+Vehicles!$C$14*Fuel_Specs!$B$40)*(Petroleum!B271*IF(Inputs!F$102=1,Petroleum!$K$262,Petroleum!$L$262)+IF(Inputs!F$102=1,Petroleum!$K271,Petroleum!$L271))+Vehicles!$C$14*Fuel_Specs!$B$40/((1-Vehicles!$C$42)*(1-Vehicles!$C$14)*Fuel_Specs!$B$20+Vehicles!$C$42*(1-Vehicles!$C$14)*Fuel_Specs!$B$23+Vehicles!$C$14*Fuel_Specs!$B$40)*(BioOil!$Y441*BioOil!$Z$431+BioOil!$Z441))/1000000*HLOOKUP($J$10,$Z$5:$AD$6,2,FALSE)/HLOOKUP($J$11,$Z$7:$AD$8,2,FALSE) -> 18.7370704 | AF27: =((1-Vehicles!$C$43)*(1-Vehicles!$C$15)*Fuel_Specs!$B$20/((1-Vehicles!$C$43)*(1-Vehicles!$C$15)*Fuel_Specs!$B$20+Vehicles!$C$43*(1-Vehicles!$C$15)*Fuel_Specs!$B$23+Vehicles!$C$15*IF(Inputs!$E$670=1,IF(Inputs!$E$670=1,Fuel_Specs!$B$42,IF(Inputs!$E$670=3,Fuel_Specs!$B$44,Fuel_Specs!$B$43)),Fuel_Specs!$B$43))*(Petroleum!B271*Petroleum!$J$262+Petroleum!$J271)+Vehicles!$C$43*(1-Vehicles!$C$15)*Fuel_Specs!$B$23/((1-Vehicles!$C$43)*(1-Vehicles!$C$15)*Fuel_Specs!$B$20+Vehicles!$C$43*(1-Vehicles!$C$15)*Fuel_Specs!$B$23+Vehicles!$C$15*IF(Inputs!$E$670=1,IF(Inputs!$E$670=1,Fuel_Specs!$B$42,IF(Inputs!$E$670=3,Fuel_Specs!$B$44,Fuel_Specs!$B$43)),Fuel_Specs!$B$43))*(Petroleum!B271*IF(Inputs!F$102=1,Petroleum!$K$262,Petroleum!$L$262)+IF(Inputs!F$102=1,Petroleum!$K271,Petroleum!$L271))+Vehicles!$C$15*IF(Inputs!$E$670=1,IF(Inputs!$E$670=1,Fuel_Specs!$B$42,IF(Inputs!$E$670=3,Fuel_Specs!$B$44,Fuel_Specs!$B$43)),Fuel_Specs!$B$43)/((1-Vehicles!$C$43)*(1-Vehicles!$C$15)*Fuel_Specs!$B$20+Vehicles!$C$43*(1-Vehicles!$C$15)*Fuel_Specs!$B$23+Vehicles!$C$15*IF(Inputs!$E$670=1,IF(Inputs!$E$670=1,Fuel_Specs!$B$42,IF(Inputs!$E$670=3,Fuel_Specs!$B$44,Fuel_Specs!$B$43)),Fuel_Specs!$B$43))*(BioOil!$BQ441*BioOil!$BR$431+BioOil!$BR441))/1000000*HLOOKUP($J$10,$Z$5:$AD$6,2,FALSE)/HLOOKUP($J$11,$Z$7:$AD$8,2,FALSE) -> 22.81546091 | AG27: =((1-Vehicles!$C$43)*(1-Vehicles!$C$15)*Fuel_Specs!$B$20/((1-Vehicles!$C$43)*(1-Vehicles!$C$15)*Fuel_Specs!$B$20+Vehicles!$C$43*(1-Vehicles!$C$15)*Fuel_Specs!$B$23+Vehicles!$C$15*IF(Inputs!$E$670=1,Fuel_Specs!$B$42,Fuel_Specs!$B$43))*(Petroleum!B271*Petroleum!$J$262+Petroleum!$J271)+Vehicles!$C$43*(1-Vehicles!$C$15)*Fuel_Specs!$B$23/((1-Vehicles!$C$43)*(1-Vehicles!$C$15)*Fuel_Specs!$B$20+Vehicles!$C$43*(1-Vehicles!$C$15)*Fuel_Specs!$B$23+Vehicles!$C$15*IF(Inputs!$E$670=1,Fuel_Specs!$B$42,Fuel_Specs!$B$43))*(Petroleum!B271*IF(Inputs!F$102=1,Petroleum!$K$262,Petroleum!$L$262)+IF(Inputs!F$102=1,Petroleum!$K271,Petroleum!$L271))+Vehicles!$C$15*IF(Inputs!$E$670=1,Fuel_Specs!$B$42,Fuel_Specs!$B$43)/((1-Vehicles!$C$43)*(1-Vehicles!$C$15)*Fuel_Specs!$B$20+Vehicles!$C$43*(1-Vehicles!$C$15)*Fuel_Specs!$B$23+Vehicles!$C$15*IF(Inputs!$E$670=1,Fuel_Specs!$B$42,Fuel_Specs!$B$43))*(Pyrolysis_IDL!$AF306*Pyrolysis_IDL!$AG$297+Pyrolysis_IDL!$AG306))/1000000*HLOOKUP($J$10,$Z$5:$AD$6,2,FALSE)/HLOOKUP($J$11,$Z$7:$AD$8,2,FALSE) -> 22.97935311 | AH27: =(((1-Vehicles!$C$44)*(1-Vehicles!$C$17-Vehicles!$C$18)*Fuel_Specs!$B$20*(Petroleum!B271*Petroleum!$J$262+Petroleum!$J271)+Vehicles!$C$44*(1-Vehicles!$C$17-Vehicles!$C$18)*Fuel_Specs!$B$23*(Petroleum!B271*IF(Inputs!F$102=1,Petroleum!$K$262,Petroleum!$L$262)+IF(Inputs!F$102=1,Petroleum!$K271,Petroleum!$L271))+Vehicles!$C$17*Fuel_Specs!$B$32*(EtOH!BT555*EtOH!$BU$546+EtOH!$BU555)+Vehicles!$C$18*Fuel_Specs!$B$35*('EtOH-Diesel Additives'!$B62*'EtOH-Diesel Additives'!$B$53))/((1-Vehicles!$C$44)*(1-Vehicles!$C$17-Vehicles!$C$18)*Fuel_Specs!$B$20+Vehicles!$C$44*(1-Vehicles!$C$17-Vehicles!$C$18)*Fuel_Specs!$B$23+Vehicles!$C$17*Fuel_Specs!$B$32+Vehicles!$C$18*Fuel_Specs!$B$35))/1000000*HLOOKUP($J$10,$Z$5:$AD$6,2,FALSE)/HLOOKUP($J$11,$Z$7:$AD$8,2,FALSE) -> 22.64013425 | AI27: =AN27*(Vehicles!$M$30/Vehicles!$CO$72)/(Vehicles!$M$30*(1/Vehicles!$CO$72+1/Vehicles!$CP$72)+Vehicles!$M$31/Vehicles!$CQ$72)+E27*(Vehicles!$M$30/Vehicles!$CP$72+Vehicles!$M$31/Vehicles!$CQ$72)/(Vehicles!$M$30*(1/Vehicles!$CO$72+1/Vehicles!$CP$72)+Vehicles!$M$31/Vehicles!$CQ$72) -> 25.08718423 | AJ27: =AN27*(Vehicles!$N$30/Vehicles!$CS$72)/(Vehicles!$N$30*(1/Vehicles!$CS$72+1/Vehicles!$CT$72)+Vehicles!$N$31/Vehicles!$CU$72)+AC27*(Vehicles!$N$30/Vehicles!$CT$72+Vehicles!$N$31/Vehicles!$CU$72)/(Vehicles!$N$30*(1/Vehicles!$CS$72+1/Vehicles!$CT$72)+Vehicles!$N$31/Vehicles!$CU$72) -> 36.32155149 | AK27: =AN27*(Vehicles!$O$30/Vehicles!$CW$72)/(Vehicles!$O$30*(1/Vehicles!$CW$72+1/Vehicles!$CX$72)+Vehicles!$O$31/Vehicles!$CY$72)+AD27*(Vehicles!$O$30/Vehicles!$CX$72+Vehicles!$O$31/Vehicles!$CY$72)/(Vehicles!$O$30*(1/Vehicles!$CW$72+1/Vehicles!$CX$72)+Vehicles!$O$31/Vehicles!$CY$72) -> 35.0401301 | AL27: =AN27*(Vehicles!$P$30/Vehicles!$DA$72)/(Vehicles!$P$30*(1/Vehicles!$DA$72+1/Vehicles!$DB$72)+Vehicles!$P$31/Vehicles!$DC$72)+AE27*(Vehicles!$P$30/Vehicles!$DB$72+Vehicles!$P$31/Vehicles!$DC$72)/(Vehicles!$P$30*(1/Vehicles!$DA$72+1/Vehicles!$DB$72)+Vehicles!$P$31/Vehicles!$DC$72) -> 25.40640382 | AM27: =AN27*(Vehicles!$R$30/Vehicles!$DI$72)/(Vehicles!$R$30*(1/Vehicles!$DI$72+1/Vehicles!$DJ$72)+Vehicles!$R$31/Vehicles!$DK$72)+AH27*(Vehicles!$R$30/Vehicles!$DJ$72+Vehicles!$R$31/Vehicles!$DK$72)/(Vehicles!$R$30*(1/Vehicles!$DI$72+1/Vehicles!$DJ$72)+Vehicles!$R$31/Vehicles!$DK$72) -> 28.14986795 | AN27: =(Electric!$G212+Electric!$F212)/1000000*HLOOKUP($J$10,$Z$5:$AD$6,2,FALSE)/HLOOKUP($J$11,$Z$7:$AD$8,2,FALSE) -> 41.18519083 | AO27: =(Hydrogen!$AJ314*Hydrogen!$AK$305+Hydrogen!$AK314)/1000000*HLOOKUP($J$10,$Z$5:$AD$6,2,FALSE)/HLOOKUP($J$11,$Z$7:$AD$8,2,FALSE) -> 50.55449089 | AP27: =(Hydrogen!$BT314*Hydrogen!$BU$305+Hydrogen!$BU314)/1000000*HLOOKUP($J$10,$Z$5:$AD$6,2,FALSE)/HLOOKUP($J$11,$Z$7:$AD$8,2,FALSE) -> 62.64667683 | AQ27: =AN27*(Vehicles!$S$30/Vehicles!$DY$72)/(Vehicles!$S$30*(1/Vehicles!$DY$72+1/Vehicles!$DZ$72)+Vehicles!$S$31/Vehicles!$EA$72)+AO27*(Vehicles!$S$30/Vehicles!$DZ$72+Vehicles!$S$31/Vehicles!$EA$72)/(Vehicles!$S$30*(1/Vehicles!$DY$72+1/Vehicles!$DZ$72)+Vehicles!$S$31/Vehicles!$EA$72) -> 46.76460444 | AR27: =AN27*(Vehicles!$S$30/Vehicles!$DY$72)/(Vehicles!$S$30*(1/Vehicles!$DY$72+1/Vehicles!$DZ$72)+Vehicles!$S$31/Vehicles!$EA$72)+AP27*(Vehicles!$S$30/Vehicles!$DZ$72+Vehicles!$S$31/Vehicles!$EA$72)/(Vehicles!$S$30*(1/Vehicles!$DY$72+1/Vehicles!$DZ$72)+Vehicles!$S$31/Vehicles!$EA$72) -> 53.96549526 | AS27: =((1-Vehicles!$C$40)*(1-Vehicles!$C$16)*Fuel_Specs!$B$15/((1-Vehicles!$C$40)*(1-Vehicles!$C$16)*Fuel_Specs!$B$15+Vehicles!$C$40*(1-Vehicles!$C$16)*Fuel_Specs!$B$16+Vehicles!$C$16*Fuel_Specs!$B$47)*(Petroleum!$B271*Petroleum!$D$262+Petroleum!$D271)+Vehicles!$C$40*(1-Vehicles!$C$16)*Fuel_Specs!$B$16/((1-Vehicles!$C$40)*(1-Vehicles!$C$16)*Fuel_Specs!$B$15+Vehicles!$C$40*(1-Vehicles!$C$16)*Fuel_Specs!$B$16+Vehicles!$C$16*Fuel_Specs!$B$47)*(Petroleum!B271*Petroleum!$F$262+Petroleum!$F271)+Vehicles!$C$16*Fuel_Specs!$B$47/((1-Vehicles!$C$40)*(1-Vehicles!$C$16)*Fuel_Specs!$B$15+Vehicles!$C$40*(1-Vehicles!$C$16)*Fuel_Specs!$B$16+Vehicles!$C$16*Fuel_Specs!$B$47)*(Pyrolysis_IDL!$AP306*Pyrolysis_IDL!$AQ$297+Pyrolysis_IDL!$AQ306))/1000000*HLOOKUP($J$10,$Z$5:$AD$6,2,FALSE)/HLOOKUP($J$11,$Z$7:$AD$8,2,FALSE) -> 150.9542828 | AT27: =(Petroleum!$B271*Petroleum!$S$262+Petroleum!$S271)/1000000*HLOOKUP($J$10,$Z$5:$AD$6,2,FALSE)/HLOOKUP($J$11,$Z$7:$AD$8,2,FALSE) -> 20.15209901 | AU27: 22.2894477 | AV27: 22.70796095 | BB27: SI - Liquid H2 | BC27: RNAVLH2ICE
